Workbook

Sheet Menu
Z1: 2
Z4: 2
A6: South Extension District - 12
D8: Budgets
D11: Field Crops
D13: =CornConventionalTill!A3 -> Corn, Conventional Tillage, Furrow Irrigated, Rio Grande Valley
D14: =CornRducedTill!A3 -> Corn, Reduced Tillage, Furrow Irrigated, Rio Grande Valley
D15: =CottonConventionalTill!A3 -> Cotton, Conventional Tillage, Furrow Irrigated, Rio Grande Valley
D16: =CottonReducedTill!A3 -> Cotton, Reduced Tillage, GMO, Furrow Irrigated, Rio Grande Valley
D17: =CottonDryland!A3 -> Cotton, Conventional Tillage, Dryland, Rio Grande Valley
B18: Comparative Returns | D18: =SorghumConventionalTill!A3 -> Grain Sorghum, Conventional Tillage, Furrow Irrigated, Rio Grande Valley
D19: =SorghumReducedTill!A3 -> Grain Sorghum, Reduced Tillage, Furrow Irrigated, Rio Grande Valley
B20: Links | D20: =SorghumDryland!A3 -> Grain Sorghum, Conventional Tillage, Dryland, Rio Grande Valley
D21: =SugarCanePlant!A3 -> Sugar Cane, Planted, Furrow Irrigated, Rio Grande Valley
D22: =SugarCaneRatoon!A3 -> Sugar Cane, Ratoon, Furrow Irrigated, Rio Grande Valley
D23: =HayProduction!A3 -> Hay Production, Furrow Irrigated, Rio Grande Valley
D24: =HayEstablishment!A3 -> Hay Establishment, Furrow Irrigated, Rio Grande Valley
D26: Horticultural Crops
D28: =Cabbage!A3 -> Cabbage, Fresh Market, Furrow Irrigated, Rio Grande Valley
D29: =Cantaloupe!A3 -> Cantaloupe, Plastic Mulch, Drip Irrigated, Rio Grande Valley
D30: =HoneyDew!A3 -> Honeydew, Plastic Mulch, Drip Irrigated, Rio Grande Valley
D31: =Onion!A3 -> Onion, Hybrid Yellow Varieties, Furrow Irrigated, Rio Grande Valley
D32: =Watermelon!A3 -> Watermelon, Seedless, Plastic Mulch, Drip Irrigated, Rio Grande Valley
D33: =WatermelonDryland!A3 -> Watermelon, Open Pollinated Varieties, Dryland, Rio Grande Valley
D35: Citrus Crops
D37: =GrapefruitYear1!A3 -> Grapefruit, Year 1, Orchard Establishment, Flood Irrigated, Rio Grande Valley
D38: =GrapefruitYear2!A3 -> Grapefruit, Year 2, Orchard Establishment, Flood Irrigated, Rio Grande Valley
D39: =+GrapefruitYear3!A3 -> Grapefruit, Year 3, Orchard Establishment, Flood Irrigated, Rio Grande Valley
D40: =GrapefruitYear4!A3 -> Grapefruit, Year 4, Orchard Establishment, Flood Irrigated, Rio Grande Valley
D41: =GrapefruitYear5!A3 -> Grapefruit, Year 5, Orchard Establishment, Flood Irrigated, Rio Grande Valley
D42: =GrapefruitYear6!A3 -> Grapefruit, Year 6, Orchard Establishment, Flood Irrigated, Rio Grande Valley
D43: =GrapefruitYear7!A3 -> Grapefruit, Year 7, Orchard Establishment, Flood Irrigated, Rio Grande Valley
D44: =GrapefruitYear8!A3 -> Grapefruit, Year 8, Orchard Establishment, Flood Irrigated, Rio Grande Valley
D45: =OrangesNavel!A3 -> Oranges, Early Orange, Mature Orchard, Flood Irrigated, Rio Grande Valley
D46: =OrangesValencias!A3 -> Oranges, Valencias, Mature Orchard, Flood Irrigated, Rio Grande Valley
D48: Livestock
D50: =+CowCalf!A3 -> Cow-Calf Budget
D51: =+StockersSummer!A3 -> Summer Stocker Calf Budget
D52: =StockerWinter!A3 -> Winter Stocker Calf Budget
D54: Other Budgets
D56: ='Livestock Budget'!A3 -> Livestock Budget
D57: ='Crop Budget'!A3 -> Crop Enterprise
A71: Developed by Manuel Garcia, Assistant Professor and Extension Specialist, Texas A&M AgriLife Extension, 956-968-5581

Sheet Links
B2: Texas Crop and Livestock Budgets
B3: A Program of the Texas A&M AgriLife Extension Service
B4: Agricultural Economics Department, The Texas A&M University System
B6: Developed by Texas A&M AgriLife Extension Service Economists and Other Specialists
B8: Contact Us | G8: Clickable Logos
B10: Resources
B12: Decision Aids (includes Machinery Cost Estimator)
B14: Custom Rate Survey
B16: Basis Data
B18: Master Marketer
B20: Extension Ag Economics
B22: Department of Agricultural Economics
B24: Menu Page
B26: Links last checked 11/14/2024

Sheet GrapefruitYear1
A1: Projections for Planning Purposes Only -- Not to be Used without Updating
A2: 2025 Estimated Costs and Returns per Acre
A3: Grapefruit, Year 1, Orchard Establishment, Flood Irrigated, Rio Grande Valley
A4: Enter your name for this budget in the cell above.
A5: Enter Your Values in the cells highlighed in MAROON.
E6: Your Acres | R6: Your
C7: Crop Acres | D7: 100 | L7: Your | Q7: Enterprise | R7: Enterprise
E8: Your | H8: Your | I8: Cash | J8: Your | K8: Landlord | L8: Landlord | N8: Your | P8: Your | Q8: Total | R8: Total
A9: REVENUE | D9: Quantity | E9: Quantity | F9: Units | G9: $/Unit | H9: $/Unit | I9: Total | J9: Total | K9: Share | L9: Share | M9: Landlord | N9: Landlord | O9: Tenant | P9: Tenant | Q9: (100 acres) | R9: ="(" & E7 & " acres)" -> ( acres)
B10: Grapefruit (Rio Red) | D10: 0 | G10: 0 | I10: 0 | J10: =E10*H10 -> 0 | K10: 0 | M10: 0 | N10: =J10*L10 -> 0 | O10: 0 | P10: =+J10-N10 -> 0 | Q10: 0 | R10: =+J10*E$7 -> 0
D11: 0 | G11: 0 | I11: 0 | J11: 0 | K11: 0 | M11: 0 | N11: 0 | O11: 0 | P11: =+J11-N11 -> 0 | Q11: 0 | R11: 0
D12: 0 | G12: 0 | I12: 0 | J12: 0 | K12: 0 | M12: 0 | N12: 0 | O12: 0 | P12: 0 | Q12: 0 | R12: 0
A13: Total Revenue | I13: 0 | J13: =SUM(J10:J12) -> 0 | M13: 0 | N13: =SUM(N10:N12) -> 0 | O13: 0 | P13: =SUM(P10:P12) -> 0 | Q13: 0 | R13: =SUM(R10:R12) -> 0
Q14: Enterprise | R14: Enterprise
A15: VARIABLE COSTS | D15: Quantity | E15: Quantity | F15: Units | G15: $/Unit | H15: $/Unit | I15: Total | J15: Total | K15: Share | L15: Share | M15: Landlord | N15: Landlord | O15: Tenant | P15: Tenant | Q15: Total | R15: Total
A16: Production Costs
B17: Seed
C18: Young Citrus Trees | D18: 150 | F18: Tree | G18: 15 | I18: 2250 | J18: =E18*H18 -> 0 | K18: 0 | M18: 0 | N18: =J18*L18 -> 0 | O18: 2250 | P18: =+J18-N18 -> 0 | Q18: 225000 | R18: =+J18*E$7 -> 0
C19: Layout and Plant | D19: 150 | F19: Tree | G19: 5 | I19: 750 | J19: 0 | K19: 0 | M19: 0 | N19: 0 | O19: 750 | P19: 0 | Q19: 75000 | R19: 0
C20: Tree Wrap/Unwrap | D20: 150 | F20: Tree | G20: 2 | I20: 300 | J20: 0 | K20: 0 | M20: 0 | N20: 0 | O20: 300 | P20: 0 | Q20: 30000 | R20: 0
B21: Fertilizer
C22: Urea (46%) | D22: 0.62 | F22: CTW | G22: 26.1 | I22: 16.182 | J22: 0 | K22: 0 | M22: 0 | N22: 0 | O22: 16.182 | P22: 0 | Q22: 1618.2 | R22: 0
C23: Foliar Zn | D23: 0.67 | F23: Pound | G23: 3.4998 | I23: 2.344866 | J23: 0 | K23: 0 | M23: 0 | N23: 0 | O23: 2.344866 | P23: 0 | Q23: 234.4866 | R23: 0
C24: Foliar 18-8-5 | D24: 1.32 | F24: Gallon | G24: 15.5 | I24: 20.46 | J24: 0 | K24: 0 | M24: 0 | N24: 0 | O24: 20.46 | P24: 0 | Q24: 2046 | R24: 0
B25: Herbicide
C26: Simazine 4L | D26: 1.25 | F26: Gallon | G26: 38 | I26: 47.5 | J26: 0 | K26: 0 | M26: 0 | N26: 0 | O26: 47.5 | P26: 0 | Q26: 4750 | R26: 0
C27: Krovar I 80 DF | D27: 3 | F27: Pound | G27: 17.68 | I27: 53.04 | J27: 0 | K27: 0 | M27: 0 | N27: 0 | O27: 53.04 | P27: 0 | Q27: 5304 | R27: 0
C28: Glyphosate | D28: 20 | F28: Pint | G28: 6.25 | I28: 125 | J28: 0 | K28: 0 | M28: 0 | N28: 0 | O28: 125 | P28: 0 | Q28: 12500 | R28: 0
B29: Insecticide
C30: Sivanto | D30: 10 | F30: Ounce | G30: 3.280859375 | I30: 32.80859375 | J30: 0 | K30: 0 | M30: 0 | N30: 0 | O30: 32.80859375 | P30: 0 | Q30: 3280.859375 | R30: 0
C31: Danitol | D31: 16 | F31: Ounce | G31: 1.0078125 | I31: 16.125 | J31: 0 | K31: 0 | M31: 0 | N31: 0 | O31: 16.125 | P31: 0 | Q31: 1612.5 | R31: 0
B32: Miscellaneous
C33: Citrus Assessment | D33: 1 | F33: Acre | G33: 5 | I33: 5 | J33: 0 | K33: 0 | M33: 0 | N33: 0 | O33: 5 | P33: 0 | Q33: 500 | R33: 0
C34: Insurance, Young citrus trees | D34: 150 | F34: Tree | G34: 0.22 | I34: 33 | J34: 0 | K34: 0 | M34: 0 | N34: 0 | O34: 33 | P34: 0 | Q34: 3300 | R34: 0
B35: Custom
C36: Citrus Land Prep: Disk | D36: 1 | F36: Acre | G36: 35 | I36: 35 | J36: 0 | K36: 0 | M36: 0 | N36: 0 | O36: 35 | P36: 0 | Q36: 3500 | R36: 0
C37: Citrus Land Prep: Level | D37: 1 | F37: Acre | G37: 40 | I37: 40 | J37: 0 | K37: 0 | M37: 0 | N37: 0 | O37: 40 | P37: 0 | Q37: 4000 | R37: 0
C38: Foliar Application | D38: 2 | F38: Acre | G38: 50 | I38: 100 | J38: 0 | K38: 0 | M38: 0 | N38: 0 | O38: 100 | P38: 0 | Q38: 10000 | R38: 0
C39: Sucker (Yr 1-3 Year) | D39: 1 | F39: Acre | G39: 50 | I39: 50 | J39: 0 | K39: 0 | M39: 0 | N39: 0 | O39: 50 | P39: 0 | Q39: 5000 | R39: 0
C40: Land Prep. Remove Old Orchard | D40: 1 | F40: Acre | G40: 378 | I40: 378 | J40: 0 | K40: 0 | M40: 0 | N40: 0 | O40: 378 | P40: 0 | Q40: 37800 | R40: 0
C41: Citrus Land Prep: Root chisel | D41: 1 | F41: Acre | G41: 35 | I41: 35 | J41: 0 | K41: 0 | M41: 0 | N41: 0 | O41: 35 | P41: 0 | Q41: 3500 | R41: 0
B42: Other Labor
C43: Costum Soil Fert. Citrus | D43: 6 | F43: Hour | G43: 15 | I43: 90 | J43: 0 | K43: 0 | M43: 0 | N43: 0 | O43: 90 | P43: 0 | Q43: 9000 | R43: 0
C44: Unallocated Labor | D44: 1 | F44: Hour | G44: 15 | I44: 15 | J44: 0 | K44: 0 | M44: 0 | N44: 0 | O44: 15 | P44: 0 | Q44: 1500 | R44: 0
B45: Other Chemicals
C46: Surfactant | D46: 8.28 | F46: Pint | G46: 7.475 | I46: 61.893 | J46: 0 | K46: 0 | M46: 0 | N46: 0 | O46: 61.893 | P46: 0 | Q46: 6189.3 | R46: 0
D47: 0 | G47: 0 | I47: 0 | J47: 0 | K47: 0 | M47: 0 | N47: 0 | O47: 0 | P47: 0 | Q47: 0 | R47: 0
D48: 0 | G48: 0 | I48: 0 | J48: 0 | K48: 0 | M48: 0 | N48: 0 | O48: 0 | P48: 0 | Q48: 0 | R48: 0
D49: 0 | G49: 0 | I49: 0 | J49: =E49*H49 -> 0 | K49: 0 | M49: 0 | N49: =J49*L49 -> 0 | O49: 0 | P49: =+J49-N49 -> 0 | Q49: 0 | R49: =+J49*E$7 -> 0
B50: Irrigation
C51: Water Cost | D51: 1.56 | F51: Acre/Foot | G51: 28.82051282 | I51: 44.96 | J51: =E51*H51 -> 0 | K51: 0 | M51: 0 | N51: =J51*L51 -> 0 | O51: 44.96 | P51: =+J51-N51 -> 0 | Q51: 4496 | R51: =+J51*E$7 -> 0
C52: Irrigation Labor | D52: 13 | F52: Hour | G52: 17.5 | I52: 227.5 | J52: 0 | K52: 0 | M52: 0 | N52: 0 | O52: 227.5 | P52: 0 | Q52: 22750 | R52: 0
B53: Machinery Labor
C54: Tractors/Self-Propelled | D54: 0.8 | F54: Hour | G54: 17.21 | I54: 13.768 | J54: =E54*H54 -> 0 | K54: 0 | M54: 0 | N54: =J54*L54 -> 0 | O54: 13.768 | P54: =+J54-N54 -> 0 | Q54: 1376.8 | R54: =+J54*E$7 -> 0
C55: Other Labor | D55: 0.4 | F55: Hour | G55: 17.21 | I55: 6.884 | J55: =E55*H55 -> 0 | K55: 0 | M55: 0 | N55: =J55*L55 -> 0 | O55: 6.884 | P55: =+J55-N55 -> 0 | Q55: 688.4 | R55: =+J55*E$7 -> 0
B57: Diesel Fuel
C58: Pickup/General Use Equipment | D58: 1 | F58: Acre | G58: 0 | I58: 0 | J58: =E58*H58 -> 0 | K58: 0 | M58: 0 | N58: =J58*L58 -> 0 | O58: 0 | P58: =+J58-N58 -> 0 | Q58: 0 | R58: =+J58*E$7 -> 0
C59: Tractors/Self-Propelled | D59: 3.66 | F59: Gallon | G59: 3.6 | I59: 13.176 | J59: =E59*H59 -> 0 | K59: 0 | M59: 0 | N59: =J59*L59 -> 0 | O59: 13.176 | P59: =+J59-N59 -> 0 | Q59: 1317.6 | R59: =+J59*E$7 -> 0
B61: Gasoline
C62: Pickup/General Use Equipment | D62: 1 | F62: Acre | G62: 0 | I62: 0 | J62: =E62*H62 -> 0 | K62: 0 | M62: 0 | N62: =J62*L62 -> 0 | O62: 0 | P62: =+J62-N62 -> 0 | Q62: 0 | R62: =+J62*E$7 -> 0
C63: Tractors/Self-Propelled | D63: 0 | F63: Gallon | G63: 3.15 | I63: 0 | J63: =E63*H63 -> 0 | K63: 0 | M63: 0 | N63: =J63*L63 -> 0 | O63: 0 | P63: =+J63-N63 -> 0 | Q63: 0 | R63: =+J63*E$7 -> 0
B65: Repairs & Maintenance
C66: Pickup/General Use Equipment | D66: 1 | F66: Acre | G66: 0 | I66: 0 | J66: =E66*H66 -> 0 | K66: 0 | M66: 0 | N66: =J66*L66 -> 0 | O66: 0 | P66: =+J66-N66 -> 0 | Q66: 0 | R66: =+J66*E$7 -> 0
C67: Irrigation Equipment | D67: 1 | F67: Acre | G67: 0 | I67: 0 | J67: 0 | K67: 0 | M67: 0 | N67: 0 | O67: 0 | P67: 0 | Q67: 0 | R67: 0
C68: Tractors/Self-Propelled | D68: 1 | F68: Acre | G68: 8.785121309 | I68: 8.785121309 | J68: 0 | K68: 0 | M68: 0 | N68: 0 | O68: 8.785121309 | P68: 0 | Q68: 878.5121309 | R68: 0
C69: Implements | D69: 1 | F69: Acre | G69: 2.85698064 | I69: 2.85698064 | J69: 0 | K69: 0 | M69: 0 | N69: 0 | O69: 2.85698064 | P69: 0 | Q69: 285.698064 | R69: 0
I70: 0 | J70: 0 | K70: 0 | M70: 0 | N70: 0 | O70: 0 | P70: 0 | Q70: 0 | R70: 0
I71: 0 | J71: 0 | K71: 0 | M71: 0 | N71: 0 | O71: 0 | P71: 0 | Q71: 0 | R71: 0
B72: Interest on Credit Line | G72: 0.085 | I72: 332.557011 | J72: =+SUM(J17:J71)/2*H72 -> 0 | M72: 0 | N72: =+SUM(N17:N71)/2*L72 -> 0 | O72: 332.557011 | P72: =+SUM(P17:P71)/2*L72 -> 0 | Q72: 33255.7011 | R72: =+J72*E$7 -> 0
A73: Total Variable Costs | I73: 5106.840573 | J73: =SUM(J18:J72) -> 0 | M73: 0 | N73: =SUM(N18:N72) -> 0 | O73: 5106.840573 | P73: =SUM(P18:P72) -> 0 | Q73: 510684.0573 | R73: =SUM(R18:R72) -> 0
A74: Planned Returns Above Variable Costs: | I74: -5106.840573 | J74: =+J13-J73 -> 0 | M74: 0 | N74: =+N13-N73 -> 0 | O74: -5106.840573 | P74: =+P13-P73 -> 0 | Q74: -510684.0573 | R74: =+R13-R73 -> 0
B75: Breakeven Price to Cover Variable Costs | G75: n/a | H75: =IF(E10=0,"n/a",(YVarExp-(YTotExp+YTotRet-J10))/E10) -> n/a
Q76: Enterprise | R76: Enterprise
A77: FIXED COSTS | D77: Quantity | E77: Quantity | F77: Units | G77: $/Unit | H77: $/Unit | I77: Total | J77: Total | K77: Share | L77: Share | M77: Landlord | N77: Landlord | O77: Tenant | P77: Tenant | Q77: Total | R77: Total
B78: Machinery Depreciation
C79: Tractors/Self-Propelled | D79: 1 | F79: Acre | G79: 9.077958686 | I79: 9.077958686 | J79: =E79*H79 -> 0 | K79: 0 | M79: 0 | N79: =J79*L79 -> 0 | O79: 9.077958686 | P79: =+J79-N79 -> 0 | Q79: 907.7958686 | R79: =+J79*E$7 -> 0
C80: Implements | D80: 1 | F80: Acre | G80: 3.04750103 | I80: 3.04750103 | J80: 0 | K80: 0 | M80: 0 | N80: =J80*L80 -> 0 | O80: 3.04750103 | P80: 0 | Q80: 304.750103 | R80: 0
B81: Equipment Investment
C82: Tractors/Self-Propelled | D82: 70.72022654 | F82: Dollars | G82: 0.085 | I82: 6.011219256 | J82: =E82*H82 -> 0 | K82: 0 | M82: 0 | N82: =J82*L82 -> 0 | O82: 6.011219256 | P82: =+J82-N82 -> 0 | Q82: 601.1219256 | R82: =+J82*E$7 -> 0
C83: Implements | D83: 13.03653218 | F83: Dollars | G83: 0.085 | I83: 1.108105236 | J83: 0 | K83: 0 | M83: 0 | N83: =J83*L83 -> 0 | O83: 1.108105236 | P83: 0 | Q83: 110.8105236 | R83: 0
B84: Salaried Labor | D84: 1 | F84: Acre | G84: 0 | I84: 0 | J84: 0 | K84: 0 | M84: 0 | N84: =J84*L84 -> 0 | O84: 0 | P84: =+J84-N84 -> 0 | Q84: 0 | R84: =+J84*E$7 -> 0
B85: Management Fee, Owner/Operator Labor | D85: 1 | F85: Acre | G85: 0 | I85: 0 | J85: 0 | K85: 0 | M85: 0 | N85: 0 | O85: 0 | P85: 0 | Q85: 0 | R85: 0
B86: Allocated Establishment Cost | D86: 1 | F86: Acre | G86: 0 | I86: 0 | J86: 0 | K86: 0 | M86: 0 | N86: 0 | O86: 0 | P86: 0 | Q86: 0 | R86: 0
B87: Land Cost, Orchard | D87: 1 | F87: Acre | G87: 100 | I87: 100 | J87: 0 | K87: 0 | M87: 0 | N87: 0 | O87: 100 | P87: 0 | Q87: 10000 | R87: 0
B88: Property Taxes | D88: 1 | F88: Acre | G88: 0 | I88: 0 | J88: 0 | K88: 0 | M88: 0 | N88: 0 | O88: 0 | P88: 0 | Q88: 0 | R88: 0
B89: Whole Farm Insurance | D89: 1 | F89: Acre | G89: 0 | I89: 0 | J89: 0 | K89: 0 | M89: 0 | N89: 0 | O89: 0 | P89: 0 | Q89: 0 | R89: 0
D90: 1 | G90: 0 | I90: 0 | J90: 0 | K90: 0 | M90: 0 | N90: 0 | O90: 0 | P90: 0 | Q90: 0 | R90: 0
D91: 1 | G91: 0 | I91: 0 | J91: =E91*H91 -> 0 | K91: 0 | M91: 0 | N91: 0 | O91: 0 | P91: 0 | Q91: 0 | R91: 0
A92: Total Fixed Costs | I92: 119.2447842 | J92: =+SUM(J79:J91) -> 0 | M92: 0 | N92: =+SUM(N79:N91) -> 0 | O92: 119.2447842 | P92: =+SUM(P79:P91) -> 0 | Q92: 11924.47842 | R92: =+SUM(R79:R91) -> 0
A93: Total Specified Costs | I93: 5226.085357 | J93: =+J73+J92 -> 0 | M93: 0 | N93: =+N73+N92 -> 0 | O93: 5226.085357 | P93: =+P73+P92 -> 0 | Q93: 522608.5357 | R93: =+R73+R92 -> 0
A95: Returns Above Specified Costs | I95: -5226.085357 | J95: =+J13-J93 -> 0 | M95: 0 | N95: =+N13-N93 -> 0 | O95: -5226.085357 | P95: =+P13-P93 -> 0 | Q95: -522608.5357 | R95: =+R13-R93 -> 0
A97: Breakeven Price to Cover Total Costs | G97: n/a | H97: =IF(E10=0,"n/a",(YTotExp-(YTotExp+YTotRet-J10))/E10) -> n/a
D99: Example Breakeven Prices
B100: Example | C100: Example | D100: To Cover | G100: To Cover
B101: Yield | C101: Yield | D101: Variable | G101: Total
B102: Percent | D102: Costs | G102: Costs
B103: 0.75 | C103: 0 | D103: 0 | G103: 0
B104: 0.9 | C104: 0 | D104: 0 | G104: 0
B105: 1 | C105: 0 | D105: 0 | G105: 0
B106: 1.1 | C106: 0 | D106: 0 | G106: 0
B107: 1.25 | C107: 0 | D107: 0 | G107: 0
A109: Developed by Manuel Garcia, Assistant Professor and Extension Specialist, Texas A&M AgriLife Extension, 956-968-5581
A110: 0
A111: Information presented is prepared solely as a general guide and not intended to recognize or predict the costs and returns from any one operation. Brand names are mentioned only as examples and imply no endorsement.

Sheet GrapefruitYear2
A1: Projections for Planning Purposes Only -- Not to be Used without Updating
A2: 2025 Estimated Costs and Returns per Acre
A3: Grapefruit, Year 2, Orchard Establishment, Flood Irrigated, Rio Grande Valley
A4: Enter your name for this budget in the cell above.
A5: Enter Your Values in the cells highlighed in MAROON.
E6: Your Acres | R6: Your
C7: Crop Acres | D7: 100 | L7: Your | Q7: Enterprise | R7: Enterprise
E8: Your | H8: Your | I8: Cash | J8: Your | K8: Landlord | L8: Landlord | N8: Your | P8: Your | Q8: Total | R8: Total
A9: REVENUE | D9: Quantity | E9: Quantity | F9: Units | G9: $/Unit | H9: $/Unit | I9: Total | J9: Total | K9: Share | L9: Share | M9: Landlord | N9: Landlord | O9: Tenant | P9: Tenant | Q9: (100 acres) | R9: ="(" & E7 & " acres)" -> ( acres)
B10: 0 | D10: 0 | G10: 0 | I10: 0 | J10: =E10*H10 -> 0 | K10: 0 | M10: 0 | N10: =J10*L10 -> 0 | O10: 0 | P10: =+J10-N10 -> 0 | Q10: 0 | R10: =+J10*E$7 -> 0
D11: 0 | G11: 0 | I11: 0 | J11: 0 | K11: 0 | M11: 0 | N11: 0 | O11: 0 | P11: =+J11-N11 -> 0 | Q11: 0 | R11: 0
D12: 0 | G12: 0 | I12: 0 | J12: 0 | K12: 0 | M12: 0 | N12: 0 | O12: 0 | P12: 0 | Q12: 0 | R12: 0
A13: Total Revenue | I13: 0 | J13: =SUM(J10:J12) -> 0 | M13: 0 | N13: =SUM(N10:N12) -> 0 | O13: 0 | P13: =SUM(P10:P12) -> 0 | Q13: 0 | R13: =SUM(R10:R12) -> 0
Q14: Enterprise | R14: Enterprise
A15: VARIABLE COSTS | D15: Quantity | E15: Quantity | F15: Units | G15: $/Unit | H15: $/Unit | I15: Total | J15: Total | K15: Share | L15: Share | M15: Landlord | N15: Landlord | O15: Tenant | P15: Tenant | Q15: Total | R15: Total
A16: Production Costs
B17: Seed
C18: Young Citrus Trees | D18: 3 | F18: Tree | G18: 15 | I18: 45 | J18: =E18*H18 -> 0 | K18: 0 | M18: 0 | N18: =J18*L18 -> 0 | O18: 45 | P18: =+J18-N18 -> 0 | Q18: 4500 | R18: =+J18*E$7 -> 0
C19: Layout and Plant | D19: 3 | F19: Tree | G19: 5 | I19: 15 | J19: 0 | K19: 0 | M19: 0 | N19: 0 | O19: 15 | P19: 0 | Q19: 1500 | R19: 0
C20: Tree Wrap/Unwrap | D20: 3 | F20: Tree | G20: 2 | I20: 6 | J20: 0 | K20: 0 | M20: 0 | N20: 0 | O20: 6 | P20: 0 | Q20: 600 | R20: 0
B21: Fertilizer
C22: Urea (46%) | D22: 1.25 | F22: CTW | G22: 26.1 | I22: 32.625 | J22: 0 | K22: 0 | M22: 0 | N22: 0 | O22: 32.625 | P22: 0 | Q22: 3262.5 | R22: 0
C23: Foliar 18-8-5 | D23: 1.32 | F23: Gallon | G23: 15.5 | I23: 20.46 | J23: 0 | K23: 0 | M23: 0 | N23: 0 | O23: 20.46 | P23: 0 | Q23: 2046 | R23: 0
C24: Foliar Zn | D24: 0.67 | F24: Pound | G24: 3.4998 | I24: 2.344866 | J24: 0 | K24: 0 | M24: 0 | N24: 0 | O24: 2.344866 | P24: 0 | Q24: 234.4866 | R24: 0
B25: Herbicide
C26: Simazine 4L | D26: 1.25 | F26: Gallon | G26: 38 | I26: 47.5 | J26: 0 | K26: 0 | M26: 0 | N26: 0 | O26: 47.5 | P26: 0 | Q26: 4750 | R26: 0
C27: Krovar I 80 DF | D27: 3 | F27: Pound | G27: 17.68 | I27: 53.04 | J27: 0 | K27: 0 | M27: 0 | N27: 0 | O27: 53.04 | P27: 0 | Q27: 5304 | R27: 0
C28: Glyphosate | D28: 20 | F28: Pint | G28: 6.25 | I28: 125 | J28: 0 | K28: 0 | M28: 0 | N28: 0 | O28: 125 | P28: 0 | Q28: 12500 | R28: 0
B29: Insecticide
C30: Sivanto | D30: 10 | F30: Ounce | G30: 3.280859375 | I30: 32.80859375 | J30: 0 | K30: 0 | M30: 0 | N30: 0 | O30: 32.80859375 | P30: 0 | Q30: 3280.859375 | R30: 0
C31: Danitol | D31: 16 | F31: Ounce | G31: 1.0078125 | I31: 16.125 | J31: 0 | K31: 0 | M31: 0 | N31: 0 | O31: 16.125 | P31: 0 | Q31: 1612.5 | R31: 0
B32: Miscellaneous
C33: Citrus Assessment | D33: 1 | F33: Acre | G33: 5 | I33: 5 | J33: 0 | K33: 0 | M33: 0 | N33: 0 | O33: 5 | P33: 0 | Q33: 500 | R33: 0
C34: Insurance, Young citrus trees | D34: 150 | F34: Tree | G34: 0.22 | I34: 33 | J34: 0 | K34: 0 | M34: 0 | N34: 0 | O34: 33 | P34: 0 | Q34: 3300 | R34: 0
B35: Custom
C36: Foliar Application | D36: 2 | F36: Acre | G36: 50 | I36: 100 | J36: 0 | K36: 0 | M36: 0 | N36: 0 | O36: 100 | P36: 0 | Q36: 10000 | R36: 0
C37: Sucker (Yr 1-3 Year) | D37: 1 | F37: Acre | G37: 50 | I37: 50 | J37: 0 | K37: 0 | M37: 0 | N37: 0 | O37: 50 | P37: 0 | Q37: 5000 | R37: 0
B38: Other Labor
C39: Costum Soil Fert. Citrus | D39: 6 | F39: Hour | G39: 15 | I39: 90 | J39: 0 | K39: 0 | M39: 0 | N39: 0 | O39: 90 | P39: 0 | Q39: 9000 | R39: 0
C40: Unallocated Labor | D40: 1 | F40: Hour | G40: 15 | I40: 15 | J40: 0 | K40: 0 | M40: 0 | N40: 0 | O40: 15 | P40: 0 | Q40: 1500 | R40: 0
B41: Other Chemicals
C42: Surfactant | D42: 8.28 | F42: Pint | G42: 7.475 | I42: 61.893 | J42: 0 | K42: 0 | M42: 0 | N42: 0 | O42: 61.893 | P42: 0 | Q42: 6189.3 | R42: 0
D43: 0 | G43: 0 | I43: 0 | J43: 0 | K43: 0 | M43: 0 | N43: 0 | O43: 0 | P43: 0 | Q43: 0 | R43: 0
D44: 0 | G44: 0 | I44: 0 | J44: 0 | K44: 0 | M44: 0 | N44: 0 | O44: 0 | P44: 0 | Q44: 0 | R44: 0
D45: 0 | G45: 0 | I45: 0 | J45: =E45*H45 -> 0 | K45: 0 | M45: 0 | N45: =J45*L45 -> 0 | O45: 0 | P45: =+J45-N45 -> 0 | Q45: 0 | R45: =+J45*E$7 -> 0
B46: Irrigation
C47: Water Cost | D47: 4 | F47: Acre/Foot | G47: 21 | I47: 84 | J47: =E47*H47 -> 0 | K47: 0 | M47: 0 | N47: =J47*L47 -> 0 | O47: 84 | P47: =+J47-N47 -> 0 | Q47: 8400 | R47: =+J47*E$7 -> 0
C48: Irrigation Labor | D48: 14 | F48: Hour | G48: 17.5 | I48: 245 | J48: 0 | K48: 0 | M48: 0 | N48: 0 | O48: 245 | P48: 0 | Q48: 24500 | R48: 0
B49: Machinery Labor
C50: Tractors/Self-Propelled | D50: 0.8 | F50: Hour | G50: 17.21 | I50: 13.768 | J50: =E50*H50 -> 0 | K50: 0 | M50: 0 | N50: =J50*L50 -> 0 | O50: 13.768 | P50: =+J50-N50 -> 0 | Q50: 1376.8 | R50: =+J50*E$7 -> 0
C51: Other Labor | D51: 0.4 | F51: Hour | G51: 17.21 | I51: 6.884 | J51: =E51*H51 -> 0 | K51: 0 | M51: 0 | N51: =J51*L51 -> 0 | O51: 6.884 | P51: =+J51-N51 -> 0 | Q51: 688.4 | R51: =+J51*E$7 -> 0
B53: Diesel Fuel
C54: Pickup/General Use Equipment | D54: 1 | F54: Acre | G54: 0 | I54: 0 | J54: =E54*H54 -> 0 | K54: 0 | M54: 0 | N54: =J54*L54 -> 0 | O54: 0 | P54: =+J54-N54 -> 0 | Q54: 0 | R54: =+J54*E$7 -> 0
C55: Tractors/Self-Propelled | D55: 3.66 | F55: Gallon | G55: 3.6 | I55: 13.176 | J55: =E55*H55 -> 0 | K55: 0 | M55: 0 | N55: =J55*L55 -> 0 | O55: 13.176 | P55: =+J55-N55 -> 0 | Q55: 1317.6 | R55: =+J55*E$7 -> 0
B57: Gasoline
C58: Pickup/General Use Equipment | D58: 1 | F58: Acre | G58: 0 | I58: 0 | J58: =E58*H58 -> 0 | K58: 0 | M58: 0 | N58: =J58*L58 -> 0 | O58: 0 | P58: =+J58-N58 -> 0 | Q58: 0 | R58: =+J58*E$7 -> 0
C59: Tractors/Self-Propelled | D59: 0 | F59: Gallon | G59: 3.15 | I59: 0 | J59: =E59*H59 -> 0 | K59: 0 | M59: 0 | N59: =J59*L59 -> 0 | O59: 0 | P59: =+J59-N59 -> 0 | Q59: 0 | R59: =+J59*E$7 -> 0
B61: Repairs & Maintenance
C62: Pickup/General Use Equipment | D62: 1 | F62: Acre | G62: 0 | I62: 0 | J62: =E62*H62 -> 0 | K62: 0 | M62: 0 | N62: =J62*L62 -> 0 | O62: 0 | P62: =+J62-N62 -> 0 | Q62: 0 | R62: =+J62*E$7 -> 0
C63: Irrigation Equipment | D63: 1 | F63: Acre | G63: 0 | I63: 0 | J63: 0 | K63: 0 | M63: 0 | N63: 0 | O63: 0 | P63: 0 | Q63: 0 | R63: 0
C64: Tractors/Self-Propelled | D64: 1 | F64: Acre | G64: 8.785121309 | I64: 8.785121309 | J64: 0 | K64: 0 | M64: 0 | N64: 0 | O64: 8.785121309 | P64: 0 | Q64: 878.5121309 | R64: 0
C65: Implements | D65: 1 | F65: Acre | G65: 2.85698064 | I65: 2.85698064 | J65: 0 | K65: 0 | M65: 0 | N65: 0 | O65: 2.85698064 | P65: 0 | Q65: 285.698064 | R65: 0
I66: 0 | J66: 0 | K66: 0 | M66: 0 | N66: 0 | O66: 0 | P66: 0 | Q66: 0 | R66: 0
I67: 0 | J67: 0 | K67: 0 | M67: 0 | N67: 0 | O67: 0 | P67: 0 | Q67: 0 | R67: 0
B68: Interest on Credit Line | G68: 0.085 | I68: 56.62588328 | J68: =+SUM(J17:J67)/2*H68 -> 0 | M68: 0 | N68: =+SUM(N17:N67)/2*L68 -> 0 | O68: 56.62588328 | P68: =+SUM(P17:P67)/2*L68 -> 0 | Q68: 5662.588328 | R68: =+J68*E$7 -> 0
A69: Total Variable Costs | I69: 1181.892445 | J69: =SUM(J18:J68) -> 0 | M69: 0 | N69: =SUM(N18:N68) -> 0 | O69: 1181.892445 | P69: =SUM(P18:P68) -> 0 | Q69: 118189.2445 | R69: =SUM(R18:R68) -> 0
A70: Planned Returns Above Variable Costs: | I70: -1181.892445 | J70: =+J13-J69 -> 0 | M70: 0 | N70: =+N13-N69 -> 0 | O70: -1181.892445 | P70: =+P13-P69 -> 0 | Q70: -118189.2445 | R70: =+R13-R69 -> 0
B71: Breakeven Price to Cover Variable Costs | G71: n/a | H71: =IF(E10=0,"n/a",(YVarExp-(YTotExp+YTotRet-J10))/E10) -> n/a
Q72: Enterprise | R72: Enterprise
A73: FIXED COSTS | D73: Quantity | E73: Quantity | F73: Units | G73: $/Unit | H73: $/Unit | I73: Total | J73: Total | K73: Share | L73: Share | M73: Landlord | N73: Landlord | O73: Tenant | P73: Tenant | Q73: Total | R73: Total
B74: Machinery Depreciation
C75: Tractors/Self-Propelled | D75: 1 | F75: Acre | G75: 9.077958686 | I75: 9.077958686 | J75: =E75*H75 -> 0 | K75: 0 | M75: 0 | N75: =J75*L75 -> 0 | O75: 9.077958686 | P75: =+J75-N75 -> 0 | Q75: 907.7958686 | R75: =+J75*E$7 -> 0
C76: Implements | D76: 1 | F76: Acre | G76: 3.04750103 | I76: 3.04750103 | J76: 0 | K76: 0 | M76: 0 | N76: =J76*L76 -> 0 | O76: 3.04750103 | P76: 0 | Q76: 304.750103 | R76: 0
B77: Equipment Investment
C78: Tractors/Self-Propelled | D78: 70.72022654 | F78: Dollars | G78: 0.085 | I78: 6.011219256 | J78: =E78*H78 -> 0 | K78: 0 | M78: 0 | N78: =J78*L78 -> 0 | O78: 6.011219256 | P78: =+J78-N78 -> 0 | Q78: 601.1219256 | R78: =+J78*E$7 -> 0
C79: Implements | D79: 13.03653218 | F79: Dollars | G79: 0.085 | I79: 1.108105236 | J79: 0 | K79: 0 | M79: 0 | N79: =J79*L79 -> 0 | O79: 1.108105236 | P79: 0 | Q79: 110.8105236 | R79: 0
B80: Salaried Labor | D80: 1 | F80: Acre | G80: 0 | I80: 0 | J80: 0 | K80: 0 | M80: 0 | N80: =J80*L80 -> 0 | O80: 0 | P80: =+J80-N80 -> 0 | Q80: 0 | R80: =+J80*E$7 -> 0
B81: Management Fee, Owner/Operator Labor | D81: 1 | F81: Acre | G81: 0 | I81: 0 | J81: 0 | K81: 0 | M81: 0 | N81: 0 | O81: 0 | P81: 0 | Q81: 0 | R81: 0
B82: Allocated Establishment Cost | D82: 1 | F82: Acre | G82: 0 | I82: 0 | J82: 0 | K82: 0 | M82: 0 | N82: 0 | O82: 0 | P82: 0 | Q82: 0 | R82: 0
B83: Land Cost, Orchard | D83: 1 | F83: Acre | G83: 100 | I83: 100 | J83: 0 | K83: 0 | M83: 0 | N83: 0 | O83: 100 | P83: 0 | Q83: 10000 | R83: 0
B84: Property Taxes | D84: 1 | F84: Acre | G84: 0 | I84: 0 | J84: 0 | K84: 0 | M84: 0 | N84: 0 | O84: 0 | P84: 0 | Q84: 0 | R84: 0
B85: Whole Farm Insurance | D85: 1 | F85: Acre | G85: 0 | I85: 0 | J85: 0 | K85: 0 | M85: 0 | N85: 0 | O85: 0 | P85: 0 | Q85: 0 | R85: 0
D86: 1 | G86: 0 | I86: 0 | J86: 0 | K86: 0 | M86: 0 | N86: 0 | O86: 0 | P86: 0 | Q86: 0 | R86: 0
D87: 1 | G87: 0 | I87: 0 | J87: =E87*H87 -> 0 | K87: 0 | M87: 0 | N87: 0 | O87: 0 | P87: 0 | Q87: 0 | R87: 0
A88: Total Fixed Costs | I88: 119.2447842 | J88: =+SUM(J75:J87) -> 0 | M88: 0 | N88: =+SUM(N75:N87) -> 0 | O88: 119.2447842 | P88: =+SUM(P75:P87) -> 0 | Q88: 11924.47842 | R88: =+SUM(R75:R87) -> 0
A89: Total Specified Costs | I89: 1301.137229 | J89: =+J69+J88 -> 0 | M89: 0 | N89: =+N69+N88 -> 0 | O89: 1301.137229 | P89: =+P69+P88 -> 0 | Q89: 130113.7229 | R89: =+R69+R88 -> 0
A91: Returns Above Specified Costs | I91: -1301.137229 | J91: =+J13-J89 -> 0 | M91: 0 | N91: =+N13-N89 -> 0 | O91: -1301.137229 | P91: =+P13-P89 -> 0 | Q91: -130113.7229 | R91: =+R13-R89 -> 0
A93: Breakeven Price to Cover Total Costs | G93: n/a | H93: =IF(E10=0,"n/a",(YTotExp-(YTotExp+YTotRet-J10))/E10) -> n/a
D95: Example Breakeven Prices
B96: Example | C96: Example | D96: To Cover | G96: To Cover
B97: Yield | C97: Yield | D97: Variable | G97: Total
B98: Percent | D98: Costs | G98: Costs
B99: 0.75 | C99: 0 | D99: 0 | G99: 0
B100: 0.9 | C100: 0 | D100: 0 | G100: 0
B101: 1 | C101: 0 | D101: 0 | G101: 0
B102: 1.1 | C102: 0 | D102: 0 | G102: 0
B103: 1.25 | C103: 0 | D103: 0 | G103: 0
A105: Developed by Manuel Garcia, Assistant Professor and Extension Specialist, Texas A&M AgriLife Extension, 956-968-5581
A106: 0
A107: Information presented is prepared solely as a general guide and not intended to recognize or predict the costs and returns from any one operation. Brand names are mentioned only as examples and imply no endorsement.

Sheet GrapefruitYear3
A1: Projections for Planning Purposes Only -- Not to be Used without Updating
A2: 2025 Estimated Costs and Returns per Acre
A3: Grapefruit, Year 3, Orchard Establishment, Flood Irrigated, Rio Grande Valley
A4: Enter your name for this budget in the cell above.
A5: Enter Your Values in the cells highlighed in MAROON.
E6: Your Acres | R6: Your
C7: Crop Acres | D7: 100 | L7: Your | Q7: Enterprise | R7: Enterprise
E8: Your | H8: Your | I8: Cash | J8: Your | K8: Landlord | L8: Landlord | N8: Your | P8: Your | Q8: Total | R8: Total
A9: REVENUE | D9: Quantity | E9: Quantity | F9: Units | G9: $/Unit | H9: $/Unit | I9: Total | J9: Total | K9: Share | L9: Share | M9: Landlord | N9: Landlord | O9: Tenant | P9: Tenant | Q9: (100 acres) | R9: ="(" & E7 & " acres)" -> ( acres)
B10: Grapefruit (Rio Red) | D10: 3 | F10: Ton | G10: 492.4705882 | I10: 1477.411765 | J10: =E10*H10 -> 0 | K10: 0 | M10: 0 | N10: =J10*L10 -> 0 | O10: 1477.411765 | P10: =+J10-N10 -> 0 | Q10: 147741.1765 | R10: =+J10*E$7 -> 0
D11: 0 | G11: 0 | I11: 0 | J11: 0 | K11: 0 | M11: 0 | N11: 0 | O11: 0 | P11: 0 | Q11: 0 | R11: 0
D12: 0 | G12: 0 | I12: 0 | J12: 0 | K12: 0 | M12: 0 | N12: 0 | O12: 0 | P12: 0 | Q12: 0 | R12: 0
A13: Total Revenue | I13: 1477.411765 | J13: =SUM(J10:J12) -> 0 | M13: 0 | N13: =SUM(N10:N12) -> 0 | O13: 1477.411765 | P13: =SUM(P10:P12) -> 0 | Q13: 147741.1765 | R13: =SUM(R10:R12) -> 0
Q14: Enterprise | R14: Enterprise
A15: VARIABLE COSTS | D15: Quantity | E15: Quantity | F15: Units | G15: $/Unit | H15: $/Unit | I15: Total | J15: Total | K15: Share | L15: Share | M15: Landlord | N15: Landlord | O15: Tenant | P15: Tenant | Q15: Total | R15: Total
A16: Production Costs
B17: Custom
C18: Foliar Application | D18: 7 | F18: Acre | G18: 50 | I18: 350 | J18: =E18*H18 -> 0 | K18: 0 | M18: 0 | N18: =J18*L18 -> 0 | O18: 350 | P18: =+J18-N18 -> 0 | Q18: 35000 | R18: =+J18*E$7 -> 0
C19: Sucker (Yr 1-3 Year) | D19: 1 | F19: Acre | G19: 50 | I19: 50 | J19: 0 | K19: 0 | M19: 0 | N19: 0 | O19: 50 | P19: 0 | Q19: 5000 | R19: 0
B20: Fertilizer
C21: Urea (46%) | D21: 2.5 | F21: CTW | G21: 26.1 | I21: 65.25 | J21: 0 | K21: 0 | M21: 0 | N21: 0 | O21: 65.25 | P21: 0 | Q21: 6525 | R21: 0
C22: Foliar 3-18-18 | D22: 1 | F22: Gallon | G22: 34 | I22: 34 | J22: 0 | K22: 0 | M22: 0 | N22: 0 | O22: 34 | P22: 0 | Q22: 3400 | R22: 0
C23: Foliar Zn | D23: 2 | F23: Pound | G23: 3.4998 | I23: 6.9996 | J23: 0 | K23: 0 | M23: 0 | N23: 0 | O23: 6.9996 | P23: 0 | Q23: 699.96 | R23: 0
C24: Foliar 18-8-5 | D24: 2 | F24: Gallon | G24: 15.5 | I24: 31 | J24: 0 | K24: 0 | M24: 0 | N24: 0 | O24: 31 | P24: 0 | Q24: 3100 | R24: 0
C25: Foliar N | D25: 5 | F25: Pound | G25: 0.61 | I25: 3.05 | J25: 0 | K25: 0 | M25: 0 | N25: 0 | O25: 3.05 | P25: 0 | Q25: 305 | R25: 0
B26: Herbicide
C27: Simazine 4L | D27: 1.25 | F27: Gallon | G27: 38 | I27: 47.5 | J27: 0 | K27: 0 | M27: 0 | N27: 0 | O27: 47.5 | P27: 0 | Q27: 4750 | R27: 0
C28: Krovar I 80 DF | D28: 3 | F28: Pound | G28: 17.68 | I28: 53.04 | J28: 0 | K28: 0 | M28: 0 | N28: 0 | O28: 53.04 | P28: 0 | Q28: 5304 | R28: 0
C29: Glyphosate | D29: 20 | F29: Pint | G29: 6.25 | I29: 125 | J29: 0 | K29: 0 | M29: 0 | N29: 0 | O29: 125 | P29: 0 | Q29: 12500 | R29: 0
B30: Seed
C31: Young Citrus Trees | D31: 3 | F31: Tree | G31: 15 | I31: 45 | J31: 0 | K31: 0 | M31: 0 | N31: 0 | O31: 45 | P31: 0 | Q31: 4500 | R31: 0
C32: Layout and Plant | D32: 3 | F32: Tree | G32: 5 | I32: 15 | J32: 0 | K32: 0 | M32: 0 | N32: 0 | O32: 15 | P32: 0 | Q32: 1500 | R32: 0
C33: Removal Citrus | D33: 3 | F33: Tree | G33: 25 | I33: 75 | J33: 0 | K33: 0 | M33: 0 | N33: 0 | O33: 75 | P33: 0 | Q33: 7500 | R33: 0
C34: Treatment Removed citrus | D34: 3 | F34: Tree | G34: 5 | I34: 15 | J34: 0 | K34: 0 | M34: 0 | N34: 0 | O34: 15 | P34: 0 | Q34: 1500 | R34: 0
C35: Tree Wrap/Unwrap | D35: 3 | F35: Tree | G35: 2 | I35: 6 | J35: 0 | K35: 0 | M35: 0 | N35: 0 | O35: 6 | P35: 0 | Q35: 600 | R35: 0
B36: Other Labor
C37: Costum Soil Fert. Citrus | D37: 6 | F37: Hour | G37: 15 | I37: 90 | J37: 0 | K37: 0 | M37: 0 | N37: 0 | O37: 90 | P37: 0 | Q37: 9000 | R37: 0
C38: Unallocated Labor | D38: 1 | F38: Hour | G38: 15 | I38: 15 | J38: 0 | K38: 0 | M38: 0 | N38: 0 | O38: 15 | P38: 0 | Q38: 1500 | R38: 0
B39: Insecticide
C40: Movento | D40: 30 | F40: Ounce | G40: 7.788671875 | I40: 233.6601562 | J40: 0 | K40: 0 | M40: 0 | N40: 0 | O40: 233.6601562 | P40: 0 | Q40: 23366.01562 | R40: 0
C41: Micromite | D41: 18.85 | F41: Ounce | G41: 1.6328125 | I41: 30.77851563 | J41: 0 | K41: 0 | M41: 0 | N41: 0 | O41: 30.77851563 | P41: 0 | Q41: 3077.851562 | R41: 0
C42: Vendex | D42: 8 | F42: Pound | G42: 60.69 | I42: 485.52 | J42: 0 | K42: 0 | M42: 0 | N42: 0 | O42: 485.52 | P42: 0 | Q42: 48552 | R42: 0
C43: Agri-Mek SC | D43: 0.32 | F43: Gallon | G43: 89.95 | I43: 28.784 | J43: 0 | K43: 0 | M43: 0 | N43: 0 | O43: 28.784 | P43: 0 | Q43: 2878.4 | R43: 0
C44: Actara | D44: 11 | F44: Ounce | G44: 4.331666667 | I44: 47.64833333 | J44: 0 | K44: 0 | M44: 0 | N44: 0 | O44: 47.64833333 | P44: 0 | Q44: 4764.833333 | R44: 0
C45: Sivanto | D45: 10 | F45: Ounce | G45: 3.280859375 | I45: 32.80859375 | J45: 0 | K45: 0 | M45: 0 | N45: 0 | O45: 32.80859375 | P45: 0 | Q45: 3280.859375 | R45: 0
C46: Esteem | D46: 10 | F46: Ounce | G46: 13 | I46: 130 | J46: 0 | K46: 0 | M46: 0 | N46: 0 | O46: 130 | P46: 0 | Q46: 13000 | R46: 0
C47: Danitol | D47: 16 | F47: Ounce | G47: 1.0078125 | I47: 16.125 | J47: 0 | K47: 0 | M47: 0 | N47: 0 | O47: 16.125 | P47: 0 | Q47: 1612.5 | R47: 0
C48: Admire Pro | D48: 0.44 | F48: Pint | G48: 26.28 | I48: 11.5632 | J48: 0 | K48: 0 | M48: 0 | N48: 0 | O48: 11.5632 | P48: 0 | Q48: 1156.32 | R48: 0
B49: Miscellaneous
C50: Citrus Assessment | D50: 1 | F50: Acre | G50: 5 | I50: 5 | J50: 0 | K50: 0 | M50: 0 | N50: 0 | O50: 5 | P50: 0 | Q50: 500 | R50: 0
C51: Insurance, Young citrus trees | D51: 150 | F51: Tree | G51: 0.22 | I51: 33 | J51: 0 | K51: 0 | M51: 0 | N51: 0 | O51: 33 | P51: 0 | Q51: 3300 | R51: 0
B52: Other Chemicals
C53: Surfactant | D53: 7.41 | F53: Pint | G53: 7.475 | I53: 55.38975 | J53: 0 | K53: 0 | M53: 0 | N53: 0 | O53: 55.38975 | P53: 0 | Q53: 5538.975 | R53: 0
B54: Fungicides
C55: Quadris Top | D55: 10 | F55: Ounce | G55: 1.562109375 | I55: 15.62109375 | J55: 0 | K55: 0 | M55: 0 | N55: 0 | O55: 15.62109375 | P55: 0 | Q55: 1562.109375 | R55: 0
C56: GEM | D56: 3.8 | F56: Ounce | G56: 8.1234375 | I56: 30.8690625 | J56: 0 | K56: 0 | M56: 0 | N56: 0 | O56: 30.8690625 | P56: 0 | Q56: 3086.90625 | R56: 0
C57: Headline | D57: 24 | F57: Ounce | G57: 1.859375 | I57: 44.625 | J57: 0 | K57: 0 | M57: 0 | N57: 0 | O57: 44.625 | P57: 0 | Q57: 4462.5 | R57: 0
D58: 16 | G58: 3.29125 | I58: 52.66 | J58: 0 | K58: 0 | M58: 0 | N58: 0 | O58: 52.66 | P58: 0 | Q58: 5266 | R58: 0
D59: 0 | G59: 0 | I59: 0 | J59: 0 | K59: 0 | M59: 0 | N59: 0 | O59: 0 | P59: 0 | Q59: 0 | R59: 0
D60: 0 | G60: 0 | I60: 0 | J60: =E60*H60 -> 0 | K60: 0 | M60: 0 | N60: =J60*L60 -> 0 | O60: 0 | P60: =+J60-N60 -> 0 | Q60: 0 | R60: =+J60*E$7 -> 0
B61: Irrigation
C62: Water Cost | D62: 4 | F62: Acre/Foot | G62: 21 | I62: 84 | J62: =E62*H62 -> 0 | K62: 0 | M62: 0 | N62: =J62*L62 -> 0 | O62: 84 | P62: =+J62-N62 -> 0 | Q62: 8400 | R62: =+J62*E$7 -> 0
C63: Irrigation Labor | D63: 14 | F63: Hour | G63: 17.5 | I63: 245 | J63: 0 | K63: 0 | M63: 0 | N63: 0 | O63: 245 | P63: 0 | Q63: 24500 | R63: 0
B64: Machinery Labor
C65: Tractors/Self-Propelled | D65: 0.8 | F65: Hour | G65: 17.21 | I65: 13.768 | J65: =E65*H65 -> 0 | K65: 0 | M65: 0 | N65: =J65*L65 -> 0 | O65: 13.768 | P65: =+J65-N65 -> 0 | Q65: 1376.8 | R65: =+J65*E$7 -> 0
C66: Other Labor | D66: 0.4 | F66: Hour | G66: 17.21 | I66: 6.884 | J66: =E66*H66 -> 0 | K66: 0 | M66: 0 | N66: =J66*L66 -> 0 | O66: 6.884 | P66: =+J66-N66 -> 0 | Q66: 688.4 | R66: =+J66*E$7 -> 0
B68: Diesel Fuel
C69: Pickup/General Use Equipment | D69: 1 | F69: Acre | G69: 0 | I69: 0 | J69: =E69*H69 -> 0 | K69: 0 | M69: 0 | N69: =J69*L69 -> 0 | O69: 0 | P69: =+J69-N69 -> 0 | Q69: 0 | R69: =+J69*E$7 -> 0
C70: Tractors/Self-Propelled | D70: 3.66 | F70: Gallon | G70: 3.6 | I70: 13.176 | J70: =E70*H70 -> 0 | K70: 0 | M70: 0 | N70: =J70*L70 -> 0 | O70: 13.176 | P70: =+J70-N70 -> 0 | Q70: 1317.6 | R70: =+J70*E$7 -> 0
B72: Gasoline
C73: Pickup/General Use Equipment | D73: 1 | F73: Acre | G73: 0 | I73: 0 | J73: =E73*H73 -> 0 | K73: 0 | M73: 0 | N73: =J73*L73 -> 0 | O73: 0 | P73: =+J73-N73 -> 0 | Q73: 0 | R73: =+J73*E$7 -> 0
C74: Tractors/Self-Propelled | D74: 0 | F74: Gallon | G74: 3.15 | I74: 0 | J74: =E74*H74 -> 0 | K74: 0 | M74: 0 | N74: =J74*L74 -> 0 | O74: 0 | P74: =+J74-N74 -> 0 | Q74: 0 | R74: =+J74*E$7 -> 0
B76: Repairs & Maintenance
C77: Pickup/General Use Equipment | D77: 1 | F77: Acre | G77: 0 | I77: 0 | J77: =E77*H77 -> 0 | K77: 0 | M77: 0 | N77: =J77*L77 -> 0 | O77: 0 | P77: =+J77-N77 -> 0 | Q77: 0 | R77: =+J77*E$7 -> 0
C78: Irrigation Equipment | D78: 1 | F78: Acre | G78: 0 | I78: 0 | J78: 0 | K78: 0 | M78: 0 | N78: 0 | O78: 0 | P78: 0 | Q78: 0 | R78: 0
C79: Tractors/Self-Propelled | D79: 1 | F79: Acre | G79: 8.785121309 | I79: 8.785121309 | J79: 0 | K79: 0 | M79: 0 | N79: 0 | O79: 8.785121309 | P79: 0 | Q79: 878.5121309 | R79: 0
C80: Implements | D80: 1 | F80: Acre | G80: 2.85698064 | I80: 2.85698064 | J80: 0 | K80: 0 | M80: 0 | N80: 0 | O80: 2.85698064 | P80: 0 | Q80: 285.698064 | R80: 0
I81: 0 | J81: 0 | K81: 0 | M81: 0 | N81: 0 | O81: 0 | P81: 0 | Q81: 0 | R81: =+J81*E$7 -> 0
I82: 0 | J82: 0 | K82: 0 | M82: 0 | N82: 0 | O82: 0 | P82: 0 | Q82: 0 | R82: 0
B83: Interest on Credit Line | G83: 0.085 | I83: 118.6860659 | J83: =+SUM(J17:J82)/2*H83 -> 0 | M83: 0 | N83: =+SUM(N17:N82)/2*L83 -> 0 | O83: 118.6860659 | P83: =+SUM(P17:P82)/2*L83 -> 0 | Q83: 11868.60659 | R83: =+J83*E$7 -> 0
A84: Total Variable Costs | I84: 2774.048473 | J84: =SUM(J18:J83) -> 0 | M84: 0 | N84: =SUM(N18:N83) -> 0 | O84: 2774.048473 | P84: =SUM(P18:P83) -> 0 | Q84: 277404.8473 | R84: =SUM(R18:R83) -> 0
A85: Planned Returns Above Variable Costs: | I85: -1296.636708 | J85: =+J13-J84 -> 0 | M85: 0 | N85: =+N13-N84 -> 0 | O85: -1296.636708 | P85: =+P13-P84 -> 0 | Q85: -129663.6708 | R85: =+R13-R84 -> 0
B86: Breakeven Price to Cover Variable Costs | G86: 924.6828244 | H86: =IF(E10=0,"n/a",(YVarExp-(YTotExp+YTotRet-J10))/E10) -> n/a | I86: Ton
Q87: Enterprise | R87: Enterprise
A88: FIXED COSTS | D88: Quantity | E88: Quantity | F88: Units | G88: $/Unit | H88: $/Unit | J88: Total | K88: Share | L88: Share | M88: Landlord | N88: Landlord | O88: Tenant | P88: Tenant | Q88: Total | R88: Total
B89: Machinery Depreciation
C90: Tractors/Self-Propelled | D90: 1 | F90: Acre | G90: 9.077958686 | I90: 9.077958686 | J90: =E90*H90 -> 0 | K90: 0 | M90: 0 | N90: =J90*L90 -> 0 | O90: 9.077958686 | P90: =+J90-N90 -> 0 | Q90: 907.7958686 | R90: =+J90*E$7 -> 0
C91: Implements | D91: 1 | F91: Acre | G91: 3.04750103 | I91: 3.04750103 | J91: 0 | K91: 0 | M91: 0 | N91: =J91*L91 -> 0 | O91: 3.04750103 | P91: 0 | Q91: 304.750103 | R91: 0
B92: Equipment Investment
C93: Tractors/Self-Propelled | D93: 70.72022654 | F93: Dollars | G93: 0.085 | I93: 6.011219256 | J93: =E93*H93 -> 0 | K93: 0 | M93: 0 | N93: =J93*L93 -> 0 | O93: 6.011219256 | P93: =+J93-N93 -> 0 | Q93: 601.1219256 | R93: =+J93*E$7 -> 0
C94: Implements | D94: 13.03653218 | F94: Dollars | G94: 0.085 | I94: 1.108105236 | J94: 0 | K94: 0 | M94: 0 | N94: =J94*L94 -> 0 | O94: 1.108105236 | P94: 0 | Q94: 110.8105236 | R94: 0
B95: Salaried Labor | D95: 1 | F95: Acre | G95: 0 | I95: 0 | J95: 0 | K95: 0 | M95: 0 | N95: =J95*L95 -> 0 | O95: 0 | P95: =+J95-N95 -> 0 | Q95: 0 | R95: =+J95*E$7 -> 0
B96: Management Fee, Owner/Operator Labor | D96: 1 | F96: Acre | G96: 0 | I96: 0 | J96: 0 | K96: 0 | M96: 0 | N96: 0 | O96: 0 | P96: 0 | Q96: 0 | R96: 0
B97: Allocated Establishment Cost | D97: 1 | F97: Acre | G97: 142.3995067 | I97: 142.3995067 | J97: 0 | K97: 0 | M97: 0 | N97: 0 | O97: 142.3995067 | P97: 0 | Q97: 14239.95067 | R97: 0
B98: Land Cost, Orchard | D98: 1 | F98: Acre | G98: 100 | I98: 100 | J98: 0 | K98: 0 | M98: 0 | N98: 0 | O98: 100 | P98: 0 | Q98: 10000 | R98: 0
B99: Property Taxes | D99: 1 | F99: Acre | G99: 0 | I99: 0 | J99: =E99*H99 -> 0 | K99: 0 | M99: 0 | N99: 0 | O99: 0 | P99: 0 | Q99: 0 | R99: =+J99*E$7 -> 0
B100: Whole Farm Insurance | D100: 1 | F100: Acre | G100: 0 | I100: 0 | J100: 0 | K100: 0 | M100: 0 | N100: 0 | O100: 0 | P100: 0 | Q100: 0 | R100: 0
D101: 1 | G101: 0 | I101: 0 | J101: 0 | K101: 0 | M101: 0 | N101: 0 | O101: 0 | P101: 0 | Q101: 0 | R101: 0
D102: 1 | G102: 0 | I102: 0 | J102: 0 | K102: 0 | M102: 0 | N102: 0 | O102: 0 | P102: 0 | Q102: 0 | R102: 0
A103: Total Fixed Costs | I103: 261.6442909 | J103: =+SUM(J90:J102) -> 0 | M103: 0 | N103: =+SUM(N90:N102) -> 0 | O103: 261.6442909 | P103: =+SUM(P90:P102) -> 0 | Q103: 26164.42909 | R103: =+SUM(R90:R102) -> 0
A104: Total Specified Costs | I104: 3035.692764 | J104: =+J84+J103 -> 0 | M104: 0 | N104: =+N84+N103 -> 0 | O104: 3035.692764 | P104: =+P84+P103 -> 0 | Q104: 303569.2764 | R104: =+R84+R103 -> 0
A106: Returns Above Specified Costs | I106: -1558.280999 | J106: =+J13-J104 -> 0 | M106: 0 | N106: =+N13-N104 -> 0 | O106: -1558.280999 | P106: =+P13-P104 -> 0 | Q106: -155828.0999 | R106: =+R13-R104 -> 0
A108: Breakeven Price to Cover Total Costs | G108: 1011.897588 | H108: =IF(E10=0,"n/a",(YTotExp-(YTotExp+YTotRet-J10))/E10) -> n/a | I108: Ton
D110: Example Breakeven Prices
B111: Example | C111: Example | D111: To Cover | G111: To Cover
B112: Yield | C112: Yield | D112: Variable | G112: Total
B113: Percent | C113: Ton | D113: Costs | G113: Costs
B114: 0.75 | C114: 2.25 | D114: 1232.910432 | G114: 1349.196784
B115: 0.9 | C115: 2.7 | D115: 1027.42536 | G115: 1124.330653
B116: 1 | C116: 3 | D116: 924.6828244 | G116: 1011.897588
B117: 1.1 | C117: 3.3 | D117: 840.6207494 | G117: 919.9068982
B118: 1.25 | C118: 3.75 | D118: 739.7462595 | G118: 809.5180704
A120: Developed by Manuel Garcia, Assistant Professor and Extension Specialist, Texas A&M AgriLife Extension, 956-968-5581
A122: Information presented is prepared solely as a general guide and not intended to recognize or predict the costs and returns from any one operation. Brand names are mentioned only as examples and imply no endorsement.

Sheet GrapefruitYear4
A1: Projections for Planning Purposes Only -- Not to be Used without Updating
A2: 2025 Estimated Costs and Returns per Acre
A3: Grapefruit, Year 4, Orchard Establishment, Flood Irrigated, Rio Grande Valley
A4: Enter your name for this budget in the cell above.
A5: Enter Your Values in the cells highlighed in MAROON.
E6: Your Acres | R6: Your
C7: Crop Acres | D7: 100 | L7: Your | Q7: Enterprise | R7: Enterprise
E8: Your | H8: Your | I8: Cash | J8: Your | K8: Landlord | L8: Landlord | N8: Your | P8: Your | Q8: Total | R8: Total
A9: REVENUE | D9: Quantity | E9: Quantity | F9: Units | G9: $/Unit | H9: $/Unit | I9: Total | J9: Total | K9: Share | L9: Share | M9: Landlord | N9: Landlord | O9: Tenant | P9: Tenant | Q9: (100 acres) | R9: ="(" & E7 & " acres)" -> ( acres)
B10: Grapefruit (Rio Red) | D10: 6 | F10: Ton | G10: 492.4705882 | I10: 2954.823529 | J10: =E10*H10 -> 0 | K10: 0 | M10: 0 | N10: =J10*L10 -> 0 | O10: 2954.823529 | P10: =+J10-N10 -> 0 | Q10: 295482.3529 | R10: =+J10*E$7 -> 0
D11: 0 | G11: 0 | I11: 0 | J11: 0 | K11: 0 | M11: 0 | N11: 0 | O11: 0 | P11: =+J11-N11 -> 0 | Q11: 0 | R11: 0
D12: 0 | G12: 0 | I12: 0 | J12: 0 | K12: 0 | M12: 0 | N12: 0 | O12: 0 | P12: 0 | Q12: 0 | R12: 0
A13: Total Revenue | I13: 2954.823529 | J13: =SUM(J10:J12) -> 0 | M13: 0 | N13: =SUM(N10:N12) -> 0 | O13: 2954.823529 | P13: =SUM(P10:P12) -> 0 | Q13: 295482.3529 | R13: =SUM(R10:R12) -> 0
Q14: Enterprise | R14: Enterprise
A15: VARIABLE COSTS | D15: Quantity | E15: Quantity | F15: Units | G15: $/Unit | H15: $/Unit | I15: Total | J15: Total | K15: Share | L15: Share | M15: Landlord | N15: Landlord | O15: Tenant | P15: Tenant | Q15: Total | R15: Total
A16: Production Costs
B17: Custom
C18: Foliar Application | D18: 7 | F18: Acre | G18: 50 | I18: 350 | J18: =E18*H18 -> 0 | K18: 0 | M18: 0 | N18: =J18*L18 -> 0 | O18: 350 | P18: =+J18-N18 -> 0 | Q18: 35000 | R18: =+J18*E$7 -> 0
C19: Prune (Yr 3-6 Year) | D19: 1 | F19: Acre | G19: 60 | I19: 60 | J19: 0 | K19: 0 | M19: 0 | N19: 0 | O19: 60 | P19: 0 | Q19: 6000 | R19: 0
B20: Fertilizer
C21: Urea (46%) | D21: 2.5 | F21: CTW | G21: 26.1 | I21: 65.25 | J21: 0 | K21: 0 | M21: 0 | N21: 0 | O21: 65.25 | P21: 0 | Q21: 6525 | R21: 0
C22: Foliar 3-18-18 | D22: 1 | F22: Gallon | G22: 34 | I22: 34 | J22: 0 | K22: 0 | M22: 0 | N22: 0 | O22: 34 | P22: 0 | Q22: 3400 | R22: 0
C23: Foliar Zn | D23: 2 | F23: Pound | G23: 3.4998 | I23: 6.9996 | J23: 0 | K23: 0 | M23: 0 | N23: 0 | O23: 6.9996 | P23: 0 | Q23: 699.96 | R23: 0
C24: Foliar 18-8-5 | D24: 2 | F24: Gallon | G24: 15.5 | I24: 31 | J24: 0 | K24: 0 | M24: 0 | N24: 0 | O24: 31 | P24: 0 | Q24: 3100 | R24: 0
C25: Foliar N | D25: 5 | F25: Pound | G25: 0.61 | I25: 3.05 | J25: 0 | K25: 0 | M25: 0 | N25: 0 | O25: 3.05 | P25: 0 | Q25: 305 | R25: 0
B26: Herbicide
C27: Simazine 4L | D27: 1.25 | F27: Gallon | G27: 38 | I27: 47.5 | J27: 0 | K27: 0 | M27: 0 | N27: 0 | O27: 47.5 | P27: 0 | Q27: 4750 | R27: 0
C28: Krovar I 80 DF | D28: 3 | F28: Pound | G28: 17.68 | I28: 53.04 | J28: 0 | K28: 0 | M28: 0 | N28: 0 | O28: 53.04 | P28: 0 | Q28: 5304 | R28: 0
C29: Glyphosate | D29: 20 | F29: Pint | G29: 6.25 | I29: 125 | J29: 0 | K29: 0 | M29: 0 | N29: 0 | O29: 125 | P29: 0 | Q29: 12500 | R29: 0
B30: Insecticide
C31: Movento | D31: 30 | F31: Ounce | G31: 7.788671875 | I31: 233.6601562 | J31: 0 | K31: 0 | M31: 0 | N31: 0 | O31: 233.6601562 | P31: 0 | Q31: 23366.01562 | R31: 0
C32: Micromite | D32: 18.8 | F32: Ounce | G32: 1.6328125 | I32: 30.696875 | J32: 0 | K32: 0 | M32: 0 | N32: 0 | O32: 30.696875 | P32: 0 | Q32: 3069.6875 | R32: 0
C33: Vendex | D33: 8 | F33: Pound | G33: 60.69 | I33: 485.52 | J33: 0 | K33: 0 | M33: 0 | N33: 0 | O33: 485.52 | P33: 0 | Q33: 48552 | R33: 0
C34: Agri-Mek SC | D34: 0.32 | F34: Gallon | G34: 89.95 | I34: 28.784 | J34: 0 | K34: 0 | M34: 0 | N34: 0 | O34: 28.784 | P34: 0 | Q34: 2878.4 | R34: 0
C35: Actara | D35: 11 | F35: Ounce | G35: 4.331666667 | I35: 47.64833333 | J35: 0 | K35: 0 | M35: 0 | N35: 0 | O35: 47.64833333 | P35: 0 | Q35: 4764.833333 | R35: 0
C36: Sivanto | D36: 10 | F36: Ounce | G36: 3.280859375 | I36: 32.80859375 | J36: 0 | K36: 0 | M36: 0 | N36: 0 | O36: 32.80859375 | P36: 0 | Q36: 3280.859375 | R36: 0
C37: Esteem | D37: 10 | F37: Ounce | G37: 13 | I37: 130 | J37: 0 | K37: 0 | M37: 0 | N37: 0 | O37: 130 | P37: 0 | Q37: 13000 | R37: 0
C38: Danitol | D38: 16 | F38: Ounce | G38: 1.0078125 | I38: 16.125 | J38: 0 | K38: 0 | M38: 0 | N38: 0 | O38: 16.125 | P38: 0 | Q38: 1612.5 | R38: 0
C39: Admire Pro | D39: 0.44 | F39: Pint | G39: 26.28 | I39: 11.5632 | J39: 0 | K39: 0 | M39: 0 | N39: 0 | O39: 11.5632 | P39: 0 | Q39: 1156.32 | R39: 0
B40: Seed
C41: Young Citrus Trees | D41: 3 | F41: Tree | G41: 15 | I41: 45 | J41: 0 | K41: 0 | M41: 0 | N41: 0 | O41: 45 | P41: 0 | Q41: 4500 | R41: 0
C42: Layout and Plant | D42: 3 | F42: Tree | G42: 5 | I42: 15 | J42: 0 | K42: 0 | M42: 0 | N42: 0 | O42: 15 | P42: 0 | Q42: 1500 | R42: 0
C43: Removal Citrus | D43: 3 | F43: Tree | G43: 25 | I43: 75 | J43: 0 | K43: 0 | M43: 0 | N43: 0 | O43: 75 | P43: 0 | Q43: 7500 | R43: 0
C44: Treatment Removed citrus | D44: 3 | F44: Tree | G44: 5 | I44: 15 | J44: 0 | K44: 0 | M44: 0 | N44: 0 | O44: 15 | P44: 0 | Q44: 1500 | R44: 0
C45: Tree Wrap/Unwrap | D45: 3 | F45: Tree | G45: 2 | I45: 6 | J45: 0 | K45: 0 | M45: 0 | N45: 0 | O45: 6 | P45: 0 | Q45: 600 | R45: 0
B46: Other Labor
C47: Costum Soil Fert. Citrus | D47: 6 | F47: Hour | G47: 15 | I47: 90 | J47: 0 | K47: 0 | M47: 0 | N47: 0 | O47: 90 | P47: 0 | Q47: 9000 | R47: 0
C48: Unallocated Labor | D48: 1 | F48: Hour | G48: 15 | I48: 15 | J48: 0 | K48: 0 | M48: 0 | N48: 0 | O48: 15 | P48: 0 | Q48: 1500 | R48: 0
B49: Miscellaneous
C50: Citrus Assessment | D50: 1 | F50: Acre | G50: 5 | I50: 5 | J50: 0 | K50: 0 | M50: 0 | N50: 0 | O50: 5 | P50: 0 | Q50: 500 | R50: 0
C51: Insurance, Grapefruit | D51: 1 | F51: Acre | G51: 128.6662703 | I51: 128.6662703 | J51: 0 | K51: 0 | M51: 0 | N51: 0 | O51: 128.6662703 | P51: 0 | Q51: 12866.62703 | R51: 0
B52: Other Chemicals
C53: Surfactant | D53: 7.98 | F53: Pint | G53: 7.475 | I53: 59.6505 | J53: 0 | K53: 0 | M53: 0 | N53: 0 | O53: 59.6505 | P53: 0 | Q53: 5965.05 | R53: 0
B54: Fungicides
C55: Quadris Top | D55: 10 | F55: Ounce | G55: 1.562109375 | I55: 15.62109375 | J55: 0 | K55: 0 | M55: 0 | N55: 0 | O55: 15.62109375 | P55: 0 | Q55: 1562.109375 | R55: 0
C56: GEM | D56: 3.8 | F56: Ounce | G56: 8.1234375 | I56: 30.8690625 | J56: 0 | K56: 0 | M56: 0 | N56: 0 | O56: 30.8690625 | P56: 0 | Q56: 3086.90625 | R56: 0
C57: Headline | D57: 24 | F57: Ounce | G57: 1.859375 | I57: 44.625 | J57: 0 | K57: 0 | M57: 0 | N57: 0 | O57: 44.625 | P57: 0 | Q57: 4462.5 | R57: 0
D58: 16 | G58: 3.29125 | I58: 52.66 | J58: 0 | K58: 0 | M58: 0 | N58: 0 | O58: 52.66 | P58: 0 | Q58: 5266 | R58: 0
D59: 0 | G59: 0 | I59: 0 | J59: 0 | K59: 0 | M59: 0 | N59: 0 | O59: 0 | P59: 0 | Q59: 0 | R59: 0
D60: 0 | G60: 0 | I60: 0 | J60: =E60*H60 -> 0 | K60: 0 | M60: 0 | N60: =J60*L60 -> 0 | O60: 0 | P60: =+J60-N60 -> 0 | Q60: 0 | R60: =+J60*E$7 -> 0
B61: Irrigation
C62: Water Cost | D62: 4 | F62: Acre/Foot | G62: 21 | I62: 84 | J62: =E62*H62 -> 0 | K62: 0 | M62: 0 | N62: =J62*L62 -> 0 | O62: 84 | P62: =+J62-N62 -> 0 | Q62: 8400 | R62: =+J62*E$7 -> 0
C63: Irrigation Labor | D63: 14 | F63: Hour | G63: 17.5 | I63: 245 | J63: 0 | K63: 0 | M63: 0 | N63: 0 | O63: 245 | P63: 0 | Q63: 24500 | R63: 0
B64: Machinery Labor
C65: Tractors/Self-Propelled | D65: 0.8 | F65: Hour | G65: 17.21 | I65: 13.768 | J65: =E65*H65 -> 0 | K65: 0 | M65: 0 | N65: =J65*L65 -> 0 | O65: 13.768 | P65: =+J65-N65 -> 0 | Q65: 1376.8 | R65: =+J65*E$7 -> 0
C66: Other Labor | D66: 0.4 | F66: Hour | G66: 17.21 | I66: 6.884 | J66: =E66*H66 -> 0 | K66: 0 | M66: 0 | N66: =J66*L66 -> 0 | O66: 6.884 | P66: =+J66-N66 -> 0 | Q66: 688.4 | R66: =+J66*E$7 -> 0
B68: Diesel Fuel
C69: Pickup/General Use Equipment | D69: 1 | F69: Acre | G69: 0 | I69: 0 | J69: =E69*H69 -> 0 | K69: 0 | M69: 0 | N69: =J69*L69 -> 0 | O69: 0 | P69: =+J69-N69 -> 0 | Q69: 0 | R69: =+J69*E$7 -> 0
C70: Tractors/Self-Propelled | D70: 3.66 | F70: Gallon | G70: 3.6 | I70: 13.176 | J70: =E70*H70 -> 0 | K70: 0 | M70: 0 | N70: =J70*L70 -> 0 | O70: 13.176 | P70: =+J70-N70 -> 0 | Q70: 1317.6 | R70: =+J70*E$7 -> 0
B72: Gasoline
C73: Pickup/General Use Equipment | D73: 1 | F73: Acre | G73: 0 | I73: 0 | J73: =E73*H73 -> 0 | K73: 0 | M73: 0 | N73: =J73*L73 -> 0 | O73: 0 | P73: =+J73-N73 -> 0 | Q73: 0 | R73: =+J73*E$7 -> 0
C74: Tractors/Self-Propelled | D74: 0 | F74: Gallon | G74: 3.15 | I74: 0 | J74: =E74*H74 -> 0 | K74: 0 | M74: 0 | N74: =J74*L74 -> 0 | O74: 0 | P74: =+J74-N74 -> 0 | Q74: 0 | R74: =+J74*E$7 -> 0
B76: Repairs & Maintenance
C77: Pickup/General Use Equipment | D77: 1 | F77: Acre | G77: 0 | I77: 0 | J77: =E77*H77 -> 0 | K77: 0 | M77: 0 | N77: =J77*L77 -> 0 | O77: 0 | P77: =+J77-N77 -> 0 | Q77: 0 | R77: =+J77*E$7 -> 0
C78: Irrigation Equipment | D78: 1 | F78: Acre | G78: 0 | I78: 0 | J78: 0 | K78: 0 | M78: 0 | N78: 0 | O78: 0 | P78: 0 | Q78: 0 | R78: 0
C79: Tractors/Self-Propelled | D79: 1 | F79: Acre | G79: 8.785121309 | I79: 8.785121309 | J79: 0 | K79: 0 | M79: 0 | N79: 0 | O79: 8.785121309 | P79: 0 | Q79: 878.5121309 | R79: 0
C80: Implements | D80: 1 | F80: Acre | G80: 2.85698064 | I80: 2.85698064 | J80: 0 | K80: 0 | M80: 0 | N80: 0 | O80: 2.85698064 | P80: 0 | Q80: 285.698064 | R80: 0
I81: 0 | J81: 0 | K81: 0 | M81: 0 | N81: 0 | O81: 0 | P81: 0 | Q81: 0 | R81: 0
I82: 0 | J82: 0 | K82: 0 | M82: 0 | N82: 0 | O82: 0 | P82: 0 | Q82: 0 | R82: 0
B83: Interest on Credit Line | G83: 0.085 | I83: 125.0445932 | J83: =+SUM(J17:J82)/2*H83 -> 0 | M83: 0 | N83: =+SUM(N17:N82)/2*L83 -> 0 | O83: 125.0445932 | P83: =+SUM(P17:P82)/2*L83 -> 0 | Q83: 12504.45932 | R83: =+J83*E$7 -> 0
A84: Total Variable Costs | I84: 2890.25238 | J84: =SUM(J18:J83) -> 0 | M84: 0 | N84: =SUM(N18:N83) -> 0 | O84: 2890.25238 | P84: =SUM(P18:P83) -> 0 | Q84: 289025.238 | R84: =SUM(R18:R83) -> 0
A85: Planned Returns Above Variable Costs: | I85: 64.57114929 | J85: =+J13-J84 -> 0 | M85: 0 | N85: =+N13-N84 -> 0 | O85: 64.57114929 | P85: =+P13-P84 -> 0 | Q85: 6457.114929 | R85: =+R13-R84 -> 0
B86: Breakeven Price to Cover Variable Costs | G86: 481.70873 | H86: =IF(E10=0,"n/a",(YVarExp-(YTotExp+YTotRet-J10))/E10) -> n/a | I86: Ton
Q87: Enterprise | R87: Enterprise
A88: FIXED COSTS | D88: Quantity | E88: Quantity | F88: Units | G88: $/Unit | H88: $/Unit | I88: Total | J88: Total | K88: Share | L88: Share | M88: Landlord | N88: Landlord | O88: Tenant | P88: Tenant | Q88: Total | R88: Total
B89: Machinery Depreciation
C90: Tractors/Self-Propelled | D90: 1 | F90: Acre | G90: 9.077958686 | I90: 9.077958686 | J90: =E90*H90 -> 0 | K90: 0 | M90: 0 | N90: =J90*L90 -> 0 | O90: 9.077958686 | P90: =+J90-N90 -> 0 | Q90: 907.7958686 | R90: =+J90*E$7 -> 0
C91: Implements | D91: 1 | F91: Acre | G91: 3.04750103 | I91: 3.04750103 | J91: 0 | K91: 0 | M91: 0 | N91: =J91*L91 -> 0 | O91: 3.04750103 | P91: 0 | Q91: 304.750103 | R91: 0
B92: Equipment Investment
C93: Tractors/Self-Propelled | D93: 70.72022654 | F93: Dollars | G93: 0.085 | I93: 6.011219256 | J93: =E93*H93 -> 0 | K93: 0 | M93: 0 | N93: =J93*L93 -> 0 | O93: 6.011219256 | P93: =+J93-N93 -> 0 | Q93: 601.1219256 | R93: =+J93*E$7 -> 0
C94: Implements | D94: 13.03653218 | F94: Dollars | G94: 0.085 | I94: 1.108105236 | J94: 0 | K94: 0 | M94: 0 | N94: =J94*L94 -> 0 | O94: 1.108105236 | P94: 0 | Q94: 110.8105236 | R94: 0
B95: Salaried Labor | D95: 1 | F95: Acre | G95: 0 | I95: 0 | J95: 0 | K95: 0 | M95: 0 | N95: =J95*L95 -> 0 | O95: 0 | P95: =+J95-N95 -> 0 | Q95: 0 | R95: =+J95*E$7 -> 0
B96: Management Fee, Owner/Operator Labor | D96: 1 | F96: Acre | G96: 0 | I96: 0 | J96: 0 | K96: 0 | M96: 0 | N96: 0 | O96: 0 | P96: 0 | Q96: 0 | R96: 0
B97: Allocated Establishment Cost | D97: 1 | F97: Acre | G97: 142.3995067 | I97: 142.3995067 | J97: 0 | K97: 0 | M97: 0 | N97: 0 | O97: 142.3995067 | P97: 0 | Q97: 14239.95067 | R97: 0
B98: Land Cost, Orchard | D98: 1 | F98: Acre | G98: 100 | I98: 100 | J98: 0 | K98: 0 | M98: 0 | N98: 0 | O98: 100 | P98: 0 | Q98: 10000 | R98: 0
B99: Property Taxes | D99: 1 | F99: Acre | G99: 0 | I99: 0 | J99: 0 | K99: 0 | M99: 0 | N99: 0 | O99: 0 | P99: 0 | Q99: 0 | R99: 0
B100: Whole Farm Insurance | D100: 1 | F100: Acre | G100: 0 | I100: 0 | J100: 0 | K100: 0 | M100: 0 | N100: 0 | O100: 0 | P100: 0 | Q100: 0 | R100: 0
D101: 1 | G101: 0 | I101: 0 | J101: 0 | K101: 0 | M101: 0 | N101: 0 | O101: 0 | P101: 0 | Q101: 0 | R101: 0
D102: 1 | G102: 0 | I102: 0 | J102: =E102*H102 -> 0 | K102: 0 | M102: 0 | N102: 0 | O102: 0 | P102: 0 | Q102: 0 | R102: 0
A103: Total Fixed Costs | I103: 261.6442909 | J103: =+SUM(J90:J102) -> 0 | M103: 0 | N103: =+SUM(N90:N102) -> 0 | O103: 261.6442909 | P103: =+SUM(P90:P102) -> 0 | Q103: 26164.42909 | R103: =+SUM(R90:R102) -> 0
A104: Total Specified Costs | I104: 3151.896671 | J104: =+J84+J103 -> 0 | M104: 0 | N104: =+N84+N103 -> 0 | O104: 3151.896671 | P104: =+P84+P103 -> 0 | Q104: 315189.6671 | R104: =+R84+R103 -> 0
A106: Returns Above Specified Costs | I106: -197.0731416 | J106: =+J13-J104 -> 0 | M106: 0 | N106: =+N13-N104 -> 0 | O106: -197.0731416 | P106: =+P13-P104 -> 0 | Q106: -19707.31416 | R106: =+R13-R104 -> 0
A108: Breakeven Price to Cover Total Costs | G108: 525.3161118 | H108: =IF(E10=0,"n/a",(YTotExp-(YTotExp+YTotRet-J10))/E10) -> n/a | I108: Ton
D110: Example Breakeven Prices
B111: Example | C111: Example | D111: To Cover | G111: To Cover
B112: Yield | C112: Yield | D112: Variable | G112: Total
B113: Percent | C113: Ton | D113: Costs | G113: Costs
B114: 0.75 | C114: 4.5 | D114: 642.2783067 | G114: 700.4214825
B115: 0.9 | C115: 5.4 | D115: 535.2319222 | G115: 583.6845687
B116: 1 | C116: 6 | D116: 481.70873 | G116: 525.3161118
B117: 1.1 | C117: 6.6 | D117: 437.9170273 | G117: 477.5601017
B118: 1.25 | C118: 7.5 | D118: 385.366984 | G118: 420.2528895
A120: Developed by Manuel Garcia, Assistant Professor and Extension Specialist, Texas A&M AgriLife Extension, 956-968-5581
A122: Information presented is prepared solely as a general guide and not intended to recognize or predict the costs and returns from any one operation. Brand names are mentioned only as examples and imply no endorsement.

Sheet GrapefruitYear5
A1: Projections for Planning Purposes Only -- Not to be Used without Updating
A2: 2025 Estimated Costs and Returns per Acre
A3: Grapefruit, Year 5, Orchard Establishment, Flood Irrigated, Rio Grande Valley
A4: Enter your name for this budget in the cell above.
A5: Enter Your Values in the cells highlighed in MAROON.
E6: Your Acres | R6: Your
C7: Crop Acres | D7: 100 | L7: Your | Q7: Enterprise | R7: Enterprise
E8: Your | H8: Your | I8: Cash | J8: Your | K8: Landlord | L8: Landlord | N8: Your | P8: Your | Q8: Total | R8: Total
A9: REVENUE | D9: Quantity | E9: Quantity | F9: Units | G9: $/Unit | H9: $/Unit | I9: Total | J9: Total | K9: Share | L9: Share | M9: Landlord | N9: Landlord | O9: Tenant | P9: Tenant | Q9: (100 acres) | R9: ="(" & E7 & " acres)" -> ( acres)
B10: Grapefruit (Rio Red) | D10: 9 | F10: Ton | G10: 492.4705882 | I10: 4432.235294 | J10: =E10*H10 -> 0 | K10: 0 | M10: 0 | N10: =J10*L10 -> 0 | O10: 4432.235294 | P10: =+J10-N10 -> 0 | Q10: 443223.5294 | R10: =+J10*E$7 -> 0
D11: 0 | G11: 0 | I11: 0 | J11: 0 | K11: 0 | M11: 0 | N11: 0 | O11: 0 | P11: =+J11-N11 -> 0 | Q11: 0 | R11: 0
D12: 0 | G12: 0 | I12: 0 | J12: 0 | K12: 0 | M12: 0 | N12: 0 | O12: 0 | P12: 0 | Q12: 0 | R12: 0
A13: Total Revenue | I13: 4432.235294 | J13: =SUM(J10:J12) -> 0 | M13: 0 | N13: =SUM(N10:N12) -> 0 | O13: 4432.235294 | P13: =SUM(P10:P12) -> 0 | Q13: 443223.5294 | R13: =SUM(R10:R12) -> 0
Q14: Enterprise | R14: Enterprise
A15: VARIABLE COSTS | D15: Quantity | E15: Quantity | F15: Units | G15: $/Unit | H15: $/Unit | I15: Total | J15: Total | K15: Share | L15: Share | M15: Landlord | N15: Landlord | O15: Tenant | P15: Tenant | Q15: Total | R15: Total
A16: Production Costs
B17: Custom
C18: Foliar Application | D18: 7 | F18: Acre | G18: 50 | I18: 350 | J18: =E18*H18 -> 0 | K18: 0 | M18: 0 | N18: =J18*L18 -> 0 | O18: 350 | P18: =+J18-N18 -> 0 | Q18: 35000 | R18: =+J18*E$7 -> 0
C19: Prune (Yr 3-6 Year) | D19: 1 | F19: Acre | G19: 60 | I19: 60 | J19: 0 | K19: 0 | M19: 0 | N19: 0 | O19: 60 | P19: 0 | Q19: 6000 | R19: 0
B20: Fertilizer
C21: Urea (46%) | D21: 2.5 | F21: CTW | G21: 26.1 | I21: 65.25 | J21: 0 | K21: 0 | M21: 0 | N21: 0 | O21: 65.25 | P21: 0 | Q21: 6525 | R21: 0
C22: Foliar 3-18-18 | D22: 1 | F22: Gallon | G22: 34 | I22: 34 | J22: 0 | K22: 0 | M22: 0 | N22: 0 | O22: 34 | P22: 0 | Q22: 3400 | R22: 0
C23: Foliar Zn | D23: 2 | F23: Pound | G23: 3.4998 | I23: 6.9996 | J23: 0 | K23: 0 | M23: 0 | N23: 0 | O23: 6.9996 | P23: 0 | Q23: 699.96 | R23: 0
C24: Foliar 18-8-5 | D24: 2 | F24: Gallon | G24: 15.5 | I24: 31 | J24: 0 | K24: 0 | M24: 0 | N24: 0 | O24: 31 | P24: 0 | Q24: 3100 | R24: 0
C25: Foliar N | D25: 5 | F25: Pound | G25: 0.61 | I25: 3.05 | J25: 0 | K25: 0 | M25: 0 | N25: 0 | O25: 3.05 | P25: 0 | Q25: 305 | R25: 0
B26: Herbicide
C27: Simazine 4L | D27: 1.25 | F27: Gallon | G27: 38 | I27: 47.5 | J27: 0 | K27: 0 | M27: 0 | N27: 0 | O27: 47.5 | P27: 0 | Q27: 4750 | R27: 0
C28: Krovar I 80 DF | D28: 3 | F28: Pound | G28: 17.68 | I28: 53.04 | J28: 0 | K28: 0 | M28: 0 | N28: 0 | O28: 53.04 | P28: 0 | Q28: 5304 | R28: 0
C29: Glyphosate | D29: 20 | F29: Pint | G29: 6.25 | I29: 125 | J29: 0 | K29: 0 | M29: 0 | N29: 0 | O29: 125 | P29: 0 | Q29: 12500 | R29: 0
B30: Insecticide
C31: Movento | D31: 30 | F31: Ounce | G31: 7.788671875 | I31: 233.6601562 | J31: 0 | K31: 0 | M31: 0 | N31: 0 | O31: 233.6601562 | P31: 0 | Q31: 23366.01562 | R31: 0
C32: Micromite | D32: 18.8 | F32: Ounce | G32: 1.6328125 | I32: 30.696875 | J32: 0 | K32: 0 | M32: 0 | N32: 0 | O32: 30.696875 | P32: 0 | Q32: 3069.6875 | R32: 0
C33: Vendex | D33: 8 | F33: Pound | G33: 60.69 | I33: 485.52 | J33: 0 | K33: 0 | M33: 0 | N33: 0 | O33: 485.52 | P33: 0 | Q33: 48552 | R33: 0
C34: Agri-Mek SC | D34: 0.32 | F34: Gallon | G34: 89.95 | I34: 28.784 | J34: 0 | K34: 0 | M34: 0 | N34: 0 | O34: 28.784 | P34: 0 | Q34: 2878.4 | R34: 0
C35: Actara | D35: 11 | F35: Ounce | G35: 4.331666667 | I35: 47.64833333 | J35: 0 | K35: 0 | M35: 0 | N35: 0 | O35: 47.64833333 | P35: 0 | Q35: 4764.833333 | R35: 0
C36: Sivanto | D36: 10 | F36: Ounce | G36: 3.280859375 | I36: 32.80859375 | J36: 0 | K36: 0 | M36: 0 | N36: 0 | O36: 32.80859375 | P36: 0 | Q36: 3280.859375 | R36: 0
C37: Danitol | D37: 16 | F37: Ounce | G37: 1.0078125 | I37: 16.125 | J37: 0 | K37: 0 | M37: 0 | N37: 0 | O37: 16.125 | P37: 0 | Q37: 1612.5 | R37: 0
C38: Admire Pro | D38: 0.44 | F38: Pint | G38: 26.28 | I38: 11.5632 | J38: 0 | K38: 0 | M38: 0 | N38: 0 | O38: 11.5632 | P38: 0 | Q38: 1156.32 | R38: 0
C39: Esteem | D39: 10 | F39: Ounce | G39: 9.919 | I39: 99.19 | J39: 0 | K39: 0 | M39: 0 | N39: 0 | O39: 99.19 | P39: 0 | Q39: 9919 | R39: 0
B40: Miscellaneous
C41: Citrus Assessment | D41: 1 | F41: Acre | G41: 5 | I41: 5 | J41: 0 | K41: 0 | M41: 0 | N41: 0 | O41: 5 | P41: 0 | Q41: 500 | R41: 0
C42: Insurance, Grapefruit | D42: 1 | F42: Acre | G42: 128.6662703 | I42: 128.6662703 | J42: 0 | K42: 0 | M42: 0 | N42: 0 | O42: 128.6662703 | P42: 0 | Q42: 12866.62703 | R42: 0
B43: Seed
C44: Young Citrus Trees | D44: 3 | F44: Tree | G44: 15 | I44: 45 | J44: 0 | K44: 0 | M44: 0 | N44: 0 | O44: 45 | P44: 0 | Q44: 4500 | R44: 0
C45: Layout and Plant | D45: 3 | F45: Tree | G45: 5 | I45: 15 | J45: 0 | K45: 0 | M45: 0 | N45: 0 | O45: 15 | P45: 0 | Q45: 1500 | R45: 0
C46: Removal Citrus | D46: 3 | F46: Tree | G46: 25 | I46: 75 | J46: 0 | K46: 0 | M46: 0 | N46: 0 | O46: 75 | P46: 0 | Q46: 7500 | R46: 0
C47: Treatment Removed citrus | D47: 3 | F47: Tree | G47: 5 | I47: 15 | J47: 0 | K47: 0 | M47: 0 | N47: 0 | O47: 15 | P47: 0 | Q47: 1500 | R47: 0
C48: Tree Wrap/Unwrap | D48: 3 | F48: Tree | G48: 2 | I48: 6 | J48: 0 | K48: 0 | M48: 0 | N48: 0 | O48: 6 | P48: 0 | Q48: 600 | R48: 0
B49: Other Labor
C50: Costum Soil Fert. Citrus | D50: 6 | F50: Hour | G50: 15 | I50: 90 | J50: 0 | K50: 0 | M50: 0 | N50: 0 | O50: 90 | P50: 0 | Q50: 9000 | R50: 0
C51: Unallocated Labor | D51: 1 | F51: Hour | G51: 15 | I51: 15 | J51: 0 | K51: 0 | M51: 0 | N51: 0 | O51: 15 | P51: 0 | Q51: 1500 | R51: 0
B52: Other Chemicals
C53: Surfactant | D53: 7.98 | F53: Pint | G53: 7.475 | I53: 59.6505 | J53: 0 | K53: 0 | M53: 0 | N53: 0 | O53: 59.6505 | P53: 0 | Q53: 5965.05 | R53: 0
B54: Fungicides
C55: Quadris Top | D55: 10 | F55: Ounce | G55: 1.562109375 | I55: 15.62109375 | J55: 0 | K55: 0 | M55: 0 | N55: 0 | O55: 15.62109375 | P55: 0 | Q55: 1562.109375 | R55: 0
C56: GEM | D56: 3.8 | F56: Ounce | G56: 8.1234375 | I56: 30.8690625 | J56: 0 | K56: 0 | M56: 0 | N56: 0 | O56: 30.8690625 | P56: 0 | Q56: 3086.90625 | R56: 0
C57: Headline | D57: 24 | F57: Ounce | G57: 1.859375 | I57: 44.625 | J57: 0 | K57: 0 | M57: 0 | N57: 0 | O57: 44.625 | P57: 0 | Q57: 4462.5 | R57: 0
D58: 16 | G58: 3.29125 | I58: 52.66 | J58: 0 | K58: 0 | M58: 0 | N58: 0 | O58: 52.66 | P58: 0 | Q58: 5266 | R58: 0
D59: 0 | G59: 0 | I59: 0 | J59: 0 | K59: 0 | M59: 0 | N59: 0 | O59: 0 | P59: 0 | Q59: 0 | R59: 0
D60: 0 | G60: 0 | I60: 0 | J60: =E60*H60 -> 0 | K60: 0 | M60: 0 | N60: =J60*L60 -> 0 | O60: 0 | P60: =+J60-N60 -> 0 | Q60: 0 | R60: =+J60*E$7 -> 0
B61: Irrigation
C62: Water Cost | D62: 4 | F62: Acre/Foot | G62: 21 | I62: 84 | J62: =E62*H62 -> 0 | K62: 0 | M62: 0 | N62: =J62*L62 -> 0 | O62: 84 | P62: =+J62-N62 -> 0 | Q62: 8400 | R62: =+J62*E$7 -> 0
C63: Irrigation Labor | D63: 14 | F63: Hour | G63: 17.5 | I63: 245 | J63: 0 | K63: 0 | M63: 0 | N63: 0 | O63: 245 | P63: 0 | Q63: 24500 | R63: 0
B64: Machinery Labor
C65: Tractors/Self-Propelled | D65: 0.8 | F65: Hour | G65: 17.21 | I65: 13.768 | J65: =E65*H65 -> 0 | K65: 0 | M65: 0 | N65: =J65*L65 -> 0 | O65: 13.768 | P65: =+J65-N65 -> 0 | Q65: 1376.8 | R65: =+J65*E$7 -> 0
C66: Other Labor | D66: 0.4 | F66: Hour | G66: 17.21 | I66: 6.884 | J66: =E66*H66 -> 0 | K66: 0 | M66: 0 | N66: =J66*L66 -> 0 | O66: 6.884 | P66: =+J66-N66 -> 0 | Q66: 688.4 | R66: =+J66*E$7 -> 0
B68: Diesel Fuel
C69: Pickup/General Use Equipment | D69: 1 | F69: Acre | G69: 0 | I69: 0 | J69: =E69*H69 -> 0 | K69: 0 | M69: 0 | N69: =J69*L69 -> 0 | O69: 0 | P69: =+J69-N69 -> 0 | Q69: 0 | R69: =+J69*E$7 -> 0
C70: Tractors/Self-Propelled | D70: 3.66 | F70: Gallon | G70: 3.6 | I70: 13.176 | J70: =E70*H70 -> 0 | K70: 0 | M70: 0 | N70: =J70*L70 -> 0 | O70: 13.176 | P70: =+J70-N70 -> 0 | Q70: 1317.6 | R70: =+J70*E$7 -> 0
B72: Gasoline
C73: Pickup/General Use Equipment | D73: 1 | F73: Acre | G73: 0 | I73: 0 | J73: =E73*H73 -> 0 | K73: 0 | M73: 0 | N73: =J73*L73 -> 0 | O73: 0 | P73: =+J73-N73 -> 0 | Q73: 0 | R73: =+J73*E$7 -> 0
C74: Tractors/Self-Propelled | D74: 0 | F74: Gallon | G74: 3.15 | I74: 0 | J74: =E74*H74 -> 0 | K74: 0 | M74: 0 | N74: =J74*L74 -> 0 | O74: 0 | P74: =+J74-N74 -> 0 | Q74: 0 | R74: =+J74*E$7 -> 0
B76: Repairs & Maintenance
C77: Pickup/General Use Equipment | D77: 1 | F77: Acre | G77: 0 | I77: 0 | J77: =E77*H77 -> 0 | K77: 0 | M77: 0 | N77: =J77*L77 -> 0 | O77: 0 | P77: =+J77-N77 -> 0 | Q77: 0 | R77: =+J77*E$7 -> 0
C78: Irrigation Equipment | D78: 1 | F78: Acre | G78: 0 | I78: 0 | J78: 0 | K78: 0 | M78: 0 | N78: 0 | O78: 0 | P78: 0 | Q78: 0 | R78: 0
C79: Tractors/Self-Propelled | D79: 1 | F79: Acre | G79: 8.785121309 | I79: 8.785121309 | J79: 0 | K79: 0 | M79: 0 | N79: 0 | O79: 8.785121309 | P79: 0 | Q79: 878.5121309 | R79: 0
C80: Implements | D80: 1 | F80: Acre | G80: 2.85698064 | I80: 2.85698064 | J80: 0 | K80: 0 | M80: 0 | N80: 0 | O80: 2.85698064 | P80: 0 | Q80: 285.698064 | R80: 0
I81: 0 | J81: 0 | K81: 0 | M81: 0 | N81: 0 | O81: 0 | P81: 0 | Q81: 0 | R81: 0
I82: 0 | J82: 0 | K82: 0 | M82: 0 | N82: 0 | O82: 0 | P82: 0 | Q82: 0 | R82: 0
B83: Interest on Credit Line | G83: 0.085 | I83: 124.0688026 | J83: =+SUM(J17:J82)/2*H83 -> 0 | M83: 0 | N83: =+SUM(N17:N82)/2*L83 -> 0 | O83: 124.0688026 | P83: =+SUM(P17:P82)/2*L83 -> 0 | Q83: 12406.88026 | R83: =+J83*E$7 -> 0
A84: Total Variable Costs | I84: 2858.466589 | J84: =SUM(J18:J83) -> 0 | M84: 0 | N84: =SUM(N18:N83) -> 0 | O84: 2858.466589 | P84: =SUM(P18:P83) -> 0 | Q84: 285846.6589 | R84: =SUM(R18:R83) -> 0
A85: Planned Returns Above Variable Costs: | I85: 1573.768705 | J85: =+J13-J84 -> 0 | M85: 0 | N85: =+N13-N84 -> 0 | O85: 1573.768705 | P85: =+P13-P84 -> 0 | Q85: 157376.8705 | R85: =+R13-R84 -> 0
B86: Breakeven Price to Cover Variable Costs | G86: 317.6073988 | H86: =IF(E10=0,"n/a",(YVarExp-(YTotExp+YTotRet-J10))/E10) -> n/a | I86: Ton
Q87: Enterprise | R87: Enterprise
A88: FIXED COSTS | D88: Quantity | E88: Quantity | F88: Units | G88: $/Unit | H88: $/Unit | I88: Total | J88: Total | K88: Share | L88: Share | M88: Landlord | N88: Landlord | O88: Tenant | P88: Tenant | Q88: Total | R88: Total
B89: Machinery Depreciation
C90: Tractors/Self-Propelled | D90: 1 | F90: Acre | G90: 9.077958686 | I90: 9.077958686 | J90: =E90*H90 -> 0 | K90: 0 | M90: 0 | N90: =J90*L90 -> 0 | O90: 9.077958686 | P90: =+J90-N90 -> 0 | Q90: 907.7958686 | R90: =+J90*E$7 -> 0
C91: Implements | D91: 1 | F91: Acre | G91: 3.04750103 | I91: 3.04750103 | J91: 0 | K91: 0 | M91: 0 | N91: =J91*L91 -> 0 | O91: 3.04750103 | P91: 0 | Q91: 304.750103 | R91: 0
B92: Equipment Investment
C93: Tractors/Self-Propelled | D93: 70.72022654 | F93: Dollars | G93: 0.085 | I93: 6.011219256 | J93: =E93*H93 -> 0 | K93: 0 | M93: 0 | N93: =J93*L93 -> 0 | O93: 6.011219256 | P93: =+J93-N93 -> 0 | Q93: 601.1219256 | R93: =+J93*E$7 -> 0
C94: Implements | D94: 13.03653218 | F94: Dollars | G94: 0.085 | I94: 1.108105236 | J94: 0 | K94: 0 | M94: 0 | N94: =J94*L94 -> 0 | O94: 1.108105236 | P94: 0 | Q94: 110.8105236 | R94: 0
B95: Salaried Labor | D95: 1 | F95: Acre | G95: 0 | I95: 0 | J95: 0 | K95: 0 | M95: 0 | N95: =J95*L95 -> 0 | O95: 0 | P95: =+J95-N95 -> 0 | Q95: 0 | R95: =+J95*E$7 -> 0
B96: Management Fee, Owner/Operator Labor | D96: 1 | F96: Acre | G96: 0 | I96: 0 | J96: 0 | K96: 0 | M96: 0 | N96: 0 | O96: 0 | P96: 0 | Q96: 0 | R96: 0
B97: Allocated Establishment Cost | D97: 1 | F97: Acre | G97: 142.3995067 | I97: 142.3995067 | J97: 0 | K97: 0 | M97: 0 | N97: 0 | O97: 142.3995067 | P97: 0 | Q97: 14239.95067 | R97: 0
B98: Land Cost, Orchard | D98: 1 | F98: Acre | G98: 100 | I98: 100 | J98: 0 | K98: 0 | M98: 0 | N98: 0 | O98: 100 | P98: 0 | Q98: 10000 | R98: 0
B99: Property Taxes | D99: 1 | F99: Acre | G99: 0 | I99: 0 | J99: 0 | K99: 0 | M99: 0 | N99: 0 | O99: 0 | P99: 0 | Q99: 0 | R99: 0
B100: Whole Farm Insurance | D100: 1 | F100: Acre | G100: 0 | I100: 0 | J100: 0 | K100: 0 | M100: 0 | N100: 0 | O100: 0 | P100: 0 | Q100: 0 | R100: 0
D101: 1 | G101: 0 | I101: 0 | J101: 0 | K101: 0 | M101: 0 | N101: 0 | O101: 0 | P101: 0 | Q101: 0 | R101: 0
D102: 1 | G102: 0 | I102: 0 | J102: =E102*H102 -> 0 | K102: 0 | M102: 0 | N102: 0 | O102: 0 | P102: 0 | Q102: 0 | R102: 0
A103: Total Fixed Costs | I103: 261.6442909 | J103: =+SUM(J90:J102) -> 0 | M103: 0 | N103: =+SUM(N90:N102) -> 0 | O103: 261.6442909 | P103: =+SUM(P90:P102) -> 0 | Q103: 26164.42909 | R103: =+SUM(R90:R102) -> 0
A104: Total Specified Costs | I104: 3120.11088 | J104: =+J84+J103 -> 0 | M104: 0 | N104: =+N84+N103 -> 0 | O104: 3120.11088 | P104: =+P84+P103 -> 0 | Q104: 312011.088 | R104: =+R84+R103 -> 0
A106: Returns Above Specified Costs | I106: 1312.124414 | J106: =+J13-J104 -> 0 | M106: 0 | N106: =+N13-N104 -> 0 | O106: 1312.124414 | P106: =+P13-P104 -> 0 | Q106: 131212.4414 | R106: =+R13-R104 -> 0
A108: Breakeven Price to Cover Total Costs | G108: 346.6789867 | H108: =IF(E10=0,"n/a",(YTotExp-(YTotExp+YTotRet-J10))/E10) -> n/a | I108: Ton
D110: Example Breakeven Prices
B111: Example | C111: Example | D111: To Cover | G111: To Cover
B112: Yield | C112: Yield | D112: Variable | G112: Total
B113: Percent | C113: Ton | D113: Costs | G113: Costs
B114: 0.75 | C114: 6.75 | D114: 423.4765318 | G114: 462.2386489
B115: 0.9 | C115: 8.1 | D115: 352.8971098 | G115: 385.1988741
B116: 1 | C116: 9 | D116: 317.6073988 | G116: 346.6789867
B117: 1.1 | C117: 9.9 | D117: 288.7339989 | G117: 315.1627152
B118: 1.25 | C118: 11.25 | D118: 254.0859191 | G118: 277.3431894
A120: Developed by Manuel Garcia, Assistant Professor and Extension Specialist, Texas A&M AgriLife Extension, 956-968-5581
A122: Information presented is prepared solely as a general guide and not intended to recognize or predict the costs and returns from any one operation. Brand names are mentioned only as examples and imply no endorsement.

Sheet GrapefruitYear6
A1: Projections for Planning Purposes Only -- Not to be Used without Updating
A2: 2025 Estimated Costs and Returns per Acre
A3: Grapefruit, Year 6, Orchard Establishment, Flood Irrigated, Rio Grande Valley
A4: Enter your name for this budget in the cell above.
A5: Enter Your Values in the cells highlighed in MAROON.
E6: Your Acres | R6: Your
C7: Crop Acres | D7: 100 | L7: Your | Q7: Enterprise | R7: Enterprise
E8: Your | H8: Your | I8: Cash | J8: Your | K8: Landlord | L8: Landlord | N8: Your | P8: Your | Q8: Total | R8: Total
A9: REVENUE | D9: Quantity | E9: Quantity | F9: Units | G9: $/Unit | H9: $/Unit | I9: Total | J9: Total | K9: Share | L9: Share | M9: Landlord | N9: Landlord | O9: Tenant | P9: Tenant | Q9: (100 acres) | R9: ="(" & E7 & " acres)" -> ( acres)
B10: Grapefruit (Rio Red) | D10: 14 | F10: Ton | G10: 492.4705882 | I10: 6894.588235 | J10: =E10*H10 -> 0 | K10: 0 | M10: 0 | N10: =J10*L10 -> 0 | O10: 6894.588235 | P10: =+J10-N10 -> 0 | Q10: 689458.8235 | R10: =+J10*E$7 -> 0
D11: 0 | G11: 0 | I11: 0 | J11: 0 | K11: 0 | M11: 0 | N11: 0 | O11: 0 | P11: =+J11-N11 -> 0 | Q11: 0 | R11: 0
D12: 0 | G12: 0 | I12: 0 | J12: 0 | K12: 0 | M12: 0 | N12: 0 | O12: 0 | P12: 0 | Q12: 0 | R12: 0
A13: Total Revenue | I13: 6894.588235 | J13: =SUM(J10:J12) -> 0 | M13: 0 | N13: =SUM(N10:N12) -> 0 | O13: 6894.588235 | P13: =SUM(P10:P12) -> 0 | Q13: 689458.8235 | R13: =SUM(R10:R12) -> 0
Q14: Enterprise | R14: Enterprise
A15: VARIABLE COSTS | D15: Quantity | E15: Quantity | F15: Units | G15: $/Unit | H15: $/Unit | I15: Total | J15: Total | K15: Share | L15: Share | M15: Landlord | N15: Landlord | O15: Tenant | P15: Tenant | Q15: Total | R15: Total
A16: Production Costs
B17: Custom
C18: Foliar Application | D18: 7 | F18: Acre | G18: 50 | I18: 350 | J18: =E18*H18 -> 0 | K18: 0 | M18: 0 | N18: =J18*L18 -> 0 | O18: 350 | P18: =+J18-N18 -> 0 | Q18: 35000 | R18: =+J18*E$7 -> 0
C19: Prune (Yr 3-6 Year) | D19: 1 | F19: Acre | G19: 60 | I19: 60 | J19: 0 | K19: 0 | M19: 0 | N19: 0 | O19: 60 | P19: 0 | Q19: 6000 | R19: 0
B20: Fertilizer
C21: Urea (46%) | D21: 2.5 | F21: CTW | G21: 26.1 | I21: 65.25 | J21: 0 | K21: 0 | M21: 0 | N21: 0 | O21: 65.25 | P21: 0 | Q21: 6525 | R21: 0
C22: Foliar 3-18-18 | D22: 1 | F22: Gallon | G22: 34 | I22: 34 | J22: 0 | K22: 0 | M22: 0 | N22: 0 | O22: 34 | P22: 0 | Q22: 3400 | R22: 0
C23: Foliar Zn | D23: 2 | F23: Pound | G23: 3.4998 | I23: 6.9996 | J23: 0 | K23: 0 | M23: 0 | N23: 0 | O23: 6.9996 | P23: 0 | Q23: 699.96 | R23: 0
C24: Foliar 18-8-5 | D24: 2 | F24: Gallon | G24: 15.5 | I24: 31 | J24: 0 | K24: 0 | M24: 0 | N24: 0 | O24: 31 | P24: 0 | Q24: 3100 | R24: 0
C25: Foliar N | D25: 5 | F25: Pound | G25: 0.61 | I25: 3.05 | J25: 0 | K25: 0 | M25: 0 | N25: 0 | O25: 3.05 | P25: 0 | Q25: 305 | R25: 0
B26: Herbicide
C27: Simazine 4L | D27: 1.25 | F27: Gallon | G27: 38 | I27: 47.5 | J27: 0 | K27: 0 | M27: 0 | N27: 0 | O27: 47.5 | P27: 0 | Q27: 4750 | R27: 0
C28: Krovar I 80 DF | D28: 3 | F28: Pound | G28: 17.68 | I28: 53.04 | J28: 0 | K28: 0 | M28: 0 | N28: 0 | O28: 53.04 | P28: 0 | Q28: 5304 | R28: 0
C29: Glyphosate | D29: 20 | F29: Pint | G29: 6.25 | I29: 125 | J29: 0 | K29: 0 | M29: 0 | N29: 0 | O29: 125 | P29: 0 | Q29: 12500 | R29: 0
B30: Insecticide
C31: Movento | D31: 30 | F31: Ounce | G31: 7.788671875 | I31: 233.6601562 | J31: 0 | K31: 0 | M31: 0 | N31: 0 | O31: 233.6601562 | P31: 0 | Q31: 23366.01562 | R31: 0
C32: Micromite | D32: 18.8 | F32: Ounce | G32: 1.6328125 | I32: 30.696875 | J32: 0 | K32: 0 | M32: 0 | N32: 0 | O32: 30.696875 | P32: 0 | Q32: 3069.6875 | R32: 0
C33: Vendex | D33: 8 | F33: Pound | G33: 60.69 | I33: 485.52 | J33: 0 | K33: 0 | M33: 0 | N33: 0 | O33: 485.52 | P33: 0 | Q33: 48552 | R33: 0
C34: Agri-Mek SC | D34: 0.32 | F34: Gallon | G34: 89.95 | I34: 28.784 | J34: 0 | K34: 0 | M34: 0 | N34: 0 | O34: 28.784 | P34: 0 | Q34: 2878.4 | R34: 0
C35: Actara | D35: 11 | F35: Ounce | G35: 4.331666667 | I35: 47.64833333 | J35: 0 | K35: 0 | M35: 0 | N35: 0 | O35: 47.64833333 | P35: 0 | Q35: 4764.833333 | R35: 0
C36: Sivanto | D36: 10 | F36: Ounce | G36: 3.280859375 | I36: 32.80859375 | J36: 0 | K36: 0 | M36: 0 | N36: 0 | O36: 32.80859375 | P36: 0 | Q36: 3280.859375 | R36: 0
C37: Esteem | D37: 10 | F37: Ounce | G37: 13 | I37: 130 | J37: 0 | K37: 0 | M37: 0 | N37: 0 | O37: 130 | P37: 0 | Q37: 13000 | R37: 0
C38: Danitol | D38: 16 | F38: Ounce | G38: 1.0078125 | I38: 16.125 | J38: 0 | K38: 0 | M38: 0 | N38: 0 | O38: 16.125 | P38: 0 | Q38: 1612.5 | R38: 0
C39: Admire Pro | D39: 0.44 | F39: Pint | G39: 26.28 | I39: 11.5632 | J39: 0 | K39: 0 | M39: 0 | N39: 0 | O39: 11.5632 | P39: 0 | Q39: 1156.32 | R39: 0
B40: Miscellaneous
C41: Citrus Assessment | D41: 1 | F41: Acre | G41: 5 | I41: 5 | J41: 0 | K41: 0 | M41: 0 | N41: 0 | O41: 5 | P41: 0 | Q41: 500 | R41: 0
C42: Insurance, Grapefruit | D42: 1 | F42: Acre | G42: 128.6662703 | I42: 128.6662703 | J42: 0 | K42: 0 | M42: 0 | N42: 0 | O42: 128.6662703 | P42: 0 | Q42: 12866.62703 | R42: 0
B43: Seed
C44: Young Citrus Trees | D44: 3 | F44: Tree | G44: 15 | I44: 45 | J44: 0 | K44: 0 | M44: 0 | N44: 0 | O44: 45 | P44: 0 | Q44: 4500 | R44: 0
C45: Layout and Plant | D45: 3 | F45: Tree | G45: 5 | I45: 15 | J45: 0 | K45: 0 | M45: 0 | N45: 0 | O45: 15 | P45: 0 | Q45: 1500 | R45: 0
C46: Removal Citrus | D46: 3 | F46: Tree | G46: 25 | I46: 75 | J46: 0 | K46: 0 | M46: 0 | N46: 0 | O46: 75 | P46: 0 | Q46: 7500 | R46: 0
C47: Treatment Removed citrus | D47: 3 | F47: Tree | G47: 5 | I47: 15 | J47: 0 | K47: 0 | M47: 0 | N47: 0 | O47: 15 | P47: 0 | Q47: 1500 | R47: 0
C48: Tree Wrap/Unwrap | D48: 3 | F48: Tree | G48: 2 | I48: 6 | J48: 0 | K48: 0 | M48: 0 | N48: 0 | O48: 6 | P48: 0 | Q48: 600 | R48: 0
B49: Other Labor
C50: Costum Soil Fert. Citrus | D50: 6 | F50: Hour | G50: 15 | I50: 90 | J50: 0 | K50: 0 | M50: 0 | N50: 0 | O50: 90 | P50: 0 | Q50: 9000 | R50: 0
C51: Unallocated Labor | D51: 1 | F51: Hour | G51: 15 | I51: 15 | J51: 0 | K51: 0 | M51: 0 | N51: 0 | O51: 15 | P51: 0 | Q51: 1500 | R51: 0
B52: Other Chemicals
C53: Surfactant | D53: 7.98 | F53: Pint | G53: 7.475 | I53: 59.6505 | J53: 0 | K53: 0 | M53: 0 | N53: 0 | O53: 59.6505 | P53: 0 | Q53: 5965.05 | R53: 0
B54: Fungicides
C55: Quadris Top | D55: 10 | F55: Ounce | G55: 1.562109375 | I55: 15.62109375 | J55: 0 | K55: 0 | M55: 0 | N55: 0 | O55: 15.62109375 | P55: 0 | Q55: 1562.109375 | R55: 0
C56: GEM | D56: 3.8 | F56: Ounce | G56: 8.1234375 | I56: 30.8690625 | J56: 0 | K56: 0 | M56: 0 | N56: 0 | O56: 30.8690625 | P56: 0 | Q56: 3086.90625 | R56: 0
C57: Headline | D57: 24 | F57: Ounce | G57: 1.859375 | I57: 44.625 | J57: 0 | K57: 0 | M57: 0 | N57: 0 | O57: 44.625 | P57: 0 | Q57: 4462.5 | R57: 0
D58: 16 | G58: 3.29125 | I58: 52.66 | J58: 0 | K58: 0 | M58: 0 | N58: 0 | O58: 52.66 | P58: 0 | Q58: 5266 | R58: 0
D59: 0 | G59: 0 | I59: 0 | J59: 0 | K59: 0 | M59: 0 | N59: 0 | O59: 0 | P59: 0 | Q59: 0 | R59: 0
D60: 0 | G60: 0 | I60: 0 | J60: =E60*H60 -> 0 | K60: 0 | M60: 0 | N60: =J60*L60 -> 0 | O60: 0 | P60: =+J60-N60 -> 0 | Q60: 0 | R60: =+J60*E$7 -> 0
B61: Irrigation
C62: Water Cost | D62: 4 | F62: Acre/Foot | G62: 21 | I62: 84 | J62: =E62*H62 -> 0 | K62: 0 | M62: 0 | N62: =J62*L62 -> 0 | O62: 84 | P62: =+J62-N62 -> 0 | Q62: 8400 | R62: =+J62*E$7 -> 0
C63: Irrigation Labor | D63: 14 | F63: Hour | G63: 17.5 | I63: 245 | J63: 0 | K63: 0 | M63: 0 | N63: 0 | O63: 245 | P63: 0 | Q63: 24500 | R63: 0
B64: Machinery Labor
C65: Tractors/Self-Propelled | D65: 0.8 | F65: Hour | G65: 17.21 | I65: 13.768 | J65: =E65*H65 -> 0 | K65: 0 | M65: 0 | N65: =J65*L65 -> 0 | O65: 13.768 | P65: =+J65-N65 -> 0 | Q65: 1376.8 | R65: =+J65*E$7 -> 0
C66: Other Labor | D66: 0.4 | F66: Hour | G66: 17.21 | I66: 6.884 | J66: =E66*H66 -> 0 | K66: 0 | M66: 0 | N66: =J66*L66 -> 0 | O66: 6.884 | P66: =+J66-N66 -> 0 | Q66: 688.4 | R66: =+J66*E$7 -> 0
B68: Diesel Fuel
C69: Pickup/General Use Equipment | D69: 1 | F69: Acre | G69: 0 | I69: 0 | J69: =E69*H69 -> 0 | K69: 0 | M69: 0 | N69: =J69*L69 -> 0 | O69: 0 | P69: =+J69-N69 -> 0 | Q69: 0 | R69: =+J69*E$7 -> 0
C70: Tractors/Self-Propelled | D70: 3.66 | F70: Gallon | G70: 3.6 | I70: 13.176 | J70: =E70*H70 -> 0 | K70: 0 | M70: 0 | N70: =J70*L70 -> 0 | O70: 13.176 | P70: =+J70-N70 -> 0 | Q70: 1317.6 | R70: =+J70*E$7 -> 0
B72: Gasoline
C73: Pickup/General Use Equipment | D73: 1 | F73: Acre | G73: 0 | I73: 0 | J73: =E73*H73 -> 0 | K73: 0 | M73: 0 | N73: =J73*L73 -> 0 | O73: 0 | P73: =+J73-N73 -> 0 | Q73: 0 | R73: =+J73*E$7 -> 0
C74: Tractors/Self-Propelled | D74: 0 | F74: Gallon | G74: 3.15 | I74: 0 | J74: =E74*H74 -> 0 | K74: 0 | M74: 0 | N74: =J74*L74 -> 0 | O74: 0 | P74: =+J74-N74 -> 0 | Q74: 0 | R74: =+J74*E$7 -> 0
B76: Repairs & Maintenance
C77: Pickup/General Use Equipment | D77: 1 | F77: Acre | G77: 0 | I77: 0 | J77: =E77*H77 -> 0 | K77: 0 | M77: 0 | N77: =J77*L77 -> 0 | O77: 0 | P77: =+J77-N77 -> 0 | Q77: 0 | R77: =+J77*E$7 -> 0
C78: Irrigation Equipment | D78: 1 | F78: Acre | G78: 0 | I78: 0 | J78: 0 | K78: 0 | M78: 0 | N78: 0 | O78: 0 | P78: 0 | Q78: 0 | R78: 0
C79: Tractors/Self-Propelled | D79: 1 | F79: Acre | G79: 8.785121309 | I79: 8.785121309 | J79: 0 | K79: 0 | M79: 0 | N79: 0 | O79: 8.785121309 | P79: 0 | Q79: 878.5121309 | R79: 0
C80: Implements | D80: 1 | F80: Acre | G80: 2.85698064 | I80: 2.85698064 | J80: 0 | K80: 0 | M80: 0 | N80: 0 | O80: 2.85698064 | P80: 0 | Q80: 285.698064 | R80: 0
I81: 0 | J81: 0 | K81: 0 | M81: 0 | N81: 0 | O81: 0 | P81: 0 | Q81: 0 | R81: 0
I82: 0 | J82: 0 | K82: 0 | M82: 0 | N82: 0 | O82: 0 | P82: 0 | Q82: 0 | R82: 0
B83: Interest on Credit Line | G83: 0.085 | I83: 125.0445932 | J83: =+SUM(J17:J82)/2*H83 -> 0 | M83: 0 | N83: =+SUM(N17:N82)/2*L83 -> 0 | O83: 125.0445932 | P83: =+SUM(P17:P82)/2*L83 -> 0 | Q83: 12504.45932 | R83: =+J83*E$7 -> 0
A84: Total Variable Costs | I84: 2890.25238 | J84: =SUM(J18:J83) -> 0 | M84: 0 | N84: =SUM(N18:N83) -> 0 | O84: 2890.25238 | P84: =SUM(P18:P83) -> 0 | Q84: 289025.238 | R84: =SUM(R18:R83) -> 0
A85: Planned Returns Above Variable Costs: | I85: 4004.335855 | J85: =+J13-J84 -> 0 | M85: 0 | N85: =+N13-N84 -> 0 | O85: 4004.335855 | P85: =+P13-P84 -> 0 | Q85: 400433.5855 | R85: =+R13-R84 -> 0
B86: Breakeven Price to Cover Variable Costs | G86: 206.4465986 | H86: =IF(E10=0,"n/a",(YVarExp-(YTotExp+YTotRet-J10))/E10) -> n/a | I86: Ton
Q87: Enterprise | R87: Enterprise
A88: FIXED COSTS | D88: Quantity | E88: Quantity | F88: Units | G88: $/Unit | H88: $/Unit | I88: Total | J88: Total | K88: Share | L88: Share | M88: Landlord | N88: Landlord | O88: Tenant | P88: Tenant | Q88: Total | R88: Total
B89: Machinery Depreciation
C90: Tractors/Self-Propelled | D90: 1 | F90: Acre | G90: 9.077958686 | I90: 9.077958686 | J90: =E90*H90 -> 0 | K90: 0 | M90: 0 | N90: =J90*L90 -> 0 | O90: 9.077958686 | P90: =+J90-N90 -> 0 | Q90: 907.7958686 | R90: =+J90*E$7 -> 0
C91: Implements | D91: 1 | F91: Acre | G91: 3.04750103 | I91: 3.04750103 | J91: 0 | K91: 0 | M91: 0 | N91: =J91*L91 -> 0 | O91: 3.04750103 | P91: 0 | Q91: 304.750103 | R91: 0
B92: Equipment Investment
C93: Tractors/Self-Propelled | D93: 70.72022654 | F93: Dollars | G93: 0.085 | I93: 6.011219256 | J93: =E93*H93 -> 0 | K93: 0 | M93: 0 | N93: =J93*L93 -> 0 | O93: 6.011219256 | P93: =+J93-N93 -> 0 | Q93: 601.1219256 | R93: =+J93*E$7 -> 0
C94: Implements | D94: 13.03653218 | F94: Dollars | G94: 0.085 | I94: 1.108105236 | J94: 0 | K94: 0 | M94: 0 | N94: =J94*L94 -> 0 | O94: 1.108105236 | P94: 0 | Q94: 110.8105236 | R94: 0
B95: Salaried Labor | D95: 1 | F95: Acre | G95: 0 | I95: 0 | J95: 0 | K95: 0 | M95: 0 | N95: =J95*L95 -> 0 | O95: 0 | P95: =+J95-N95 -> 0 | Q95: 0 | R95: =+J95*E$7 -> 0
B96: Management Fee, Owner/Operator Labor | D96: 1 | F96: Acre | G96: 0 | I96: 0 | J96: 0 | K96: 0 | M96: 0 | N96: 0 | O96: 0 | P96: 0 | Q96: 0 | R96: 0
B97: Allocated Establishment Cost | D97: 1 | F97: Acre | G97: 142.3995067 | I97: 142.3995067 | J97: 0 | K97: 0 | M97: 0 | N97: 0 | O97: 142.3995067 | P97: 0 | Q97: 14239.95067 | R97: 0
B98: Land Cost, Orchard | D98: 1 | F98: Acre | G98: 100 | I98: 100 | J98: 0 | K98: 0 | M98: 0 | N98: 0 | O98: 100 | P98: 0 | Q98: 10000 | R98: 0
B99: Property Taxes | D99: 1 | F99: Acre | G99: 0 | I99: 0 | J99: 0 | K99: 0 | M99: 0 | N99: 0 | O99: 0 | P99: 0 | Q99: 0 | R99: 0
B100: Whole Farm Insurance | D100: 1 | F100: Acre | G100: 0 | I100: 0 | J100: 0 | K100: 0 | M100: 0 | N100: 0 | O100: 0 | P100: 0 | Q100: 0 | R100: 0
D101: 1 | G101: 0 | I101: 0 | J101: 0 | K101: 0 | M101: 0 | N101: 0 | O101: 0 | P101: 0 | Q101: 0 | R101: 0
D102: 1 | G102: 0 | I102: 0 | J102: =E102*H102 -> 0 | K102: 0 | M102: 0 | N102: 0 | O102: 0 | P102: 0 | Q102: 0 | R102: 0
A103: Total Fixed Costs | I103: 261.6442909 | J103: =+SUM(J90:J102) -> 0 | M103: 0 | N103: =+SUM(N90:N102) -> 0 | O103: 261.6442909 | P103: =+SUM(P90:P102) -> 0 | Q103: 26164.42909 | R103: =+SUM(R90:R102) -> 0
A104: Total Specified Costs | I104: 3151.896671 | J104: =+J84+J103 -> 0 | M104: 0 | N104: =+N84+N103 -> 0 | O104: 3151.896671 | P104: =+P84+P103 -> 0 | Q104: 315189.6671 | R104: =+R84+R103 -> 0
A106: Returns Above Specified Costs | I106: 3742.691564 | J106: =+J13-J104 -> 0 | M106: 0 | N106: =+N13-N104 -> 0 | O106: 3742.691564 | P106: =+P13-P104 -> 0 | Q106: 374269.1564 | R106: =+R13-R104 -> 0
A108: Breakeven Price to Cover Total Costs | G108: 225.1354765 | H108: =IF(E10=0,"n/a",(YTotExp-(YTotExp+YTotRet-J10))/E10) -> n/a | I108: Ton
D110: Example Breakeven Prices
B111: Example | C111: Example | D111: To Cover | G111: To Cover
B112: Yield | C112: Yield | D112: Variable | G112: Total
B113: Percent | C113: Ton | D113: Costs | G113: Costs
B114: 0.75 | C114: 10.5 | D114: 275.2621314 | G114: 300.1806353
B115: 0.9 | C115: 12.6 | D115: 229.3851095 | G115: 250.1505294
B116: 1 | C116: 14 | D116: 206.4465986 | G116: 225.1354765
B117: 1.1 | C117: 15.4 | D117: 187.678726 | G117: 204.668615
B118: 1.25 | C118: 17.5 | D118: 165.1572789 | G118: 180.1083812
A120: Developed by Manuel Garcia, Assistant Professor and Extension Specialist, Texas A&M AgriLife Extension, 956-968-5581
A122: Information presented is prepared solely as a general guide and not intended to recognize or predict the costs and returns from any one operation. Brand names are mentioned only as examples and imply no endorsement.

Sheet GrapefruitYear7
A1: Projections for Planning Purposes Only -- Not to be Used without Updating
A2: 2025 Estimated Costs and Returns per Acre
A3: Grapefruit, Year 7, Orchard Establishment, Flood Irrigated, Rio Grande Valley
A4: Enter your name for this budget in the cell above.
A5: Enter Your Values in the cells highlighed in MAROON.
E6: Your Acres | R6: Your
C7: Crop Acres | D7: 100 | L7: Your | Q7: Enterprise | R7: Enterprise
E8: Your | H8: Your | I8: Cash | J8: Your | K8: Landlord | L8: Landlord | N8: Your | P8: Your | Q8: Total | R8: Total
A9: REVENUE | D9: Quantity | E9: Quantity | F9: Units | G9: $/Unit | H9: $/Unit | I9: Total | J9: Total | K9: Share | L9: Share | M9: Landlord | N9: Landlord | O9: Tenant | P9: Tenant | Q9: (100 acres) | R9: ="(" & E7 & " acres)" -> ( acres)
B10: Grapefruit (Rio Red) | D10: 18 | F10: Ton | G10: 492.4705882 | I10: 8864.470588 | J10: =E10*H10 -> 0 | K10: 0 | M10: 0 | N10: =J10*L10 -> 0 | O10: 8864.470588 | P10: =+J10-N10 -> 0 | Q10: 886447.0588 | R10: =+J10*E$7 -> 0
D11: 0 | G11: 0 | I11: 0 | J11: 0 | K11: 0 | M11: 0 | N11: 0 | O11: 0 | P11: =+J11-N11 -> 0 | Q11: 0 | R11: 0
D12: 0 | G12: 0 | I12: 0 | J12: 0 | K12: 0 | M12: 0 | N12: 0 | O12: 0 | P12: 0 | Q12: 0 | R12: 0
A13: Total Revenue | I13: 8864.470588 | J13: =SUM(J10:J12) -> 0 | M13: 0 | N13: =SUM(N10:N12) -> 0 | O13: 8864.470588 | P13: =SUM(P10:P12) -> 0 | Q13: 886447.0588 | R13: =SUM(R10:R12) -> 0
Q14: Enterprise | R14: Enterprise
A15: VARIABLE COSTS | D15: Quantity | E15: Quantity | F15: Units | G15: $/Unit | H15: $/Unit | I15: Total | J15: Total | K15: Share | L15: Share | M15: Landlord | N15: Landlord | O15: Tenant | P15: Tenant | Q15: Total | R15: Total
A16: Production Costs
B17: Custom
C18: Foliar Application | D18: 7 | F18: Acre | G18: 50 | I18: 350 | J18: =E18*H18 -> 0 | K18: 0 | M18: 0 | N18: =J18*L18 -> 0 | O18: 350 | P18: =+J18-N18 -> 0 | Q18: 35000 | R18: =+J18*E$7 -> 0
C19: Topping and Hedging | D19: 1 | F19: Acre | G19: 120 | I19: 120 | J19: 0 | K19: 0 | M19: 0 | N19: 0 | O19: 120 | P19: 0 | Q19: 12000 | R19: 0
B20: Fertilizer
C21: Urea (46%) | D21: 2.5 | F21: CTW | G21: 26.1 | I21: 65.25 | J21: 0 | K21: 0 | M21: 0 | N21: 0 | O21: 65.25 | P21: 0 | Q21: 6525 | R21: 0
C22: Foliar 3-18-18 | D22: 1 | F22: Gallon | G22: 34 | I22: 34 | J22: 0 | K22: 0 | M22: 0 | N22: 0 | O22: 34 | P22: 0 | Q22: 3400 | R22: 0
C23: Foliar Zn | D23: 2 | F23: Pound | G23: 3.4998 | I23: 6.9996 | J23: 0 | K23: 0 | M23: 0 | N23: 0 | O23: 6.9996 | P23: 0 | Q23: 699.96 | R23: 0
C24: Foliar 18-8-5 | D24: 2 | F24: Gallon | G24: 15.5 | I24: 31 | J24: 0 | K24: 0 | M24: 0 | N24: 0 | O24: 31 | P24: 0 | Q24: 3100 | R24: 0
C25: Foliar N | D25: 5 | F25: Pound | G25: 0.61 | I25: 3.05 | J25: 0 | K25: 0 | M25: 0 | N25: 0 | O25: 3.05 | P25: 0 | Q25: 305 | R25: 0
B26: Herbicide
C27: Simazine 4L | D27: 1.25 | F27: Gallon | G27: 38 | I27: 47.5 | J27: 0 | K27: 0 | M27: 0 | N27: 0 | O27: 47.5 | P27: 0 | Q27: 4750 | R27: 0
C28: Krovar I 80 DF | D28: 3 | F28: Pound | G28: 17.68 | I28: 53.04 | J28: 0 | K28: 0 | M28: 0 | N28: 0 | O28: 53.04 | P28: 0 | Q28: 5304 | R28: 0
C29: Glyphosate | D29: 20 | F29: Pint | G29: 6.25 | I29: 125 | J29: 0 | K29: 0 | M29: 0 | N29: 0 | O29: 125 | P29: 0 | Q29: 12500 | R29: 0
B30: Insecticide
C31: Movento | D31: 30 | F31: Ounce | G31: 7.788671875 | I31: 233.6601562 | J31: 0 | K31: 0 | M31: 0 | N31: 0 | O31: 233.6601562 | P31: 0 | Q31: 23366.01562 | R31: 0
C32: Micromite | D32: 18.8 | F32: Ounce | G32: 1.6328125 | I32: 30.696875 | J32: 0 | K32: 0 | M32: 0 | N32: 0 | O32: 30.696875 | P32: 0 | Q32: 3069.6875 | R32: 0
C33: Vendex | D33: 8 | F33: Pound | G33: 60.69 | I33: 485.52 | J33: 0 | K33: 0 | M33: 0 | N33: 0 | O33: 485.52 | P33: 0 | Q33: 48552 | R33: 0
C34: Agri-Mek SC | D34: 0.32 | F34: Gallon | G34: 89.95 | I34: 28.784 | J34: 0 | K34: 0 | M34: 0 | N34: 0 | O34: 28.784 | P34: 0 | Q34: 2878.4 | R34: 0
C35: Actara | D35: 11 | F35: Ounce | G35: 4.331666667 | I35: 47.64833333 | J35: 0 | K35: 0 | M35: 0 | N35: 0 | O35: 47.64833333 | P35: 0 | Q35: 4764.833333 | R35: 0
C36: Sivanto | D36: 10 | F36: Ounce | G36: 3.280859375 | I36: 32.80859375 | J36: 0 | K36: 0 | M36: 0 | N36: 0 | O36: 32.80859375 | P36: 0 | Q36: 3280.859375 | R36: 0
C37: Esteem | D37: 10 | F37: Ounce | G37: 9.919 | I37: 99.19 | J37: 0 | K37: 0 | M37: 0 | N37: 0 | O37: 99.19 | P37: 0 | Q37: 9919 | R37: 0
C38: Danitol | D38: 16 | F38: Ounce | G38: 1.0078125 | I38: 16.125 | J38: 0 | K38: 0 | M38: 0 | N38: 0 | O38: 16.125 | P38: 0 | Q38: 1612.5 | R38: 0
C39: Admire Pro | D39: 0.44 | F39: Pint | G39: 26.28 | I39: 11.5632 | J39: 0 | K39: 0 | M39: 0 | N39: 0 | O39: 11.5632 | P39: 0 | Q39: 1156.32 | R39: 0
B40: Miscellaneous
C41: Citrus Assessment | D41: 1 | F41: Acre | G41: 5 | I41: 5 | J41: 0 | K41: 0 | M41: 0 | N41: 0 | O41: 5 | P41: 0 | Q41: 500 | R41: 0
C42: Insurance, Grapefruit | D42: 1 | F42: Acre | G42: 128.6662703 | I42: 128.6662703 | J42: 0 | K42: 0 | M42: 0 | N42: 0 | O42: 128.6662703 | P42: 0 | Q42: 12866.62703 | R42: 0
B43: Seed
C44: Young Citrus Trees | D44: 3 | F44: Tree | G44: 15 | I44: 45 | J44: 0 | K44: 0 | M44: 0 | N44: 0 | O44: 45 | P44: 0 | Q44: 4500 | R44: 0
C45: Layout and Plant | D45: 3 | F45: Tree | G45: 5 | I45: 15 | J45: 0 | K45: 0 | M45: 0 | N45: 0 | O45: 15 | P45: 0 | Q45: 1500 | R45: 0
C46: Removal Citrus | D46: 3 | F46: Tree | G46: 25 | I46: 75 | J46: 0 | K46: 0 | M46: 0 | N46: 0 | O46: 75 | P46: 0 | Q46: 7500 | R46: 0
C47: Treatment Removed citrus | D47: 3 | F47: Tree | G47: 5 | I47: 15 | J47: 0 | K47: 0 | M47: 0 | N47: 0 | O47: 15 | P47: 0 | Q47: 1500 | R47: 0
C48: Tree Wrap/Unwrap | D48: 3 | F48: Tree | G48: 2 | I48: 6 | J48: 0 | K48: 0 | M48: 0 | N48: 0 | O48: 6 | P48: 0 | Q48: 600 | R48: 0
B49: Other Labor
C50: Costum Soil Fert. Citrus | D50: 6 | F50: Hour | G50: 15 | I50: 90 | J50: 0 | K50: 0 | M50: 0 | N50: 0 | O50: 90 | P50: 0 | Q50: 9000 | R50: 0
C51: Unallocated Labor | D51: 1 | F51: Hour | G51: 15 | I51: 15 | J51: 0 | K51: 0 | M51: 0 | N51: 0 | O51: 15 | P51: 0 | Q51: 1500 | R51: 0
B52: Other Chemicals
C53: Surfactant | D53: 7.98 | F53: Pint | G53: 7.475 | I53: 59.6505 | J53: 0 | K53: 0 | M53: 0 | N53: 0 | O53: 59.6505 | P53: 0 | Q53: 5965.05 | R53: 0
B54: Fungicides
C55: Quadris Top | D55: 10 | F55: Ounce | G55: 1.562109375 | I55: 15.62109375 | J55: 0 | K55: 0 | M55: 0 | N55: 0 | O55: 15.62109375 | P55: 0 | Q55: 1562.109375 | R55: 0
C56: GEM | D56: 3.8 | F56: Ounce | G56: 8.1234375 | I56: 30.8690625 | J56: 0 | K56: 0 | M56: 0 | N56: 0 | O56: 30.8690625 | P56: 0 | Q56: 3086.90625 | R56: 0
C57: Headline | D57: 24 | F57: Ounce | G57: 1.859375 | I57: 44.625 | J57: 0 | K57: 0 | M57: 0 | N57: 0 | O57: 44.625 | P57: 0 | Q57: 4462.5 | R57: 0
D58: 16 | G58: 3.29125 | I58: 52.66 | J58: 0 | K58: 0 | M58: 0 | N58: 0 | O58: 52.66 | P58: 0 | Q58: 5266 | R58: 0
D59: 0 | G59: 0 | I59: 0 | J59: 0 | K59: 0 | M59: 0 | N59: 0 | O59: 0 | P59: 0 | Q59: 0 | R59: 0
D60: 0 | G60: 0 | I60: 0 | J60: =E60*H60 -> 0 | K60: 0 | M60: 0 | N60: =J60*L60 -> 0 | O60: 0 | P60: =+J60-N60 -> 0 | Q60: 0 | R60: =+J60*E$7 -> 0
B61: Irrigation
C62: Water Cost | D62: 4 | F62: Acre/Foot | G62: 21 | I62: 84 | J62: =E62*H62 -> 0 | K62: 0 | M62: 0 | N62: =J62*L62 -> 0 | O62: 84 | P62: =+J62-N62 -> 0 | Q62: 8400 | R62: =+J62*E$7 -> 0
C63: Irrigation Labor | D63: 14 | F63: Hour | G63: 17.5 | I63: 245 | J63: 0 | K63: 0 | M63: 0 | N63: 0 | O63: 245 | P63: 0 | Q63: 24500 | R63: 0
B64: Machinery Labor
C65: Tractors/Self-Propelled | D65: 0.8 | F65: Hour | G65: 17.21 | I65: 13.768 | J65: =E65*H65 -> 0 | K65: 0 | M65: 0 | N65: =J65*L65 -> 0 | O65: 13.768 | P65: =+J65-N65 -> 0 | Q65: 1376.8 | R65: =+J65*E$7 -> 0
C66: Other Labor | D66: 0.4 | F66: Hour | G66: 17.21 | I66: 6.884 | J66: =E66*H66 -> 0 | K66: 0 | M66: 0 | N66: =J66*L66 -> 0 | O66: 6.884 | P66: =+J66-N66 -> 0 | Q66: 688.4 | R66: =+J66*E$7 -> 0
B68: Diesel Fuel
C69: Pickup/General Use Equipment | D69: 1 | F69: Acre | G69: 0 | I69: 0 | J69: =E69*H69 -> 0 | K69: 0 | M69: 0 | N69: =J69*L69 -> 0 | O69: 0 | P69: =+J69-N69 -> 0 | Q69: 0 | R69: =+J69*E$7 -> 0
C70: Tractors/Self-Propelled | D70: 3.66 | F70: Gallon | G70: 3.6 | I70: 13.176 | J70: =E70*H70 -> 0 | K70: 0 | M70: 0 | N70: =J70*L70 -> 0 | O70: 13.176 | P70: =+J70-N70 -> 0 | Q70: 1317.6 | R70: =+J70*E$7 -> 0
B72: Gasoline
C73: Pickup/General Use Equipment | D73: 1 | F73: Acre | G73: 0 | I73: 0 | J73: =E73*H73 -> 0 | K73: 0 | M73: 0 | N73: =J73*L73 -> 0 | O73: 0 | P73: =+J73-N73 -> 0 | Q73: 0 | R73: =+J73*E$7 -> 0
C74: Tractors/Self-Propelled | D74: 0 | F74: Gallon | G74: 3.15 | I74: 0 | J74: =E74*H74 -> 0 | K74: 0 | M74: 0 | N74: =J74*L74 -> 0 | O74: 0 | P74: =+J74-N74 -> 0 | Q74: 0 | R74: =+J74*E$7 -> 0
B76: Repairs & Maintenance
C77: Pickup/General Use Equipment | D77: 1 | F77: Acre | G77: 0 | I77: 0 | J77: =E77*H77 -> 0 | K77: 0 | M77: 0 | N77: =J77*L77 -> 0 | O77: 0 | P77: =+J77-N77 -> 0 | Q77: 0 | R77: =+J77*E$7 -> 0
C78: Irrigation Equipment | D78: 1 | F78: Acre | G78: 0 | I78: 0 | J78: 0 | K78: 0 | M78: 0 | N78: 0 | O78: 0 | P78: 0 | Q78: 0 | R78: 0
C79: Tractors/Self-Propelled | D79: 1 | F79: Acre | G79: 8.785121309 | I79: 8.785121309 | J79: 0 | K79: 0 | M79: 0 | N79: 0 | O79: 8.785121309 | P79: 0 | Q79: 878.5121309 | R79: 0
C80: Implements | D80: 1 | F80: Acre | G80: 2.85698064 | I80: 2.85698064 | J80: 0 | K80: 0 | M80: 0 | N80: 0 | O80: 2.85698064 | P80: 0 | Q80: 285.698064 | R80: 0
I81: 0 | J81: 0 | K81: 0 | M81: 0 | N81: 0 | O81: 0 | P81: 0 | Q81: 0 | R81: 0
I82: 0 | J82: 0 | K82: 0 | M82: 0 | N82: 0 | O82: 0 | P82: 0 | Q82: 0 | R82: 0
B83: Interest on Credit Line | G83: 0.085 | I83: 129.4063368 | J83: =+SUM(J17:J82)/2*H83 -> 0 | M83: 0 | N83: =+SUM(N17:N82)/2*L83 -> 0 | O83: 129.4063368 | P83: =+SUM(P17:P82)/2*L83 -> 0 | Q83: 12940.63368 | R83: =+J83*E$7 -> 0
A84: Total Variable Costs | I84: 2923.804124 | J84: =SUM(J18:J83) -> 0 | M84: 0 | N84: =SUM(N18:N83) -> 0 | O84: 2923.804124 | P84: =SUM(P18:P83) -> 0 | Q84: 292380.4124 | R84: =SUM(R18:R83) -> 0
A85: Planned Returns Above Variable Costs: | I85: 5940.666465 | J85: =+J13-J84 -> 0 | M85: 0 | N85: =+N13-N84 -> 0 | O85: 5940.666465 | P85: =+P13-P84 -> 0 | Q85: 594066.6465 | R85: =+R13-R84 -> 0
B86: Breakeven Price to Cover Variable Costs | G86: 162.4335624 | H86: =IF(E10=0,"n/a",(YVarExp-(YTotExp+YTotRet-J10))/E10) -> n/a | I86: Ton
Q87: Enterprise | R87: Enterprise
A88: FIXED COSTS | D88: Quantity | E88: Quantity | F88: Units | G88: $/Unit | H88: $/Unit | I88: Total | J88: Total | K88: Share | L88: Share | M88: Landlord | N88: Landlord | O88: Tenant | P88: Tenant | Q88: Total | R88: Total
B89: Machinery Depreciation
C90: Tractors/Self-Propelled | D90: 1 | F90: Acre | G90: 9.077958686 | I90: 9.077958686 | J90: =E90*H90 -> 0 | K90: 0 | M90: 0 | N90: =J90*L90 -> 0 | O90: 9.077958686 | P90: =+J90-N90 -> 0 | Q90: 907.7958686 | R90: =+J90*E$7 -> 0
C91: Implements | D91: 1 | F91: Acre | G91: 3.04750103 | I91: 3.04750103 | J91: 0 | K91: 0 | M91: 0 | N91: =J91*L91 -> 0 | O91: 3.04750103 | P91: 0 | Q91: 304.750103 | R91: 0
B92: Equipment Investment
C93: Tractors/Self-Propelled | D93: 70.72022654 | F93: Dollars | G93: 0.085 | I93: 6.011219256 | J93: =E93*H93 -> 0 | K93: 0 | M93: 0 | N93: =J93*L93 -> 0 | O93: 6.011219256 | P93: =+J93-N93 -> 0 | Q93: 601.1219256 | R93: =+J93*E$7 -> 0
C94: Implements | D94: 13.03653218 | F94: Dollars | G94: 0.085 | I94: 1.108105236 | J94: 0 | K94: 0 | M94: 0 | N94: =J94*L94 -> 0 | O94: 1.108105236 | P94: 0 | Q94: 110.8105236 | R94: 0
B95: Salaried Labor | D95: 1 | F95: Acre | G95: 0 | I95: 0 | J95: 0 | K95: 0 | M95: 0 | N95: =J95*L95 -> 0 | O95: 0 | P95: =+J95-N95 -> 0 | Q95: 0 | R95: =+J95*E$7 -> 0
B96: Management Fee, Owner/Operator Labor | D96: 1 | F96: Acre | G96: 0 | I96: 0 | J96: 0 | K96: 0 | M96: 0 | N96: 0 | O96: 0 | P96: 0 | Q96: 0 | R96: 0
B97: Allocated Establishment Cost | D97: 1 | F97: Acre | G97: 142.3995067 | I97: 142.3995067 | J97: 0 | K97: 0 | M97: 0 | N97: 0 | O97: 142.3995067 | P97: 0 | Q97: 14239.95067 | R97: 0
B98: Land Cost, Orchard | D98: 1 | F98: Acre | G98: 100 | I98: 100 | J98: 0 | K98: 0 | M98: 0 | N98: 0 | O98: 100 | P98: 0 | Q98: 10000 | R98: 0
B99: Property Taxes | D99: 1 | F99: Acre | G99: 0 | I99: 0 | J99: 0 | K99: 0 | M99: 0 | N99: 0 | O99: 0 | P99: 0 | Q99: 0 | R99: 0
B100: Whole Farm Insurance | D100: 1 | F100: Acre | G100: 0 | I100: 0 | J100: 0 | K100: 0 | M100: 0 | N100: 0 | O100: 0 | P100: 0 | Q100: 0 | R100: 0
D101: 1 | G101: 0 | I101: 0 | J101: 0 | K101: 0 | M101: 0 | N101: 0 | O101: 0 | P101: 0 | Q101: 0 | R101: 0
D102: 1 | G102: 0 | I102: 0 | J102: =E102*H102 -> 0 | K102: 0 | M102: 0 | N102: 0 | O102: 0 | P102: 0 | Q102: 0 | R102: 0
A103: Total Fixed Costs | I103: 261.6442909 | J103: =+SUM(J90:J102) -> 0 | M103: 0 | N103: =+SUM(N90:N102) -> 0 | O103: 261.6442909 | P103: =+SUM(P90:P102) -> 0 | Q103: 26164.42909 | R103: =+SUM(R90:R102) -> 0
A104: Total Specified Costs | I104: 3185.448415 | J104: =+J84+J103 -> 0 | M104: 0 | N104: =+N84+N103 -> 0 | O104: 3185.448415 | P104: =+P84+P103 -> 0 | Q104: 318544.8415 | R104: =+R84+R103 -> 0
A106: Returns Above Specified Costs | I106: 5679.022174 | J106: =+J13-J104 -> 0 | M106: 0 | N106: =+N13-N104 -> 0 | O106: 5679.022174 | P106: =+P13-P104 -> 0 | Q106: 567902.2174 | R106: =+R13-R104 -> 0
A108: Breakeven Price to Cover Total Costs | G108: 176.9693564 | H108: =IF(E10=0,"n/a",(YTotExp-(YTotExp+YTotRet-J10))/E10) -> n/a | I108: Ton
D110: Example Breakeven Prices
B111: Example | C111: Example | D111: To Cover | G111: To Cover
B112: Yield | C112: Yield | D112: Variable | G112: Total
B113: Percent | C113: Ton | D113: Costs | G113: Costs
B114: 0.75 | C114: 13.5 | D114: 216.5780832 | G114: 235.9591418
B115: 0.9 | C115: 16.2 | D115: 180.481736 | G115: 196.6326182
B116: 1 | C116: 18 | D116: 162.4335624 | G116: 176.9693564
B117: 1.1 | C117: 19.8 | D117: 147.6668749 | G117: 160.8812331
B118: 1.25 | C118: 22.5 | D118: 129.9468499 | G118: 141.5754851
A120: Developed by Manuel Garcia, Assistant Professor and Extension Specialist, Texas A&M AgriLife Extension, 956-968-5581
A122: Information presented is prepared solely as a general guide and not intended to recognize or predict the costs and returns from any one operation. Brand names are mentioned only as examples and imply no endorsement.

Sheet GrapefruitYear8
A1: Projections for Planning Purposes Only -- Not to be Used without Updating
A2: 2025 Estimated Costs and Returns per Acre
A3: Grapefruit, Year 8, Orchard Establishment, Flood Irrigated, Rio Grande Valley
A4: Enter your name for this budget in the cell above.
A5: Enter Your Values in the cells highlighed in MAROON.
E6: Your Acres | R6: Your
C7: Crop Acres | D7: 100 | L7: Your | Q7: Enterprise | R7: Enterprise
E8: Your | H8: Your | I8: Cash | J8: Your | K8: Landlord | L8: Landlord | N8: Your | P8: Your | Q8: Total | R8: Total
A9: REVENUE | D9: Quantity | E9: Quantity | F9: Units | G9: $/Unit | H9: $/Unit | I9: Total | J9: Total | K9: Share | L9: Share | M9: Landlord | N9: Landlord | O9: Tenant | P9: Tenant | Q9: (100 acres) | R9: ="(" & E7 & " acres)" -> ( acres)
B10: Grapefruit (Rio Red) | D10: 20 | F10: Ton | G10: 492.4705882 | I10: 9849.411765 | J10: =E10*H10 -> 0 | K10: 0 | M10: 0 | N10: =J10*L10 -> 0 | O10: 9849.411765 | P10: =+J10-N10 -> 0 | Q10: 984941.1765 | R10: =+J10*E$7 -> 0
D11: 0 | G11: 0 | I11: 0 | J11: 0 | K11: 0 | M11: 0 | N11: 0 | O11: 0 | P11: =+J11-N11 -> 0 | Q11: 0 | R11: 0
D12: 0 | G12: 0 | I12: 0 | J12: 0 | K12: 0 | M12: 0 | N12: 0 | O12: 0 | P12: 0 | Q12: 0 | R12: 0
A13: Total Revenue | I13: 9849.411765 | J13: =SUM(J10:J12) -> 0 | M13: 0 | N13: =SUM(N10:N12) -> 0 | O13: 9849.411765 | P13: =SUM(P10:P12) -> 0 | Q13: 984941.1765 | R13: =SUM(R10:R12) -> 0
Q14: Enterprise | R14: Enterprise
A15: VARIABLE COSTS | D15: Quantity | E15: Quantity | F15: Units | G15: $/Unit | H15: $/Unit | I15: Total | J15: Total | K15: Share | L15: Share | M15: Landlord | N15: Landlord | O15: Tenant | P15: Tenant | Q15: Total | R15: Total
A16: Production Costs
B17: Custom
C18: Topping and Hedging | D18: 1 | F18: Acre | G18: 120 | I18: 120 | J18: =E18*H18 -> 0 | K18: 0 | M18: 0 | N18: =J18*L18 -> 0 | O18: 120 | P18: =+J18-N18 -> 0 | Q18: 12000 | R18: =+J18*E$7 -> 0
C19: Foliar Application | D19: 7 | F19: Acre | G19: 50 | I19: 350 | J19: 0 | K19: 0 | M19: 0 | N19: 0 | O19: 350 | P19: 0 | Q19: 35000 | R19: 0
B20: Fertilizer
C21: Urea (46%) | D21: 2.5 | F21: CTW | G21: 26.1 | I21: 65.25 | J21: 0 | K21: 0 | M21: 0 | N21: 0 | O21: 65.25 | P21: 0 | Q21: 6525 | R21: 0
C22: Foliar 3-18-18 | D22: 1 | F22: Gallon | G22: 34 | I22: 34 | J22: 0 | K22: 0 | M22: 0 | N22: 0 | O22: 34 | P22: 0 | Q22: 3400 | R22: 0
C23: Foliar Zn | D23: 2 | F23: Pound | G23: 3.4998 | I23: 6.9996 | J23: 0 | K23: 0 | M23: 0 | N23: 0 | O23: 6.9996 | P23: 0 | Q23: 699.96 | R23: 0
C24: Foliar 18-8-5 | D24: 2 | F24: Gallon | G24: 15.5 | I24: 31 | J24: 0 | K24: 0 | M24: 0 | N24: 0 | O24: 31 | P24: 0 | Q24: 3100 | R24: 0
C25: Foliar N | D25: 5 | F25: Pound | G25: 0.61 | I25: 3.05 | J25: 0 | K25: 0 | M25: 0 | N25: 0 | O25: 3.05 | P25: 0 | Q25: 305 | R25: 0
B26: Herbicide
C27: Simazine 4L | D27: 1.25 | F27: Gallon | G27: 38 | I27: 47.5 | J27: 0 | K27: 0 | M27: 0 | N27: 0 | O27: 47.5 | P27: 0 | Q27: 4750 | R27: 0
C28: Krovar I 80 DF | D28: 3 | F28: Pound | G28: 17.68 | I28: 53.04 | J28: 0 | K28: 0 | M28: 0 | N28: 0 | O28: 53.04 | P28: 0 | Q28: 5304 | R28: 0
C29: Glyphosate | D29: 20 | F29: Pint | G29: 6.25 | I29: 125 | J29: 0 | K29: 0 | M29: 0 | N29: 0 | O29: 125 | P29: 0 | Q29: 12500 | R29: 0
B30: Insecticide
C31: Movento | D31: 30 | F31: Ounce | G31: 7.788671875 | I31: 233.6601562 | J31: 0 | K31: 0 | M31: 0 | N31: 0 | O31: 233.6601562 | P31: 0 | Q31: 23366.01562 | R31: 0
C32: Micromite | D32: 18.8 | F32: Ounce | G32: 1.6328125 | I32: 30.696875 | J32: 0 | K32: 0 | M32: 0 | N32: 0 | O32: 30.696875 | P32: 0 | Q32: 3069.6875 | R32: 0
C33: Vendex | D33: 8 | F33: Pound | G33: 60.69 | I33: 485.52 | J33: 0 | K33: 0 | M33: 0 | N33: 0 | O33: 485.52 | P33: 0 | Q33: 48552 | R33: 0
C34: Agri-Mek SC | D34: 0.32 | F34: Gallon | G34: 89.95 | I34: 28.784 | J34: 0 | K34: 0 | M34: 0 | N34: 0 | O34: 28.784 | P34: 0 | Q34: 2878.4 | R34: 0
C35: Actara | D35: 11 | F35: Ounce | G35: 4.331666667 | I35: 47.64833333 | J35: 0 | K35: 0 | M35: 0 | N35: 0 | O35: 47.64833333 | P35: 0 | Q35: 4764.833333 | R35: 0
C36: Sivanto | D36: 10 | F36: Ounce | G36: 3.280859375 | I36: 32.80859375 | J36: 0 | K36: 0 | M36: 0 | N36: 0 | O36: 32.80859375 | P36: 0 | Q36: 3280.859375 | R36: 0
C37: Esteem | D37: 10 | F37: Ounce | G37: 9.919 | I37: 99.19 | J37: 0 | K37: 0 | M37: 0 | N37: 0 | O37: 99.19 | P37: 0 | Q37: 9919 | R37: 0
C38: Danitol | D38: 16 | F38: Ounce | G38: 1.0078125 | I38: 16.125 | J38: 0 | K38: 0 | M38: 0 | N38: 0 | O38: 16.125 | P38: 0 | Q38: 1612.5 | R38: 0
C39: Admire Pro | D39: 0.44 | F39: Pint | G39: 26.28 | I39: 11.5632 | J39: 0 | K39: 0 | M39: 0 | N39: 0 | O39: 11.5632 | P39: 0 | Q39: 1156.32 | R39: 0
B40: Miscellaneous
C41: Citrus Assessment | D41: 1 | F41: Acre | G41: 5 | I41: 5 | J41: 0 | K41: 0 | M41: 0 | N41: 0 | O41: 5 | P41: 0 | Q41: 500 | R41: 0
C42: Insurance, Grapefruit | D42: 1 | F42: Acre | G42: 128.6662703 | I42: 128.6662703 | J42: 0 | K42: 0 | M42: 0 | N42: 0 | O42: 128.6662703 | P42: 0 | Q42: 12866.62703 | R42: 0
B43: Seed
C44: Young Citrus Trees | D44: 3 | F44: Tree | G44: 15 | I44: 45 | J44: 0 | K44: 0 | M44: 0 | N44: 0 | O44: 45 | P44: 0 | Q44: 4500 | R44: 0
C45: Layout and Plant | D45: 3 | F45: Tree | G45: 5 | I45: 15 | J45: 0 | K45: 0 | M45: 0 | N45: 0 | O45: 15 | P45: 0 | Q45: 1500 | R45: 0
C46: Removal Citrus | D46: 3 | F46: Tree | G46: 25 | I46: 75 | J46: 0 | K46: 0 | M46: 0 | N46: 0 | O46: 75 | P46: 0 | Q46: 7500 | R46: 0
C47: Treatment Removed citrus | D47: 3 | F47: Tree | G47: 5 | I47: 15 | J47: 0 | K47: 0 | M47: 0 | N47: 0 | O47: 15 | P47: 0 | Q47: 1500 | R47: 0
C48: Tree Wrap/Unwrap | D48: 3 | F48: Tree | G48: 2 | I48: 6 | J48: 0 | K48: 0 | M48: 0 | N48: 0 | O48: 6 | P48: 0 | Q48: 600 | R48: 0
B49: Other Chemicals
C50: Surfactant | D50: 7.98 | F50: Pint | G50: 7.475 | I50: 59.6505 | J50: 0 | K50: 0 | M50: 0 | N50: 0 | O50: 59.6505 | P50: 0 | Q50: 5965.05 | R50: 0
B51: Other Labor
C52: Costum Soil Fert. Citrus | D52: 6 | F52: Hour | G52: 15 | I52: 90 | J52: 0 | K52: 0 | M52: 0 | N52: 0 | O52: 90 | P52: 0 | Q52: 9000 | R52: 0
C53: Unallocated Labor | D53: 1 | F53: Hour | G53: 15 | I53: 15 | J53: 0 | K53: 0 | M53: 0 | N53: 0 | O53: 15 | P53: 0 | Q53: 1500 | R53: 0
B54: Fungicides
C55: Quadris Top | D55: 10 | F55: Ounce | G55: 1.562109375 | I55: 15.62109375 | J55: 0 | K55: 0 | M55: 0 | N55: 0 | O55: 15.62109375 | P55: 0 | Q55: 1562.109375 | R55: 0
C56: GEM | D56: 3.8 | F56: Ounce | G56: 8.1234375 | I56: 30.8690625 | J56: 0 | K56: 0 | M56: 0 | N56: 0 | O56: 30.8690625 | P56: 0 | Q56: 3086.90625 | R56: 0
C57: Headline | D57: 24 | F57: Ounce | G57: 1.859375 | I57: 44.625 | J57: 0 | K57: 0 | M57: 0 | N57: 0 | O57: 44.625 | P57: 0 | Q57: 4462.5 | R57: 0
D58: 16 | G58: 3.29125 | I58: 52.66 | J58: 0 | K58: 0 | M58: 0 | N58: 0 | O58: 52.66 | P58: 0 | Q58: 5266 | R58: 0
D59: 0 | G59: 0 | I59: 0 | J59: 0 | K59: 0 | M59: 0 | N59: 0 | O59: 0 | P59: 0 | Q59: 0 | R59: 0
D60: 0 | G60: 0 | I60: 0 | J60: =E60*H60 -> 0 | K60: 0 | M60: 0 | N60: =J60*L60 -> 0 | O60: 0 | P60: =+J60-N60 -> 0 | Q60: 0 | R60: =+J60*E$7 -> 0
B61: Irrigation
C62: Water Cost | D62: 4 | F62: Acre/Foot | G62: 21 | I62: 84 | J62: =E62*H62 -> 0 | K62: 0 | M62: 0 | N62: =J62*L62 -> 0 | O62: 84 | P62: =+J62-N62 -> 0 | Q62: 8400 | R62: =+J62*E$7 -> 0
C63: Irrigation Labor | D63: 14 | F63: Hour | G63: 17.5 | I63: 245 | J63: 0 | K63: 0 | M63: 0 | N63: 0 | O63: 245 | P63: 0 | Q63: 24500 | R63: 0
B64: Machinery Labor
C65: Tractors/Self-Propelled | D65: 0.8 | F65: Hour | G65: 17.21 | I65: 13.768 | J65: =E65*H65 -> 0 | K65: 0 | M65: 0 | N65: =J65*L65 -> 0 | O65: 13.768 | P65: =+J65-N65 -> 0 | Q65: 1376.8 | R65: =+J65*E$7 -> 0
C66: Other Labor | D66: 0.4 | F66: Hour | G66: 17.21 | I66: 6.884 | J66: =E66*H66 -> 0 | K66: 0 | M66: 0 | N66: =J66*L66 -> 0 | O66: 6.884 | P66: =+J66-N66 -> 0 | Q66: 688.4 | R66: =+J66*E$7 -> 0
B68: Diesel Fuel
C69: Pickup/General Use Equipment | D69: 1 | F69: Acre | G69: 0 | I69: 0 | J69: =E69*H69 -> 0 | K69: 0 | M69: 0 | N69: =J69*L69 -> 0 | O69: 0 | P69: =+J69-N69 -> 0 | Q69: 0 | R69: =+J69*E$7 -> 0
C70: Tractors/Self-Propelled | D70: 3.66 | F70: Gallon | G70: 3.6 | I70: 13.176 | J70: =E70*H70 -> 0 | K70: 0 | M70: 0 | N70: =J70*L70 -> 0 | O70: 13.176 | P70: =+J70-N70 -> 0 | Q70: 1317.6 | R70: =+J70*E$7 -> 0
B72: Gasoline
C73: Pickup/General Use Equipment | D73: 1 | F73: Acre | G73: 0 | I73: 0 | J73: =E73*H73 -> 0 | K73: 0 | M73: 0 | N73: =J73*L73 -> 0 | O73: 0 | P73: =+J73-N73 -> 0 | Q73: 0 | R73: =+J73*E$7 -> 0
C74: Tractors/Self-Propelled | D74: 0 | F74: Gallon | G74: 3.15 | I74: 0 | J74: =E74*H74 -> 0 | K74: 0 | M74: 0 | N74: =J74*L74 -> 0 | O74: 0 | P74: =+J74-N74 -> 0 | Q74: 0 | R74: =+J74*E$7 -> 0
B76: Repairs & Maintenance
C77: Pickup/General Use Equipment | D77: 1 | F77: Acre | G77: 0 | I77: 0 | J77: =E77*H77 -> 0 | K77: 0 | M77: 0 | N77: =J77*L77 -> 0 | O77: 0 | P77: =+J77-N77 -> 0 | Q77: 0 | R77: =+J77*E$7 -> 0
C78: Irrigation Equipment | D78: 1 | F78: Acre | G78: 0 | I78: 0 | J78: 0 | K78: 0 | M78: 0 | N78: 0 | O78: 0 | P78: 0 | Q78: 0 | R78: 0
C79: Tractors/Self-Propelled | D79: 1 | F79: Acre | G79: 8.785121309 | I79: 8.785121309 | J79: 0 | K79: 0 | M79: 0 | N79: 0 | O79: 8.785121309 | P79: 0 | Q79: 878.5121309 | R79: 0
C80: Implements | D80: 1 | F80: Acre | G80: 2.85698064 | I80: 2.85698064 | J80: 0 | K80: 0 | M80: 0 | N80: 0 | O80: 2.85698064 | P80: 0 | Q80: 285.698064 | R80: 0
I81: 0 | J81: 0 | K81: 0 | M81: 0 | N81: 0 | O81: 0 | P81: 0 | Q81: 0 | R81: 0
I82: 0 | J82: 0 | K82: 0 | M82: 0 | N82: 0 | O82: 0 | P82: 0 | Q82: 0 | R82: 0
B83: Interest on Credit Line | G83: 0.085 | I83: 129.4063368 | J83: =+SUM(J17:J82)/2*H83 -> 0 | M83: 0 | N83: =+SUM(N17:N82)/2*L83 -> 0 | O83: 129.4063368 | P83: =+SUM(P17:P82)/2*L83 -> 0 | Q83: 12940.63368 | R83: =+J83*E$7 -> 0
A84: Total Variable Costs | I84: 2923.804124 | J84: =SUM(J18:J83) -> 0 | M84: 0 | N84: =SUM(N18:N83) -> 0 | O84: 2923.804124 | P84: =SUM(P18:P83) -> 0 | Q84: 292380.4124 | R84: =SUM(R18:R83) -> 0
A85: Planned Returns Above Variable Costs: | I85: 6925.607641 | J85: =+J13-J84 -> 0 | M85: 0 | N85: =+N13-N84 -> 0 | O85: 6925.607641 | P85: =+P13-P84 -> 0 | Q85: 692560.7641 | R85: =+R13-R84 -> 0
B86: Breakeven Price to Cover Variable Costs | G86: 146.1902062 | H86: =IF(E10=0,"n/a",(YVarExp-(YTotExp+YTotRet-J10))/E10) -> n/a | I86: Ton
Q87: Enterprise | R87: Enterprise
A88: FIXED COSTS | D88: Quantity | E88: Quantity | F88: Units | G88: $/Unit | H88: $/Unit | I88: Total | J88: Total | K88: Share | L88: Share | M88: Landlord | N88: Landlord | O88: Tenant | P88: Tenant | Q88: Total | R88: Total
B89: Machinery Depreciation
C90: Tractors/Self-Propelled | D90: 1 | F90: Acre | G90: 9.077958686 | I90: 9.077958686 | J90: =E90*H90 -> 0 | K90: 0 | M90: 0 | N90: =J90*L90 -> 0 | O90: 9.077958686 | P90: =+J90-N90 -> 0 | Q90: 907.7958686 | R90: =+J90*E$7 -> 0
C91: Implements | D91: 1 | F91: Acre | G91: 3.04750103 | I91: 3.04750103 | J91: 0 | K91: 0 | M91: 0 | N91: =J91*L91 -> 0 | O91: 3.04750103 | P91: 0 | Q91: 304.750103 | R91: 0
B92: Equipment Investment
C93: Tractors/Self-Propelled | D93: 70.72022654 | F93: Dollars | G93: 0.085 | I93: 6.011219256 | J93: =E93*H93 -> 0 | K93: 0 | M93: 0 | N93: =J93*L93 -> 0 | O93: 6.011219256 | P93: =+J93-N93 -> 0 | Q93: 601.1219256 | R93: =+J93*E$7 -> 0
C94: Implements | D94: 13.03653218 | F94: Dollars | G94: 0.085 | I94: 1.108105236 | J94: 0 | K94: 0 | M94: 0 | N94: =J94*L94 -> 0 | O94: 1.108105236 | P94: 0 | Q94: 110.8105236 | R94: 0
B95: Salaried Labor | D95: 1 | F95: Acre | G95: 0 | I95: 0 | J95: 0 | K95: 0 | M95: 0 | N95: =J95*L95 -> 0 | O95: 0 | P95: =+J95-N95 -> 0 | Q95: 0 | R95: =+J95*E$7 -> 0
B96: Management Fee, Owner/Operator Labor | D96: 1 | F96: Acre | G96: 0 | I96: 0 | J96: 0 | K96: 0 | M96: 0 | N96: 0 | O96: 0 | P96: 0 | Q96: 0 | R96: 0
B97: Allocated Establishment Cost | D97: 1 | F97: Acre | G97: 142.3995067 | I97: 142.3995067 | J97: 0 | K97: 0 | M97: 0 | N97: 0 | O97: 142.3995067 | P97: 0 | Q97: 14239.95067 | R97: 0
B98: Land Cost, Orchard | D98: 1 | F98: Acre | G98: 100 | I98: 100 | J98: 0 | K98: 0 | M98: 0 | N98: 0 | O98: 100 | P98: 0 | Q98: 10000 | R98: 0
B99: Property Taxes | D99: 1 | F99: Acre | G99: 0 | I99: 0 | J99: 0 | K99: 0 | M99: 0 | N99: 0 | O99: 0 | P99: 0 | Q99: 0 | R99: 0
B100: Whole Farm Insurance | D100: 1 | F100: Acre | G100: 0 | I100: 0 | J100: 0 | K100: 0 | M100: 0 | N100: 0 | O100: 0 | P100: 0 | Q100: 0 | R100: 0
D101: 1 | G101: 0 | I101: 0 | J101: 0 | K101: 0 | M101: 0 | N101: 0 | O101: 0 | P101: 0 | Q101: 0 | R101: 0
D102: 1 | G102: 0 | I102: 0 | J102: =E102*H102 -> 0 | K102: 0 | M102: 0 | N102: 0 | O102: 0 | P102: 0 | Q102: 0 | R102: 0
A103: Total Fixed Costs | I103: 261.6442909 | J103: =+SUM(J90:J102) -> 0 | M103: 0 | N103: =+SUM(N90:N102) -> 0 | O103: 261.6442909 | P103: =+SUM(P90:P102) -> 0 | Q103: 26164.42909 | R103: =+SUM(R90:R102) -> 0
A104: Total Specified Costs | I104: 3185.448415 | J104: =+J84+J103 -> 0 | M104: 0 | N104: =+N84+N103 -> 0 | O104: 3185.448415 | P104: =+P84+P103 -> 0 | Q104: 318544.8415 | R104: =+R84+R103 -> 0
A106: Returns Above Specified Costs | I106: 6663.96335 | J106: =+J13-J104 -> 0 | M106: 0 | N106: =+N13-N104 -> 0 | O106: 6663.96335 | P106: =+P13-P104 -> 0 | Q106: 666396.335 | R106: =+R13-R104 -> 0
A108: Breakeven Price to Cover Total Costs | G108: 159.2724207 | H108: =IF(E10=0,"n/a",(YTotExp-(YTotExp+YTotRet-J10))/E10) -> n/a | I108: Ton
D110: Example Breakeven Prices
B111: Example | C111: Example | D111: To Cover | G111: To Cover
B112: Yield | C112: Yield | D112: Variable | G112: Total
B113: Percent | C113: Ton | D113: Costs | G113: Costs
B114: 0.75 | C114: 15 | D114: 194.9202749 | G114: 212.3632276
B115: 0.9 | C115: 18 | D115: 162.4335624 | G115: 176.9693564
B116: 1 | C116: 20 | D116: 146.1902062 | G116: 159.2724207
B117: 1.1 | C117: 22 | D117: 132.9001874 | G117: 144.7931098
B118: 1.25 | C118: 25 | D118: 116.9521649 | G118: 127.4179366
A120: Developed by Manuel Garcia, Assistant Professor and Extension Specialist, Texas A&M AgriLife Extension, 956-968-5581
A122: Information presented is prepared solely as a general guide and not intended to recognize or predict the costs and returns from any one operation. Brand names are mentioned only as examples and imply no endorsement.

Sheet OrangesNavel
A1: Projections for Planning Purposes Only -- Not to be Used without Updating
A2: 2025 Estimated Costs and Returns per Acre
A3: Oranges, Early Orange, Mature Orchard, Flood Irrigated, Rio Grande Valley
A4: Enter your name for this budget in the cell above.
A5: Enter Your Values in the cells highlighed in MAROON.
E6: Your Acres | R6: Your
C7: Crop Acres | D7: 100 | L7: Your | Q7: Enterprise | R7: Enterprise
E8: Your | H8: Your | I8: Cash | J8: Your | K8: Landlord | L8: Landlord | N8: Your | P8: Your | Q8: Total | R8: Total
A9: REVENUE | D9: Quantity | E9: Quantity | F9: Units | G9: $/Unit | H9: $/Unit | I9: Total | J9: Total | K9: Share | L9: Share | M9: Landlord | N9: Landlord | O9: Tenant | P9: Tenant | Q9: (100 acres) | R9: ="(" & E7 & " acres)" -> ( acres)
B10: Early Oranges | D10: 18 | F10: Ton | G10: 347.2941176 | I10: 6251.294118 | J10: =E10*H10 -> 0 | K10: 0 | M10: 0 | N10: =J10*L10 -> 0 | O10: 6251.294118 | P10: =+J10-N10 -> 0 | Q10: 625129.4118 | R10: =+J10*E$7 -> 0
D11: 0 | G11: 0 | I11: 0 | J11: 0 | K11: 0 | M11: 0 | N11: 0 | O11: 0 | P11: =+J11-N11 -> 0 | Q11: 0 | R11: 0
D12: 0 | G12: 0 | I12: 0 | J12: 0 | K12: 0 | M12: 0 | N12: 0 | O12: 0 | P12: 0 | Q12: 0 | R12: 0
A13: Total Revenue | I13: 6251.294118 | J13: =SUM(J10:J12) -> 0 | M13: 0 | N13: =SUM(N10:N12) -> 0 | O13: 6251.294118 | P13: =SUM(P10:P12) -> 0 | Q13: 625129.4118 | R13: =SUM(R10:R12) -> 0
Q14: Enterprise | R14: Enterprise
A15: VARIABLE COSTS | D15: Quantity | E15: Quantity | F15: Units | G15: $/Unit | H15: $/Unit | I15: Total | J15: Total | K15: Share | L15: Share | M15: Landlord | N15: Landlord | O15: Tenant | P15: Tenant | Q15: Total | R15: Total
A16: Production Costs
B17: Custom
C18: Foliar Application | D18: 7 | F18: Acre | G18: 50 | I18: 350 | J18: =E18*H18 -> 0 | K18: 0 | M18: 0 | N18: =J18*L18 -> 0 | O18: 350 | P18: =+J18-N18 -> 0 | Q18: 35000 | R18: =+J18*E$7 -> 0
C19: Topping and Hedging | D19: 1 | F19: Acre | G19: 120 | I19: 120 | J19: 0 | K19: 0 | M19: 0 | N19: 0 | O19: 120 | P19: 0 | Q19: 12000 | R19: 0
B20: Fertilizer
C21: Urea (46%) | D21: 2.5 | F21: CTW | G21: 26.1 | I21: 65.25 | J21: 0 | K21: 0 | M21: 0 | N21: 0 | O21: 65.25 | P21: 0 | Q21: 6525 | R21: 0
C22: Foliar 3-18-18 | D22: 1 | F22: Gallon | G22: 34 | I22: 34 | J22: 0 | K22: 0 | M22: 0 | N22: 0 | O22: 34 | P22: 0 | Q22: 3400 | R22: 0
C23: Foliar Zn | D23: 2 | F23: Pound | G23: 3.4998 | I23: 6.9996 | J23: 0 | K23: 0 | M23: 0 | N23: 0 | O23: 6.9996 | P23: 0 | Q23: 699.96 | R23: 0
C24: Foliar 18-8-5 | D24: 2 | F24: Gallon | G24: 15.5 | I24: 31 | J24: 0 | K24: 0 | M24: 0 | N24: 0 | O24: 31 | P24: 0 | Q24: 3100 | R24: 0
C25: Foliar N | D25: 5 | F25: Pound | G25: 0.61 | I25: 3.05 | J25: 0 | K25: 0 | M25: 0 | N25: 0 | O25: 3.05 | P25: 0 | Q25: 305 | R25: 0
B26: Herbicide
C27: Simazine 4L | D27: 1.25 | F27: Gallon | G27: 38 | I27: 47.5 | J27: 0 | K27: 0 | M27: 0 | N27: 0 | O27: 47.5 | P27: 0 | Q27: 4750 | R27: 0
C28: Krovar I 80 DF | D28: 3 | F28: Pound | G28: 17.68 | I28: 53.04 | J28: 0 | K28: 0 | M28: 0 | N28: 0 | O28: 53.04 | P28: 0 | Q28: 5304 | R28: 0
C29: Glyphosate | D29: 20 | F29: Pint | G29: 6.25 | I29: 125 | J29: 0 | K29: 0 | M29: 0 | N29: 0 | O29: 125 | P29: 0 | Q29: 12500 | R29: 0
B30: Insecticide
C31: Movento | D31: 30 | F31: Ounce | G31: 7.788671875 | I31: 233.6601562 | J31: 0 | K31: 0 | M31: 0 | N31: 0 | O31: 233.6601562 | P31: 0 | Q31: 23366.01562 | R31: 0
C32: Micromite | D32: 18.8 | F32: Ounce | G32: 1.6328125 | I32: 30.696875 | J32: 0 | K32: 0 | M32: 0 | N32: 0 | O32: 30.696875 | P32: 0 | Q32: 3069.6875 | R32: 0
C33: Vendex | D33: 8 | F33: Pound | G33: 60.69 | I33: 485.52 | J33: 0 | K33: 0 | M33: 0 | N33: 0 | O33: 485.52 | P33: 0 | Q33: 48552 | R33: 0
C34: Agri-Mek SC | D34: 0.32 | F34: Gallon | G34: 89.95 | I34: 28.784 | J34: 0 | K34: 0 | M34: 0 | N34: 0 | O34: 28.784 | P34: 0 | Q34: 2878.4 | R34: 0
C35: Actara | D35: 11 | F35: Ounce | G35: 4.331666667 | I35: 47.64833333 | J35: 0 | K35: 0 | M35: 0 | N35: 0 | O35: 47.64833333 | P35: 0 | Q35: 4764.833333 | R35: 0
C36: Sivanto | D36: 10 | F36: Ounce | G36: 3.280859375 | I36: 32.80859375 | J36: 0 | K36: 0 | M36: 0 | N36: 0 | O36: 32.80859375 | P36: 0 | Q36: 3280.859375 | R36: 0
C37: Esteem | D37: 10 | F37: Ounce | G37: 13 | I37: 130 | J37: 0 | K37: 0 | M37: 0 | N37: 0 | O37: 130 | P37: 0 | Q37: 13000 | R37: 0
C38: Danitol | D38: 16 | F38: Ounce | G38: 1.0078125 | I38: 16.125 | J38: 0 | K38: 0 | M38: 0 | N38: 0 | O38: 16.125 | P38: 0 | Q38: 1612.5 | R38: 0
C39: Admire Pro | D39: 0.44 | F39: Pint | G39: 26.28 | I39: 11.5632 | J39: 0 | K39: 0 | M39: 0 | N39: 0 | O39: 11.5632 | P39: 0 | Q39: 1156.32 | R39: 0
B40: Miscellaneous
C41: Citrus Assessment | D41: 1 | F41: Acre | G41: 5 | I41: 5 | J41: 0 | K41: 0 | M41: 0 | N41: 0 | O41: 5 | P41: 0 | Q41: 500 | R41: 0
C42: Insurance, Oranges | D42: 1 | F42: Acre | G42: 121.2752025 | I42: 121.2752025 | J42: 0 | K42: 0 | M42: 0 | N42: 0 | O42: 121.2752025 | P42: 0 | Q42: 12127.52025 | R42: 0
B43: Seed
C44: Young Citrus Trees | D44: 4 | F44: Tree | G44: 15 | I44: 60 | J44: 0 | K44: 0 | M44: 0 | N44: 0 | O44: 60 | P44: 0 | Q44: 6000 | R44: 0
C45: Layout and Plant | D45: 4 | F45: Tree | G45: 5 | I45: 20 | J45: 0 | K45: 0 | M45: 0 | N45: 0 | O45: 20 | P45: 0 | Q45: 2000 | R45: 0
C46: Removal Citrus | D46: 4 | F46: Tree | G46: 25 | I46: 100 | J46: 0 | K46: 0 | M46: 0 | N46: 0 | O46: 100 | P46: 0 | Q46: 10000 | R46: 0
C47: Treatment Removed citrus | D47: 4 | F47: Tree | G47: 5 | I47: 20 | J47: 0 | K47: 0 | M47: 0 | N47: 0 | O47: 20 | P47: 0 | Q47: 2000 | R47: 0
C48: Tree Wrap/Unwrap | D48: 4 | F48: Tree | G48: 2 | I48: 8 | J48: 0 | K48: 0 | M48: 0 | N48: 0 | O48: 8 | P48: 0 | Q48: 800 | R48: 0
B49: Other Chemicals
C50: Surfactant | D50: 7.98 | F50: Pint | G50: 7.475 | I50: 59.6505 | J50: 0 | K50: 0 | M50: 0 | N50: 0 | O50: 59.6505 | P50: 0 | Q50: 5965.05 | R50: 0
B51: Other Labor
C52: Costum Soil Fert. Citrus | D52: 6 | F52: Hour | G52: 15 | I52: 90 | J52: 0 | K52: 0 | M52: 0 | N52: 0 | O52: 90 | P52: 0 | Q52: 9000 | R52: 0
C53: Unallocated Labor | D53: 1 | F53: Hour | G53: 15 | I53: 15 | J53: 0 | K53: 0 | M53: 0 | N53: 0 | O53: 15 | P53: 0 | Q53: 1500 | R53: 0
B54: Fungicides
C55: Quadris Top | D55: 10 | F55: Ounce | G55: 1.562109375 | I55: 15.62109375 | J55: 0 | K55: 0 | M55: 0 | N55: 0 | O55: 15.62109375 | P55: 0 | Q55: 1562.109375 | R55: 0
C56: GEM | D56: 3.8 | F56: Ounce | G56: 8.1234375 | I56: 30.8690625 | J56: 0 | K56: 0 | M56: 0 | N56: 0 | O56: 30.8690625 | P56: 0 | Q56: 3086.90625 | R56: 0
C57: Headline | D57: 24 | F57: Ounce | G57: 1.859375 | I57: 44.625 | J57: 0 | K57: 0 | M57: 0 | N57: 0 | O57: 44.625 | P57: 0 | Q57: 4462.5 | R57: 0
D58: 16 | G58: 3.29125 | I58: 52.66 | J58: 0 | K58: 0 | M58: 0 | N58: 0 | O58: 52.66 | P58: 0 | Q58: 5266 | R58: 0
D59: 0 | G59: 0 | I59: 0 | J59: 0 | K59: 0 | M59: 0 | N59: 0 | O59: 0 | P59: 0 | Q59: 0 | R59: 0
D60: 0 | G60: 0 | I60: 0 | J60: =E60*H60 -> 0 | K60: 0 | M60: 0 | N60: =J60*L60 -> 0 | O60: 0 | P60: =+J60-N60 -> 0 | Q60: 0 | R60: =+J60*E$7 -> 0
B61: Irrigation
C62: Water Cost | D62: 4 | F62: Acre/Foot | G62: 21 | I62: 84 | J62: =E62*H62 -> 0 | K62: 0 | M62: 0 | N62: =J62*L62 -> 0 | O62: 84 | P62: =+J62-N62 -> 0 | Q62: 8400 | R62: =+J62*E$7 -> 0
C63: Irrigation Labor | D63: 14 | F63: Hour | G63: 17.5 | I63: 245 | J63: 0 | K63: 0 | M63: 0 | N63: 0 | O63: 245 | P63: 0 | Q63: 24500 | R63: 0
B64: Machinery Labor
C65: Tractors/Self-Propelled | D65: 0.8 | F65: Hour | G65: 17.21 | I65: 13.768 | J65: =E65*H65 -> 0 | K65: 0 | M65: 0 | N65: =J65*L65 -> 0 | O65: 13.768 | P65: =+J65-N65 -> 0 | Q65: 1376.8 | R65: =+J65*E$7 -> 0
C66: Other Labor | D66: 0.4 | F66: Hour | G66: 17.21 | I66: 6.884 | J66: =E66*H66 -> 0 | K66: 0 | M66: 0 | N66: =J66*L66 -> 0 | O66: 6.884 | P66: =+J66-N66 -> 0 | Q66: 688.4 | R66: =+J66*E$7 -> 0
B68: Diesel Fuel
C69: Pickup/General Use Equipment | D69: 1 | F69: Acre | G69: 0 | I69: 0 | J69: =E69*H69 -> 0 | K69: 0 | M69: 0 | N69: =J69*L69 -> 0 | O69: 0 | P69: =+J69-N69 -> 0 | Q69: 0 | R69: =+J69*E$7 -> 0
C70: Tractors/Self-Propelled | D70: 3.66 | F70: Gallon | G70: 3.6 | I70: 13.176 | J70: =E70*H70 -> 0 | K70: 0 | M70: 0 | N70: =J70*L70 -> 0 | O70: 13.176 | P70: =+J70-N70 -> 0 | Q70: 1317.6 | R70: =+J70*E$7 -> 0
B72: Gasoline
C73: Pickup/General Use Equipment | D73: 1 | F73: Acre | G73: 0 | I73: 0 | J73: =E73*H73 -> 0 | K73: 0 | M73: 0 | N73: =J73*L73 -> 0 | O73: 0 | P73: =+J73-N73 -> 0 | Q73: 0 | R73: =+J73*E$7 -> 0
C74: Tractors/Self-Propelled | D74: 0 | F74: Gallon | G74: 3.15 | I74: 0 | J74: =E74*H74 -> 0 | K74: 0 | M74: 0 | N74: =J74*L74 -> 0 | O74: 0 | P74: =+J74-N74 -> 0 | Q74: 0 | R74: =+J74*E$7 -> 0
B76: Repairs & Maintenance
C77: Pickup/General Use Equipment | D77: 1 | F77: Acre | G77: 0 | I77: 0 | J77: =E77*H77 -> 0 | K77: 0 | M77: 0 | N77: =J77*L77 -> 0 | O77: 0 | P77: =+J77-N77 -> 0 | Q77: 0 | R77: =+J77*E$7 -> 0
C78: Irrigation Equipment | D78: 1 | F78: Acre | G78: 0 | I78: 0 | J78: 0 | K78: 0 | M78: 0 | N78: 0 | O78: 0 | P78: 0 | Q78: 0 | R78: 0
C79: Tractors/Self-Propelled | D79: 1 | F79: Acre | G79: 8.785121309 | I79: 8.785121309 | J79: 0 | K79: 0 | M79: 0 | N79: 0 | O79: 8.785121309 | P79: 0 | Q79: 878.5121309 | R79: 0
C80: Implements | D80: 1 | F80: Acre | G80: 2.85698064 | I80: 2.85698064 | J80: 0 | K80: 0 | M80: 0 | N80: 0 | O80: 2.85698064 | P80: 0 | Q80: 285.698064 | R80: 0
I81: 0 | J81: 0 | K81: 0 | M81: 0 | N81: 0 | O81: 0 | P81: 0 | Q81: 0 | R81: 0
I82: 0 | J82: 0 | K82: 0 | M82: 0 | N82: 0 | O82: 0 | P82: 0 | Q82: 0 | R82: 0
B83: Interest on Credit Line | G83: 0.085 | I83: 133.9169471 | J83: =+SUM(J17:J82)/2*H83 -> 0 | M83: 0 | N83: =+SUM(N17:N82)/2*L83 -> 0 | O83: 133.9169471 | P83: =+SUM(P17:P82)/2*L83 -> 0 | Q83: 13391.69471 | R83: =+J83*E$7 -> 0
A84: Total Variable Costs | I84: 3003.733666 | J84: =SUM(J18:J83) -> 0 | M84: 0 | N84: =SUM(N18:N83) -> 0 | O84: 3003.733666 | P84: =SUM(P18:P83) -> 0 | Q84: 300373.3666 | R84: =SUM(R18:R83) -> 0
A85: Planned Returns Above Variable Costs: | I85: 3247.560452 | J85: =+J13-J84 -> 0 | M85: 0 | N85: =+N13-N84 -> 0 | O85: 3247.560452 | P85: =+P13-P84 -> 0 | Q85: 324756.0452 | R85: =+R13-R84 -> 0
B86: Breakeven Price to Cover Variable Costs | G86: 166.8740926 | H86: =IF(E10=0,"n/a",(YVarExp-(YTotExp+YTotRet-J10))/E10) -> n/a | I86: Ton
Q87: Enterprise | R87: Enterprise
A88: FIXED COSTS | D88: Quantity | E88: Quantity | F88: Units | G88: $/Unit | H88: $/Unit | I88: Total | J88: Total | K88: Share | L88: Share | M88: Landlord | N88: Landlord | O88: Tenant | P88: Tenant | Q88: Total | R88: Total
B89: Machinery Depreciation
C90: Tractors/Self-Propelled | D90: 1 | F90: Acre | G90: 9.077958686 | I90: 9.077958686 | J90: =E90*H90 -> 0 | K90: 0 | M90: 0 | N90: =J90*L90 -> 0 | O90: 9.077958686 | P90: =+J90-N90 -> 0 | Q90: 907.7958686 | R90: =+J90*E$7 -> 0
C91: Implements | D91: 1 | F91: Acre | G91: 3.04750103 | I91: 3.04750103 | J91: 0 | K91: 0 | M91: 0 | N91: =J91*L91 -> 0 | O91: 3.04750103 | P91: 0 | Q91: 304.750103 | R91: 0
B92: Equipment Investment
C93: Tractors/Self-Propelled | D93: 70.72022654 | F93: Dollars | G93: 0.085 | I93: 6.011219256 | J93: =E93*H93 -> 0 | K93: 0 | M93: 0 | N93: =J93*L93 -> 0 | O93: 6.011219256 | P93: =+J93-N93 -> 0 | Q93: 601.1219256 | R93: =+J93*E$7 -> 0
C94: Implements | D94: 13.03653218 | F94: Dollars | G94: 0.085 | I94: 1.108105236 | J94: 0 | K94: 0 | M94: 0 | N94: =J94*L94 -> 0 | O94: 1.108105236 | P94: 0 | Q94: 110.8105236 | R94: 0
B95: Salaried Labor | D95: 1 | F95: Acre | G95: 0 | I95: 0 | J95: 0 | K95: 0 | M95: 0 | N95: =J95*L95 -> 0 | O95: 0 | P95: =+J95-N95 -> 0 | Q95: 0 | R95: =+J95*E$7 -> 0
B96: Management Fee, Owner/Operator Labor | D96: 1 | F96: Acre | G96: 0 | I96: 0 | J96: 0 | K96: 0 | M96: 0 | N96: 0 | O96: 0 | P96: 0 | Q96: 0 | R96: 0
B97: Allocated Establishment Cost | D97: 1 | F97: Acre | G97: 142.3995067 | I97: 142.3995067 | J97: 0 | K97: 0 | M97: 0 | N97: 0 | O97: 142.3995067 | P97: 0 | Q97: 14239.95067 | R97: 0
B98: Land Cost, Orchard | D98: 1 | F98: Acre | G98: 100 | I98: 100 | J98: 0 | K98: 0 | M98: 0 | N98: 0 | O98: 100 | P98: 0 | Q98: 10000 | R98: 0
B99: Property Taxes | D99: 1 | F99: Acre | G99: 0 | I99: 0 | J99: 0 | K99: 0 | M99: 0 | N99: 0 | O99: 0 | P99: 0 | Q99: 0 | R99: 0
B100: Whole Farm Insurance | D100: 1 | F100: Acre | G100: 0 | I100: 0 | J100: 0 | K100: 0 | M100: 0 | N100: 0 | O100: 0 | P100: 0 | Q100: 0 | R100: 0
D101: 1 | G101: 0 | I101: 0 | J101: 0 | K101: 0 | M101: 0 | N101: 0 | O101: 0 | P101: 0 | Q101: 0 | R101: 0
D102: 1 | G102: 0 | I102: 0 | J102: =E102*H102 -> 0 | K102: 0 | M102: 0 | N102: 0 | O102: 0 | P102: 0 | Q102: 0 | R102: 0
A103: Total Fixed Costs | I103: 261.6442909 | J103: =+SUM(J90:J102) -> 0 | M103: 0 | N103: =+SUM(N90:N102) -> 0 | O103: 261.6442909 | P103: =+SUM(P90:P102) -> 0 | Q103: 26164.42909 | R103: =+SUM(R90:R102) -> 0
A104: Total Specified Costs | I104: 3265.377957 | J104: =+J84+J103 -> 0 | M104: 0 | N104: =+N84+N103 -> 0 | O104: 3265.377957 | P104: =+P84+P103 -> 0 | Q104: 326537.7957 | R104: =+R84+R103 -> 0
A106: Returns Above Specified Costs | I106: 2985.916161 | J106: =+J13-J104 -> 0 | M106: 0 | N106: =+N13-N104 -> 0 | O106: 2985.916161 | P106: =+P13-P104 -> 0 | Q106: 298591.6161 | R106: =+R13-R104 -> 0
A108: Breakeven Price to Cover Total Costs | G108: 181.4098865 | H108: =IF(E10=0,"n/a",(YTotExp-(YTotExp+YTotRet-J10))/E10) -> n/a | I108: Ton
D110: Example Breakeven Prices
B111: Example | C111: Example | D111: To Cover | G111: To Cover
B112: Yield | C112: Yield | D112: Variable | G112: Total
B113: Percent | C113: Ton | D113: Costs | G113: Costs
B114: 0.75 | C114: 13.5 | D114: 222.4987901 | G114: 241.8798487
B115: 0.9 | C115: 16.2 | D115: 185.4156584 | G115: 201.5665406
B116: 1 | C116: 18 | D116: 166.8740926 | G116: 181.4098865
B117: 1.1 | C117: 19.8 | D117: 151.7037205 | G117: 164.9180786
B118: 1.25 | C118: 22.5 | D118: 133.499274 | G118: 145.1279092
A120: Developed by Manuel Garcia, Assistant Professor and Extension Specialist, Texas A&M AgriLife Extension, 956-968-5581
A122: Information presented is prepared solely as a general guide and not intended to recognize or predict the costs and returns from any one operation. Brand names are mentioned only as examples and imply no endorsement.

Sheet OrangesValencias
A1: Projections for Planning Purposes Only -- Not to be Used without Updating
A2: 2025 Estimated Costs and Returns per Acre
A3: Oranges, Valencias, Mature Orchard, Flood Irrigated, Rio Grande Valley
A4: Enter your name for this budget in the cell above.
A5: Enter Your Values in the cells highlighed in MAROON.
E6: Your Acres | R6: Your
C7: Crop Acres | D7: 100 | L7: Your | Q7: Enterprise | R7: Enterprise
E8: Your | H8: Your | I8: Cash | J8: Your | K8: Landlord | L8: Landlord | N8: Your | P8: Your | Q8: Total | R8: Total
A9: REVENUE | D9: Quantity | E9: Quantity | F9: Units | G9: $/Unit | H9: $/Unit | I9: Total | J9: Total | K9: Share | L9: Share | M9: Landlord | N9: Landlord | O9: Tenant | P9: Tenant | Q9: (100 acres) | R9: ="(" & E7 & " acres)" -> ( acres)
B10: Oranges (Valencias) | D10: 18 | F10: Ton | G10: 367.7647059 | I10: 6619.764706 | J10: =E10*H10 -> 0 | K10: 0 | M10: 0 | N10: =J10*L10 -> 0 | O10: 6619.764706 | P10: =+J10-N10 -> 0 | Q10: 661976.4706 | R10: =+J10*E$7 -> 0
D11: 0 | G11: 0 | I11: 0 | J11: 0 | K11: 0 | M11: 0 | N11: 0 | O11: 0 | P11: =+J11-N11 -> 0 | Q11: 0 | R11: 0
D12: 0 | G12: 0 | I12: 0 | J12: 0 | K12: 0 | M12: 0 | N12: 0 | O12: 0 | P12: 0 | Q12: 0 | R12: 0
A13: Total Revenue | I13: 6619.764706 | J13: =SUM(J10:J12) -> 0 | M13: 0 | N13: =SUM(N10:N12) -> 0 | O13: 6619.764706 | P13: =SUM(P10:P12) -> 0 | Q13: 661976.4706 | R13: =SUM(R10:R12) -> 0
Q14: Enterprise | R14: Enterprise
A15: VARIABLE COSTS | D15: Quantity | E15: Quantity | F15: Units | G15: $/Unit | H15: $/Unit | I15: Total | J15: Total | K15: Share | L15: Share | M15: Landlord | N15: Landlord | O15: Tenant | P15: Tenant | Q15: Total | R15: Total
A16: Production Costs
B17: Custom
C18: Foliar Application | D18: 7 | F18: Acre | G18: 50 | I18: 350 | J18: =E18*H18 -> 0 | K18: 0 | M18: 0 | N18: =J18*L18 -> 0 | O18: 350 | P18: =+J18-N18 -> 0 | Q18: 35000 | R18: =+J18*E$7 -> 0
C19: Topping and Hedging | D19: 1 | F19: Acre | G19: 120 | I19: 120 | J19: 0 | K19: 0 | M19: 0 | N19: 0 | O19: 120 | P19: 0 | Q19: 12000 | R19: 0
B20: Fertilizer
C21: Urea (46%) | D21: 2.5 | F21: CTW | G21: 26.1 | I21: 65.25 | J21: 0 | K21: 0 | M21: 0 | N21: 0 | O21: 65.25 | P21: 0 | Q21: 6525 | R21: 0
C22: Foliar 3-18-18 | D22: 1 | F22: Gallon | G22: 34 | I22: 34 | J22: 0 | K22: 0 | M22: 0 | N22: 0 | O22: 34 | P22: 0 | Q22: 3400 | R22: 0
C23: Foliar Zn | D23: 2 | F23: Pound | G23: 3.4998 | I23: 6.9996 | J23: 0 | K23: 0 | M23: 0 | N23: 0 | O23: 6.9996 | P23: 0 | Q23: 699.96 | R23: 0
C24: Foliar 18-8-5 | D24: 2 | F24: Gallon | G24: 15.5 | I24: 31 | J24: 0 | K24: 0 | M24: 0 | N24: 0 | O24: 31 | P24: 0 | Q24: 3100 | R24: 0
C25: Foliar N | D25: 5 | F25: Pound | G25: 0.61 | I25: 3.05 | J25: 0 | K25: 0 | M25: 0 | N25: 0 | O25: 3.05 | P25: 0 | Q25: 305 | R25: 0
B26: Herbicide
C27: Simazine 4L | D27: 1.25 | F27: Gallon | G27: 38 | I27: 47.5 | J27: 0 | K27: 0 | M27: 0 | N27: 0 | O27: 47.5 | P27: 0 | Q27: 4750 | R27: 0
C28: Krovar I 80 DF | D28: 3 | F28: Pound | G28: 17.68 | I28: 53.04 | J28: 0 | K28: 0 | M28: 0 | N28: 0 | O28: 53.04 | P28: 0 | Q28: 5304 | R28: 0
C29: Glyphosate | D29: 20 | F29: Pint | G29: 6.25 | I29: 125 | J29: 0 | K29: 0 | M29: 0 | N29: 0 | O29: 125 | P29: 0 | Q29: 12500 | R29: 0
B30: Insecticide
C31: Movento | D31: 30 | F31: Ounce | G31: 7.788671875 | I31: 233.6601562 | J31: 0 | K31: 0 | M31: 0 | N31: 0 | O31: 233.6601562 | P31: 0 | Q31: 23366.01562 | R31: 0
C32: Micromite | D32: 18.8 | F32: Ounce | G32: 1.6328125 | I32: 30.696875 | J32: 0 | K32: 0 | M32: 0 | N32: 0 | O32: 30.696875 | P32: 0 | Q32: 3069.6875 | R32: 0
C33: Vendex | D33: 8 | F33: Pound | G33: 60.69 | I33: 485.52 | J33: 0 | K33: 0 | M33: 0 | N33: 0 | O33: 485.52 | P33: 0 | Q33: 48552 | R33: 0
C34: Agri-Mek SC | D34: 0.32 | F34: Gallon | G34: 89.95 | I34: 28.784 | J34: 0 | K34: 0 | M34: 0 | N34: 0 | O34: 28.784 | P34: 0 | Q34: 2878.4 | R34: 0
C35: Actara | D35: 11 | F35: Ounce | G35: 4.331666667 | I35: 47.64833333 | J35: 0 | K35: 0 | M35: 0 | N35: 0 | O35: 47.64833333 | P35: 0 | Q35: 4764.833333 | R35: 0
C36: Sivanto | D36: 10 | F36: Ounce | G36: 3.280859375 | I36: 32.80859375 | J36: 0 | K36: 0 | M36: 0 | N36: 0 | O36: 32.80859375 | P36: 0 | Q36: 3280.859375 | R36: 0
C37: Esteem | D37: 10 | F37: Ounce | G37: 13 | I37: 130 | J37: 0 | K37: 0 | M37: 0 | N37: 0 | O37: 130 | P37: 0 | Q37: 13000 | R37: 0
C38: Danitol | D38: 16 | F38: Ounce | G38: 1.0078125 | I38: 16.125 | J38: 0 | K38: 0 | M38: 0 | N38: 0 | O38: 16.125 | P38: 0 | Q38: 1612.5 | R38: 0
C39: Admire Pro | D39: 0.44 | F39: Pint | G39: 26.28 | I39: 11.5632 | J39: 0 | K39: 0 | M39: 0 | N39: 0 | O39: 11.5632 | P39: 0 | Q39: 1156.32 | R39: 0
B40: Miscellaneous
C41: Citrus Assessment | D41: 1 | F41: Acre | G41: 5 | I41: 5 | J41: 0 | K41: 0 | M41: 0 | N41: 0 | O41: 5 | P41: 0 | Q41: 500 | R41: 0
C42: Insurance, Oranges | D42: 1 | F42: Acre | G42: 121.2752025 | I42: 121.2752025 | J42: 0 | K42: 0 | M42: 0 | N42: 0 | O42: 121.2752025 | P42: 0 | Q42: 12127.52025 | R42: 0
B43: Seed
C44: Young Citrus Trees | D44: 4 | F44: Tree | G44: 15 | I44: 60 | J44: 0 | K44: 0 | M44: 0 | N44: 0 | O44: 60 | P44: 0 | Q44: 6000 | R44: 0
C45: Layout and Plant | D45: 4 | F45: Tree | G45: 5 | I45: 20 | J45: 0 | K45: 0 | M45: 0 | N45: 0 | O45: 20 | P45: 0 | Q45: 2000 | R45: 0
C46: Removal Citrus | D46: 4 | F46: Tree | G46: 25 | I46: 100 | J46: 0 | K46: 0 | M46: 0 | N46: 0 | O46: 100 | P46: 0 | Q46: 10000 | R46: 0
C47: Treatment Removed citrus | D47: 4 | F47: Tree | G47: 5 | I47: 20 | J47: 0 | K47: 0 | M47: 0 | N47: 0 | O47: 20 | P47: 0 | Q47: 2000 | R47: 0
C48: Tree Wrap/Unwrap | D48: 4 | F48: Tree | G48: 2 | I48: 8 | J48: 0 | K48: 0 | M48: 0 | N48: 0 | O48: 8 | P48: 0 | Q48: 800 | R48: 0
B49: Fungicides
C50: Quadris Top | D50: 10 | F50: Ounce | G50: 1.562109375 | I50: 15.62109375 | J50: 0 | K50: 0 | M50: 0 | N50: 0 | O50: 15.62109375 | P50: 0 | Q50: 1562.109375 | R50: 0
C51: GEM | D51: 3.8 | F51: Ounce | G51: 8.1234375 | I51: 30.8690625 | J51: 0 | K51: 0 | M51: 0 | N51: 0 | O51: 30.8690625 | P51: 0 | Q51: 3086.90625 | R51: 0
C52: Headline | D52: 24 | F52: Ounce | G52: 1.859375 | I52: 44.625 | J52: 0 | K52: 0 | M52: 0 | N52: 0 | O52: 44.625 | P52: 0 | Q52: 4462.5 | R52: 0
C53: Pristine | D53: 16 | F53: Ounce | G53: 3.29125 | I53: 52.66 | J53: 0 | K53: 0 | M53: 0 | N53: 0 | O53: 52.66 | P53: 0 | Q53: 5266 | R53: 0
B54: Other Labor
C55: Costum Soil Fert. Citrus | D55: 6 | F55: Hour | G55: 15 | I55: 90 | J55: 0 | K55: 0 | M55: 0 | N55: 0 | O55: 90 | P55: 0 | Q55: 9000 | R55: 0
C56: Unallocated Labor | D56: 1 | F56: Hour | G56: 15 | I56: 15 | J56: 0 | K56: 0 | M56: 0 | N56: 0 | O56: 15 | P56: 0 | Q56: 1500 | R56: 0
B57: Other Chemicals
D58: 7.98 | G58: 7.475 | I58: 59.6505 | J58: 0 | K58: 0 | M58: 0 | N58: 0 | O58: 59.6505 | P58: 0 | Q58: 5965.05 | R58: 0
D59: 0 | G59: 0 | I59: 0 | J59: 0 | K59: 0 | M59: 0 | N59: 0 | O59: 0 | P59: 0 | Q59: 0 | R59: 0
D60: 0 | G60: 0 | I60: 0 | J60: =E60*H60 -> 0 | K60: 0 | M60: 0 | N60: =J60*L60 -> 0 | O60: 0 | P60: =+J60-N60 -> 0 | Q60: 0 | R60: =+J60*E$7 -> 0
B61: Irrigation
C62: Water Cost | D62: 4 | F62: Acre/Foot | G62: 21 | I62: 84 | J62: =E62*H62 -> 0 | K62: 0 | M62: 0 | N62: =J62*L62 -> 0 | O62: 84 | P62: =+J62-N62 -> 0 | Q62: 8400 | R62: =+J62*E$7 -> 0
C63: Irrigation Labor | D63: 4 | F63: Hour | G63: 17.5 | I63: 70 | J63: 0 | K63: 0 | M63: 0 | N63: 0 | O63: 70 | P63: 0 | Q63: 7000 | R63: 0
B64: Machinery Labor
C65: Tractors/Self-Propelled | D65: 0.8 | F65: Hour | G65: 17.21 | I65: 13.768 | J65: =E65*H65 -> 0 | K65: 0 | M65: 0 | N65: =J65*L65 -> 0 | O65: 13.768 | P65: =+J65-N65 -> 0 | Q65: 1376.8 | R65: =+J65*E$7 -> 0
C66: Other Labor | D66: 0.4 | F66: Hour | G66: 17.21 | I66: 6.884 | J66: =E66*H66 -> 0 | K66: 0 | M66: 0 | N66: =J66*L66 -> 0 | O66: 6.884 | P66: =+J66-N66 -> 0 | Q66: 688.4 | R66: =+J66*E$7 -> 0
B68: Diesel Fuel
C69: Pickup/General Use Equipment | D69: 1 | F69: Acre | G69: 0 | I69: 0 | J69: =E69*H69 -> 0 | K69: 0 | M69: 0 | N69: =J69*L69 -> 0 | O69: 0 | P69: =+J69-N69 -> 0 | Q69: 0 | R69: =+J69*E$7 -> 0
C70: Tractors/Self-Propelled | D70: 3.66 | F70: Gallon | G70: 3.6 | I70: 13.176 | J70: =E70*H70 -> 0 | K70: 0 | M70: 0 | N70: =J70*L70 -> 0 | O70: 13.176 | P70: =+J70-N70 -> 0 | Q70: 1317.6 | R70: =+J70*E$7 -> 0
B72: Gasoline
C73: Pickup/General Use Equipment | D73: 1 | F73: Acre | G73: 0 | I73: 0 | J73: =E73*H73 -> 0 | K73: 0 | M73: 0 | N73: =J73*L73 -> 0 | O73: 0 | P73: =+J73-N73 -> 0 | Q73: 0 | R73: =+J73*E$7 -> 0
C74: Tractors/Self-Propelled | D74: 0 | F74: Gallon | G74: 3.15 | I74: 0 | J74: =E74*H74 -> 0 | K74: 0 | M74: 0 | N74: =J74*L74 -> 0 | O74: 0 | P74: =+J74-N74 -> 0 | Q74: 0 | R74: =+J74*E$7 -> 0
B76: Repairs & Maintenance
C77: Pickup/General Use Equipment | D77: 1 | F77: Acre | G77: 0 | I77: 0 | J77: =E77*H77 -> 0 | K77: 0 | M77: 0 | N77: =J77*L77 -> 0 | O77: 0 | P77: =+J77-N77 -> 0 | Q77: 0 | R77: =+J77*E$7 -> 0
C78: Irrigation Equipment | D78: 1 | F78: Acre | G78: 0 | I78: 0 | J78: 0 | K78: 0 | M78: 0 | N78: 0 | O78: 0 | P78: 0 | Q78: 0 | R78: 0
C79: Tractors/Self-Propelled | D79: 1 | F79: Acre | G79: 8.785121309 | I79: 8.785121309 | J79: 0 | K79: 0 | M79: 0 | N79: 0 | O79: 8.785121309 | P79: 0 | Q79: 878.5121309 | R79: 0
C80: Implements | D80: 1 | F80: Acre | G80: 2.85698064 | I80: 2.85698064 | J80: 0 | K80: 0 | M80: 0 | N80: 0 | O80: 2.85698064 | P80: 0 | Q80: 285.698064 | R80: 0
I81: 0 | J81: 0 | K81: 0 | M81: 0 | N81: 0 | O81: 0 | P81: 0 | Q81: 0 | R81: 0
I82: 0 | J82: 0 | K82: 0 | M82: 0 | N82: 0 | O82: 0 | P82: 0 | Q82: 0 | R82: 0
B83: Interest on Credit Line | G83: 0.085 | I83: 126.9942444 | J83: =+SUM(J17:J82)/2*H83 -> 0 | M83: 0 | N83: =+SUM(N17:N82)/2*L83 -> 0 | O83: 126.9942444 | P83: =+SUM(P17:P82)/2*L83 -> 0 | Q83: 12699.42444 | R83: =+J83*E$7 -> 0
A84: Total Variable Costs | I84: 2821.810963 | J84: =SUM(J18:J83) -> 0 | M84: 0 | N84: =SUM(N18:N83) -> 0 | O84: 2821.810963 | P84: =SUM(P18:P83) -> 0 | Q84: 282181.0963 | R84: =SUM(R18:R83) -> 0
A85: Planned Returns Above Variable Costs: | I85: 3797.953743 | J85: =+J13-J84 -> 0 | M85: 0 | N85: =+N13-N84 -> 0 | O85: 3797.953743 | P85: =+P13-P84 -> 0 | Q85: 379795.3743 | R85: =+R13-R84 -> 0
B86: Breakeven Price to Cover Variable Costs | G86: 156.7672757 | H86: =IF(E10=0,"n/a",(YVarExp-(YTotExp+YTotRet-J10))/E10) -> n/a | I86: Ton
Q87: Enterprise | R87: Enterprise
A88: FIXED COSTS | D88: Quantity | E88: Quantity | F88: Units | G88: $/Unit | H88: $/Unit | I88: Total | J88: Total | K88: Share | L88: Share | M88: Landlord | N88: Landlord | O88: Tenant | P88: Tenant | Q88: Total | R88: Total
B89: Machinery Depreciation
C90: Tractors/Self-Propelled | D90: 1 | F90: Acre | G90: 9.077958686 | I90: 9.077958686 | J90: =E90*H90 -> 0 | K90: 0 | M90: 0 | N90: =J90*L90 -> 0 | O90: 9.077958686 | P90: =+J90-N90 -> 0 | Q90: 907.7958686 | R90: =+J90*E$7 -> 0
C91: Implements | D91: 1 | F91: Acre | G91: 3.04750103 | I91: 3.04750103 | J91: 0 | K91: 0 | M91: 0 | N91: =J91*L91 -> 0 | O91: 3.04750103 | P91: 0 | Q91: 304.750103 | R91: 0
B92: Equipment Investment
C93: Tractors/Self-Propelled | D93: 70.72022654 | F93: Dollars | G93: 0.085 | I93: 6.011219256 | J93: =E93*H93 -> 0 | K93: 0 | M93: 0 | N93: =J93*L93 -> 0 | O93: 6.011219256 | P93: =+J93-N93 -> 0 | Q93: 601.1219256 | R93: =+J93*E$7 -> 0
C94: Implements | D94: 13.03653218 | F94: Dollars | G94: 0.085 | I94: 1.108105236 | J94: 0 | K94: 0 | M94: 0 | N94: =J94*L94 -> 0 | O94: 1.108105236 | P94: 0 | Q94: 110.8105236 | R94: 0
B95: Salaried Labor | D95: 1 | F95: Acre | G95: 0 | I95: 0 | J95: 0 | K95: 0 | M95: 0 | N95: =J95*L95 -> 0 | O95: 0 | P95: =+J95-N95 -> 0 | Q95: 0 | R95: =+J95*E$7 -> 0
B96: Management Fee, Owner/Operator Labor | D96: 1 | F96: Acre | G96: 0 | I96: 0 | J96: 0 | K96: 0 | M96: 0 | N96: 0 | O96: 0 | P96: 0 | Q96: 0 | R96: 0
B97: Allocated Establishment Cost | D97: 1 | F97: Acre | G97: 142.3995067 | I97: 142.3995067 | J97: 0 | K97: 0 | M97: 0 | N97: 0 | O97: 142.3995067 | P97: 0 | Q97: 14239.95067 | R97: 0
B98: Land Cost, Orchard | D98: 1 | F98: Acre | G98: 100 | I98: 100 | J98: 0 | K98: 0 | M98: 0 | N98: 0 | O98: 100 | P98: 0 | Q98: 10000 | R98: 0
B99: Property Taxes | D99: 1 | F99: Acre | G99: 0 | I99: 0 | J99: 0 | K99: 0 | M99: 0 | N99: 0 | O99: 0 | P99: 0 | Q99: 0 | R99: 0
B100: Whole Farm Insurance | D100: 1 | F100: Acre | G100: 0 | I100: 0 | J100: 0 | K100: 0 | M100: 0 | N100: 0 | O100: 0 | P100: 0 | Q100: 0 | R100: 0
D101: 1 | G101: 0 | I101: 0 | J101: 0 | K101: 0 | M101: 0 | N101: 0 | O101: 0 | P101: 0 | Q101: 0 | R101: 0
D102: 1 | G102: 0 | I102: 0 | J102: =E102*H102 -> 0 | K102: 0 | M102: 0 | N102: 0 | O102: 0 | P102: 0 | Q102: 0 | R102: 0
A103: Total Fixed Costs | I103: 261.6442909 | J103: =+SUM(J90:J102) -> 0 | M103: 0 | N103: =+SUM(N90:N102) -> 0 | O103: 261.6442909 | P103: =+SUM(P90:P102) -> 0 | Q103: 26164.42909 | R103: =+SUM(R90:R102) -> 0
A104: Total Specified Costs | I104: 3083.455254 | J104: =+J84+J103 -> 0 | M104: 0 | N104: =+N84+N103 -> 0 | O104: 3083.455254 | P104: =+P84+P103 -> 0 | Q104: 308345.5254 | R104: =+R84+R103 -> 0
A106: Returns Above Specified Costs | I106: 3536.309452 | J106: =+J13-J104 -> 0 | M106: 0 | N106: =+N13-N104 -> 0 | O106: 3536.309452 | P106: =+P13-P104 -> 0 | Q106: 353630.9452 | R106: =+R13-R104 -> 0
A108: Breakeven Price to Cover Total Costs | G108: 171.3030697 | H108: =IF(E10=0,"n/a",(YTotExp-(YTotExp+YTotRet-J10))/E10) -> n/a | I108: Ton
D110: Example Breakeven Prices
B111: Example | C111: Example | D111: To Cover | G111: To Cover
B112: Yield | C112: Yield | D112: Variable | G112: Total
B113: Percent | C113: Ton | D113: Costs | G113: Costs
B114: 0.75 | C114: 13.5 | D114: 209.0230343 | G114: 228.4040929
B115: 0.9 | C115: 16.2 | D115: 174.1858619 | G115: 190.3367441
B116: 1 | C116: 18 | D116: 156.7672757 | G116: 171.3030697
B117: 1.1 | C117: 19.8 | D117: 142.5157052 | G117: 155.7300633
B118: 1.25 | C118: 22.5 | D118: 125.4138206 | G118: 137.0424557
A120: Developed by Manuel Garcia, Assistant Professor and Extension Specialist, Texas A&M AgriLife Extension, 956-968-5581
A122: Information presented is prepared solely as a general guide and not intended to recognize or predict the costs and returns from any one operation. Brand names are mentioned only as examples and imply no endorsement.

Sheet CornConventionalTill
A1: Projections for Planning Purposes Only -- Not to be Used without Updating
A2: 2025 Estimated Costs and Returns per Acre
A3: Corn, Conventional Tillage, Furrow Irrigated, Rio Grande Valley
A4: Enter your name for this budget in the cell above.
A5: Enter Your Values in the cells highlighed in MAROON.
E6: Your Acres | R6: Your
C7: Crop Acres | D7: 100 | L7: Your | Q7: Enterprise | R7: Enterprise
E8: Your | H8: Your | I8: Cash | J8: Your | K8: Landlord | L8: Landlord | N8: Your | P8: Your | Q8: Total | R8: Total
A9: REVENUE | D9: Quantity | E9: Quantity | F9: Units | G9: $/Unit | H9: $/Unit | I9: Total | J9: Total | K9: Share | L9: Share | M9: Landlord | N9: Landlord | O9: Tenant | P9: Tenant | Q9: (100 acres) | R9: ="(" & E7 & " acres)" -> ( acres)
B10: Corn | D10: 125 | F10: Bushel | G10: 4.65 | I10: 581.25 | J10: =E10*H10 -> 0 | K10: 0 | M10: 0 | N10: =J10*L10 -> 0 | O10: 581.25 | P10: =+J10-N10 -> 0 | Q10: 58125 | R10: =+J10*E$7 -> 0
D11: 0 | G11: 0 | I11: 0 | J11: 0 | K11: 0 | M11: 0 | N11: 0 | O11: 0 | P11: =+J11-N11 -> 0 | Q11: 0 | R11: 0
D12: 0 | G12: 0 | I12: 0 | J12: 0 | K12: 0 | M12: 0 | N12: 0 | O12: 0 | P12: 0 | Q12: 0 | R12: 0
A13: Total Revenue | I13: 581.25 | J13: =SUM(J10:J12) -> 0 | M13: 0 | N13: =SUM(N10:N12) -> 0 | O13: 581.25 | P13: =SUM(P10:P12) -> 0 | Q13: 58125 | R13: =SUM(R10:R12) -> 0
Q14: Enterprise | R14: Enterprise
A15: VARIABLE COSTS | D15: Quantity | E15: Quantity | F15: Units | G15: $/Unit | H15: $/Unit | I15: Total | J15: Total | K15: Share | L15: Share | M15: Landlord | N15: Landlord | O15: Tenant | P15: Tenant | Q15: Total | R15: Total
A16: Production Costs
B17: Custom
C18: Custom Harvest and Hauling Corn | D18: 140 | F18: Bushel | G18: 0.56 | I18: 78.4 | J18: =E18*H18 -> 0 | K18: 0 | M18: 0 | N18: =J18*L18 -> 0 | O18: 78.4 | P18: =+J18-N18 -> 0 | Q18: 7840 | R18: =+J18*E$7 -> 0
B19: Fertilizer
C20: UAN (32% N) | D20: 3.61 | F20: CWT | G20: 19 | I20: 68.59 | J20: 0 | K20: 0 | M20: 0 | N20: 0 | O20: 68.59 | P20: 0 | Q20: 6859 | R20: 0
B21: Herbicide
C22: Prowl 3.3 EC | D22: 3.6 | F22: Pint | G22: 6.3975 | I22: 23.031 | J22: 0 | K22: 0 | M22: 0 | N22: 0 | O22: 23.031 | P22: 0 | Q22: 2303.1 | R22: 0
C23: Glyphosate | D23: 1.25 | F23: Pint | G23: 6.25 | I23: 7.8125 | J23: 0 | K23: 0 | M23: 0 | N23: 0 | O23: 7.8125 | P23: 0 | Q23: 781.25 | R23: 0
B24: Miscellaneous
C25: Insurance, Corn | D25: 1 | F25: Acre | G25: 23 | I25: 23 | J25: 0 | K25: 0 | M25: 0 | N25: 0 | O25: 23 | P25: 0 | Q25: 2300 | R25: 0
B26: Seed
C27: Corn Seed | D27: 30 | F27: Thousand | G27: 4.5625 | I27: 136.875 | J27: 0 | K27: 0 | M27: 0 | N27: 0 | O27: 136.875 | P27: 0 | Q27: 13687.5 | R27: 0
B28: Other Labor
C29: Unallocated Labor | D29: 0.4736 | F29: Hour | G29: 15 | I29: 7.104 | J29: 0 | K29: 0 | M29: 0 | N29: 0 | O29: 7.104 | P29: 0 | Q29: 710.4 | R29: 0
D30: 0 | G30: 0 | I30: 0 | J30: 0 | K30: 0 | M30: 0 | N30: 0 | O30: 0 | P30: 0 | Q30: 0 | R30: 0
D31: 0 | G31: 0 | I31: 0 | J31: 0 | K31: 0 | M31: 0 | N31: 0 | O31: 0 | P31: 0 | Q31: 0 | R31: 0
D32: 0 | G32: 0 | I32: 0 | J32: =E32*H32 -> 0 | K32: 0 | M32: 0 | N32: =J32*L32 -> 0 | O32: 0 | P32: =+J32-N32 -> 0 | Q32: 0 | R32: =+J32*E$7 -> 0
B33: Irrigation
C34: Water Cost | D34: 1.2 | F34: Acre/Foot | G34: 32.66666667 | I34: 39.2 | J34: =E34*H34 -> 0 | K34: 0 | M34: 0 | N34: =J34*L34 -> 0 | O34: 39.2 | P34: =+J34-N34 -> 0 | Q34: 3920 | R34: =+J34*E$7 -> 0
C35: Irrigation Labor | D35: 3.3 | F35: Hour | G35: 17.5 | I35: 57.75 | J35: 0 | K35: 0 | M35: 0 | N35: 0 | O35: 57.75 | P35: 0 | Q35: 5775 | R35: 0
B36: Machinery Labor
C37: Tractors/Self-Propelled | D37: 1.34 | F37: Hour | G37: 17.21 | I37: 23.0614 | J37: =E37*H37 -> 0 | K37: 0 | M37: 0 | N37: =J37*L37 -> 0 | O37: 23.0614 | P37: =+J37-N37 -> 0 | Q37: 2306.14 | R37: =+J37*E$7 -> 0
C38: Other Labor | D38: 0 | F38: Hour | G38: 17.21 | I38: 0 | J38: =E38*H38 -> 0 | K38: 0 | M38: 0 | N38: =J38*L38 -> 0 | O38: 0 | P38: =+J38-N38 -> 0 | Q38: 0 | R38: =+J38*E$7 -> 0
B40: Diesel Fuel
C41: Pickup/General Use Equipment | D41: 1 | F41: Acre | G41: 0 | I41: 0 | J41: =E41*H41 -> 0 | K41: 0 | M41: 0 | N41: =J41*L41 -> 0 | O41: 0 | P41: =+J41-N41 -> 0 | Q41: 0 | R41: =+J41*E$7 -> 0
C42: Tractors/Self-Propelled | D42: 8.11 | F42: Gallon | G42: 3.6 | I42: 29.196 | J42: =E42*H42 -> 0 | K42: 0 | M42: 0 | N42: =J42*L42 -> 0 | O42: 29.196 | P42: =+J42-N42 -> 0 | Q42: 2919.6 | R42: =+J42*E$7 -> 0
B44: Gasoline
C45: Pickup/General Use Equipment | D45: 1 | F45: Acre | G45: 0 | I45: 0 | J45: =E45*H45 -> 0 | K45: 0 | M45: 0 | N45: =J45*L45 -> 0 | O45: 0 | P45: =+J45-N45 -> 0 | Q45: 0 | R45: =+J45*E$7 -> 0
C46: Tractors/Self-Propelled | D46: 0 | F46: Gallon | G46: 3.15 | I46: 0 | J46: =E46*H46 -> 0 | K46: 0 | M46: 0 | N46: =J46*L46 -> 0 | O46: 0 | P46: =+J46-N46 -> 0 | Q46: 0 | R46: =+J46*E$7 -> 0
B48: Repairs & Maintenance
C49: Pickup/General Use Equipment | D49: 1 | F49: Acre | G49: 0 | I49: 0 | J49: =E49*H49 -> 0 | K49: 0 | M49: 0 | N49: =J49*L49 -> 0 | O49: 0 | P49: =+J49-N49 -> 0 | Q49: 0 | R49: =+J49*E$7 -> 0
C50: Irrigation Equipment | D50: 1 | F50: Acre | G50: 0 | I50: 0 | J50: 0 | K50: 0 | M50: 0 | N50: 0 | O50: 0 | P50: 0 | Q50: 0 | R50: 0
C51: Tractors/Self-Propelled | D51: 1 | F51: Acre | G51: 18.39875661 | I51: 18.39875661 | J51: 0 | K51: 0 | M51: 0 | N51: 0 | O51: 18.39875661 | P51: 0 | Q51: 1839.875661 | R51: 0
C52: Implements | D52: 1 | F52: Acre | G52: 17.87111271 | I52: 17.87111271 | J52: 0 | K52: 0 | M52: 0 | N52: 0 | O52: 17.87111271 | P52: 0 | Q52: 1787.111271 | R52: 0
I53: 0 | J53: 0 | K53: 0 | M53: 0 | N53: 0 | O53: 0 | P53: 0 | Q53: 0 | R53: 0
I54: 0 | J54: 0 | K54: 0 | M54: 0 | N54: 0 | O54: 0 | P54: 0 | Q54: 0 | R54: 0
B55: Interest on Credit Line | G55: 0.085 | I55: 15.90979552 | J55: =+SUM(J17:J54)/2*H55 -> 0 | M55: 0 | N55: =+SUM(N17:N54)/2*L55 -> 0 | O55: 15.90979552 | P55: =+SUM(P17:P54)/2*L55 -> 0 | Q55: 1590.979552 | R55: =+J55*E$7 -> 0
A56: Total Variable Costs | I56: 546.1995648 | J56: =SUM(J18:J55) -> 0 | M56: 0 | N56: =SUM(N18:N55) -> 0 | O56: 546.1995648 | P56: =SUM(P18:P55) -> 0 | Q56: 54619.95648 | R56: =SUM(R18:R55) -> 0
A57: Planned Returns Above Variable Costs: | I57: 35.05043516 | J57: =+J13-J56 -> 0 | M57: 0 | N57: =+N13-N56 -> 0 | O57: 35.05043516 | P57: =+P13-P56 -> 0 | Q57: 3505.043516 | R57: =+R13-R56 -> 0
B58: Breakeven Price to Cover Variable Costs | G58: 4.369596519 | H58: =IF(E10=0,"n/a",(YVarExp-(YTotExp+YTotRet-J10))/E10) -> n/a | I58: Bushel
Q59: Enterprise | R59: Enterprise
A60: FIXED COSTS | D60: Quantity | E60: Quantity | F60: Units | G60: $/Unit | H60: $/Unit | I60: Total | J60: Total | K60: Share | L60: Share | M60: Landlord | N60: Landlord | O60: Tenant | P60: Tenant | Q60: Total | R60: Total
B61: Machinery Depreciation
C62: Tractors/Self-Propelled | D62: 1 | F62: Acre | G62: 19.0120485 | I62: 19.0120485 | J62: =E62*H62 -> 0 | K62: 0 | M62: 0 | N62: =J62*L62 -> 0 | O62: 19.0120485 | P62: =+J62-N62 -> 0 | Q62: 1901.20485 | R62: =+J62*E$7 -> 0
C63: Implements | D63: 1 | F63: Acre | G63: 20.77321038 | I63: 20.77321038 | J63: 0 | K63: 0 | M63: 0 | N63: =J63*L63 -> 0 | O63: 20.77321038 | P63: 0 | Q63: 2077.321038 | R63: 0
B64: Equipment Investment
C65: Tractors/Self-Propelled | D65: 148.1099907 | F65: Dollars | G65: 0.085 | I65: 12.58934921 | J65: =E65*H65 -> 0 | K65: 0 | M65: 0 | N65: =J65*L65 -> 0 | O65: 12.58934921 | P65: =+J65-N65 -> 0 | Q65: 1258.934921 | R65: =+J65*E$7 -> 0
C66: Implements | D66: 97.32772809 | F66: Dollars | G66: 0.085 | I66: 8.272856887 | J66: 0 | K66: 0 | M66: 0 | N66: =J66*L66 -> 0 | O66: 8.272856887 | P66: 0 | Q66: 827.2856887 | R66: 0
B67: Salaried Labor | D67: 1 | F67: Acre | G67: 0 | I67: 0 | J67: 0 | K67: 0 | M67: 0 | N67: =J67*L67 -> 0 | O67: 0 | P67: =+J67-N67 -> 0 | Q67: 0 | R67: =+J67*E$7 -> 0
B68: Management Fee, Owner/Operator Labor | D68: 1 | F68: Acre | G68: 0 | I68: 0 | J68: 0 | K68: 0 | M68: 0 | N68: 0 | O68: 0 | P68: 0 | Q68: 0 | R68: 0
B69: Allocated Establishment Cost | D69: 1 | F69: Acre | G69: 0 | I69: 0 | J69: 0 | K69: 0 | M69: 0 | N69: 0 | O69: 0 | P69: 0 | Q69: 0 | R69: 0
B70: Cash Rent, Irrigated | D70: 1 | F70: Acre | G70: 95 | I70: 95 | J70: 0 | K70: 0 | M70: 0 | N70: 0 | O70: 95 | P70: 0 | Q70: 9500 | R70: 0
B71: Property Taxes | D71: 1 | F71: Acre | G71: 0 | I71: 0 | J71: 0 | K71: 0 | M71: 0 | N71: 0 | O71: 0 | P71: 0 | Q71: 0 | R71: 0
B72: Whole Farm Insurance | D72: 1 | F72: Acre | G72: 0 | I72: 0 | J72: 0 | K72: 0 | M72: 0 | N72: 0 | O72: 0 | P72: 0 | Q72: 0 | R72: 0
D73: 1 | G73: 0 | I73: 0 | J73: 0 | K73: 0 | M73: 0 | N73: 0 | O73: 0 | P73: 0 | Q73: 0 | R73: 0
D74: 1 | G74: 0 | I74: 0 | J74: =E74*H74 -> 0 | K74: 0 | M74: 0 | N74: 0 | O74: 0 | P74: 0 | Q74: 0 | R74: 0
A75: Total Fixed Costs | I75: 155.647465 | J75: =+SUM(J62:J74) -> 0 | M75: 0 | N75: =+SUM(N62:N74) -> 0 | O75: 155.647465 | P75: =+SUM(P62:P74) -> 0 | Q75: 15564.7465 | R75: =+SUM(R62:R74) -> 0
A76: Total Specified Costs | I76: 701.8470298 | J76: =+J56+J75 -> 0 | M76: 0 | N76: =+N56+N75 -> 0 | O76: 701.8470298 | P76: =+P56+P75 -> 0 | Q76: 70184.70298 | R76: =+R56+R75 -> 0
A78: Returns Above Specified Costs | I78: -120.5970298 | J78: =+J13-J76 -> 0 | M78: 0 | N78: =+N13-N76 -> 0 | O78: -120.5970298 | P78: =+P13-P76 -> 0 | Q78: -12059.70298 | R78: =+R13-R76 -> 0
A80: Breakeven Price to Cover Total Costs | G80: 5.614776239 | H80: =IF(E10=0,"n/a",(YTotExp-(YTotExp+YTotRet-J10))/E10) -> n/a | I80: Bushel
D82: Example Breakeven Prices
B83: Example | C83: Example | D83: To Cover | G83: To Cover
B84: Yield | C84: Yield | D84: Variable | G84: Total
B85: Percent | C85: Bushel | D85: Costs | G85: Costs
B86: 0.75 | C86: 93.75 | D86: 5.826128692 | G86: 7.486368318
B87: 0.9 | C87: 112.5 | D87: 4.855107243 | G87: 6.238640265
B88: 1 | C88: 125 | D88: 4.369596519 | G88: 5.614776239
B89: 1.1 | C89: 137.5 | D89: 3.972360472 | G89: 5.104342035
B90: 1.25 | C90: 156.25 | D90: 3.495677215 | G90: 4.491820991
A92: Developed by Manuel Garcia, Assistant Professor and Extension Specialist, Texas A&M AgriLife Extension, 956-968-5581
A94: Information presented is prepared solely as a general guide and not intended to recognize or predict the costs and returns from any one operation. Brand names are mentioned only as examples and imply no endorsement.

Sheet CornRducedTill
A1: Projections for Planning Purposes Only -- Not to be Used without Updating
A2: 2025 Estimated Costs and Returns per Acre
A3: Corn, Reduced Tillage, Furrow Irrigated, Rio Grande Valley
A4: Enter your name for this budget in the cell above.
A5: Enter Your Values in the cells highlighed in MAROON.
E6: Your Acres | R6: Your
C7: Crop Acres | D7: 100 | L7: Your | Q7: Enterprise | R7: Enterprise
E8: Your | H8: Your | I8: Cash | J8: Your | K8: Landlord | L8: Landlord | N8: Your | P8: Your | Q8: Total | R8: Total
A9: REVENUE | D9: Quantity | E9: Quantity | F9: Units | G9: $/Unit | H9: $/Unit | I9: Total | J9: Total | K9: Share | L9: Share | M9: Landlord | N9: Landlord | O9: Tenant | P9: Tenant | Q9: (100 acres) | R9: ="(" & E7 & " acres)" -> ( acres)
B10: Corn | D10: 25 | F10: Bushel | G10: 4.65 | I10: 116.25 | J10: =E10*H10 -> 0 | K10: 0 | M10: 0 | N10: =J10*L10 -> 0 | O10: 116.25 | P10: =+J10-N10 -> 0 | Q10: 11625 | R10: =+J10*E$7 -> 0
D11: 0 | G11: 0 | I11: 0 | J11: 0 | K11: 0 | M11: 0 | N11: 0 | O11: 0 | P11: =+J11-N11 -> 0 | Q11: 0 | R11: 0
D12: 0 | G12: 0 | I12: 0 | J12: 0 | K12: 0 | M12: 0 | N12: 0 | O12: 0 | P12: 0 | Q12: 0 | R12: 0
A13: Total Revenue | I13: 116.25 | J13: =SUM(J10:J12) -> 0 | M13: 0 | N13: =SUM(N10:N12) -> 0 | O13: 116.25 | P13: =SUM(P10:P12) -> 0 | Q13: 11625 | R13: =SUM(R10:R12) -> 0
Q14: Enterprise | R14: Enterprise
A15: VARIABLE COSTS | D15: Quantity | E15: Quantity | F15: Units | G15: $/Unit | H15: $/Unit | I15: Total | J15: Total | K15: Share | L15: Share | M15: Landlord | N15: Landlord | O15: Tenant | P15: Tenant | Q15: Total | R15: Total
A16: Production Costs
B17: Herbicide
C18: Glyphosate | D18: 1.25 | F18: Pint | G18: 6.25 | I18: 7.8125 | J18: =E18*H18 -> 0 | K18: 0 | M18: 0 | N18: =J18*L18 -> 0 | O18: 7.8125 | P18: =+J18-N18 -> 0 | Q18: 781.25 | R18: =+J18*E$7 -> 0
C19: AAtrex 4L | D19: 2 | F19: Pint | G19: 2.8975 | I19: 5.795 | J19: 0 | K19: 0 | M19: 0 | N19: 0 | O19: 5.795 | P19: 0 | Q19: 579.5 | R19: 0
B20: Fertilizer
C21: UAN (32% N) | D21: 3.61 | F21: CWT | G21: 19 | I21: 68.59 | J21: 0 | K21: 0 | M21: 0 | N21: 0 | O21: 68.59 | P21: 0 | Q21: 6859 | R21: 0
B22: Seed
C23: Corn Seed | D23: 30 | F23: Thousand | G23: 4.5625 | I23: 136.875 | J23: 0 | K23: 0 | M23: 0 | N23: 0 | O23: 136.875 | P23: 0 | Q23: 13687.5 | R23: 0
B24: Custom
C25: Custom Harvest and Hauling Corn | D25: 140 | F25: Bushel | G25: 0.56 | I25: 78.4 | J25: 0 | K25: 0 | M25: 0 | N25: 0 | O25: 78.4 | P25: 0 | Q25: 7840 | R25: 0
B26: Miscellaneous
C27: Insurance, Corn | D27: 1 | F27: Acre | G27: 23 | I27: 23 | J27: 0 | K27: 0 | M27: 0 | N27: 0 | O27: 23 | P27: 0 | Q27: 2300 | R27: 0
B28: Other Labor
C29: Unallocated Labor | D29: 0.2096 | F29: Hour | G29: 15 | I29: 3.144 | J29: 0 | K29: 0 | M29: 0 | N29: 0 | O29: 3.144 | P29: 0 | Q29: 314.4 | R29: 0
D30: 0 | G30: 0 | I30: 0 | J30: 0 | K30: 0 | M30: 0 | N30: 0 | O30: 0 | P30: 0 | Q30: 0 | R30: 0
D31: 0 | G31: 0 | I31: 0 | J31: 0 | K31: 0 | M31: 0 | N31: 0 | O31: 0 | P31: 0 | Q31: 0 | R31: 0
D32: 0 | G32: 0 | I32: 0 | J32: =E32*H32 -> 0 | K32: 0 | M32: 0 | N32: =J32*L32 -> 0 | O32: 0 | P32: =+J32-N32 -> 0 | Q32: 0 | R32: =+J32*E$7 -> 0
B33: Irrigation
C34: Water Cost | D34: 1.2 | F34: Acre/Foot | G34: 32.66666667 | I34: 39.2 | J34: =E34*H34 -> 0 | K34: 0 | M34: 0 | N34: =J34*L34 -> 0 | O34: 39.2 | P34: =+J34-N34 -> 0 | Q34: 3920 | R34: =+J34*E$7 -> 0
C35: Irrigation Labor | D35: 3.3 | F35: Hour | G35: 17.5 | I35: 57.75 | J35: 0 | K35: 0 | M35: 0 | N35: 0 | O35: 57.75 | P35: 0 | Q35: 5775 | R35: 0
B36: Machinery Labor
C37: Tractors/Self-Propelled | D37: 0.9 | F37: Hour | G37: 17.21 | I37: 15.489 | J37: =E37*H37 -> 0 | K37: 0 | M37: 0 | N37: =J37*L37 -> 0 | O37: 15.489 | P37: =+J37-N37 -> 0 | Q37: 1548.9 | R37: =+J37*E$7 -> 0
C38: Other Labor | D38: 0 | F38: Hour | G38: 17.21 | I38: 0 | J38: =E38*H38 -> 0 | K38: 0 | M38: 0 | N38: =J38*L38 -> 0 | O38: 0 | P38: =+J38-N38 -> 0 | Q38: 0 | R38: =+J38*E$7 -> 0
B40: Diesel Fuel
C41: Pickup/General Use Equipment | D41: 1 | F41: Acre | G41: 0 | I41: 0 | J41: =E41*H41 -> 0 | K41: 0 | M41: 0 | N41: =J41*L41 -> 0 | O41: 0 | P41: =+J41-N41 -> 0 | Q41: 0 | R41: =+J41*E$7 -> 0
C42: Tractors/Self-Propelled | D42: 4.31 | F42: Gallon | G42: 3.6 | I42: 15.516 | J42: =E42*H42 -> 0 | K42: 0 | M42: 0 | N42: =J42*L42 -> 0 | O42: 15.516 | P42: =+J42-N42 -> 0 | Q42: 1551.6 | R42: =+J42*E$7 -> 0
B44: Gasoline
C45: Pickup/General Use Equipment | D45: 1 | F45: Acre | G45: 0 | I45: 0 | J45: =E45*H45 -> 0 | K45: 0 | M45: 0 | N45: =J45*L45 -> 0 | O45: 0 | P45: =+J45-N45 -> 0 | Q45: 0 | R45: =+J45*E$7 -> 0
C46: Tractors/Self-Propelled | D46: 0 | F46: Gallon | G46: 3.15 | I46: 0 | J46: =E46*H46 -> 0 | K46: 0 | M46: 0 | N46: =J46*L46 -> 0 | O46: 0 | P46: =+J46-N46 -> 0 | Q46: 0 | R46: =+J46*E$7 -> 0
B48: Repairs & Maintenance
C49: Pickup/General Use Equipment | D49: 1 | F49: Acre | G49: 0 | I49: 0 | J49: =E49*H49 -> 0 | K49: 0 | M49: 0 | N49: =J49*L49 -> 0 | O49: 0 | P49: =+J49-N49 -> 0 | Q49: 0 | R49: =+J49*E$7 -> 0
C50: Irrigation Equipment | D50: 1 | F50: Acre | G50: 0 | I50: 0 | J50: 0 | K50: 0 | M50: 0 | N50: 0 | O50: 0 | P50: 0 | Q50: 0 | R50: 0
C51: Tractors/Self-Propelled | D51: 1 | F51: Acre | G51: 8.620955142 | I51: 8.620955142 | J51: 0 | K51: 0 | M51: 0 | N51: 0 | O51: 8.620955142 | P51: 0 | Q51: 862.0955142 | R51: 0
C52: Implements | D52: 1 | F52: Acre | G52: 10.52106685 | I52: 10.52106685 | J52: 0 | K52: 0 | M52: 0 | N52: 0 | O52: 10.52106685 | P52: 0 | Q52: 1052.106685 | R52: 0
I53: 0 | J53: 0 | K53: 0 | M53: 0 | N53: 0 | O53: 0 | P53: 0 | Q53: 0 | R53: 0
I54: 0 | J54: 0 | K54: 0 | M54: 0 | N54: 0 | O54: 0 | P54: 0 | Q54: 0 | R54: 0
B55: Interest on Credit Line | G55: 0.085 | I55: 13.39285032 | J55: =+SUM(J17:J54)/2*H55 -> 0 | M55: 0 | N55: =+SUM(N17:N54)/2*L55 -> 0 | O55: 13.39285032 | P55: =+SUM(P17:P54)/2*L55 -> 0 | Q55: 1339.285032 | R55: =+J55*E$7 -> 0
A56: Total Variable Costs | I56: 484.1063723 | J56: =SUM(J18:J55) -> 0 | M56: 0 | N56: =SUM(N18:N55) -> 0 | O56: 484.1063723 | P56: =SUM(P18:P55) -> 0 | Q56: 48410.63723 | R56: =SUM(R18:R55) -> 0
A57: Planned Returns Above Variable Costs: | I57: -367.8563723 | J57: =+J13-J56 -> 0 | M57: 0 | N57: =+N13-N56 -> 0 | O57: -367.8563723 | P57: =+P13-P56 -> 0 | Q57: -36785.63723 | R57: =+R13-R56 -> 0
B58: Breakeven Price to Cover Variable Costs | G58: 19.36425489 | H58: =IF(E10=0,"n/a",(YVarExp-(YTotExp+YTotRet-J10))/E10) -> n/a | I58: Bushel
Q59: Enterprise | R59: Enterprise
A60: FIXED COSTS | D60: Quantity | E60: Quantity | F60: Units | G60: $/Unit | H60: $/Unit | I60: Total | J60: Total | K60: Share | L60: Share | M60: Landlord | N60: Landlord | O60: Tenant | P60: Tenant | Q60: Total | R60: Total
B61: Machinery Depreciation
C62: Tractors/Self-Propelled | D62: 1 | F62: Acre | G62: 8.908320314 | I62: 8.908320314 | J62: =E62*H62 -> 0 | K62: 0 | M62: 0 | N62: =J62*L62 -> 0 | O62: 8.908320314 | P62: =+J62-N62 -> 0 | Q62: 890.8320314 | R62: =+J62*E$7 -> 0
C63: Implements | D63: 1 | F63: Acre | G63: 12.78355313 | I63: 12.78355313 | J63: 0 | K63: 0 | M63: 0 | N63: =J63*L63 -> 0 | O63: 12.78355313 | P63: 0 | Q63: 1278.355313 | R63: 0
B64: Equipment Investment
C65: Tractors/Self-Propelled | D65: 69.39868889 | F65: Dollars | G65: 0.085 | I65: 5.898888556 | J65: =E65*H65 -> 0 | K65: 0 | M65: 0 | N65: =J65*L65 -> 0 | O65: 5.898888556 | P65: =+J65-N65 -> 0 | Q65: 589.8888556 | R65: =+J65*E$7 -> 0
C66: Implements | D66: 63.73677397 | F66: Dollars | G66: 0.085 | I66: 5.417625788 | J66: 0 | K66: 0 | M66: 0 | N66: =J66*L66 -> 0 | O66: 5.417625788 | P66: 0 | Q66: 541.7625788 | R66: 0
B67: Salaried Labor | D67: 1 | F67: Acre | G67: 0 | I67: 0 | J67: 0 | K67: 0 | M67: 0 | N67: =J67*L67 -> 0 | O67: 0 | P67: =+J67-N67 -> 0 | Q67: 0 | R67: =+J67*E$7 -> 0
B68: Management Fee, Owner/Operator Labor | D68: 1 | F68: Acre | G68: 0 | I68: 0 | J68: 0 | K68: 0 | M68: 0 | N68: 0 | O68: 0 | P68: 0 | Q68: 0 | R68: 0
B69: Allocated Establishment Cost | D69: 1 | F69: Acre | G69: 0 | I69: 0 | J69: 0 | K69: 0 | M69: 0 | N69: 0 | O69: 0 | P69: 0 | Q69: 0 | R69: 0
B70: Cash Rent, Irrigated | D70: 1 | F70: Acre | G70: 95 | I70: 95 | J70: 0 | K70: 0 | M70: 0 | N70: 0 | O70: 95 | P70: 0 | Q70: 9500 | R70: 0
B71: Property Taxes | D71: 1 | F71: Acre | G71: 0 | I71: 0 | J71: 0 | K71: 0 | M71: 0 | N71: 0 | O71: 0 | P71: 0 | Q71: 0 | R71: 0
B72: Whole Farm Insurance | D72: 1 | F72: Acre | G72: 0 | I72: 0 | J72: 0 | K72: 0 | M72: 0 | N72: 0 | O72: 0 | P72: 0 | Q72: 0 | R72: 0
D73: 1 | G73: 0 | I73: 0 | J73: 0 | K73: 0 | M73: 0 | N73: 0 | O73: 0 | P73: 0 | Q73: 0 | R73: 0
D74: 1 | G74: 0 | I74: 0 | J74: =E74*H74 -> 0 | K74: 0 | M74: 0 | N74: 0 | O74: 0 | P74: 0 | Q74: 0 | R74: 0
A75: Total Fixed Costs | I75: 128.0083878 | J75: =+SUM(J62:J74) -> 0 | M75: 0 | N75: =+SUM(N62:N74) -> 0 | O75: 128.0083878 | P75: =+SUM(P62:P74) -> 0 | Q75: 12800.83878 | R75: =+SUM(R62:R74) -> 0
A76: Total Specified Costs | I76: 612.1147601 | J76: =+J56+J75 -> 0 | M76: 0 | N76: =+N56+N75 -> 0 | O76: 612.1147601 | P76: =+P56+P75 -> 0 | Q76: 61211.47601 | R76: =+R56+R75 -> 0
A78: Returns Above Specified Costs | I78: -495.8647601 | J78: =+J13-J76 -> 0 | M78: 0 | N78: =+N13-N76 -> 0 | O78: -495.8647601 | P78: =+P13-P76 -> 0 | Q78: -49586.47601 | R78: =+R13-R76 -> 0
A80: Breakeven Price to Cover Total Costs | G80: 24.4845904 | H80: =IF(E10=0,"n/a",(YTotExp-(YTotExp+YTotRet-J10))/E10) -> n/a | I80: Bushel
D82: Example Breakeven Prices
B83: Example | C83: Example | D83: To Cover | G83: To Cover
B84: Yield | C84: Yield | D84: Variable | G84: Total
B85: Percent | C85: Bushel | D85: Costs | G85: Costs
B86: 0.75 | C86: 18.75 | D86: 25.81900652 | G86: 32.64612054
B87: 0.9 | C87: 22.5 | D87: 21.51583877 | G87: 27.20510045
B88: 1 | C88: 25 | D88: 19.36425489 | G88: 24.4845904
B89: 1.1 | C89: 27.5 | D89: 17.60386808 | G89: 22.25871855
B90: 1.25 | C90: 31.25 | D90: 15.49140391 | G90: 19.58767232
A92: Developed by Manuel Garcia, Assistant Professor and Extension Specialist, Texas A&M AgriLife Extension, 956-968-5581
A94: Information presented is prepared solely as a general guide and not intended to recognize or predict the costs and returns from any one operation. Brand names are mentioned only as examples and imply no endorsement.

Sheet CottonConventionalTill
A1: Projections for Planning Purposes Only -- Not to be Used without Updating
A2: 2025 Estimated Costs and Returns per Acre
A3: Cotton, Conventional Tillage, Furrow Irrigated, Rio Grande Valley
A4: Enter your name for this budget in the cell above.
A5: Enter Your Values in the cells highlighed in MAROON.
E6: Your Acres | R6: Your
C7: Crop Acres | D7: 100 | L7: Your | Q7: Enterprise | R7: Enterprise
E8: Your | H8: Your | I8: Cash | J8: Your | K8: Landlord | L8: Landlord | N8: Your | P8: Your | Q8: Total | R8: Total
A9: REVENUE | D9: Quantity | E9: Quantity | F9: Units | G9: $/Unit | H9: $/Unit | I9: Total | J9: Total | K9: Share | L9: Share | M9: Landlord | N9: Landlord | O9: Tenant | P9: Tenant | Q9: (100 acres) | R9: ="(" & E7 & " acres)" -> ( acres)
B10: Cotton Lint | D10: 1350 | F10: Pound | G10: 0.66 | I10: 891 | J10: =E10*H10 -> 0 | K10: 0 | M10: 0 | N10: =J10*L10 -> 0 | O10: 891 | P10: =+J10-N10 -> 0 | Q10: 89100 | R10: =+J10*E$7 -> 0
B11: Cottonseed | D11: 0.6942 | F11: Ton | G11: 220 | I11: 152.724 | J11: 0 | K11: 0 | M11: 0 | N11: 0 | O11: 152.724 | P11: =+J11-N11 -> 0 | Q11: 15272.4 | R11: 0
D12: 0 | G12: 0 | I12: 0 | J12: 0 | K12: 0 | M12: 0 | N12: 0 | O12: 0 | P12: 0 | Q12: 0 | R12: 0
D13: 0 | G13: 0 | I13: 0 | J13: 0 | K13: 0 | M13: 0 | N13: 0 | O13: 0 | P13: 0 | Q13: 0 | R13: 0
A14: Total Revenue | I14: 1043.724 | J14: =SUM(J10:J13) -> 0 | M14: 0 | N14: =SUM(N10:N13) -> 0 | O14: 1043.724 | P14: =SUM(P10:P13) -> 0 | Q14: 104372.4 | R14: =SUM(R10:R13) -> 0
Q15: Enterprise | R15: Enterprise
A16: VARIABLE COSTS | D16: Quantity | E16: Quantity | F16: Units | G16: $/Unit | H16: $/Unit | I16: Total | J16: Total | K16: Share | L16: Share | M16: Landlord | N16: Landlord | O16: Tenant | P16: Tenant | Q16: Total | R16: Total
A17: Production Costs
B18: Seed
C19: Cotton Seed | D19: 50 | F19: Thousand | G19: 1.956521739 | I19: 97.82608696 | J19: =E19*H19 -> 0 | K19: 0 | M19: 0 | N19: =J19*L19 -> 0 | O19: 97.82608696 | P19: =+J19-N19 -> 0 | Q19: 9782.608696 | R19: =+J19*E$7 -> 0
B20: Fertilizer
C21: UAN (32% N) | D21: 3.06 | F21: CWT | G21: 19 | I21: 58.14 | J21: 0 | K21: 0 | M21: 0 | N21: 0 | O21: 58.14 | P21: 0 | Q21: 5814 | R21: 0
B22: Custom
C23: Insect Scouting | D23: 1 | F23: Acre | G23: 15 | I23: 15 | J23: 0 | K23: 0 | M23: 0 | N23: 0 | O23: 15 | P23: 0 | Q23: 1500 | R23: 0
C24: Custon Harvest Cotton | D24: 1200 | F24: Pound | G24: 0.165 | I24: 198 | J24: 0 | K24: 0 | M24: 0 | N24: 0 | O24: 198 | P24: 0 | Q24: 19800 | R24: 0
C25: Gin | D25: 1200 | F25: Pound | G25: 0.15 | I25: 180 | J25: 0 | K25: 0 | M25: 0 | N25: 0 | O25: 180 | P25: 0 | Q25: 18000 | R25: 0
B26: Herbicide
C27: Trifluralin 4EC | D27: 2 | F27: Pint | G27: 4.7475 | I27: 9.495 | J27: 0 | K27: 0 | M27: 0 | N27: 0 | O27: 9.495 | P27: 0 | Q27: 949.5 | R27: 0
C28: 2, 4-D Amine | D28: 1 | F28: Pint | G28: 2.99375 | I28: 2.99375 | J28: 0 | K28: 0 | M28: 0 | N28: 0 | O28: 2.99375 | P28: 0 | Q28: 299.375 | R28: 0
B29: Insecticide
C30: Transform | D30: 1 | F30: Ounce | G30: 9.343359375 | I30: 9.343359375 | J30: 0 | K30: 0 | M30: 0 | N30: 0 | O30: 9.343359375 | P30: 0 | Q30: 934.3359375 | R30: 0
C31: Sivanto | D31: 10.5 | F31: Ounce | G31: 3.280859375 | I31: 34.44902344 | J31: 0 | K31: 0 | M31: 0 | N31: 0 | O31: 34.44902344 | P31: 0 | Q31: 3444.902344 | R31: 0
C32: Centric | D32: 2.5 | F32: Ounce | G32: 5.95 | I32: 14.875 | J32: 0 | K32: 0 | M32: 0 | N32: 0 | O32: 14.875 | P32: 0 | Q32: 1487.5 | R32: 0
B33: Other Chemicals
C34: Mepiquat | D34: 48 | F34: Ounce | G34: 0.046875 | I34: 2.25 | J34: 0 | K34: 0 | M34: 0 | N34: 0 | O34: 2.25 | P34: 0 | Q34: 225 | R34: 0
C35: Thidiazuron | D35: 4 | F35: Ounce | G35: 1.22109375 | I35: 4.884375 | J35: 0 | K35: 0 | M35: 0 | N35: 0 | O35: 4.884375 | P35: 0 | Q35: 488.4375 | R35: 0
C36: Surfactant | D36: 0.25 | F36: Pint | G36: 7.475 | I36: 1.86875 | J36: 0 | K36: 0 | M36: 0 | N36: 0 | O36: 1.86875 | P36: 0 | Q36: 186.875 | R36: 0
C37: Ethephon | D37: 21 | F37: Ounce | G37: 0.39371875 | I37: 8.26809375 | J37: 0 | K37: 0 | M37: 0 | N37: 0 | O37: 8.26809375 | P37: 0 | Q37: 826.809375 | R37: 0
B38: Other Labor
C39: Unallocated Labor | D39: 1.2856 | F39: Hour | G39: 15 | I39: 19.284 | J39: 0 | K39: 0 | M39: 0 | N39: 0 | O39: 19.284 | P39: 0 | Q39: 1928.4 | R39: 0
B40: Miscellaneous
C41: Insurance, Cotton - Irrigated | D41: 1 | F41: Acre | G41: 33 | I41: 33 | J41: 0 | K41: 0 | M41: 0 | N41: 0 | O41: 33 | P41: 0 | Q41: 3300 | R41: 0
C42: BW Eradication Program - Irr | D42: 1 | F42: Acre | G42: 28 | I42: 28 | J42: 0 | K42: 0 | M42: 0 | N42: 0 | O42: 28 | P42: 0 | Q42: 2800 | R42: 0
D43: 0 | G43: 0 | I43: 0 | J43: 0 | K43: 0 | M43: 0 | N43: 0 | O43: 0 | P43: 0 | Q43: 0 | R43: 0
D44: 0 | G44: 0 | I44: 0 | J44: 0 | K44: 0 | M44: 0 | N44: 0 | O44: 0 | P44: 0 | Q44: 0 | R44: 0
D45: 0 | G45: 0 | I45: 0 | J45: =E45*H45 -> 0 | K45: 0 | M45: 0 | N45: =J45*L45 -> 0 | O45: 0 | P45: =+J45-N45 -> 0 | Q45: 0 | R45: =+J45*E$7 -> 0
B46: Irrigation
C47: Water Cost | D47: 1.2 | F47: Acre/Foot | G47: 32.66666667 | I47: 39.2 | J47: =E47*H47 -> 0 | K47: 0 | M47: 0 | N47: =J47*L47 -> 0 | O47: 39.2 | P47: =+J47-N47 -> 0 | Q47: 3920 | R47: =+J47*E$7 -> 0
C48: Irrigation Labor | D48: 3.3 | F48: Hour | G48: 17.5 | I48: 57.75 | J48: 0 | K48: 0 | M48: 0 | N48: 0 | O48: 57.75 | P48: 0 | Q48: 5775 | R48: 0
B49: Machinery Labor
C50: Tractors/Self-Propelled | D50: 1.88 | F50: Hour | G50: 17.21 | I50: 32.3548 | J50: =E50*H50 -> 0 | K50: 0 | M50: 0 | N50: =J50*L50 -> 0 | O50: 32.3548 | P50: =+J50-N50 -> 0 | Q50: 3235.48 | R50: =+J50*E$7 -> 0
C51: Other Labor | D51: 0.36 | F51: Hour | G51: 17.21 | I51: 6.1956 | J51: =E51*H51 -> 0 | K51: 0 | M51: 0 | N51: =J51*L51 -> 0 | O51: 6.1956 | P51: =+J51-N51 -> 0 | Q51: 619.56 | R51: =+J51*E$7 -> 0
B53: Diesel Fuel
C54: Pickup/General Use Equipment | D54: 1 | F54: Acre | G54: 0 | I54: 0 | J54: =E54*H54 -> 0 | K54: 0 | M54: 0 | N54: =J54*L54 -> 0 | O54: 0 | P54: =+J54-N54 -> 0 | Q54: 0 | R54: =+J54*E$7 -> 0
C55: Tractors/Self-Propelled | D55: 13.25 | F55: Gallon | G55: 3.6 | I55: 47.7 | J55: =E55*H55 -> 0 | K55: 0 | M55: 0 | N55: =J55*L55 -> 0 | O55: 47.7 | P55: =+J55-N55 -> 0 | Q55: 4770 | R55: =+J55*E$7 -> 0
B57: Gasoline
C58: Pickup/General Use Equipment | D58: 1 | F58: Acre | G58: 0 | I58: 0 | J58: =E58*H58 -> 0 | K58: 0 | M58: 0 | N58: =J58*L58 -> 0 | O58: 0 | P58: =+J58-N58 -> 0 | Q58: 0 | R58: =+J58*E$7 -> 0
C59: Tractors/Self-Propelled | D59: 0 | F59: Gallon | G59: 3.15 | I59: 0 | J59: =E59*H59 -> 0 | K59: 0 | M59: 0 | N59: =J59*L59 -> 0 | O59: 0 | P59: =+J59-N59 -> 0 | Q59: 0 | R59: =+J59*E$7 -> 0
B61: Repairs & Maintenance
C62: Pickup/General Use Equipment | D62: 1 | F62: Acre | G62: 0 | I62: 0 | J62: =E62*H62 -> 0 | K62: 0 | M62: 0 | N62: =J62*L62 -> 0 | O62: 0 | P62: =+J62-N62 -> 0 | Q62: 0 | R62: =+J62*E$7 -> 0
C63: Irrigation Equipment | D63: 1 | F63: Acre | G63: 0 | I63: 0 | J63: 0 | K63: 0 | M63: 0 | N63: 0 | O63: 0 | P63: 0 | Q63: 0 | R63: 0
C64: Tractors/Self-Propelled | D64: 1 | F64: Acre | G64: 27.80076125 | I64: 27.80076125 | J64: 0 | K64: 0 | M64: 0 | N64: 0 | O64: 27.80076125 | P64: 0 | Q64: 2780.076125 | R64: 0
C65: Implements | D65: 1 | F65: Acre | G65: 20.22539654 | I65: 20.22539654 | J65: 0 | K65: 0 | M65: 0 | N65: 0 | O65: 20.22539654 | P65: 0 | Q65: 2022.539654 | R65: 0
I66: 0 | J66: 0 | K66: 0 | M66: 0 | N66: 0 | O66: 0 | P66: 0 | Q66: 0 | R66: 0
I67: 0 | J67: 0 | K67: 0 | M67: 0 | N67: 0 | O67: 0 | P67: 0 | Q67: 0 | R67: 0
B68: Interest on Credit Line | G68: 0.085 | I68: 17.06452553 | J68: =+SUM(J18:J67)/2*H68 -> 0 | M68: 0 | N68: =+SUM(N18:N67)/2*L68 -> 0 | O68: 17.06452553 | P68: =+SUM(P18:P67)/2*L68 -> 0 | Q68: 1706.452553 | R68: =+J68*E$7 -> 0
A69: Total Variable Costs | I69: 965.9685218 | J69: =SUM(J19:J68) -> 0 | M69: 0 | N69: =SUM(N19:N68) -> 0 | O69: 965.9685218 | P69: =SUM(P19:P68) -> 0 | Q69: 96596.85218 | R69: =SUM(R19:R68) -> 0
A70: Planned Returns Above Variable Costs: | I70: 77.75547816 | J70: =+J14-J69 -> 0 | M70: 0 | N70: =+N14-N69 -> 0 | O70: 77.75547816 | P70: =+P14-P69 -> 0 | Q70: 7775.547816 | R70: =+R14-R69 -> 0
B71: Breakeven Price to Cover Variable Costs | G71: 0.6024033495 | H71: =IF(E10=0,"n/a",(YVarExp-(YTotExp+YTotRet-J10))/E10) -> n/a | I71: Pound
Q72: Enterprise | R72: Enterprise
A73: FIXED COSTS | D73: Quantity | E73: Quantity | F73: Units | G73: $/Unit | H73: $/Unit | I73: Total | J73: Total | K73: Share | L73: Share | M73: Landlord | N73: Landlord | O73: Tenant | P73: Tenant | Q73: Total | R73: Total
B74: Machinery Depreciation
C75: Tractors/Self-Propelled | D75: 1 | F75: Acre | G75: 36.01923744 | I75: 36.01923744 | J75: =E75*H75 -> 0 | K75: 0 | M75: 0 | N75: =J75*L75 -> 0 | O75: 36.01923744 | P75: =+J75-N75 -> 0 | Q75: 3601.923744 | R75: =+J75*E$7 -> 0
C76: Implements | D76: 1 | F76: Acre | G76: 24.7383829 | I76: 24.7383829 | J76: 0 | K76: 0 | M76: 0 | N76: =J76*L76 -> 0 | O76: 24.7383829 | P76: 0 | Q76: 2473.83829 | R76: 0
B77: Equipment Investment
C78: Tractors/Self-Propelled | D78: 277.2134642 | F78: Dollars | G78: 0.085 | I78: 23.56314446 | J78: =E78*H78 -> 0 | K78: 0 | M78: 0 | N78: =J78*L78 -> 0 | O78: 23.56314446 | P78: =+J78-N78 -> 0 | Q78: 2356.314446 | R78: =+J78*E$7 -> 0
C79: Implements | D79: 137.311119 | F79: Dollars | G79: 0.085 | I79: 11.67144512 | J79: 0 | K79: 0 | M79: 0 | N79: =J79*L79 -> 0 | O79: 11.67144512 | P79: 0 | Q79: 1167.144512 | R79: 0
B80: Salaried Labor | D80: 1 | F80: Acre | G80: 0 | I80: 0 | J80: 0 | K80: 0 | M80: 0 | N80: =J80*L80 -> 0 | O80: 0 | P80: =+J80-N80 -> 0 | Q80: 0 | R80: =+J80*E$7 -> 0
B81: Management Fee, Owner/Operator Labor | D81: 1 | F81: Acre | G81: 0 | I81: 0 | J81: 0 | K81: 0 | M81: 0 | N81: 0 | O81: 0 | P81: 0 | Q81: 0 | R81: 0
B82: Allocated Establishment Cost | D82: 1 | F82: Acre | G82: 0 | I82: 0 | J82: 0 | K82: 0 | M82: 0 | N82: 0 | O82: 0 | P82: 0 | Q82: 0 | R82: 0
B83: Cash Rent, Irrigated | D83: 1 | F83: Acre | G83: 95 | I83: 95 | J83: 0 | K83: 0 | M83: 0 | N83: 0 | O83: 95 | P83: 0 | Q83: 9500 | R83: 0
B84: Property Taxes | D84: 1 | F84: Acre | G84: 0 | I84: 0 | J84: 0 | K84: 0 | M84: 0 | N84: 0 | O84: 0 | P84: 0 | Q84: 0 | R84: 0
B85: Whole Farm Insurance | D85: 1 | F85: Acre | G85: 0 | I85: 0 | J85: 0 | K85: 0 | M85: 0 | N85: 0 | O85: 0 | P85: 0 | Q85: 0 | R85: 0
D86: 1 | G86: 0 | I86: 0 | J86: 0 | K86: 0 | M86: 0 | N86: 0 | O86: 0 | P86: 0 | Q86: 0 | R86: 0
D87: 1 | G87: 0 | I87: 0 | J87: =E87*H87 -> 0 | K87: 0 | M87: 0 | N87: 0 | O87: 0 | P87: 0 | Q87: 0 | R87: 0
A88: Total Fixed Costs | I88: 190.9922099 | J88: =+SUM(J75:J87) -> 0 | M88: 0 | N88: =+SUM(N75:N87) -> 0 | O88: 190.9922099 | P88: =+SUM(P75:P87) -> 0 | Q88: 19099.22099 | R88: =+SUM(R75:R87) -> 0
A89: Total Specified Costs | I89: 1156.960732 | J89: =+J69+J88 -> 0 | M89: 0 | N89: =+N69+N88 -> 0 | O89: 1156.960732 | P89: =+P69+P88 -> 0 | Q89: 115696.0732 | R89: =+R69+R88 -> 0
A91: Returns Above Specified Costs | I91: -113.2367318 | J91: =+J14-J89 -> 0 | M91: 0 | N91: =+N14-N89 -> 0 | O91: -113.2367318 | P91: =+P14-P89 -> 0 | Q91: -11323.67318 | R91: =+R14-R89 -> 0
A93: Breakeven Price to Cover Total Costs | G93: 0.7438790606 | H93: =IF(E10=0,"n/a",(YTotExp-(YTotExp+YTotRet-J10))/E10) -> n/a | I93: Pound
D95: Example Breakeven Prices
B96: Example | C96: Example | D96: To Cover | G96: To Cover
B97: Yield | C97: Yield | D97: Variable | G97: Total
B98: Percent | C98: Pound | D98: Costs | G98: Costs
B99: 0.75 | C99: 1012.5 | D99: 0.803204466 | G99: 0.9918387474
B100: 0.9 | C100: 1215 | D100: 0.669337055 | G100: 0.8265322895
B101: 1 | C101: 1350 | D101: 0.6024033495 | G101: 0.7438790606
B102: 1.1 | C102: 1485 | D102: 0.5476394086 | G102: 0.6762536914
B103: 1.25 | C103: 1687.5 | D103: 0.4819226796 | G103: 0.5951032484
A105: Developed by Manuel Garcia, Assistant Professor and Extension Specialist, Texas A&M AgriLife Extension, 956-968-5581
A107: Information presented is prepared solely as a general guide and not intended to recognize or predict the costs and returns from any one operation. Brand names are mentioned only as examples and imply no endorsement.

Sheet CottonReducedTill
A1: Projections for Planning Purposes Only -- Not to be Used without Updating
A2: 2025 Estimated Costs and Returns per Acre
A3: Cotton, Reduced Tillage, GMO, Furrow Irrigated, Rio Grande Valley
A4: Enter your name for this budget in the cell above.
A5: Enter Your Values in the cells highlighed in MAROON.
E6: Your Acres | R6: Your
C7: Crop Acres | D7: 100 | L7: Your | Q7: Enterprise | R7: Enterprise
E8: Your | H8: Your | I8: Cash | J8: Your | K8: Landlord | L8: Landlord | N8: Your | P8: Your | Q8: Total | R8: Total
A9: REVENUE | D9: Quantity | E9: Quantity | F9: Units | G9: $/Unit | H9: $/Unit | I9: Total | J9: Total | K9: Share | L9: Share | M9: Landlord | N9: Landlord | O9: Tenant | P9: Tenant | Q9: (100 acres) | R9: ="(" & E7 & " acres)" -> ( acres)
B10: Cotton Lint | D10: 1250 | F10: Pound | G10: 0.66 | I10: 825 | J10: =E10*H10 -> 0 | K10: 0 | M10: 0 | N10: =J10*L10 -> 0 | O10: 825 | P10: =+J10-N10 -> 0 | Q10: 82500 | R10: =+J10*E$7 -> 0
B11: Cottonseed | D11: 0.89 | F11: Ton | G11: 220 | I11: 195.8 | J11: 0 | K11: 0 | M11: 0 | N11: 0 | O11: 195.8 | P11: =+J11-N11 -> 0 | Q11: 19580 | R11: 0
D12: 0 | G12: 0 | I12: 0 | J12: 0 | K12: 0 | M12: 0 | N12: 0 | O12: 0 | P12: 0 | Q12: 0 | R12: 0
D13: 0 | G13: 0 | I13: 0 | J13: 0 | K13: 0 | M13: 0 | N13: 0 | O13: 0 | P13: 0 | Q13: 0 | R13: 0
A14: Total Revenue | I14: 1020.8 | J14: =SUM(J10:J13) -> 0 | M14: 0 | N14: =SUM(N10:N13) -> 0 | O14: 1020.8 | P14: =SUM(P10:P13) -> 0 | Q14: 102080 | R14: =SUM(R10:R13) -> 0
Q15: Enterprise | R15: Enterprise
A16: VARIABLE COSTS | D16: Quantity | E16: Quantity | F16: Units | G16: $/Unit | H16: $/Unit | I16: Total | J16: Total | K16: Share | L16: Share | M16: Landlord | N16: Landlord | O16: Tenant | P16: Tenant | Q16: Total | R16: Total
A17: Production Costs
B18: Herbicide
C19: Glyphosate | D19: 3.75 | F19: Pint | G19: 6.25 | I19: 23.4375 | J19: =E19*H19 -> 0 | K19: 0 | M19: 0 | N19: =J19*L19 -> 0 | O19: 23.4375 | P19: =+J19-N19 -> 0 | Q19: 2343.75 | R19: =+J19*E$7 -> 0
C20: Harmony Extra | D20: 0.6 | F20: Ounce | G20: 11.33 | I20: 6.798 | J20: 0 | K20: 0 | M20: 0 | N20: 0 | O20: 6.798 | P20: 0 | Q20: 679.8 | R20: 0
C21: 2, 4-D Amine | D21: 2 | F21: Pint | G21: 2.99375 | I21: 5.9875 | J21: 0 | K21: 0 | M21: 0 | N21: 0 | O21: 5.9875 | P21: 0 | Q21: 598.75 | R21: 0
B22: Seed
C23: Cotton Seed | D23: 50 | F23: Thousand | G23: 1.956521739 | I23: 97.82608696 | J23: 0 | K23: 0 | M23: 0 | N23: 0 | O23: 97.82608696 | P23: 0 | Q23: 9782.608696 | R23: 0
B24: Fertilizer
C25: UAN (32% N) | D25: 3.93 | F25: CWT | G25: 19 | I25: 74.67 | J25: 0 | K25: 0 | M25: 0 | N25: 0 | O25: 74.67 | P25: 0 | Q25: 7467 | R25: 0
B26: Custom
C27: Insect Scouting | D27: 1 | F27: Acre | G27: 15 | I27: 15 | J27: 0 | K27: 0 | M27: 0 | N27: 0 | O27: 15 | P27: 0 | Q27: 1500 | R27: 0
C28: Custon Harvest Cotton | D28: 1250 | F28: Pound | G28: 0.165 | I28: 206.25 | J28: 0 | K28: 0 | M28: 0 | N28: 0 | O28: 206.25 | P28: 0 | Q28: 20625 | R28: 0
C29: Gin | D29: 1250 | F29: Pound | G29: 0.15 | I29: 187.5 | J29: 0 | K29: 0 | M29: 0 | N29: 0 | O29: 187.5 | P29: 0 | Q29: 18750 | R29: 0
B30: Miscellaneous
C31: Insurance, Cotton - Irrigated | D31: 1 | F31: Acre | G31: 33 | I31: 33 | J31: 0 | K31: 0 | M31: 0 | N31: 0 | O31: 33 | P31: 0 | Q31: 3300 | R31: 0
C32: BW Eradication Program - Irr | D32: 1 | F32: Acre | G32: 28 | I32: 28 | J32: 0 | K32: 0 | M32: 0 | N32: 0 | O32: 28 | P32: 0 | Q32: 2800 | R32: 0
B33: Insecticide
C34: Centric | D34: 2.5 | F34: Ounce | G34: 5.95 | I34: 14.875 | J34: 0 | K34: 0 | M34: 0 | N34: 0 | O34: 14.875 | P34: 0 | Q34: 1487.5 | R34: 0
C35: Sivanto | D35: 10.5 | F35: Ounce | G35: 3.280859375 | I35: 34.44902344 | J35: 0 | K35: 0 | M35: 0 | N35: 0 | O35: 34.44902344 | P35: 0 | Q35: 3444.902344 | R35: 0
C36: Transform | D36: 1 | F36: Ounce | G36: 9.343359375 | I36: 9.343359375 | J36: 0 | K36: 0 | M36: 0 | N36: 0 | O36: 9.343359375 | P36: 0 | Q36: 934.3359375 | R36: 0
B37: Other Chemicals
C38: Mepiquat | D38: 48 | F38: Ounce | G38: 0.046875 | I38: 2.25 | J38: 0 | K38: 0 | M38: 0 | N38: 0 | O38: 2.25 | P38: 0 | Q38: 225 | R38: 0
C39: Thidiazuron | D39: 4 | F39: Ounce | G39: 1.22109375 | I39: 4.884375 | J39: 0 | K39: 0 | M39: 0 | N39: 0 | O39: 4.884375 | P39: 0 | Q39: 488.4375 | R39: 0
C40: Surfactant | D40: 0.5 | F40: Pint | G40: 7.475 | I40: 3.7375 | J40: 0 | K40: 0 | M40: 0 | N40: 0 | O40: 3.7375 | P40: 0 | Q40: 373.75 | R40: 0
C41: Ethephon | D41: 21 | F41: Ounce | G41: 0.39371875 | I41: 8.26809375 | J41: 0 | K41: 0 | M41: 0 | N41: 0 | O41: 8.26809375 | P41: 0 | Q41: 826.809375 | R41: 0
B42: Other Labor
C43: Unallocated Labor | D43: 0.88 | F43: Hour | G43: 15 | I43: 13.2 | J43: 0 | K43: 0 | M43: 0 | N43: 0 | O43: 13.2 | P43: 0 | Q43: 1320 | R43: 0
D44: 0 | G44: 0 | I44: 0 | J44: 0 | K44: 0 | M44: 0 | N44: 0 | O44: 0 | P44: 0 | Q44: 0 | R44: 0
D45: 0 | G45: 0 | I45: 0 | J45: 0 | K45: 0 | M45: 0 | N45: 0 | O45: 0 | P45: 0 | Q45: 0 | R45: 0
D46: 0 | G46: 0 | I46: 0 | J46: =E46*H46 -> 0 | K46: 0 | M46: 0 | N46: =J46*L46 -> 0 | O46: 0 | P46: =+J46-N46 -> 0 | Q46: 0 | R46: =+J46*E$7 -> 0
B47: Irrigation
C48: Water Cost | D48: 1.2 | F48: Acre/Foot | G48: 32.66666667 | I48: 39.2 | J48: =E48*H48 -> 0 | K48: 0 | M48: 0 | N48: =J48*L48 -> 0 | O48: 39.2 | P48: =+J48-N48 -> 0 | Q48: 3920 | R48: =+J48*E$7 -> 0
C49: Irrigation Labor | D49: 3.3 | F49: Hour | G49: 17.5 | I49: 57.75 | J49: 0 | K49: 0 | M49: 0 | N49: 0 | O49: 57.75 | P49: 0 | Q49: 5775 | R49: 0
B50: Machinery Labor
C51: Tractors/Self-Propelled | D51: 1.56 | F51: Hour | G51: 17.21 | I51: 26.8476 | J51: =E51*H51 -> 0 | K51: 0 | M51: 0 | N51: =J51*L51 -> 0 | O51: 26.8476 | P51: =+J51-N51 -> 0 | Q51: 2684.76 | R51: =+J51*E$7 -> 0
C52: Other Labor | D52: 0.36 | F52: Hour | G52: 17.21 | I52: 6.1956 | J52: =E52*H52 -> 0 | K52: 0 | M52: 0 | N52: =J52*L52 -> 0 | O52: 6.1956 | P52: =+J52-N52 -> 0 | Q52: 619.56 | R52: =+J52*E$7 -> 0
B54: Diesel Fuel
C55: Pickup/General Use Equipment | D55: 1 | F55: Acre | G55: 0 | I55: 0 | J55: =E55*H55 -> 0 | K55: 0 | M55: 0 | N55: =J55*L55 -> 0 | O55: 0 | P55: =+J55-N55 -> 0 | Q55: 0 | R55: =+J55*E$7 -> 0
C56: Tractors/Self-Propelled | D56: 9.34 | F56: Gallon | G56: 3.6 | I56: 33.624 | J56: =E56*H56 -> 0 | K56: 0 | M56: 0 | N56: =J56*L56 -> 0 | O56: 33.624 | P56: =+J56-N56 -> 0 | Q56: 3362.4 | R56: =+J56*E$7 -> 0
B58: Gasoline
C59: Pickup/General Use Equipment | D59: 1 | F59: Acre | G59: 0 | I59: 0 | J59: =E59*H59 -> 0 | K59: 0 | M59: 0 | N59: =J59*L59 -> 0 | O59: 0 | P59: =+J59-N59 -> 0 | Q59: 0 | R59: =+J59*E$7 -> 0
C60: Tractors/Self-Propelled | D60: 0 | F60: Gallon | G60: 3.15 | I60: 0 | J60: =E60*H60 -> 0 | K60: 0 | M60: 0 | N60: =J60*L60 -> 0 | O60: 0 | P60: =+J60-N60 -> 0 | Q60: 0 | R60: =+J60*E$7 -> 0
B62: Repairs & Maintenance
C63: Pickup/General Use Equipment | D63: 1 | F63: Acre | G63: 0 | I63: 0 | J63: =E63*H63 -> 0 | K63: 0 | M63: 0 | N63: =J63*L63 -> 0 | O63: 0 | P63: =+J63-N63 -> 0 | Q63: 0 | R63: =+J63*E$7 -> 0
C64: Irrigation Equipment | D64: 1 | F64: Acre | G64: 0 | I64: 0 | J64: 0 | K64: 0 | M64: 0 | N64: 0 | O64: 0 | P64: 0 | Q64: 0 | R64: 0
C65: Tractors/Self-Propelled | D65: 1 | F65: Acre | G65: 16.87375896 | I65: 16.87375896 | J65: 0 | K65: 0 | M65: 0 | N65: 0 | O65: 16.87375896 | P65: 0 | Q65: 1687.375896 | R65: 0
C66: Implements | D66: 1 | F66: Acre | G66: 13.66036264 | I66: 13.66036264 | J66: 0 | K66: 0 | M66: 0 | N66: 0 | O66: 13.66036264 | P66: 0 | Q66: 1366.036264 | R66: 0
I67: 0 | J67: 0 | K67: 0 | M67: 0 | N67: 0 | O67: 0 | P67: 0 | Q67: 0 | R67: 0
I68: 0 | J68: 0 | K68: 0 | M68: 0 | N68: 0 | O68: 0 | P68: 0 | Q68: 0 | R68: 0
B69: Interest on Credit Line | G69: 0.085 | I69: 20.42933916 | J69: =+SUM(J18:J68)/2*H69 -> 0 | M69: 0 | N69: =+SUM(N18:N68)/2*L69 -> 0 | O69: 20.42933916 | P69: =+SUM(P18:P68)/2*L69 -> 0 | Q69: 2042.933916 | R69: =+J69*E$7 -> 0
A70: Total Variable Costs | I70: 984.0570993 | J70: =SUM(J19:J69) -> 0 | M70: 0 | N70: =SUM(N19:N69) -> 0 | O70: 984.0570993 | P70: =SUM(P19:P69) -> 0 | Q70: 98405.70993 | R70: =SUM(R19:R69) -> 0
A71: Planned Returns Above Variable Costs: | I71: 36.74290072 | J71: =+J14-J70 -> 0 | M71: 0 | N71: =+N14-N70 -> 0 | O71: 36.74290072 | P71: =+P14-P70 -> 0 | Q71: 3674.290072 | R71: =+R14-R70 -> 0
B72: Breakeven Price to Cover Variable Costs | G72: 0.6306056794 | H72: =IF(E10=0,"n/a",(YVarExp-(YTotExp+YTotRet-J10))/E10) -> n/a | I72: Pound
Q73: Enterprise | R73: Enterprise
A74: FIXED COSTS | D74: Quantity | E74: Quantity | F74: Units | G74: $/Unit | H74: $/Unit | I74: Total | J74: Total | K74: Share | L74: Share | M74: Landlord | N74: Landlord | O74: Tenant | P74: Tenant | Q74: Total | R74: Total
B75: Machinery Depreciation
C76: Tractors/Self-Propelled | D76: 1 | F76: Acre | G76: 24.72800174 | I76: 24.72800174 | J76: =E76*H76 -> 0 | K76: 0 | M76: 0 | N76: =J76*L76 -> 0 | O76: 24.72800174 | P76: =+J76-N76 -> 0 | Q76: 2472.800174 | R76: =+J76*E$7 -> 0
C77: Implements | D77: 1 | F77: Acre | G77: 16.62502839 | I77: 16.62502839 | J77: 0 | K77: 0 | M77: 0 | N77: =J77*L77 -> 0 | O77: 16.62502839 | P77: 0 | Q77: 1662.502839 | R77: 0
B78: Equipment Investment
C79: Tractors/Self-Propelled | D79: 189.2510958 | F79: Dollars | G79: 0.085 | I79: 16.08634314 | J79: =E79*H79 -> 0 | K79: 0 | M79: 0 | N79: =J79*L79 -> 0 | O79: 16.08634314 | P79: =+J79-N79 -> 0 | Q79: 1608.634314 | R79: =+J79*E$7 -> 0
C80: Implements | D80: 103.0021679 | F80: Dollars | G80: 0.085 | I80: 8.755184275 | J80: 0 | K80: 0 | M80: 0 | N80: =J80*L80 -> 0 | O80: 8.755184275 | P80: 0 | Q80: 875.5184275 | R80: 0
B81: Salaried Labor | D81: 1 | F81: Acre | G81: 0 | I81: 0 | J81: 0 | K81: 0 | M81: 0 | N81: =J81*L81 -> 0 | O81: 0 | P81: =+J81-N81 -> 0 | Q81: 0 | R81: =+J81*E$7 -> 0
B82: Management Fee, Owner/Operator Labor | D82: 1 | F82: Acre | G82: 0 | I82: 0 | J82: 0 | K82: 0 | M82: 0 | N82: 0 | O82: 0 | P82: 0 | Q82: 0 | R82: 0
B83: Allocated Establishment Cost | D83: 1 | F83: Acre | G83: 0 | I83: 0 | J83: 0 | K83: 0 | M83: 0 | N83: 0 | O83: 0 | P83: 0 | Q83: 0 | R83: 0
B84: Cash Rent, Irrigated | D84: 1 | F84: Acre | G84: 95 | I84: 95 | J84: 0 | K84: 0 | M84: 0 | N84: 0 | O84: 95 | P84: 0 | Q84: 9500 | R84: 0
B85: Property Taxes | D85: 1 | F85: Acre | G85: 0 | I85: 0 | J85: 0 | K85: 0 | M85: 0 | N85: 0 | O85: 0 | P85: 0 | Q85: 0 | R85: 0
B86: Whole Farm Insurance | D86: 1 | F86: Acre | G86: 0 | I86: 0 | J86: 0 | K86: 0 | M86: 0 | N86: 0 | O86: 0 | P86: 0 | Q86: 0 | R86: 0
D87: 1 | G87: 0 | I87: 0 | J87: 0 | K87: 0 | M87: 0 | N87: 0 | O87: 0 | P87: 0 | Q87: 0 | R87: 0
D88: 1 | G88: 0 | I88: 0 | J88: =E88*H88 -> 0 | K88: 0 | M88: 0 | N88: 0 | O88: 0 | P88: 0 | Q88: 0 | R88: 0
A89: Total Fixed Costs | I89: 161.1945575 | J89: =+SUM(J76:J88) -> 0 | M89: 0 | N89: =+SUM(N76:N88) -> 0 | O89: 161.1945575 | P89: =+SUM(P76:P88) -> 0 | Q89: 16119.45575 | R89: =+SUM(R76:R88) -> 0
A90: Total Specified Costs | I90: 1145.251657 | J90: =+J70+J89 -> 0 | M90: 0 | N90: =+N70+N89 -> 0 | O90: 1145.251657 | P90: =+P70+P89 -> 0 | Q90: 114525.1657 | R90: =+R70+R89 -> 0
A92: Returns Above Specified Costs | I92: -124.4516568 | J92: =+J14-J90 -> 0 | M92: 0 | N92: =+N14-N90 -> 0 | O92: -124.4516568 | P92: =+P14-P90 -> 0 | Q92: -12445.16568 | R92: =+R14-R90 -> 0
A94: Breakeven Price to Cover Total Costs | G94: 0.7595613255 | H94: =IF(E10=0,"n/a",(YTotExp-(YTotExp+YTotRet-J10))/E10) -> n/a | I94: Pound
D96: Example Breakeven Prices
B97: Example | C97: Example | D97: To Cover | G97: To Cover
B98: Yield | C98: Yield | D98: Variable | G98: Total
B99: Percent | C99: Pound | D99: Costs | G99: Costs
B100: 0.75 | C100: 937.5 | D100: 0.8408075726 | G100: 1.012748434
B101: 0.9 | C101: 1125 | D101: 0.7006729771 | G101: 0.8439570283
B102: 1 | C102: 1250 | D102: 0.6306056794 | G102: 0.7595613255
B103: 1.1 | C103: 1375 | D103: 0.5732778904 | G103: 0.6905102959
B104: 1.25 | C104: 1562.5 | D104: 0.5044845435 | G104: 0.6076490604
A106: Developed by Manuel Garcia, Assistant Professor and Extension Specialist, Texas A&M AgriLife Extension, 956-968-5581
A108: Information presented is prepared solely as a general guide and not intended to recognize or predict the costs and returns from any one operation. Brand names are mentioned only as examples and imply no endorsement.

Sheet CottonDryland
A1: Projections for Planning Purposes Only -- Not to be Used without Updating
A2: 2025 Estimated Costs and Returns per Acre
A3: Cotton, Conventional Tillage, Dryland, Rio Grande Valley
A4: Enter your name for this budget in the cell above.
A5: Enter Your Values in the cells highlighed in MAROON.
E6: Your Acres | R6: Your
C7: Crop Acres | D7: 100 | L7: Your | Q7: Enterprise | R7: Enterprise
E8: Your | H8: Your | I8: Cash | J8: Your | K8: Landlord | L8: Landlord | N8: Your | P8: Your | Q8: Total | R8: Total
A9: REVENUE | D9: Quantity | E9: Quantity | F9: Units | G9: $/Unit | H9: $/Unit | I9: Total | J9: Total | K9: Share | L9: Share | M9: Landlord | N9: Landlord | O9: Tenant | P9: Tenant | Q9: (100 acres) | R9: ="(" & E7 & " acres)" -> ( acres)
B10: Cotton Lint | D10: 620 | F10: Pound | G10: 0.66 | I10: 409.2 | J10: =E10*H10 -> 0 | K10: 0 | M10: 0 | N10: =J10*L10 -> 0 | O10: 409.2 | P10: =+J10-N10 -> 0 | Q10: 40920 | R10: =+J10*E$7 -> 0
B11: Cottonseed | D11: 0.51264 | F11: Ton | G11: 220 | I11: 112.7808 | J11: 0 | K11: 0 | M11: 0 | N11: 0 | O11: 112.7808 | P11: =+J11-N11 -> 0 | Q11: 11278.08 | R11: 0
D12: 0 | G12: 0 | I12: 0 | J12: 0 | K12: 0 | M12: 0 | N12: 0 | O12: 0 | P12: 0 | Q12: 0 | R12: 0
D13: 0 | G13: 0 | I13: 0 | J13: 0 | K13: 0 | M13: 0 | N13: 0 | O13: 0 | P13: 0 | Q13: 0 | R13: 0
A14: Total Revenue | I14: 521.9808 | J14: =SUM(J10:J13) -> 0 | M14: 0 | N14: =SUM(N10:N13) -> 0 | O14: 521.9808 | P14: =SUM(P10:P13) -> 0 | Q14: 52198.08 | R14: =SUM(R10:R13) -> 0
Q15: Enterprise | R15: Enterprise
A16: VARIABLE COSTS | D16: Quantity | E16: Quantity | F16: Units | G16: $/Unit | H16: $/Unit | I16: Total | J16: Total | K16: Share | L16: Share | M16: Landlord | N16: Landlord | O16: Tenant | P16: Tenant | Q16: Total | R16: Total
A17: Production Costs
B18: Herbicide
C19: Trifluralin 4EC | D19: 2 | F19: Pint | G19: 4.7475 | I19: 9.495 | J19: =E19*H19 -> 0 | K19: 0 | M19: 0 | N19: =J19*L19 -> 0 | O19: 9.495 | P19: =+J19-N19 -> 0 | Q19: 949.5 | R19: =+J19*E$7 -> 0
B20: Seed
C21: Cotton Seed | D21: 30 | F21: Thousand | G21: 1.956521739 | I21: 58.69565217 | J21: 0 | K21: 0 | M21: 0 | N21: 0 | O21: 58.69565217 | P21: 0 | Q21: 5869.565217 | R21: 0
B22: Fertilizer
C23: UAN (32% N) | D23: 2.26 | F23: CWT | G23: 19 | I23: 42.94 | J23: 0 | K23: 0 | M23: 0 | N23: 0 | O23: 42.94 | P23: 0 | Q23: 4294 | R23: 0
B24: Custom
C25: Insect Scouting | D25: 1 | F25: Acre | G25: 15 | I25: 15 | J25: 0 | K25: 0 | M25: 0 | N25: 0 | O25: 15 | P25: 0 | Q25: 1500 | R25: 0
C26: Custon Harvest Cotton | D26: 720 | F26: Pound | G26: 0.165 | I26: 118.8 | J26: 0 | K26: 0 | M26: 0 | N26: 0 | O26: 118.8 | P26: 0 | Q26: 11880 | R26: 0
C27: Gin | D27: 720 | F27: Pound | G27: 0.15 | I27: 108 | J27: 0 | K27: 0 | M27: 0 | N27: 0 | O27: 108 | P27: 0 | Q27: 10800 | R27: 0
B28: Miscellaneous
C29: Insurance, Cotton - Non-irrigated | D29: 1 | F29: Acre | G29: 52 | I29: 52 | J29: 0 | K29: 0 | M29: 0 | N29: 0 | O29: 52 | P29: 0 | Q29: 5200 | R29: 0
C30: BW Eradication Program - Dry | D30: 1 | F30: Acre | G30: 14 | I30: 14 | J30: 0 | K30: 0 | M30: 0 | N30: 0 | O30: 14 | P30: 0 | Q30: 1400 | R30: 0
B31: Insecticide
C32: Transform | D32: 1 | F32: Ounce | G32: 9.343359375 | I32: 9.343359375 | J32: 0 | K32: 0 | M32: 0 | N32: 0 | O32: 9.343359375 | P32: 0 | Q32: 934.3359375 | R32: 0
C33: Centric | D33: 2.5 | F33: Ounce | G33: 5.95 | I33: 14.875 | J33: 0 | K33: 0 | M33: 0 | N33: 0 | O33: 14.875 | P33: 0 | Q33: 1487.5 | R33: 0
C34: Sivanto | D34: 10.5 | F34: Ounce | G34: 3.280859375 | I34: 34.44902344 | J34: 0 | K34: 0 | M34: 0 | N34: 0 | O34: 34.44902344 | P34: 0 | Q34: 3444.902344 | R34: 0
B35: Other Chemicals
C36: Thidiazuron | D36: 4 | F36: Ounce | G36: 1.22109375 | I36: 4.884375 | J36: 0 | K36: 0 | M36: 0 | N36: 0 | O36: 4.884375 | P36: 0 | Q36: 488.4375 | R36: 0
C37: Surfactant | D37: 0.25 | F37: Pint | G37: 7.475 | I37: 1.86875 | J37: 0 | K37: 0 | M37: 0 | N37: 0 | O37: 1.86875 | P37: 0 | Q37: 186.875 | R37: 0
C38: Ethephon | D38: 21 | F38: Ounce | G38: 0.39371875 | I38: 8.26809375 | J38: 0 | K38: 0 | M38: 0 | N38: 0 | O38: 8.26809375 | P38: 0 | Q38: 826.809375 | R38: 0
C39: Mepiquat | D39: 24 | F39: Ounce | G39: 0.046875 | I39: 1.125 | J39: 0 | K39: 0 | M39: 0 | N39: 0 | O39: 1.125 | P39: 0 | Q39: 112.5 | R39: 0
B40: Other Labor
C41: Unallocated Labor | D41: 1.2432 | F41: Hour | G41: 15 | I41: 18.648 | J41: 0 | K41: 0 | M41: 0 | N41: 0 | O41: 18.648 | P41: 0 | Q41: 1864.8 | R41: 0
D42: 0 | G42: 0 | I42: 0 | J42: 0 | K42: 0 | M42: 0 | N42: 0 | O42: 0 | P42: 0 | Q42: 0 | R42: 0
D43: 0 | G43: 0 | I43: 0 | J43: 0 | K43: 0 | M43: 0 | N43: 0 | O43: 0 | P43: 0 | Q43: 0 | R43: 0
D44: 0 | G44: 0 | I44: 0 | J44: =E44*H44 -> 0 | K44: 0 | M44: 0 | N44: =J44*L44 -> 0 | O44: 0 | P44: =+J44-N44 -> 0 | Q44: 0 | R44: =+J44*E$7 -> 0
B45: Machinery Labor
C46: Tractors/Self-Propelled | D46: 1.73 | F46: Hour | G46: 17.21 | I46: 29.7733 | J46: =E46*H46 -> 0 | K46: 0 | M46: 0 | N46: =J46*L46 -> 0 | O46: 29.7733 | P46: =+J46-N46 -> 0 | Q46: 2977.33 | R46: =+J46*E$7 -> 0
C47: Other Labor | D47: 0.35 | F47: Hour | G47: 17.21 | I47: 6.0235 | J47: =E47*H47 -> 0 | K47: 0 | M47: 0 | N47: =J47*L47 -> 0 | O47: 6.0235 | P47: =+J47-N47 -> 0 | Q47: 602.35 | R47: =+J47*E$7 -> 0
B49: Diesel Fuel
C50: Pickup/General Use Equipment | D50: 1 | F50: Acre | G50: 0 | I50: 0 | J50: =E50*H50 -> 0 | K50: 0 | M50: 0 | N50: =J50*L50 -> 0 | O50: 0 | P50: =+J50-N50 -> 0 | Q50: 0 | R50: =+J50*E$7 -> 0
C51: Tractors/Self-Propelled | D51: 13.1 | F51: Gallon | G51: 3.6 | I51: 47.16 | J51: =E51*H51 -> 0 | K51: 0 | M51: 0 | N51: =J51*L51 -> 0 | O51: 47.16 | P51: =+J51-N51 -> 0 | Q51: 4716 | R51: =+J51*E$7 -> 0
B53: Gasoline
C54: Pickup/General Use Equipment | D54: 1 | F54: Acre | G54: 0 | I54: 0 | J54: =E54*H54 -> 0 | K54: 0 | M54: 0 | N54: =J54*L54 -> 0 | O54: 0 | P54: =+J54-N54 -> 0 | Q54: 0 | R54: =+J54*E$7 -> 0
C55: Tractors/Self-Propelled | D55: 0 | F55: Gallon | G55: 3.15 | I55: 0 | J55: =E55*H55 -> 0 | K55: 0 | M55: 0 | N55: =J55*L55 -> 0 | O55: 0 | P55: =+J55-N55 -> 0 | Q55: 0 | R55: =+J55*E$7 -> 0
B57: Repairs & Maintenance
C58: Pickup/General Use Equipment | D58: 1 | F58: Acre | G58: 0 | I58: 0 | J58: =E58*H58 -> 0 | K58: 0 | M58: 0 | N58: =J58*L58 -> 0 | O58: 0 | P58: =+J58-N58 -> 0 | Q58: 0 | R58: =+J58*E$7 -> 0
C59: Irrigation Equipment | D59: 1 | F59: Acre | G59: 0 | I59: 0 | J59: 0 | K59: 0 | M59: 0 | N59: 0 | O59: 0 | P59: 0 | Q59: 0 | R59: 0
C60: Tractors/Self-Propelled | D60: 1 | F60: Acre | G60: 27.49035788 | I60: 27.49035788 | J60: 0 | K60: 0 | M60: 0 | N60: 0 | O60: 27.49035788 | P60: 0 | Q60: 2749.035788 | R60: 0
C61: Implements | D61: 1 | F61: Acre | G61: 20.09465591 | I61: 20.09465591 | J61: 0 | K61: 0 | M61: 0 | N61: 0 | O61: 20.09465591 | P61: 0 | Q61: 2009.465591 | R61: 0
I62: 0 | J62: 0 | K62: 0 | M62: 0 | N62: 0 | O62: 0 | P62: 0 | Q62: 0 | R62: 0
I63: 0 | J63: 0 | K63: 0 | M63: 0 | N63: 0 | O63: 0 | P63: 0 | Q63: 0 | R63: 0
B64: Interest on Credit Line | G64: 0.085 | I64: 11.80147746 | J64: =+SUM(J18:J63)/2*H64 -> 0 | M64: 0 | N64: =+SUM(N18:N63)/2*L64 -> 0 | O64: 11.80147746 | P64: =+SUM(P18:P63)/2*L64 -> 0 | Q64: 1180.147746 | R64: =+J64*E$7 -> 0
A65: Total Variable Costs | I65: 654.735545 | J65: =SUM(J19:J64) -> 0 | M65: 0 | N65: =SUM(N19:N64) -> 0 | O65: 654.735545 | P65: =SUM(P19:P64) -> 0 | Q65: 65473.5545 | R65: =SUM(R19:R64) -> 0
A66: Planned Returns Above Variable Costs: | I66: -132.754745 | J66: =+J14-J65 -> 0 | M66: 0 | N66: =+N14-N65 -> 0 | O66: -132.754745 | P66: =+P14-P65 -> 0 | Q66: -13275.4745 | R66: =+R14-R65 -> 0
B67: Breakeven Price to Cover Variable Costs | G67: 0.8741205564 | H67: =IF(E10=0,"n/a",(YVarExp-(YTotExp+YTotRet-J10))/E10) -> n/a | I67: Pound
Q68: Enterprise | R68: Enterprise
A69: FIXED COSTS | D69: Quantity | E69: Quantity | F69: Units | G69: $/Unit | H69: $/Unit | I69: Total | J69: Total | K69: Share | L69: Share | M69: Landlord | N69: Landlord | O69: Tenant | P69: Tenant | Q69: Total | R69: Total
B70: Machinery Depreciation
C71: Tractors/Self-Propelled | D71: 1 | F71: Acre | G71: 35.6984873 | I71: 35.6984873 | J71: =E71*H71 -> 0 | K71: 0 | M71: 0 | N71: =J71*L71 -> 0 | O71: 35.6984873 | P71: =+J71-N71 -> 0 | Q71: 3569.84873 | R71: =+J71*E$7 -> 0
C72: Implements | D72: 1 | F72: Acre | G72: 24.47690165 | I72: 24.47690165 | J72: 0 | K72: 0 | M72: 0 | N72: =J72*L72 -> 0 | O72: 24.47690165 | P72: 0 | Q72: 2447.690165 | R72: 0
B73: Equipment Investment
C74: Tractors/Self-Propelled | D74: 274.7147171 | F74: Dollars | G74: 0.085 | I74: 23.35075096 | J74: =E74*H74 -> 0 | K74: 0 | M74: 0 | N74: =J74*L74 -> 0 | O74: 23.35075096 | P74: =+J74-N74 -> 0 | Q74: 2335.075096 | R74: =+J74*E$7 -> 0
C75: Implements | D75: 136.0037128 | F75: Dollars | G75: 0.085 | I75: 11.56031559 | J75: 0 | K75: 0 | M75: 0 | N75: =J75*L75 -> 0 | O75: 11.56031559 | P75: 0 | Q75: 1156.031559 | R75: 0
B76: Salaried Labor | D76: 1 | F76: Acre | G76: 0 | I76: 0 | J76: 0 | K76: 0 | M76: 0 | N76: =J76*L76 -> 0 | O76: 0 | P76: =+J76-N76 -> 0 | Q76: 0 | R76: =+J76*E$7 -> 0
B77: Management Fee, Owner/Operator Labor | D77: 1 | F77: Acre | G77: 0 | I77: 0 | J77: 0 | K77: 0 | M77: 0 | N77: 0 | O77: 0 | P77: 0 | Q77: 0 | R77: 0
B78: Allocated Establishment Cost | D78: 1 | F78: Acre | G78: 0 | I78: 0 | J78: 0 | K78: 0 | M78: 0 | N78: 0 | O78: 0 | P78: 0 | Q78: 0 | R78: 0
B79: Cash Rent, Dryland | D79: 1 | F79: Acre | G79: 70 | I79: 70 | J79: 0 | K79: 0 | M79: 0 | N79: 0 | O79: 70 | P79: 0 | Q79: 7000 | R79: 0
B80: Property Taxes | D80: 1 | F80: Acre | G80: 0 | I80: 0 | J80: 0 | K80: 0 | M80: 0 | N80: 0 | O80: 0 | P80: 0 | Q80: 0 | R80: 0
B81: Whole Farm Insurance | D81: 1 | F81: Acre | G81: 0 | I81: 0 | J81: 0 | K81: 0 | M81: 0 | N81: 0 | O81: 0 | P81: 0 | Q81: 0 | R81: 0
D82: 1 | G82: 0 | I82: 0 | J82: 0 | K82: 0 | M82: 0 | N82: 0 | O82: 0 | P82: 0 | Q82: 0 | R82: 0
D83: 1 | G83: 0 | I83: 0 | J83: =E83*H83 -> 0 | K83: 0 | M83: 0 | N83: 0 | O83: 0 | P83: 0 | Q83: 0 | R83: 0
A84: Total Fixed Costs | I84: 165.0864555 | J84: =+SUM(J71:J83) -> 0 | M84: 0 | N84: =+SUM(N71:N83) -> 0 | O84: 165.0864555 | P84: =+SUM(P71:P83) -> 0 | Q84: 16508.64555 | R84: =+SUM(R71:R83) -> 0
A85: Total Specified Costs | I85: 819.8220005 | J85: =+J65+J84 -> 0 | M85: 0 | N85: =+N65+N84 -> 0 | O85: 819.8220005 | P85: =+P65+P84 -> 0 | Q85: 81982.20005 | R85: =+R65+R84 -> 0
A87: Returns Above Specified Costs | I87: -297.8412005 | J87: =+J14-J85 -> 0 | M87: 0 | N87: =+N14-N85 -> 0 | O87: -297.8412005 | P87: =+P14-P85 -> 0 | Q87: -29784.12005 | R87: =+R14-R85 -> 0
A89: Breakeven Price to Cover Total Costs | G89: 1.140389033 | H89: =IF(E10=0,"n/a",(YTotExp-(YTotExp+YTotRet-J10))/E10) -> n/a | I89: Pound
D91: Example Breakeven Prices
B92: Example | C92: Example | D92: To Cover | G92: To Cover
B93: Yield | C93: Yield | D93: Variable | G93: Total
B94: Percent | C94: Pound | D94: Costs | G94: Costs
B95: 0.75 | C95: 465 | D95: 1.165494075 | G95: 1.520518711
B96: 0.9 | C96: 558 | D96: 0.9712450627 | G96: 1.267098926
B97: 1 | C97: 620 | D97: 0.8741205564 | G97: 1.140389033
B98: 1.1 | C98: 682 | D98: 0.7946550513 | G98: 1.036717303
B99: 1.25 | C99: 775 | D99: 0.6992964451 | G99: 0.9123112264
A101: Developed by Manuel Garcia, Assistant Professor and Extension Specialist, Texas A&M AgriLife Extension, 956-968-5581
A103: Information presented is prepared solely as a general guide and not intended to recognize or predict the costs and returns from any one operation. Brand names are mentioned only as examples and imply no endorsement.

Sheet SorghumConventionalTill
A1: Projections for Planning Purposes Only -- Not to be Used without Updating
A2: 2025 Estimated Costs and Returns per Acre
A3: Grain Sorghum, Conventional Tillage, Furrow Irrigated, Rio Grande Valley
A4: Enter your name for this budget in the cell above.
A5: Enter Your Values in the cells highlighed in MAROON.
E6: Your Acres | R6: Your
C7: Crop Acres | D7: 100 | L7: Your | Q7: Enterprise | R7: Enterprise
E8: Your | H8: Your | I8: Cash | J8: Your | K8: Landlord | L8: Landlord | N8: Your | P8: Your | Q8: Total | R8: Total
A9: REVENUE | D9: Quantity | E9: Quantity | F9: Units | G9: $/Unit | H9: $/Unit | I9: Total | J9: Total | K9: Share | L9: Share | M9: Landlord | N9: Landlord | O9: Tenant | P9: Tenant | Q9: (100 acres) | R9: ="(" & E7 & " acres)" -> ( acres)
B10: Grain Sorghum | D10: 45 | F10: CWT | G10: 8.93 | I10: 401.85 | J10: =E10*H10 -> 0 | K10: 0 | M10: 0 | N10: =J10*L10 -> 0 | O10: 401.85 | P10: =+J10-N10 -> 0 | Q10: 40185 | R10: =+J10*E$7 -> 0
D11: 0 | G11: 0 | I11: 0 | J11: 0 | K11: 0 | M11: 0 | N11: 0 | O11: 0 | P11: =+J11-N11 -> 0 | Q11: 0 | R11: 0
D12: 0 | G12: 0 | I12: 0 | J12: 0 | K12: 0 | M12: 0 | N12: 0 | O12: 0 | P12: 0 | Q12: 0 | R12: 0
A13: Total Revenue | I13: 401.85 | J13: =SUM(J10:J12) -> 0 | M13: 0 | N13: =SUM(N10:N12) -> 0 | O13: 401.85 | P13: =SUM(P10:P12) -> 0 | Q13: 40185 | R13: =SUM(R10:R12) -> 0
Q14: Enterprise | R14: Enterprise
A15: VARIABLE COSTS | D15: Quantity | E15: Quantity | F15: Units | G15: $/Unit | H15: $/Unit | I15: Total | J15: Total | K15: Share | L15: Share | M15: Landlord | N15: Landlord | O15: Tenant | P15: Tenant | Q15: Total | R15: Total
A16: Production Costs
B17: Herbicide
C18: AAtrex 4L | D18: 2 | F18: Pint | G18: 2.8975 | I18: 5.795 | J18: =E18*H18 -> 0 | K18: 0 | M18: 0 | N18: =J18*L18 -> 0 | O18: 5.795 | P18: =+J18-N18 -> 0 | Q18: 579.5 | R18: =+J18*E$7 -> 0
B19: Seed
C20: Grain Sorghum Seed | D20: 6 | F20: Pound | G20: 3 | I20: 18 | J20: 0 | K20: 0 | M20: 0 | N20: 0 | O20: 18 | P20: 0 | Q20: 1800 | R20: 0
B21: Fertilizer
C22: UAN (32% N) | D22: 2.11 | F22: CWT | G22: 19 | I22: 40.09 | J22: 0 | K22: 0 | M22: 0 | N22: 0 | O22: 40.09 | P22: 0 | Q22: 4009 | R22: 0
B23: Custom
C24: Harvest/Haul Sorghum | D24: 45 | F24: CWT | G24: 0.975 | I24: 43.875 | J24: 0 | K24: 0 | M24: 0 | N24: 0 | O24: 43.875 | P24: 0 | Q24: 4387.5 | R24: 0
B25: Miscellaneous
C26: Insurance, Sorghum - Irrigated | D26: 1 | F26: Acre | G26: 14 | I26: 14 | J26: 0 | K26: 0 | M26: 0 | N26: 0 | O26: 14 | P26: 0 | Q26: 1400 | R26: 0
B27: Insecticide
C28: Transform | D28: 1 | F28: Ounce | G28: 9.343359375 | I28: 9.343359375 | J28: 0 | K28: 0 | M28: 0 | N28: 0 | O28: 9.343359375 | P28: 0 | Q28: 934.3359375 | R28: 0
B29: Other Labor
C30: Unallocated Labor | D30: 0.7232 | F30: Hour | G30: 15 | I30: 10.848 | J30: 0 | K30: 0 | M30: 0 | N30: 0 | O30: 10.848 | P30: 0 | Q30: 1084.8 | R30: 0
D31: 0 | G31: 0 | I31: 0 | J31: 0 | K31: 0 | M31: 0 | N31: 0 | O31: 0 | P31: 0 | Q31: 0 | R31: 0
D32: 0 | G32: 0 | I32: 0 | J32: 0 | K32: 0 | M32: 0 | N32: 0 | O32: 0 | P32: 0 | Q32: 0 | R32: 0
D33: 0 | G33: 0 | I33: 0 | J33: =E33*H33 -> 0 | K33: 0 | M33: 0 | N33: =J33*L33 -> 0 | O33: 0 | P33: =+J33-N33 -> 0 | Q33: 0 | R33: =+J33*E$7 -> 0
B34: Irrigation
C35: Water Cost | D35: 0.8 | F35: Acre/Foot | G35: 41 | I35: 32.8 | J35: =E35*H35 -> 0 | K35: 0 | M35: 0 | N35: =J35*L35 -> 0 | O35: 32.8 | P35: =+J35-N35 -> 0 | Q35: 3280 | R35: =+J35*E$7 -> 0
C36: Irrigation Labor | D36: 2.2 | F36: Hour | G36: 17.5 | I36: 38.5 | J36: 0 | K36: 0 | M36: 0 | N36: 0 | O36: 38.5 | P36: 0 | Q36: 3850 | R36: 0
B37: Machinery Labor
C38: Tractors/Self-Propelled | D38: 1.68 | F38: Hour | G38: 17.21 | I38: 28.9128 | J38: =E38*H38 -> 0 | K38: 0 | M38: 0 | N38: =J38*L38 -> 0 | O38: 28.9128 | P38: =+J38-N38 -> 0 | Q38: 2891.28 | R38: =+J38*E$7 -> 0
C39: Other Labor | D39: 0 | F39: Hour | G39: 17.21 | I39: 0 | J39: =E39*H39 -> 0 | K39: 0 | M39: 0 | N39: =J39*L39 -> 0 | O39: 0 | P39: =+J39-N39 -> 0 | Q39: 0 | R39: =+J39*E$7 -> 0
B41: Diesel Fuel
C42: Pickup/General Use Equipment | D42: 1 | F42: Acre | G42: 0 | I42: 0 | J42: =E42*H42 -> 0 | K42: 0 | M42: 0 | N42: =J42*L42 -> 0 | O42: 0 | P42: =+J42-N42 -> 0 | Q42: 0 | R42: =+J42*E$7 -> 0
C43: Tractors/Self-Propelled | D43: 10.58 | F43: Gallon | G43: 3.6 | I43: 38.088 | J43: =E43*H43 -> 0 | K43: 0 | M43: 0 | N43: =J43*L43 -> 0 | O43: 38.088 | P43: =+J43-N43 -> 0 | Q43: 3808.8 | R43: =+J43*E$7 -> 0
B45: Gasoline
C46: Pickup/General Use Equipment | D46: 1 | F46: Acre | G46: 0 | I46: 0 | J46: =E46*H46 -> 0 | K46: 0 | M46: 0 | N46: =J46*L46 -> 0 | O46: 0 | P46: =+J46-N46 -> 0 | Q46: 0 | R46: =+J46*E$7 -> 0
C47: Tractors/Self-Propelled | D47: 0 | F47: Gallon | G47: 3.15 | I47: 0 | J47: =E47*H47 -> 0 | K47: 0 | M47: 0 | N47: =J47*L47 -> 0 | O47: 0 | P47: =+J47-N47 -> 0 | Q47: 0 | R47: =+J47*E$7 -> 0
B49: Repairs & Maintenance
C50: Pickup/General Use Equipment | D50: 1 | F50: Acre | G50: 0 | I50: 0 | J50: =E50*H50 -> 0 | K50: 0 | M50: 0 | N50: =J50*L50 -> 0 | O50: 0 | P50: =+J50-N50 -> 0 | Q50: 0 | R50: =+J50*E$7 -> 0
C51: Irrigation Equipment | D51: 1 | F51: Acre | G51: 0 | I51: 0 | J51: 0 | K51: 0 | M51: 0 | N51: 0 | O51: 0 | P51: 0 | Q51: 0 | R51: 0
C52: Tractors/Self-Propelled | D52: 1 | F52: Acre | G52: 23.86533212 | I52: 23.86533212 | J52: 0 | K52: 0 | M52: 0 | N52: 0 | O52: 23.86533212 | P52: 0 | Q52: 2386.533212 | R52: 0
C53: Implements | D53: 1 | F53: Acre | G53: 19.62722721 | I53: 19.62722721 | J53: 0 | K53: 0 | M53: 0 | N53: 0 | O53: 19.62722721 | P53: 0 | Q53: 1962.722721 | R53: 0
I54: 0 | J54: 0 | K54: 0 | M54: 0 | N54: 0 | O54: 0 | P54: 0 | Q54: 0 | R54: 0
I55: 0 | J55: 0 | K55: 0 | M55: 0 | N55: 0 | O55: 0 | P55: 0 | Q55: 0 | R55: 0
B56: Interest on Credit Line | G56: 0.085 | I56: 10.46778123 | J56: =+SUM(J17:J55)/2*H56 -> 0 | M56: 0 | N56: =+SUM(N17:N55)/2*L56 -> 0 | O56: 10.46778123 | P56: =+SUM(P17:P55)/2*L56 -> 0 | Q56: 1046.778123 | R56: =+J56*E$7 -> 0
A57: Total Variable Costs | I57: 334.2124999 | J57: =SUM(J18:J56) -> 0 | M57: 0 | N57: =SUM(N18:N56) -> 0 | O57: 334.2124999 | P57: =SUM(P18:P56) -> 0 | Q57: 33421.24999 | R57: =SUM(R18:R56) -> 0
A58: Planned Returns Above Variable Costs: | I58: 67.63750006 | J58: =+J13-J57 -> 0 | M58: 0 | N58: =+N13-N57 -> 0 | O58: 67.63750006 | P58: =+P13-P57 -> 0 | Q58: 6763.750006 | R58: =+R13-R57 -> 0
B59: Breakeven Price to Cover Variable Costs | G59: 7.426944443 | H59: =IF(E10=0,"n/a",(YVarExp-(YTotExp+YTotRet-J10))/E10) -> n/a | I59: CWT
Q60: Enterprise | R60: Enterprise
A61: FIXED COSTS | D61: Quantity | E61: Quantity | F61: Units | G61: $/Unit | H61: $/Unit | I61: Total | J61: Total | K61: Share | L61: Share | M61: Landlord | N61: Landlord | O61: Tenant | P61: Tenant | Q61: Total | R61: Total
B62: Machinery Depreciation
C63: Tractors/Self-Propelled | D63: 1 | F63: Acre | G63: 24.66084319 | I63: 24.66084319 | J63: =E63*H63 -> 0 | K63: 0 | M63: 0 | N63: =J63*L63 -> 0 | O63: 24.66084319 | P63: =+J63-N63 -> 0 | Q63: 2466.084319 | R63: =+J63*E$7 -> 0
C64: Implements | D64: 1 | F64: Acre | G64: 23.51632523 | I64: 23.51632523 | J64: 0 | K64: 0 | M64: 0 | N64: =J64*L64 -> 0 | O64: 23.51632523 | P64: 0 | Q64: 2351.632523 | R64: 0
B65: Equipment Investment
C66: Tractors/Self-Propelled | D66: 192.1159236 | F66: Dollars | G66: 0.085 | I66: 16.3298535 | J66: =E66*H66 -> 0 | K66: 0 | M66: 0 | N66: =J66*L66 -> 0 | O66: 16.3298535 | P66: =+J66-N66 -> 0 | Q66: 1632.98535 | R66: =+J66*E$7 -> 0
C67: Implements | D67: 109.0621638 | F67: Dollars | G67: 0.085 | I67: 9.270283927 | J67: 0 | K67: 0 | M67: 0 | N67: =J67*L67 -> 0 | O67: 9.270283927 | P67: 0 | Q67: 927.0283927 | R67: 0
B68: Salaried Labor | D68: 1 | F68: Acre | G68: 0 | I68: 0 | J68: 0 | K68: 0 | M68: 0 | N68: =J68*L68 -> 0 | O68: 0 | P68: =+J68-N68 -> 0 | Q68: 0 | R68: =+J68*E$7 -> 0
B69: Management Fee, Owner/Operator Labor | D69: 1 | F69: Acre | G69: 0 | I69: 0 | J69: 0 | K69: 0 | M69: 0 | N69: 0 | O69: 0 | P69: 0 | Q69: 0 | R69: 0
B70: Allocated Establishment Cost | D70: 1 | F70: Acre | G70: 0 | I70: 0 | J70: 0 | K70: 0 | M70: 0 | N70: 0 | O70: 0 | P70: 0 | Q70: 0 | R70: 0
B71: Cash Rent, Irrigated | D71: 1 | F71: Acre | G71: 95 | I71: 95 | J71: 0 | K71: 0 | M71: 0 | N71: 0 | O71: 95 | P71: 0 | Q71: 9500 | R71: 0
B72: Property Taxes | D72: 1 | F72: Acre | G72: 0 | I72: 0 | J72: 0 | K72: 0 | M72: 0 | N72: 0 | O72: 0 | P72: 0 | Q72: 0 | R72: 0
B73: Whole Farm Insurance | D73: 1 | F73: Acre | G73: 0 | I73: 0 | J73: 0 | K73: 0 | M73: 0 | N73: 0 | O73: 0 | P73: 0 | Q73: 0 | R73: 0
D74: 1 | G74: 0 | I74: 0 | J74: 0 | K74: 0 | M74: 0 | N74: 0 | O74: 0 | P74: 0 | Q74: 0 | R74: 0
D75: 1 | G75: 0 | I75: 0 | J75: =E75*H75 -> 0 | K75: 0 | M75: 0 | N75: 0 | O75: 0 | P75: 0 | Q75: 0 | R75: 0
A76: Total Fixed Costs | I76: 168.7773059 | J76: =+SUM(J63:J75) -> 0 | M76: 0 | N76: =+SUM(N63:N75) -> 0 | O76: 168.7773059 | P76: =+SUM(P63:P75) -> 0 | Q76: 16877.73059 | R76: =+SUM(R63:R75) -> 0
A77: Total Specified Costs | I77: 502.9898058 | J77: =+J57+J76 -> 0 | M77: 0 | N77: =+N57+N76 -> 0 | O77: 502.9898058 | P77: =+P57+P76 -> 0 | Q77: 50298.98058 | R77: =+R57+R76 -> 0
A79: Returns Above Specified Costs | I79: -101.1398058 | J79: =+J13-J77 -> 0 | M79: 0 | N79: =+N13-N77 -> 0 | O79: -101.1398058 | P79: =+P13-P77 -> 0 | Q79: -10113.98058 | R79: =+R13-R77 -> 0
A81: Breakeven Price to Cover Total Costs | G81: 11.17755124 | H81: =IF(E10=0,"n/a",(YTotExp-(YTotExp+YTotRet-J10))/E10) -> n/a | I81: CWT
D83: Example Breakeven Prices
B84: Example | C84: Example | D84: To Cover | G84: To Cover
B85: Yield | C85: Yield | D85: Variable | G85: Total
B86: Percent | C86: CWT | D86: Costs | G86: Costs
B87: 0.75 | C87: 33.75 | D87: 9.902592591 | G87: 14.90340165
B88: 0.9 | C88: 40.5 | D88: 8.252160492 | G88: 12.41950138
B89: 1 | C89: 45 | D89: 7.426944443 | G89: 11.17755124
B90: 1.1 | C90: 49.5 | D90: 6.751767676 | G90: 10.16141022
B91: 1.25 | C91: 56.25 | D91: 5.941555555 | G91: 8.942040992
A93: Developed by Manuel Garcia, Assistant Professor and Extension Specialist, Texas A&M AgriLife Extension, 956-968-5581
A95: Information presented is prepared solely as a general guide and not intended to recognize or predict the costs and returns from any one operation. Brand names are mentioned only as examples and imply no endorsement.

Sheet SorghumReducedTill
A1: Projections for Planning Purposes Only -- Not to be Used without Updating
A2: 2025 Estimated Costs and Returns per Acre
A3: Grain Sorghum, Reduced Tillage, Furrow Irrigated, Rio Grande Valley
A4: Enter your name for this budget in the cell above.
A5: Enter Your Values in the cells highlighed in MAROON.
E6: Your Acres | R6: Your
C7: Crop Acres | D7: 100 | L7: Your | Q7: Enterprise | R7: Enterprise
E8: Your | H8: Your | I8: Cash | J8: Your | K8: Landlord | L8: Landlord | N8: Your | P8: Your | Q8: Total | R8: Total
A9: REVENUE | D9: Quantity | E9: Quantity | F9: Units | G9: $/Unit | H9: $/Unit | I9: Total | J9: Total | K9: Share | L9: Share | M9: Landlord | N9: Landlord | O9: Tenant | P9: Tenant | Q9: (100 acres) | R9: ="(" & E7 & " acres)" -> ( acres)
B10: Grain Sorghum | D10: 45 | F10: CWT | G10: 8.93 | I10: 401.85 | J10: =E10*H10 -> 0 | K10: 0 | M10: 0 | N10: =J10*L10 -> 0 | O10: 401.85 | P10: =+J10-N10 -> 0 | Q10: 40185 | R10: =+J10*E$7 -> 0
D11: 0 | G11: 0 | I11: 0 | J11: 0 | K11: 0 | M11: 0 | N11: 0 | O11: 0 | P11: =+J11-N11 -> 0 | Q11: 0 | R11: 0
D12: 0 | G12: 0 | I12: 0 | J12: 0 | K12: 0 | M12: 0 | N12: 0 | O12: 0 | P12: 0 | Q12: 0 | R12: 0
A13: Total Revenue | I13: 401.85 | J13: =SUM(J10:J12) -> 0 | M13: 0 | N13: =SUM(N10:N12) -> 0 | O13: 401.85 | P13: =SUM(P10:P12) -> 0 | Q13: 40185 | R13: =SUM(R10:R12) -> 0
Q14: Enterprise | R14: Enterprise
A15: VARIABLE COSTS | D15: Quantity | E15: Quantity | F15: Units | G15: $/Unit | H15: $/Unit | I15: Total | J15: Total | K15: Share | L15: Share | M15: Landlord | N15: Landlord | O15: Tenant | P15: Tenant | Q15: Total | R15: Total
A16: Production Costs
B17: Seed
C18: Grain Sorghum Seed | D18: 6 | F18: Pound | G18: 3 | I18: 18 | J18: =E18*H18 -> 0 | K18: 0 | M18: 0 | N18: =J18*L18 -> 0 | O18: 18 | P18: =+J18-N18 -> 0 | Q18: 1800 | R18: =+J18*E$7 -> 0
B19: Fertilizer
C20: UAN (32% N) | D20: 2.11 | F20: CWT | G20: 19 | I20: 40.09 | J20: 0 | K20: 0 | M20: 0 | N20: 0 | O20: 40.09 | P20: 0 | Q20: 4009 | R20: 0
B21: Custom
C22: Harvest/Haul Sorghum | D22: 45 | F22: CWT | G22: 0.975 | I22: 43.875 | J22: 0 | K22: 0 | M22: 0 | N22: 0 | O22: 43.875 | P22: 0 | Q22: 4387.5 | R22: 0
B23: Herbicide
C24: Glyphosate | D24: 2 | F24: Pint | G24: 6.25 | I24: 12.5 | J24: 0 | K24: 0 | M24: 0 | N24: 0 | O24: 12.5 | P24: 0 | Q24: 1250 | R24: 0
C25: AAtrex 4L | D25: 2 | F25: Pint | G25: 2.8975 | I25: 5.795 | J25: 0 | K25: 0 | M25: 0 | N25: 0 | O25: 5.795 | P25: 0 | Q25: 579.5 | R25: 0
B26: Insecticide
C27: Transform | D27: 1 | F27: Ounce | G27: 9.343359375 | I27: 9.343359375 | J27: 0 | K27: 0 | M27: 0 | N27: 0 | O27: 9.343359375 | P27: 0 | Q27: 934.3359375 | R27: 0
B28: Miscellaneous
C29: Insurance, Sorghum - Irrigated | D29: 1 | F29: Acre | G29: 14 | I29: 14 | J29: 0 | K29: 0 | M29: 0 | N29: 0 | O29: 14 | P29: 0 | Q29: 1400 | R29: 0
B30: Other Labor
C31: Unallocated Labor | D31: 0.22 | F31: Hour | G31: 15 | I31: 3.3 | J31: 0 | K31: 0 | M31: 0 | N31: 0 | O31: 3.3 | P31: 0 | Q31: 330 | R31: 0
D32: 0 | G32: 0 | I32: 0 | J32: 0 | K32: 0 | M32: 0 | N32: 0 | O32: 0 | P32: 0 | Q32: 0 | R32: 0
D33: 0 | G33: 0 | I33: 0 | J33: 0 | K33: 0 | M33: 0 | N33: 0 | O33: 0 | P33: 0 | Q33: 0 | R33: 0
D34: 0 | G34: 0 | I34: 0 | J34: =E34*H34 -> 0 | K34: 0 | M34: 0 | N34: =J34*L34 -> 0 | O34: 0 | P34: =+J34-N34 -> 0 | Q34: 0 | R34: =+J34*E$7 -> 0
B35: Irrigation
C36: Water Cost | D36: 0.8 | F36: Acre/Foot | G36: 41 | I36: 32.8 | J36: =E36*H36 -> 0 | K36: 0 | M36: 0 | N36: =J36*L36 -> 0 | O36: 32.8 | P36: =+J36-N36 -> 0 | Q36: 3280 | R36: =+J36*E$7 -> 0
C37: Irrigation Labor | D37: 2.2 | F37: Hour | G37: 17.5 | I37: 38.5 | J37: 0 | K37: 0 | M37: 0 | N37: 0 | O37: 38.5 | P37: 0 | Q37: 3850 | R37: 0
B38: Machinery Labor
C39: Tractors/Self-Propelled | D39: 0.97 | F39: Hour | G39: 17.21 | I39: 16.6937 | J39: =E39*H39 -> 0 | K39: 0 | M39: 0 | N39: =J39*L39 -> 0 | O39: 16.6937 | P39: =+J39-N39 -> 0 | Q39: 1669.37 | R39: =+J39*E$7 -> 0
C40: Other Labor | D40: 0 | F40: Hour | G40: 17.21 | I40: 0 | J40: =E40*H40 -> 0 | K40: 0 | M40: 0 | N40: =J40*L40 -> 0 | O40: 0 | P40: =+J40-N40 -> 0 | Q40: 0 | R40: =+J40*E$7 -> 0
B42: Diesel Fuel
C43: Pickup/General Use Equipment | D43: 1 | F43: Acre | G43: 0 | I43: 0 | J43: =E43*H43 -> 0 | K43: 0 | M43: 0 | N43: =J43*L43 -> 0 | O43: 0 | P43: =+J43-N43 -> 0 | Q43: 0 | R43: =+J43*E$7 -> 0
C44: Tractors/Self-Propelled | D44: 4.95 | F44: Gallon | G44: 3.6 | I44: 17.82 | J44: =E44*H44 -> 0 | K44: 0 | M44: 0 | N44: =J44*L44 -> 0 | O44: 17.82 | P44: =+J44-N44 -> 0 | Q44: 1782 | R44: =+J44*E$7 -> 0
B46: Gasoline
C47: Pickup/General Use Equipment | D47: 1 | F47: Acre | G47: 0 | I47: 0 | J47: =E47*H47 -> 0 | K47: 0 | M47: 0 | N47: =J47*L47 -> 0 | O47: 0 | P47: =+J47-N47 -> 0 | Q47: 0 | R47: =+J47*E$7 -> 0
C48: Tractors/Self-Propelled | D48: 0 | F48: Gallon | G48: 3.15 | I48: 0 | J48: =E48*H48 -> 0 | K48: 0 | M48: 0 | N48: =J48*L48 -> 0 | O48: 0 | P48: =+J48-N48 -> 0 | Q48: 0 | R48: =+J48*E$7 -> 0
B50: Repairs & Maintenance
C51: Pickup/General Use Equipment | D51: 1 | F51: Acre | G51: 0 | I51: 0 | J51: =E51*H51 -> 0 | K51: 0 | M51: 0 | N51: =J51*L51 -> 0 | O51: 0 | P51: =+J51-N51 -> 0 | Q51: 0 | R51: =+J51*E$7 -> 0
C52: Irrigation Equipment | D52: 1 | F52: Acre | G52: 0 | I52: 0 | J52: 0 | K52: 0 | M52: 0 | N52: 0 | O52: 0 | P52: 0 | Q52: 0 | R52: 0
C53: Tractors/Self-Propelled | D53: 1 | F53: Acre | G53: 9.600117121 | I53: 9.600117121 | J53: 0 | K53: 0 | M53: 0 | N53: 0 | O53: 9.600117121 | P53: 0 | Q53: 960.0117121 | R53: 0
C54: Implements | D54: 1 | F54: Acre | G54: 10.54714899 | I54: 10.54714899 | J54: 0 | K54: 0 | M54: 0 | N54: 0 | O54: 10.54714899 | P54: 0 | Q54: 1054.714899 | R54: 0
I55: 0 | J55: 0 | K55: 0 | M55: 0 | N55: 0 | O55: 0 | P55: 0 | Q55: 0 | R55: 0
I56: 0 | J56: 0 | K56: 0 | M56: 0 | N56: 0 | O56: 0 | P56: 0 | Q56: 0 | R56: 0
B57: Interest on Credit Line | G57: 0.085 | I57: 7.021944532 | J57: =+SUM(J17:J56)/2*H57 -> 0 | M57: 0 | N57: =+SUM(N17:N56)/2*L57 -> 0 | O57: 7.021944532 | P57: =+SUM(P17:P56)/2*L57 -> 0 | Q57: 702.1944532 | R57: =+J57*E$7 -> 0
A58: Total Variable Costs | I58: 279.88627 | J58: =SUM(J18:J57) -> 0 | M58: 0 | N58: =SUM(N18:N57) -> 0 | O58: 279.88627 | P58: =SUM(P18:P57) -> 0 | Q58: 27988.627 | R58: =SUM(R18:R57) -> 0
A59: Planned Returns Above Variable Costs: | I59: 121.96373 | J59: =+J13-J58 -> 0 | M59: 0 | N59: =+N13-N58 -> 0 | O59: 121.96373 | P59: =+P13-P58 -> 0 | Q59: 12196.373 | R59: =+R13-R58 -> 0
B60: Breakeven Price to Cover Variable Costs | G60: 6.219694889 | H60: =IF(E10=0,"n/a",(YVarExp-(YTotExp+YTotRet-J10))/E10) -> n/a | I60: CWT
Q61: Enterprise | R61: Enterprise
A62: FIXED COSTS | D62: Quantity | E62: Quantity | F62: Units | G62: $/Unit | H62: $/Unit | I62: Total | J62: Total | K62: Share | L62: Share | M62: Landlord | N62: Landlord | O62: Tenant | P62: Tenant | Q62: Total | R62: Total
B63: Machinery Depreciation
C64: Tractors/Self-Propelled | D64: 1 | F64: Acre | G64: 10.96180447 | I64: 10.96180447 | J64: =E64*H64 -> 0 | K64: 0 | M64: 0 | N64: =J64*L64 -> 0 | O64: 10.96180447 | P64: =+J64-N64 -> 0 | Q64: 1096.180447 | R64: =+J64*E$7 -> 0
C65: Implements | D65: 1 | F65: Acre | G65: 12.65684695 | I65: 12.65684695 | J65: 0 | K65: 0 | M65: 0 | N65: =J65*L65 -> 0 | O65: 12.65684695 | P65: 0 | Q65: 1265.684695 | R65: 0
B66: Equipment Investment
C67: Tractors/Self-Propelled | D67: 84.91199085 | F67: Dollars | G67: 0.085 | I67: 7.217519222 | J67: =E67*H67 -> 0 | K67: 0 | M67: 0 | N67: =J67*L67 -> 0 | O67: 7.217519222 | P67: =+J67-N67 -> 0 | Q67: 721.7519222 | R67: =+J67*E$7 -> 0
C68: Implements | D68: 63.00590551 | F68: Dollars | G68: 0.085 | I68: 5.355501969 | J68: 0 | K68: 0 | M68: 0 | N68: =J68*L68 -> 0 | O68: 5.355501969 | P68: 0 | Q68: 535.5501969 | R68: 0
B69: Salaried Labor | D69: 1 | F69: Acre | G69: 0 | I69: 0 | J69: 0 | K69: 0 | M69: 0 | N69: =J69*L69 -> 0 | O69: 0 | P69: =+J69-N69 -> 0 | Q69: 0 | R69: =+J69*E$7 -> 0
B70: Management Fee, Owner/Operator Labor | D70: 1 | F70: Acre | G70: 0 | I70: 0 | J70: 0 | K70: 0 | M70: 0 | N70: 0 | O70: 0 | P70: 0 | Q70: 0 | R70: 0
B71: Allocated Establishment Cost | D71: 1 | F71: Acre | G71: 0 | I71: 0 | J71: 0 | K71: 0 | M71: 0 | N71: 0 | O71: 0 | P71: 0 | Q71: 0 | R71: 0
B72: Cash Rent, Irrigated | D72: 1 | F72: Acre | G72: 95 | I72: 95 | J72: 0 | K72: 0 | M72: 0 | N72: 0 | O72: 95 | P72: 0 | Q72: 9500 | R72: 0
B73: Property Taxes | D73: 1 | F73: Acre | G73: 0 | I73: 0 | J73: 0 | K73: 0 | M73: 0 | N73: 0 | O73: 0 | P73: 0 | Q73: 0 | R73: 0
B74: Whole Farm Insurance | D74: 1 | F74: Acre | G74: 0 | I74: 0 | J74: 0 | K74: 0 | M74: 0 | N74: 0 | O74: 0 | P74: 0 | Q74: 0 | R74: 0
D75: 1 | G75: 0 | I75: 0 | J75: 0 | K75: 0 | M75: 0 | N75: 0 | O75: 0 | P75: 0 | Q75: 0 | R75: 0
D76: 1 | G76: 0 | I76: 0 | J76: =E76*H76 -> 0 | K76: 0 | M76: 0 | N76: 0 | O76: 0 | P76: 0 | Q76: 0 | R76: 0
A77: Total Fixed Costs | I77: 131.1916726 | J77: =+SUM(J64:J76) -> 0 | M77: 0 | N77: =+SUM(N64:N76) -> 0 | O77: 131.1916726 | P77: =+SUM(P64:P76) -> 0 | Q77: 13119.16726 | R77: =+SUM(R64:R76) -> 0
A78: Total Specified Costs | I78: 411.0779426 | J78: =+J58+J77 -> 0 | M78: 0 | N78: =+N58+N77 -> 0 | O78: 411.0779426 | P78: =+P58+P77 -> 0 | Q78: 41107.79426 | R78: =+R58+R77 -> 0
A80: Returns Above Specified Costs | I80: -9.22794264 | J80: =+J13-J78 -> 0 | M80: 0 | N80: =+N13-N78 -> 0 | O80: -9.22794264 | P80: =+P13-P78 -> 0 | Q80: -922.794264 | R80: =+R13-R78 -> 0
A82: Breakeven Price to Cover Total Costs | G82: 9.135065392 | H82: =IF(E10=0,"n/a",(YTotExp-(YTotExp+YTotRet-J10))/E10) -> n/a | I82: CWT
D84: Example Breakeven Prices
B85: Example | C85: Example | D85: To Cover | G85: To Cover
B86: Yield | C86: Yield | D86: Variable | G86: Total
B87: Percent | C87: CWT | D87: Costs | G87: Costs
B88: 0.75 | C88: 33.75 | D88: 8.292926519 | G88: 12.18008719
B89: 0.9 | C89: 40.5 | D89: 6.910772099 | G89: 10.15007266
B90: 1 | C90: 45 | D90: 6.219694889 | G90: 9.135065392
B91: 1.1 | C91: 49.5 | D91: 5.654268081 | G91: 8.304604902
B92: 1.25 | C92: 56.25 | D92: 4.975755912 | G92: 7.308052314
A94: Developed by Manuel Garcia, Assistant Professor and Extension Specialist, Texas A&M AgriLife Extension, 956-968-5581
A96: Information presented is prepared solely as a general guide and not intended to recognize or predict the costs and returns from any one operation. Brand names are mentioned only as examples and imply no endorsement.

Sheet SorghumDryland
A1: Projections for Planning Purposes Only -- Not to be Used without Updating
A2: 2025 Estimated Costs and Returns per Acre
A3: Grain Sorghum, Conventional Tillage, Dryland, Rio Grande Valley
A4: Enter your name for this budget in the cell above.
A5: Enter Your Values in the cells highlighed in MAROON.
E6: Your Acres | R6: Your
C7: Crop Acres | D7: 100 | L7: Your | Q7: Enterprise | R7: Enterprise
E8: Your | H8: Your | I8: Cash | J8: Your | K8: Landlord | L8: Landlord | N8: Your | P8: Your | Q8: Total | R8: Total
A9: REVENUE | D9: Quantity | E9: Quantity | F9: Units | G9: $/Unit | H9: $/Unit | I9: Total | J9: Total | K9: Share | L9: Share | M9: Landlord | N9: Landlord | O9: Tenant | P9: Tenant | Q9: (100 acres) | R9: ="(" & E7 & " acres)" -> ( acres)
B10: Grain Sorghum | D10: 35 | F10: CWT | G10: 8.93 | I10: 312.55 | J10: =E10*H10 -> 0 | K10: 0 | M10: 0 | N10: =J10*L10 -> 0 | O10: 312.55 | P10: =+J10-N10 -> 0 | Q10: 31255 | R10: =+J10*E$7 -> 0
D11: 0 | G11: 0 | I11: 0 | J11: 0 | K11: 0 | M11: 0 | N11: 0 | O11: 0 | P11: =+J11-N11 -> 0 | Q11: 0 | R11: 0
D12: 0 | G12: 0 | I12: 0 | J12: 0 | K12: 0 | M12: 0 | N12: 0 | O12: 0 | P12: 0 | Q12: 0 | R12: 0
A13: Total Revenue | I13: 312.55 | J13: =SUM(J10:J12) -> 0 | M13: 0 | N13: =SUM(N10:N12) -> 0 | O13: 312.55 | P13: =SUM(P10:P12) -> 0 | Q13: 31255 | R13: =SUM(R10:R12) -> 0
Q14: Enterprise | R14: Enterprise
A15: VARIABLE COSTS | D15: Quantity | E15: Quantity | F15: Units | G15: $/Unit | H15: $/Unit | I15: Total | J15: Total | K15: Share | L15: Share | M15: Landlord | N15: Landlord | O15: Tenant | P15: Tenant | Q15: Total | R15: Total
A16: Production Costs
B17: Herbicide
C18: AAtrex 4L | D18: 2 | F18: Pint | G18: 2.8975 | I18: 5.795 | J18: =E18*H18 -> 0 | K18: 0 | M18: 0 | N18: =J18*L18 -> 0 | O18: 5.795 | P18: =+J18-N18 -> 0 | Q18: 579.5 | R18: =+J18*E$7 -> 0
B19: Seed
C20: Grain Sorghum Seed | D20: 4.5 | F20: Pound | G20: 3 | I20: 13.5 | J20: 0 | K20: 0 | M20: 0 | N20: 0 | O20: 13.5 | P20: 0 | Q20: 1350 | R20: 0
B21: Fertilizer
C22: UAN (32% N) | D22: 1.41 | F22: CWT | G22: 19 | I22: 26.79 | J22: 0 | K22: 0 | M22: 0 | N22: 0 | O22: 26.79 | P22: 0 | Q22: 2679 | R22: 0
B23: Custom
C24: Harvest/Haul Sorghum | D24: 30 | F24: CWT | G24: 0.975 | I24: 29.25 | J24: 0 | K24: 0 | M24: 0 | N24: 0 | O24: 29.25 | P24: 0 | Q24: 2925 | R24: 0
B25: Miscellaneous
C26: Insurance, Sorghum - Dryland | D26: 1 | F26: acre | G26: 13 | I26: 13 | J26: 0 | K26: 0 | M26: 0 | N26: 0 | O26: 13 | P26: 0 | Q26: 1300 | R26: 0
B27: Other Labor
C28: Unallocated Labor | D28: 0.7072 | F28: Hour | G28: 15 | I28: 10.608 | J28: 0 | K28: 0 | M28: 0 | N28: 0 | O28: 10.608 | P28: 0 | Q28: 1060.8 | R28: 0
D29: 0 | G29: 0 | I29: 0 | J29: 0 | K29: 0 | M29: 0 | N29: 0 | O29: 0 | P29: 0 | Q29: 0 | R29: 0
D30: 0 | G30: 0 | I30: 0 | J30: 0 | K30: 0 | M30: 0 | N30: 0 | O30: 0 | P30: 0 | Q30: 0 | R30: 0
D31: 0 | G31: 0 | I31: 0 | J31: =E31*H31 -> 0 | K31: 0 | M31: 0 | N31: =J31*L31 -> 0 | O31: 0 | P31: =+J31-N31 -> 0 | Q31: 0 | R31: =+J31*E$7 -> 0
B32: Machinery Labor
C33: Tractors/Self-Propelled | D33: 1.42 | F33: Hour | G33: 17.21 | I33: 24.4382 | J33: =E33*H33 -> 0 | K33: 0 | M33: 0 | N33: =J33*L33 -> 0 | O33: 24.4382 | P33: =+J33-N33 -> 0 | Q33: 2443.82 | R33: =+J33*E$7 -> 0
C34: Other Labor | D34: 0 | F34: Hour | G34: 17.21 | I34: 0 | J34: =E34*H34 -> 0 | K34: 0 | M34: 0 | N34: =J34*L34 -> 0 | O34: 0 | P34: =+J34-N34 -> 0 | Q34: 0 | R34: =+J34*E$7 -> 0
B36: Diesel Fuel
C37: Pickup/General Use Equipment | D37: 1 | F37: Acre | G37: 0 | I37: 0 | J37: =E37*H37 -> 0 | K37: 0 | M37: 0 | N37: =J37*L37 -> 0 | O37: 0 | P37: =+J37-N37 -> 0 | Q37: 0 | R37: =+J37*E$7 -> 0
C38: Tractors/Self-Propelled | D38: 8.64 | F38: Gallon | G38: 3.6 | I38: 31.104 | J38: =E38*H38 -> 0 | K38: 0 | M38: 0 | N38: =J38*L38 -> 0 | O38: 31.104 | P38: =+J38-N38 -> 0 | Q38: 3110.4 | R38: =+J38*E$7 -> 0
B40: Gasoline
C41: Pickup/General Use Equipment | D41: 1 | F41: Acre | G41: 0 | I41: 0 | J41: =E41*H41 -> 0 | K41: 0 | M41: 0 | N41: =J41*L41 -> 0 | O41: 0 | P41: =+J41-N41 -> 0 | Q41: 0 | R41: =+J41*E$7 -> 0
C42: Tractors/Self-Propelled | D42: 0 | F42: Gallon | G42: 3.15 | I42: 0 | J42: =E42*H42 -> 0 | K42: 0 | M42: 0 | N42: =J42*L42 -> 0 | O42: 0 | P42: =+J42-N42 -> 0 | Q42: 0 | R42: =+J42*E$7 -> 0
B44: Repairs & Maintenance
C45: Pickup/General Use Equipment | D45: 1 | F45: Acre | G45: 0 | I45: 0 | J45: =E45*H45 -> 0 | K45: 0 | M45: 0 | N45: =J45*L45 -> 0 | O45: 0 | P45: =+J45-N45 -> 0 | Q45: 0 | R45: =+J45*E$7 -> 0
C46: Irrigation Equipment | D46: 1 | F46: Acre | G46: 0 | I46: 0 | J46: 0 | K46: 0 | M46: 0 | N46: 0 | O46: 0 | P46: 0 | Q46: 0 | R46: 0
C47: Tractors/Self-Propelled | D47: 1 | F47: Acre | G47: 19.45309593 | I47: 19.45309593 | J47: 0 | K47: 0 | M47: 0 | N47: 0 | O47: 19.45309593 | P47: 0 | Q47: 1945.309593 | R47: 0
C48: Implements | D48: 1 | F48: Acre | G48: 17.19484658 | I48: 17.19484658 | J48: 0 | K48: 0 | M48: 0 | N48: 0 | O48: 17.19484658 | P48: 0 | Q48: 1719.484658 | R48: 0
I49: 0 | J49: 0 | K49: 0 | M49: 0 | N49: 0 | O49: 0 | P49: 0 | Q49: 0 | R49: 0
I50: 0 | J50: 0 | K50: 0 | M50: 0 | N50: 0 | O50: 0 | P50: 0 | Q50: 0 | R50: 0
B51: Interest on Credit Line | G51: 0.085 | I51: 6.464467901 | J51: =+SUM(J17:J50)/2*H51 -> 0 | M51: 0 | N51: =+SUM(N17:N50)/2*L51 -> 0 | O51: 6.464467901 | P51: =+SUM(P17:P50)/2*L51 -> 0 | Q51: 646.4467901 | R51: =+J51*E$7 -> 0
A52: Total Variable Costs | I52: 197.5976104 | J52: =SUM(J18:J51) -> 0 | M52: 0 | N52: =SUM(N18:N51) -> 0 | O52: 197.5976104 | P52: =SUM(P18:P51) -> 0 | Q52: 19759.76104 | R52: =SUM(R18:R51) -> 0
A53: Planned Returns Above Variable Costs: | I53: 114.9523896 | J53: =+J13-J52 -> 0 | M53: 0 | N53: =+N13-N52 -> 0 | O53: 114.9523896 | P53: =+P13-P52 -> 0 | Q53: 11495.23896 | R53: =+R13-R52 -> 0
B54: Breakeven Price to Cover Variable Costs | G54: 5.645646012 | H54: =IF(E10=0,"n/a",(YVarExp-(YTotExp+YTotRet-J10))/E10) -> n/a | I54: CWT
Q55: Enterprise | R55: Enterprise
A56: FIXED COSTS | D56: Quantity | E56: Quantity | F56: Units | G56: $/Unit | H56: $/Unit | I56: Total | J56: Total | K56: Share | L56: Share | M56: Landlord | N56: Landlord | O56: Tenant | P56: Tenant | Q56: Total | R56: Total
B57: Machinery Depreciation
C58: Tractors/Self-Propelled | D58: 1 | F58: Acre | G58: 20.10153246 | I58: 20.10153246 | J58: =E58*H58 -> 0 | K58: 0 | M58: 0 | N58: =J58*L58 -> 0 | O58: 20.10153246 | P58: =+J58-N58 -> 0 | Q58: 2010.153246 | R58: =+J58*E$7 -> 0
C59: Implements | D59: 1 | F59: Acre | G59: 20.70714953 | I59: 20.70714953 | J59: 0 | K59: 0 | M59: 0 | N59: =J59*L59 -> 0 | O59: 20.70714953 | P59: 0 | Q59: 2070.714953 | R59: 0
B60: Equipment Investment
C61: Tractors/Self-Propelled | D61: 156.5974223 | F61: Dollars | G61: 0.085 | I61: 13.31078089 | J61: =E61*H61 -> 0 | K61: 0 | M61: 0 | N61: =J61*L61 -> 0 | O61: 13.31078089 | P61: =+J61-N61 -> 0 | Q61: 1331.078089 | R61: =+J61*E$7 -> 0
C62: Implements | D62: 96.85628686 | F62: Dollars | G62: 0.085 | I62: 8.232784383 | J62: 0 | K62: 0 | M62: 0 | N62: =J62*L62 -> 0 | O62: 8.232784383 | P62: 0 | Q62: 823.2784383 | R62: 0
B63: Salaried Labor | D63: 1 | F63: Acre | G63: 0 | I63: 0 | J63: 0 | K63: 0 | M63: 0 | N63: =J63*L63 -> 0 | O63: 0 | P63: =+J63-N63 -> 0 | Q63: 0 | R63: =+J63*E$7 -> 0
B64: Management Fee, Owner/Operator Labor | D64: 1 | F64: Acre | G64: 0 | I64: 0 | J64: 0 | K64: 0 | M64: 0 | N64: 0 | O64: 0 | P64: 0 | Q64: 0 | R64: 0
B65: Allocated Establishment Cost | D65: 1 | F65: Acre | G65: 0 | I65: 0 | J65: 0 | K65: 0 | M65: 0 | N65: 0 | O65: 0 | P65: 0 | Q65: 0 | R65: 0
B66: Cash Rent, Dryland | D66: 1 | F66: Acre | G66: 70 | I66: 70 | J66: 0 | K66: 0 | M66: 0 | N66: 0 | O66: 70 | P66: 0 | Q66: 7000 | R66: 0
B67: Property Taxes | D67: 1 | F67: Acre | G67: 0 | I67: 0 | J67: 0 | K67: 0 | M67: 0 | N67: 0 | O67: 0 | P67: 0 | Q67: 0 | R67: 0
B68: Whole Farm Insurance | D68: 1 | F68: Acre | G68: 0 | I68: 0 | J68: 0 | K68: 0 | M68: 0 | N68: 0 | O68: 0 | P68: 0 | Q68: 0 | R68: 0
D69: 1 | G69: 0 | I69: 0 | J69: 0 | K69: 0 | M69: 0 | N69: 0 | O69: 0 | P69: 0 | Q69: 0 | R69: 0
D70: 1 | G70: 0 | I70: 0 | J70: =E70*H70 -> 0 | K70: 0 | M70: 0 | N70: 0 | O70: 0 | P70: 0 | Q70: 0 | R70: 0
A71: Total Fixed Costs | I71: 132.3522473 | J71: =+SUM(J58:J70) -> 0 | M71: 0 | N71: =+SUM(N58:N70) -> 0 | O71: 132.3522473 | P71: =+SUM(P58:P70) -> 0 | Q71: 13235.22473 | R71: =+SUM(R58:R70) -> 0
A72: Total Specified Costs | I72: 329.9498577 | J72: =+J52+J71 -> 0 | M72: 0 | N72: =+N52+N71 -> 0 | O72: 329.9498577 | P72: =+P52+P71 -> 0 | Q72: 32994.98577 | R72: =+R52+R71 -> 0
A74: Returns Above Specified Costs | I74: -17.39985768 | J74: =+J13-J72 -> 0 | M74: 0 | N74: =+N13-N72 -> 0 | O74: -17.39985768 | P74: =+P13-P72 -> 0 | Q74: -1739.985768 | R74: =+R13-R72 -> 0
A76: Breakeven Price to Cover Total Costs | G76: 9.427138791 | H76: =IF(E10=0,"n/a",(YTotExp-(YTotExp+YTotRet-J10))/E10) -> n/a | I76: CWT
D78: Example Breakeven Prices
B79: Example | C79: Example | D79: To Cover | G79: To Cover
B80: Yield | C80: Yield | D80: Variable | G80: Total
B81: Percent | C81: CWT | D81: Costs | G81: Costs
B82: 0.75 | C82: 26.25 | D82: 7.527528016 | G82: 12.56951839
B83: 0.9 | C83: 31.5 | D83: 6.272940013 | G83: 10.47459866
B84: 1 | C84: 35 | D84: 5.645646012 | G84: 9.427138791
B85: 1.1 | C85: 38.5 | D85: 5.132405465 | G85: 8.570126174
B86: 1.25 | C86: 43.75 | D86: 4.51651681 | G86: 7.541711033
A88: Developed by Manuel Garcia, Assistant Professor and Extension Specialist, Texas A&M AgriLife Extension, 956-968-5581
A90: Information presented is prepared solely as a general guide and not intended to recognize or predict the costs and returns from any one operation. Brand names are mentioned only as examples and imply no endorsement.

Sheet SugarCanePlant
A1: Projections for Planning Purposes Only -- Not to be Used without Updating
A2: 2025 Estimated Costs and Returns per Acre
A3: Sugar Cane, Planted, Furrow Irrigated, Rio Grande Valley
A4: Enter your name for this budget in the cell above.
A5: Enter Your Values in the cells highlighed in MAROON.
E6: Your Acres | R6: Your
C7: Crop Acres | D7: 100 | L7: Your | Q7: Enterprise | R7: Enterprise
E8: Your | H8: Your | I8: Cash | J8: Your | K8: Landlord | L8: Landlord | N8: Your | P8: Your | Q8: Total | R8: Total
A9: REVENUE | D9: Quantity | E9: Quantity | F9: Units | G9: $/Unit | H9: $/Unit | I9: Total | J9: Total | K9: Share | L9: Share | M9: Landlord | N9: Landlord | O9: Tenant | P9: Tenant | Q9: (100 acres) | R9: ="(" & E7 & " acres)" -> ( acres)
B10: Sugar Cane | D10: 50 | F10: Ton | G10: 29.4 | I10: 1470 | J10: =E10*H10 -> 0 | K10: 0 | M10: 0 | N10: =J10*L10 -> 0 | O10: 1470 | P10: =+J10-N10 -> 0 | Q10: 147000 | R10: =+J10*E$7 -> 0
D11: 0 | G11: 0 | I11: 0 | J11: 0 | K11: 0 | M11: 0 | N11: 0 | O11: 0 | P11: =+J11-N11 -> 0 | Q11: 0 | R11: 0
D12: 0 | G12: 0 | I12: 0 | J12: 0 | K12: 0 | M12: 0 | N12: 0 | O12: 0 | P12: 0 | Q12: 0 | R12: 0
A13: Total Revenue | I13: 1470 | J13: =SUM(J10:J12) -> 0 | M13: 0 | N13: =SUM(N10:N12) -> 0 | O13: 1470 | P13: =SUM(P10:P12) -> 0 | Q13: 147000 | R13: =SUM(R10:R12) -> 0
Q14: Enterprise | R14: Enterprise
A15: VARIABLE COSTS | D15: Quantity | E15: Quantity | F15: Units | G15: $/Unit | H15: $/Unit | I15: Total | J15: Total | K15: Share | L15: Share | M15: Landlord | N15: Landlord | O15: Tenant | P15: Tenant | Q15: Total | R15: Total
A16: Production Costs
B17: Herbicide
C18: Atrazine 4L | D18: 6 | F18: Pint | G18: 2.8975 | I18: 17.385 | J18: =E18*H18 -> 0 | K18: 0 | M18: 0 | N18: =J18*L18 -> 0 | O18: 17.385 | P18: =+J18-N18 -> 0 | Q18: 1738.5 | R18: =+J18*E$7 -> 0
C19: Pendimethalin | D19: 9.6 | F19: Pint | G19: 6.9975 | I19: 67.176 | J19: 0 | K19: 0 | M19: 0 | N19: 0 | O19: 67.176 | P19: 0 | Q19: 6717.6 | R19: 0
B20: Seed
C21: Seed Cane | D21: 1 | F21: acre | G21: 1200 | I21: 1200 | J21: 0 | K21: 0 | M21: 0 | N21: 0 | O21: 1200 | P21: 0 | Q21: 120000 | R21: 0
B22: Fertilizer
C23: Fertilizer 10-34-0 | D23: 2.4 | F23: CWT | G23: 39.75 | I23: 95.4 | J23: 0 | K23: 0 | M23: 0 | N23: 0 | O23: 95.4 | P23: 0 | Q23: 9540 | R23: 0
C24: UAN (32% N) | D24: 3.3 | F24: CWT | G24: 19 | I24: 62.7 | J24: 0 | K24: 0 | M24: 0 | N24: 0 | O24: 62.7 | P24: 0 | Q24: 6270 | R24: 0
B25: Custom
C26: Fixed Harvesting - SC | D26: 1 | F26: Acre | G26: 145 | I26: 145 | J26: 0 | K26: 0 | M26: 0 | N26: 0 | O26: 145 | P26: 0 | Q26: 14500 | R26: 0
C27: Variable Harvesting - SC | D27: 50 | F27: Ton | G27: 3.87 | I27: 193.5 | J27: 0 | K27: 0 | M27: 0 | N27: 0 | O27: 193.5 | P27: 0 | Q27: 19350 | R27: 0
C28: Hauling - SC | D28: 50 | F28: Ton | G28: 3.96 | I28: 198 | J28: 0 | K28: 0 | M28: 0 | N28: 0 | O28: 198 | P28: 0 | Q28: 19800 | R28: 0
B29: Miscellaneous
C30: Insurance, Sugarcane | D30: 1 | F30: Acre | G30: 14 | I30: 14 | J30: 0 | K30: 0 | M30: 0 | N30: 0 | O30: 14 | P30: 0 | Q30: 1400 | R30: 0
B31: Other Labor
C32: Unallocated Labor | D32: 0.5 | F32: Hour | G32: 15 | I32: 7.5 | J32: 0 | K32: 0 | M32: 0 | N32: 0 | O32: 7.5 | P32: 0 | Q32: 750 | R32: 0
D33: 0 | G33: 0 | I33: 0 | J33: 0 | K33: 0 | M33: 0 | N33: 0 | O33: 0 | P33: 0 | Q33: 0 | R33: 0
D34: 0 | G34: 0 | I34: 0 | J34: 0 | K34: 0 | M34: 0 | N34: 0 | O34: 0 | P34: 0 | Q34: 0 | R34: 0
D35: 0 | G35: 0 | I35: 0 | J35: =E35*H35 -> 0 | K35: 0 | M35: 0 | N35: =J35*L35 -> 0 | O35: 0 | P35: =+J35-N35 -> 0 | Q35: 0 | R35: =+J35*E$7 -> 0
B36: Irrigation
C37: Water Cost | D37: 5.5 | F37: Acre/Foot | G37: 19.63636364 | I37: 108 | J37: =E37*H37 -> 0 | K37: 0 | M37: 0 | N37: =J37*L37 -> 0 | O37: 108 | P37: =+J37-N37 -> 0 | Q37: 10800 | R37: =+J37*E$7 -> 0
C38: Irrigation Labor | D38: 7.7 | F38: Hour | G38: 17.5 | I38: 134.75 | J38: 0 | K38: 0 | M38: 0 | N38: 0 | O38: 134.75 | P38: 0 | Q38: 13475 | R38: 0
B39: Machinery Labor
C40: Tractors/Self-Propelled | D40: 1.21 | F40: Hour | G40: 17.21 | I40: 20.8241 | J40: =E40*H40 -> 0 | K40: 0 | M40: 0 | N40: =J40*L40 -> 0 | O40: 20.8241 | P40: =+J40-N40 -> 0 | Q40: 2082.41 | R40: =+J40*E$7 -> 0
C41: Other Labor | D41: 0 | F41: Hour | G41: 17.21 | I41: 0 | J41: =E41*H41 -> 0 | K41: 0 | M41: 0 | N41: =J41*L41 -> 0 | O41: 0 | P41: =+J41-N41 -> 0 | Q41: 0 | R41: =+J41*E$7 -> 0
B43: Diesel Fuel
C44: Pickup/General Use Equipment | D44: 1 | F44: Acre | G44: 0 | I44: 0 | J44: =E44*H44 -> 0 | K44: 0 | M44: 0 | N44: =J44*L44 -> 0 | O44: 0 | P44: =+J44-N44 -> 0 | Q44: 0 | R44: =+J44*E$7 -> 0
C45: Tractors/Self-Propelled | D45: 5.89 | F45: Gallon | G45: 3.6 | I45: 21.204 | J45: =E45*H45 -> 0 | K45: 0 | M45: 0 | N45: =J45*L45 -> 0 | O45: 21.204 | P45: =+J45-N45 -> 0 | Q45: 2120.4 | R45: =+J45*E$7 -> 0
B47: Gasoline
C48: Pickup/General Use Equipment | D48: 1 | F48: Acre | G48: 0 | I48: 0 | J48: =E48*H48 -> 0 | K48: 0 | M48: 0 | N48: =J48*L48 -> 0 | O48: 0 | P48: =+J48-N48 -> 0 | Q48: 0 | R48: =+J48*E$7 -> 0
C49: Tractors/Self-Propelled | D49: 0 | F49: Gallon | G49: 3.15 | I49: 0 | J49: =E49*H49 -> 0 | K49: 0 | M49: 0 | N49: =J49*L49 -> 0 | O49: 0 | P49: =+J49-N49 -> 0 | Q49: 0 | R49: =+J49*E$7 -> 0
B51: Repairs & Maintenance
C52: Pickup/General Use Equipment | D52: 1 | F52: Acre | G52: 0 | I52: 0 | J52: =E52*H52 -> 0 | K52: 0 | M52: 0 | N52: =J52*L52 -> 0 | O52: 0 | P52: =+J52-N52 -> 0 | Q52: 0 | R52: =+J52*E$7 -> 0
C53: Irrigation Equipment | D53: 1 | F53: Acre | G53: 0 | I53: 0 | J53: 0 | K53: 0 | M53: 0 | N53: 0 | O53: 0 | P53: 0 | Q53: 0 | R53: 0
C54: Tractors/Self-Propelled | D54: 1 | F54: Acre | G54: 13.43760476 | I54: 13.43760476 | J54: 0 | K54: 0 | M54: 0 | N54: 0 | O54: 13.43760476 | P54: 0 | Q54: 1343.760476 | R54: 0
C55: Implements | D55: 1 | F55: Acre | G55: 9.91459032 | I55: 9.91459032 | J55: 0 | K55: 0 | M55: 0 | N55: 0 | O55: 9.91459032 | P55: 0 | Q55: 991.459032 | R55: 0
I56: 0 | J56: 0 | K56: 0 | M56: 0 | N56: 0 | O56: 0 | P56: 0 | Q56: 0 | R56: 0
I57: 0 | J57: 0 | K57: 0 | M57: 0 | N57: 0 | O57: 0 | P57: 0 | Q57: 0 | R57: 0
B58: Interest on Credit Line | G58: 0.085 | I58: 165.9931346 | J58: =+SUM(J17:J57)/2*H58 -> 0 | M58: 0 | N58: =+SUM(N17:N57)/2*L58 -> 0 | O58: 165.9931346 | P58: =+SUM(P17:P57)/2*L58 -> 0 | Q58: 16599.31346 | R58: =+J58*E$7 -> 0
A59: Total Variable Costs | I59: 2474.78443 | J59: =SUM(J18:J58) -> 0 | M59: 0 | N59: =SUM(N18:N58) -> 0 | O59: 2474.78443 | P59: =SUM(P18:P58) -> 0 | Q59: 247478.443 | R59: =SUM(R18:R58) -> 0
A60: Planned Returns Above Variable Costs: | I60: -1004.78443 | J60: =+J13-J59 -> 0 | M60: 0 | N60: =+N13-N59 -> 0 | O60: -1004.78443 | P60: =+P13-P59 -> 0 | Q60: -100478.443 | R60: =+R13-R59 -> 0
B61: Breakeven Price to Cover Variable Costs | G61: 49.49568859 | H61: =IF(E10=0,"n/a",(YVarExp-(YTotExp+YTotRet-J10))/E10) -> n/a | I61: Ton
Q62: Enterprise | R62: Enterprise
A63: FIXED COSTS | D63: Quantity | E63: Quantity | F63: Units | G63: $/Unit | H63: $/Unit | I63: Total | J63: Total | K63: Share | L63: Share | M63: Landlord | N63: Landlord | O63: Tenant | P63: Tenant | Q63: Total | R63: Total
B64: Machinery Depreciation
C65: Tractors/Self-Propelled | D65: 1 | F65: Acre | G65: 13.88552492 | I65: 13.88552492 | J65: =E65*H65 -> 0 | K65: 0 | M65: 0 | N65: =J65*L65 -> 0 | O65: 13.88552492 | P65: =+J65-N65 -> 0 | Q65: 1388.552492 | R65: =+J65*E$7 -> 0
C66: Implements | D66: 1 | F66: Acre | G66: 12.4196219 | I66: 12.4196219 | J66: 0 | K66: 0 | M66: 0 | N66: =J66*L66 -> 0 | O66: 12.4196219 | P66: 0 | Q66: 1241.96219 | R66: 0
B67: Equipment Investment
C68: Tractors/Self-Propelled | D68: 108.1727183 | F68: Dollars | G68: 0.085 | I68: 9.194681057 | J68: =E68*H68 -> 0 | K68: 0 | M68: 0 | N68: =J68*L68 -> 0 | O68: 9.194681057 | P68: =+J68-N68 -> 0 | Q68: 919.4681057 | R68: =+J68*E$7 -> 0
C69: Implements | D69: 54.00184737 | F69: Dollars | G69: 0.085 | I69: 4.590157027 | J69: 0 | K69: 0 | M69: 0 | N69: =J69*L69 -> 0 | O69: 4.590157027 | P69: 0 | Q69: 459.0157027 | R69: 0
B70: Salaried Labor | D70: 1 | F70: Acre | G70: 0 | I70: 0 | J70: 0 | K70: 0 | M70: 0 | N70: =J70*L70 -> 0 | O70: 0 | P70: =+J70-N70 -> 0 | Q70: 0 | R70: =+J70*E$7 -> 0
B71: Management Fee, Owner/Operator Labor | D71: 1 | F71: Acre | G71: 0 | I71: 0 | J71: 0 | K71: 0 | M71: 0 | N71: 0 | O71: 0 | P71: 0 | Q71: 0 | R71: 0
B72: Allocated Establishment Cost | D72: 1 | F72: Acre | G72: 2.11 | I72: 2.11 | J72: 0 | K72: 0 | M72: 0 | N72: 0 | O72: 2.11 | P72: 0 | Q72: 211 | R72: 0
B73: Cash Rent, Sugar Cane | D73: 1 | F73: Acre | G73: 110 | I73: 110 | J73: 0 | K73: 0 | M73: 0 | N73: 0 | O73: 110 | P73: 0 | Q73: 11000 | R73: 0
B74: Property Taxes | D74: 1 | F74: Acre | G74: 0 | I74: 0 | J74: 0 | K74: 0 | M74: 0 | N74: 0 | O74: 0 | P74: 0 | Q74: 0 | R74: 0
B75: Whole Farm Insurance | D75: 1 | F75: Acre | G75: 0 | I75: 0 | J75: 0 | K75: 0 | M75: 0 | N75: 0 | O75: 0 | P75: 0 | Q75: 0 | R75: 0
D76: 1 | G76: 0 | I76: 0 | J76: 0 | K76: 0 | M76: 0 | N76: 0 | O76: 0 | P76: 0 | Q76: 0 | R76: 0
D77: 1 | G77: 0 | I77: 0 | J77: =E77*H77 -> 0 | K77: 0 | M77: 0 | N77: 0 | O77: 0 | P77: 0 | Q77: 0 | R77: 0
A78: Total Fixed Costs | I78: 152.1999849 | J78: =+SUM(J65:J77) -> 0 | M78: 0 | N78: =+SUM(N65:N77) -> 0 | O78: 152.1999849 | P78: =+SUM(P65:P77) -> 0 | Q78: 15219.99849 | R78: =+SUM(R65:R77) -> 0
A79: Total Specified Costs | I79: 2626.984415 | J79: =+J59+J78 -> 0 | M79: 0 | N79: =+N59+N78 -> 0 | O79: 2626.984415 | P79: =+P59+P78 -> 0 | Q79: 262698.4415 | R79: =+R59+R78 -> 0
A81: Returns Above Specified Costs | I81: -1156.984415 | J81: =+J13-J79 -> 0 | M81: 0 | N81: =+N13-N79 -> 0 | O81: -1156.984415 | P81: =+P13-P79 -> 0 | Q81: -115698.4415 | R81: =+R13-R79 -> 0
A83: Breakeven Price to Cover Total Costs | G83: 52.53968829 | H83: =IF(E10=0,"n/a",(YTotExp-(YTotExp+YTotRet-J10))/E10) -> n/a | I83: Ton
D85: Example Breakeven Prices
B86: Example | C86: Example | D86: To Cover | G86: To Cover
B87: Yield | C87: Yield | D87: Variable | G87: Total
B88: Percent | C88: Ton | D88: Costs | G88: Costs
B89: 0.75 | C89: 37.5 | D89: 65.99425146 | G89: 70.05291772
B90: 0.9 | C90: 45 | D90: 54.99520955 | G90: 58.37743144
B91: 1 | C91: 50 | D91: 49.49568859 | G91: 52.53968829
B92: 1.1 | C92: 55 | D92: 44.99608054 | G92: 47.76335299
B93: 1.25 | C93: 62.5 | D93: 39.59655087 | G93: 42.03175063
A95: Developed by Manuel Garcia, Assistant Professor and Extension Specialist, Texas A&M AgriLife Extension, 956-968-5581
A97: Information presented is prepared solely as a general guide and not intended to recognize or predict the costs and returns from any one operation. Brand names are mentioned only as examples and imply no endorsement.

Sheet SugarCaneRatoon
A1: Projections for Planning Purposes Only -- Not to be Used without Updating
A2: 2025 Estimated Costs and Returns per Acre
A3: Sugar Cane, Ratoon, Furrow Irrigated, Rio Grande Valley
A4: Enter your name for this budget in the cell above.
A5: Enter Your Values in the cells highlighed in MAROON.
E6: Your Acres | R6: Your
C7: Crop Acres | D7: 100 | L7: Your | Q7: Enterprise | R7: Enterprise
E8: Your | H8: Your | I8: Cash | J8: Your | K8: Landlord | L8: Landlord | N8: Your | P8: Your | Q8: Total | R8: Total
A9: REVENUE | D9: Quantity | E9: Quantity | F9: Units | G9: $/Unit | H9: $/Unit | I9: Total | J9: Total | K9: Share | L9: Share | M9: Landlord | N9: Landlord | O9: Tenant | P9: Tenant | Q9: (100 acres) | R9: ="(" & E7 & " acres)" -> ( acres)
B10: Sugar Cane | D10: 38 | F10: Ton | G10: 29.4 | I10: 1117.2 | J10: =E10*H10 -> 0 | K10: 0 | M10: 0 | N10: =J10*L10 -> 0 | O10: 1117.2 | P10: =+J10-N10 -> 0 | Q10: 111720 | R10: =+J10*E$7 -> 0
D11: 0 | G11: 0 | I11: 0 | J11: 0 | K11: 0 | M11: 0 | N11: 0 | O11: 0 | P11: =+J11-N11 -> 0 | Q11: 0 | R11: 0
D12: 0 | G12: 0 | I12: 0 | J12: 0 | K12: 0 | M12: 0 | N12: 0 | O12: 0 | P12: 0 | Q12: 0 | R12: 0
A13: Total Revenue | I13: 1117.2 | J13: =SUM(J10:J12) -> 0 | M13: 0 | N13: =SUM(N10:N12) -> 0 | O13: 1117.2 | P13: =SUM(P10:P12) -> 0 | Q13: 111720 | R13: =SUM(R10:R12) -> 0
Q14: Enterprise | R14: Enterprise
A15: VARIABLE COSTS | D15: Quantity | E15: Quantity | F15: Units | G15: $/Unit | H15: $/Unit | I15: Total | J15: Total | K15: Share | L15: Share | M15: Landlord | N15: Landlord | O15: Tenant | P15: Tenant | Q15: Total | R15: Total
A16: Production Costs
B17: Herbicide
C18: Atrazine 4L | D18: 12 | F18: Pint | G18: 2.8975 | I18: 34.77 | J18: =E18*H18 -> 0 | K18: 0 | M18: 0 | N18: =J18*L18 -> 0 | O18: 34.77 | P18: =+J18-N18 -> 0 | Q18: 3477 | R18: =+J18*E$7 -> 0
C19: Pendimethalin | D19: 9.6 | F19: Pint | G19: 6.9975 | I19: 67.176 | J19: 0 | K19: 0 | M19: 0 | N19: 0 | O19: 67.176 | P19: 0 | Q19: 6717.6 | R19: 0
C20: Glyphosate | D20: 0.8 | F20: Pint | G20: 6.25 | I20: 5 | J20: 0 | K20: 0 | M20: 0 | N20: 0 | O20: 5 | P20: 0 | Q20: 500 | R20: 0
B21: Fertilizer
C22: UAN (32% N) | D22: 3.3 | F22: CWT | G22: 19 | I22: 62.7 | J22: 0 | K22: 0 | M22: 0 | N22: 0 | O22: 62.7 | P22: 0 | Q22: 6270 | R22: 0
C23: Fertilizer 10-34-0 | D23: 2.4 | F23: CWT | G23: 39.75 | I23: 95.4 | J23: 0 | K23: 0 | M23: 0 | N23: 0 | O23: 95.4 | P23: 0 | Q23: 9540 | R23: 0
B24: Custom
C25: Fixed Harvesting - SC | D25: 1 | F25: Acre | G25: 145 | I25: 145 | J25: 0 | K25: 0 | M25: 0 | N25: 0 | O25: 145 | P25: 0 | Q25: 14500 | R25: 0
C26: Variable Harvesting - SC | D26: 38 | F26: Ton | G26: 3.87 | I26: 147.06 | J26: 0 | K26: 0 | M26: 0 | N26: 0 | O26: 147.06 | P26: 0 | Q26: 14706 | R26: 0
C27: Hauling - SC | D27: 38 | F27: Ton | G27: 3.96 | I27: 150.48 | J27: 0 | K27: 0 | M27: 0 | N27: 0 | O27: 150.48 | P27: 0 | Q27: 15048 | R27: 0
B28: Miscellaneous
C29: Insurance, Sugarcane | D29: 1 | F29: Acre | G29: 14 | I29: 14 | J29: 0 | K29: 0 | M29: 0 | N29: 0 | O29: 14 | P29: 0 | Q29: 1400 | R29: 0
B30: Other Labor
C31: Labor - Weed Control | D31: 1.75 | F31: Hour | G31: 12 | I31: 21 | J31: 0 | K31: 0 | M31: 0 | N31: 0 | O31: 21 | P31: 0 | Q31: 2100 | R31: 0
C32: Unallocated Labor | D32: 0.4872 | F32: Hour | G32: 15 | I32: 7.308 | J32: 0 | K32: 0 | M32: 0 | N32: 0 | O32: 7.308 | P32: 0 | Q32: 730.8 | R32: 0
D33: 0 | G33: 0 | I33: 0 | J33: 0 | K33: 0 | M33: 0 | N33: 0 | O33: 0 | P33: 0 | Q33: 0 | R33: 0
D34: 0 | G34: 0 | I34: 0 | J34: 0 | K34: 0 | M34: 0 | N34: 0 | O34: 0 | P34: 0 | Q34: 0 | R34: 0
D35: 0 | G35: 0 | I35: 0 | J35: =E35*H35 -> 0 | K35: 0 | M35: 0 | N35: =J35*L35 -> 0 | O35: 0 | P35: =+J35-N35 -> 0 | Q35: 0 | R35: =+J35*E$7 -> 0
B36: Irrigation
C37: Water Cost | D37: 5 | F37: Acre/Foot | G37: 20 | I37: 100 | J37: =E37*H37 -> 0 | K37: 0 | M37: 0 | N37: =J37*L37 -> 0 | O37: 100 | P37: =+J37-N37 -> 0 | Q37: 10000 | R37: =+J37*E$7 -> 0
C38: Irrigation Labor | D38: 7 | F38: Hour | G38: 17.5 | I38: 122.5 | J38: 0 | K38: 0 | M38: 0 | N38: 0 | O38: 122.5 | P38: 0 | Q38: 12250 | R38: 0
B39: Machinery Labor
C40: Tractors/Self-Propelled | D40: 0.7 | F40: Hour | G40: 17.21 | I40: 12.047 | J40: =E40*H40 -> 0 | K40: 0 | M40: 0 | N40: =J40*L40 -> 0 | O40: 12.047 | P40: =+J40-N40 -> 0 | Q40: 1204.7 | R40: =+J40*E$7 -> 0
C41: Other Labor | D41: 0 | F41: Hour | G41: 17.21 | I41: 0 | J41: =E41*H41 -> 0 | K41: 0 | M41: 0 | N41: =J41*L41 -> 0 | O41: 0 | P41: =+J41-N41 -> 0 | Q41: 0 | R41: =+J41*E$7 -> 0
B43: Diesel Fuel
C44: Pickup/General Use Equipment | D44: 1 | F44: Acre | G44: 0 | I44: 0 | J44: =E44*H44 -> 0 | K44: 0 | M44: 0 | N44: =J44*L44 -> 0 | O44: 0 | P44: =+J44-N44 -> 0 | Q44: 0 | R44: =+J44*E$7 -> 0
C45: Tractors/Self-Propelled | D45: 4.81 | F45: Gallon | G45: 3.6 | I45: 17.316 | J45: =E45*H45 -> 0 | K45: 0 | M45: 0 | N45: =J45*L45 -> 0 | O45: 17.316 | P45: =+J45-N45 -> 0 | Q45: 1731.6 | R45: =+J45*E$7 -> 0
B47: Gasoline
C48: Pickup/General Use Equipment | D48: 1 | F48: Acre | G48: 0 | I48: 0 | J48: =E48*H48 -> 0 | K48: 0 | M48: 0 | N48: =J48*L48 -> 0 | O48: 0 | P48: =+J48-N48 -> 0 | Q48: 0 | R48: =+J48*E$7 -> 0
C49: Tractors/Self-Propelled | D49: 0 | F49: Gallon | G49: 3.15 | I49: 0 | J49: =E49*H49 -> 0 | K49: 0 | M49: 0 | N49: =J49*L49 -> 0 | O49: 0 | P49: =+J49-N49 -> 0 | Q49: 0 | R49: =+J49*E$7 -> 0
B51: Repairs & Maintenance
C52: Pickup/General Use Equipment | D52: 1 | F52: Acre | G52: 0 | I52: 0 | J52: =E52*H52 -> 0 | K52: 0 | M52: 0 | N52: =J52*L52 -> 0 | O52: 0 | P52: =+J52-N52 -> 0 | Q52: 0 | R52: =+J52*E$7 -> 0
C53: Irrigation Equipment | D53: 1 | F53: Acre | G53: 0 | I53: 0 | J53: 0 | K53: 0 | M53: 0 | N53: 0 | O53: 0 | P53: 0 | Q53: 0 | R53: 0
C54: Tractors/Self-Propelled | D54: 1 | F54: Acre | G54: 10.80682553 | I54: 10.80682553 | J54: 0 | K54: 0 | M54: 0 | N54: 0 | O54: 10.80682553 | P54: 0 | Q54: 1080.682553 | R54: 0
C55: Implements | D55: 1 | F55: Acre | G55: 6.392441397 | I55: 6.392441397 | J55: 0 | K55: 0 | M55: 0 | N55: 0 | O55: 6.392441397 | P55: 0 | Q55: 639.2441397 | R55: 0
I56: 0 | J56: 0 | K56: 0 | M56: 0 | N56: 0 | O56: 0 | P56: 0 | Q56: 0 | R56: 0
I57: 0 | J57: 0 | K57: 0 | M57: 0 | N57: 0 | O57: 0 | P57: 0 | Q57: 0 | R57: 0
B58: Interest on Credit Line | G58: 0.085 | I58: 33.51296296 | J58: =+SUM(J17:J57)/2*H58 -> 0 | M58: 0 | N58: =+SUM(N17:N57)/2*L58 -> 0 | O58: 33.51296296 | P58: =+SUM(P17:P57)/2*L58 -> 0 | Q58: 3351.296296 | R58: =+J58*E$7 -> 0
A59: Total Variable Costs | I59: 1052.46923 | J59: =SUM(J18:J58) -> 0 | M59: 0 | N59: =SUM(N18:N58) -> 0 | O59: 1052.46923 | P59: =SUM(P18:P58) -> 0 | Q59: 105246.923 | R59: =SUM(R18:R58) -> 0
A60: Planned Returns Above Variable Costs: | I60: 64.73077011 | J60: =+J13-J59 -> 0 | M60: 0 | N60: =+N13-N59 -> 0 | O60: 64.73077011 | P60: =+P13-P59 -> 0 | Q60: 6473.077011 | R60: =+R13-R59 -> 0
B61: Breakeven Price to Cover Variable Costs | G61: 27.69655868 | H61: =IF(E10=0,"n/a",(YVarExp-(YTotExp+YTotRet-J10))/E10) -> n/a | I61: Ton
Q62: Enterprise | R62: Enterprise
A63: FIXED COSTS | D63: Quantity | E63: Quantity | F63: Units | G63: $/Unit | H63: $/Unit | I63: Total | J63: Total | K63: Share | L63: Share | M63: Landlord | N63: Landlord | O63: Tenant | P63: Tenant | Q63: Total | R63: Total
B64: Machinery Depreciation
C65: Tractors/Self-Propelled | D65: 1 | F65: Acre | G65: 12.2087365 | I65: 12.2087365 | J65: =E65*H65 -> 0 | K65: 0 | M65: 0 | N65: =J65*L65 -> 0 | O65: 12.2087365 | P65: =+J65-N65 -> 0 | Q65: 1220.87365 | R65: =+J65*E$7 -> 0
C66: Implements | D66: 1 | F66: Acre | G66: 8.248258357 | I66: 8.248258357 | J66: 0 | K66: 0 | M66: 0 | N66: =J66*L66 -> 0 | O66: 8.248258357 | P66: 0 | Q66: 824.8258357 | R66: 0
B67: Equipment Investment
C68: Tractors/Self-Propelled | D68: 94.62599355 | F68: Dollars | G68: 0.085 | I68: 8.043209452 | J68: =E68*H68 -> 0 | K68: 0 | M68: 0 | N68: =J68*L68 -> 0 | O68: 8.043209452 | P68: =+J68-N68 -> 0 | Q68: 804.3209452 | R68: =+J68*E$7 -> 0
C69: Implements | D69: 36.3465287 | F69: Dollars | G69: 0.085 | I69: 3.089454939 | J69: 0 | K69: 0 | M69: 0 | N69: =J69*L69 -> 0 | O69: 3.089454939 | P69: 0 | Q69: 308.9454939 | R69: 0
B70: Salaried Labor | D70: 1 | F70: Acre | G70: 0 | I70: 0 | J70: 0 | K70: 0 | M70: 0 | N70: =J70*L70 -> 0 | O70: 0 | P70: =+J70-N70 -> 0 | Q70: 0 | R70: =+J70*E$7 -> 0
B71: Management Fee, Owner/Operator Labor | D71: 1 | F71: Acre | G71: 0 | I71: 0 | J71: 0 | K71: 0 | M71: 0 | N71: 0 | O71: 0 | P71: 0 | Q71: 0 | R71: 0
B72: Allocated Establishment Cost | D72: 1 | F72: Acre | G72: 0 | I72: 0 | J72: 0 | K72: 0 | M72: 0 | N72: 0 | O72: 0 | P72: 0 | Q72: 0 | R72: 0
B73: Cash Rent, Sugar Cane | D73: 1 | F73: Acre | G73: 110 | I73: 110 | J73: 0 | K73: 0 | M73: 0 | N73: 0 | O73: 110 | P73: 0 | Q73: 11000 | R73: 0
B74: Property Taxes | D74: 1 | F74: Acre | G74: 0 | I74: 0 | J74: 0 | K74: 0 | M74: 0 | N74: 0 | O74: 0 | P74: 0 | Q74: 0 | R74: 0
B75: Whole Farm Insurance | D75: 1 | F75: Acre | G75: 0 | I75: 0 | J75: 0 | K75: 0 | M75: 0 | N75: 0 | O75: 0 | P75: 0 | Q75: 0 | R75: 0
D76: 1 | G76: 0 | I76: 0 | J76: 0 | K76: 0 | M76: 0 | N76: 0 | O76: 0 | P76: 0 | Q76: 0 | R76: 0
D77: 1 | G77: 0 | I77: 0 | J77: =E77*H77 -> 0 | K77: 0 | M77: 0 | N77: 0 | O77: 0 | P77: 0 | Q77: 0 | R77: 0
A78: Total Fixed Costs | I78: 141.5896592 | J78: =+SUM(J65:J77) -> 0 | M78: 0 | N78: =+SUM(N65:N77) -> 0 | O78: 141.5896592 | P78: =+SUM(P65:P77) -> 0 | Q78: 14158.96592 | R78: =+SUM(R65:R77) -> 0
A79: Total Specified Costs | I79: 1194.058889 | J79: =+J59+J78 -> 0 | M79: 0 | N79: =+N59+N78 -> 0 | O79: 1194.058889 | P79: =+P59+P78 -> 0 | Q79: 119405.8889 | R79: =+R59+R78 -> 0
A81: Returns Above Specified Costs | I81: -76.85888914 | J81: =+J13-J79 -> 0 | M81: 0 | N81: =+N13-N79 -> 0 | O81: -76.85888914 | P81: =+P13-P79 -> 0 | Q81: -7685.888914 | R81: =+R13-R79 -> 0
A83: Breakeven Price to Cover Total Costs | G83: 31.42260235 | H83: =IF(E10=0,"n/a",(YTotExp-(YTotExp+YTotRet-J10))/E10) -> n/a | I83: Ton
D85: Example Breakeven Prices
B86: Example | C86: Example | D86: To Cover | G86: To Cover
B87: Yield | C87: Yield | D87: Variable | G87: Total
B88: Percent | C88: Ton | D88: Costs | G88: Costs
B89: 0.75 | C89: 28.5 | D89: 36.92874491 | G89: 41.89680313
B90: 0.9 | C90: 34.2 | D90: 30.77395409 | G90: 34.91400261
B91: 1 | C91: 38 | D91: 27.69655868 | G91: 31.42260235
B92: 1.1 | C92: 41.8 | D92: 25.17868971 | G92: 28.56600213
B93: 1.25 | C93: 47.5 | D93: 22.15724695 | G93: 25.13808188
A95: Developed by Manuel Garcia, Assistant Professor and Extension Specialist, Texas A&M AgriLife Extension, 956-968-5581
A97: Information presented is prepared solely as a general guide and not intended to recognize or predict the costs and returns from any one operation. Brand names are mentioned only as examples and imply no endorsement.

Sheet HayEstablishment
A1: Projections for Planning Purposes Only -- Not to be Used without Updating
A2: 2025 Estimated Costs and Returns per Acre
A3: Hay Establishment, Furrow Irrigated, Rio Grande Valley
A4: Enter your name for this budget in the cell above.
A5: Enter Your Values in the cells highlighed in MAROON.
E6: Your Acres | R6: Your
C7: Crop Acres | D7: 100 | L7: Your | Q7: Enterprise | R7: Enterprise
E8: Your | H8: Your | I8: Cash | J8: Your | K8: Landlord | L8: Landlord | N8: Your | P8: Your | Q8: Total | R8: Total
A9: REVENUE | D9: Quantity | E9: Quantity | F9: Units | G9: $/Unit | H9: $/Unit | I9: Total | J9: Total | K9: Share | L9: Share | M9: Landlord | N9: Landlord | O9: Tenant | P9: Tenant | Q9: (100 acres) | R9: ="(" & E7 & " acres)" -> ( acres)
B10: Bermuda Hay | D10: 0 | G10: 0 | I10: 0 | J10: =E10*H10 -> 0 | K10: 0 | M10: 0 | N10: =J10*L10 -> 0 | O10: 0 | P10: =+J10-N10 -> 0 | Q10: 0 | R10: =+J10*E$7 -> 0
D11: 0 | G11: 0 | I11: 0 | J11: 0 | K11: 0 | M11: 0 | N11: 0 | O11: 0 | P11: =+J11-N11 -> 0 | Q11: 0 | R11: 0
D12: 0 | G12: 0 | I12: 0 | J12: 0 | K12: 0 | M12: 0 | N12: 0 | O12: 0 | P12: 0 | Q12: 0 | R12: 0
A13: Total Revenue | I13: 0 | J13: =SUM(J10:J12) -> 0 | M13: 0 | N13: =SUM(N10:N12) -> 0 | O13: 0 | P13: =SUM(P10:P12) -> 0 | Q13: 0 | R13: =SUM(R10:R12) -> 0
Q14: Enterprise | R14: Enterprise
A15: VARIABLE COSTS | D15: Quantity | E15: Quantity | F15: Units | G15: $/Unit | H15: $/Unit | I15: Total | J15: Total | K15: Share | L15: Share | M15: Landlord | N15: Landlord | O15: Tenant | P15: Tenant | Q15: Total | R15: Total
A16: Production Costs
B17: Seed
C18: Costal Bermuda Sprigs | D18: 1 | F18: Acre | G18: 135 | I18: 135 | J18: =E18*H18 -> 0 | K18: 0 | M18: 0 | N18: =J18*L18 -> 0 | O18: 135 | P18: =+J18-N18 -> 0 | Q18: 13500 | R18: =+J18*E$7 -> 0
B19: Fertilizer
C20: Ammonium Sulfate (21% N) | D20: 4 | F20: CWT | G20: 24 | I20: 96 | J20: 0 | K20: 0 | M20: 0 | N20: 0 | O20: 96 | P20: 0 | Q20: 9600 | R20: 0
B21: Custom
C22: Land Prep and Disking | D22: 1 | F22: Acre | G22: 50 | I22: 50 | J22: 0 | K22: 0 | M22: 0 | N22: 0 | O22: 50 | P22: 0 | Q22: 5000 | R22: 0
C23: Mechanical Weed Control | D23: 1 | F23: Acre | G23: 60 | I23: 60 | J23: 0 | K23: 0 | M23: 0 | N23: 0 | O23: 60 | P23: 0 | Q23: 6000 | R23: 0
B24: Herbicide
C25: Pendimethalin | D25: 3 | F25: Pint | G25: 6.9975 | I25: 20.9925 | J25: 0 | K25: 0 | M25: 0 | N25: 0 | O25: 20.9925 | P25: 0 | Q25: 2099.25 | R25: 0
B26: Other Labor
C27: Unallocated Labor | D27: 0.5 | F27: Hour | G27: 15 | I27: 7.5 | J27: 0 | K27: 0 | M27: 0 | N27: 0 | O27: 7.5 | P27: 0 | Q27: 750 | R27: 0
D28: 0 | G28: 0 | I28: 0 | J28: 0 | K28: 0 | M28: 0 | N28: 0 | O28: 0 | P28: 0 | Q28: 0 | R28: 0
D29: 0 | G29: 0 | I29: 0 | J29: 0 | K29: 0 | M29: 0 | N29: 0 | O29: 0 | P29: 0 | Q29: 0 | R29: 0
D30: 0 | G30: 0 | I30: 0 | J30: =E30*H30 -> 0 | K30: 0 | M30: 0 | N30: =J30*L30 -> 0 | O30: 0 | P30: =+J30-N30 -> 0 | Q30: 0 | R30: =+J30*E$7 -> 0
B31: Irrigation
C32: Water Cost | D32: 2 | F32: Acre/Foot | G32: 26 | I32: 52 | J32: =E32*H32 -> 0 | K32: 0 | M32: 0 | N32: =J32*L32 -> 0 | O32: 52 | P32: =+J32-N32 -> 0 | Q32: 5200 | R32: =+J32*E$7 -> 0
C33: Irrigation Labor | D33: 1.2 | F33: Hour | G33: 17.5 | I33: 21 | J33: 0 | K33: 0 | M33: 0 | N33: 0 | O33: 21 | P33: 0 | Q33: 2100 | R33: 0
B34: Machinery Labor
C35: Tractors/Self-Propelled | D35: 0.37 | F35: Hour | G35: 17.21 | I35: 6.3677 | J35: =E35*H35 -> 0 | K35: 0 | M35: 0 | N35: =J35*L35 -> 0 | O35: 6.3677 | P35: =+J35-N35 -> 0 | Q35: 636.77 | R35: =+J35*E$7 -> 0
C36: Other Labor | D36: 0.18 | F36: Hour | G36: 17.21 | I36: 3.0978 | J36: =E36*H36 -> 0 | K36: 0 | M36: 0 | N36: =J36*L36 -> 0 | O36: 3.0978 | P36: =+J36-N36 -> 0 | Q36: 309.78 | R36: =+J36*E$7 -> 0
B38: Diesel Fuel
C39: Pickup/General Use Equipment | D39: 1 | F39: Acre | G39: 0 | I39: 0 | J39: =E39*H39 -> 0 | K39: 0 | M39: 0 | N39: =J39*L39 -> 0 | O39: 0 | P39: =+J39-N39 -> 0 | Q39: 0 | R39: =+J39*E$7 -> 0
C40: Tractors/Self-Propelled | D40: 1.73 | F40: Gallon | G40: 3.6 | I40: 6.228 | J40: =E40*H40 -> 0 | K40: 0 | M40: 0 | N40: =J40*L40 -> 0 | O40: 6.228 | P40: =+J40-N40 -> 0 | Q40: 622.8 | R40: =+J40*E$7 -> 0
B42: Gasoline
C43: Pickup/General Use Equipment | D43: 1 | F43: Acre | G43: 0 | I43: 0 | J43: =E43*H43 -> 0 | K43: 0 | M43: 0 | N43: =J43*L43 -> 0 | O43: 0 | P43: =+J43-N43 -> 0 | Q43: 0 | R43: =+J43*E$7 -> 0
C44: Tractors/Self-Propelled | D44: 0 | F44: Gallon | G44: 3.15 | I44: 0 | J44: =E44*H44 -> 0 | K44: 0 | M44: 0 | N44: =J44*L44 -> 0 | O44: 0 | P44: =+J44-N44 -> 0 | Q44: 0 | R44: =+J44*E$7 -> 0
B46: Repairs & Maintenance
C47: Pickup/General Use Equipment | D47: 1 | F47: Acre | G47: 0 | I47: 0 | J47: =E47*H47 -> 0 | K47: 0 | M47: 0 | N47: =J47*L47 -> 0 | O47: 0 | P47: =+J47-N47 -> 0 | Q47: 0 | R47: =+J47*E$7 -> 0
C48: Irrigation Equipment | D48: 1 | F48: Acre | G48: 0 | I48: 0 | J48: 0 | K48: 0 | M48: 0 | N48: 0 | O48: 0 | P48: 0 | Q48: 0 | R48: 0
C49: Tractors/Self-Propelled | D49: 1 | F49: Acre | G49: 3.745303897 | I49: 3.745303897 | J49: 0 | K49: 0 | M49: 0 | N49: 0 | O49: 3.745303897 | P49: 0 | Q49: 374.5303897 | R49: 0
C50: Implements | D50: 1 | F50: Acre | G50: 1.61311948 | I50: 1.61311948 | J50: 0 | K50: 0 | M50: 0 | N50: 0 | O50: 1.61311948 | P50: 0 | Q50: 161.311948 | R50: 0
I51: 0 | J51: 0 | K51: 0 | M51: 0 | N51: 0 | O51: 0 | P51: 0 | Q51: 0 | R51: 0
I52: 0 | J52: 0 | K52: 0 | M52: 0 | N52: 0 | O52: 0 | P52: 0 | Q52: 0 | R52: 0
B53: Interest on Credit Line | G53: 0.085 | I53: 31.63174871 | J53: =+SUM(J17:J52)/2*H53 -> 0 | M53: 0 | N53: =+SUM(N17:N52)/2*L53 -> 0 | O53: 31.63174871 | P53: =+SUM(P17:P52)/2*L53 -> 0 | Q53: 3163.174871 | R53: =+J53*E$7 -> 0
A54: Total Variable Costs | I54: 495.1761721 | J54: =SUM(J18:J53) -> 0 | M54: 0 | N54: =SUM(N18:N53) -> 0 | O54: 495.1761721 | P54: =SUM(P18:P53) -> 0 | Q54: 49517.61721 | R54: =SUM(R18:R53) -> 0
A55: Planned Returns Above Variable Costs: | I55: -495.1761721 | J55: =+J13-J54 -> 0 | M55: 0 | N55: =+N13-N54 -> 0 | O55: -495.1761721 | P55: =+P13-P54 -> 0 | Q55: -49517.61721 | R55: =+R13-R54 -> 0
B56: Breakeven Price to Cover Variable Costs | G56: n/a | H56: =IF(E10=0,"n/a",(YVarExp-(YTotExp+YTotRet-J10))/E10) -> n/a
Q57: Enterprise | R57: Enterprise
A58: FIXED COSTS | D58: Quantity | E58: Quantity | F58: Units | G58: $/Unit | H58: $/Unit | I58: Total | J58: Total | K58: Share | L58: Share | M58: Landlord | N58: Landlord | O58: Tenant | P58: Tenant | Q58: Total | R58: Total
B59: Machinery Depreciation
C60: Tractors/Self-Propelled | D60: 1 | F60: Acre | G60: 3.87014736 | I60: 3.87014736 | J60: =E60*H60 -> 0 | K60: 0 | M60: 0 | N60: =J60*L60 -> 0 | O60: 3.87014736 | P60: =+J60-N60 -> 0 | Q60: 387.014736 | R60: =+J60*E$7 -> 0
C61: Implements | D61: 1 | F61: Acre | G61: 3.02261406 | I61: 3.02261406 | J61: 0 | K61: 0 | M61: 0 | N61: =J61*L61 -> 0 | O61: 3.02261406 | P61: 0 | Q61: 302.261406 | R61: 0
B62: Equipment Investment
C63: Tractors/Self-Propelled | D63: 30.14969637 | F63: Dollars | G63: 0.085 | I63: 2.562724191 | J63: =E63*H63 -> 0 | K63: 0 | M63: 0 | N63: =J63*L63 -> 0 | O63: 2.562724191 | P63: =+J63-N63 -> 0 | Q63: 256.2724191 | R63: =+J63*E$7 -> 0
C64: Implements | D64: 12.13673463 | F64: Dollars | G64: 0.085 | I64: 1.031622443 | J64: 0 | K64: 0 | M64: 0 | N64: =J64*L64 -> 0 | O64: 1.031622443 | P64: 0 | Q64: 103.1622443 | R64: 0
B65: Salaried Labor | D65: 1 | F65: Acre | G65: 0 | I65: 0 | J65: 0 | K65: 0 | M65: 0 | N65: =J65*L65 -> 0 | O65: 0 | P65: =+J65-N65 -> 0 | Q65: 0 | R65: =+J65*E$7 -> 0
B66: Management Fee, Owner/Operator Labor | D66: 1 | F66: Acre | G66: 0 | I66: 0 | J66: 0 | K66: 0 | M66: 0 | N66: 0 | O66: 0 | P66: 0 | Q66: 0 | R66: 0
B67: Allocated Establishment Cost | D67: 1 | F67: Acre | G67: 0 | I67: 0 | J67: 0 | K67: 0 | M67: 0 | N67: 0 | O67: 0 | P67: 0 | Q67: 0 | R67: 0
B68: Cash Rent, Irrigated | D68: 1 | F68: Acre | G68: 95 | I68: 95 | J68: 0 | K68: 0 | M68: 0 | N68: 0 | O68: 95 | P68: 0 | Q68: 9500 | R68: 0
B69: Property Taxes | D69: 1 | F69: Acre | G69: 0 | I69: 0 | J69: 0 | K69: 0 | M69: 0 | N69: 0 | O69: 0 | P69: 0 | Q69: 0 | R69: 0
B70: Whole Farm Insurance | D70: 1 | F70: Acre | G70: 0 | I70: 0 | J70: 0 | K70: 0 | M70: 0 | N70: 0 | O70: 0 | P70: 0 | Q70: 0 | R70: 0
D71: 1 | G71: 0 | I71: 0 | J71: 0 | K71: 0 | M71: 0 | N71: 0 | O71: 0 | P71: 0 | Q71: 0 | R71: 0
D72: 1 | G72: 0 | I72: 0 | J72: =E72*H72 -> 0 | K72: 0 | M72: 0 | N72: 0 | O72: 0 | P72: 0 | Q72: 0 | R72: 0
A73: Total Fixed Costs | I73: 105.4871081 | J73: =+SUM(J60:J72) -> 0 | M73: 0 | N73: =+SUM(N60:N72) -> 0 | O73: 105.4871081 | P73: =+SUM(P60:P72) -> 0 | Q73: 10548.71081 | R73: =+SUM(R60:R72) -> 0
A74: Total Specified Costs | I74: 600.6632801 | J74: =+J54+J73 -> 0 | M74: 0 | N74: =+N54+N73 -> 0 | O74: 600.6632801 | P74: =+P54+P73 -> 0 | Q74: 60066.32801 | R74: =+R54+R73 -> 0
A76: Returns Above Specified Costs | I76: -600.6632801 | J76: =+J13-J74 -> 0 | M76: 0 | N76: =+N13-N74 -> 0 | O76: -600.6632801 | P76: =+P13-P74 -> 0 | Q76: -60066.32801 | R76: =+R13-R74 -> 0
A78: Breakeven Price to Cover Total Costs | G78: n/a | H78: =IF(E10=0,"n/a",(YTotExp-(YTotExp+YTotRet-J10))/E10) -> n/a
D80: Example Breakeven Prices
B81: Example | C81: Example | D81: To Cover | G81: To Cover
B82: Yield | C82: Yield | D82: Variable | G82: Total
B83: Percent | D83: Costs | G83: Costs
B84: 0.75 | C84: 0 | D84: 0 | G84: 0
B85: 0.9 | C85: 0 | D85: 0 | G85: 0
B86: 1 | C86: 0 | D86: 0 | G86: 0
B87: 1.1 | C87: 0 | D87: 0 | G87: 0
B88: 1.25 | C88: 0 | D88: 0 | G88: 0
A90: Developed by Manuel Garcia, Assistant Professor and Extension Specialist, Texas A&M AgriLife Extension, 956-968-5581
A92: Information presented is prepared solely as a general guide and not intended to recognize or predict the costs and returns from any one operation. Brand names are mentioned only as examples and imply no endorsement.

Sheet HayProduction
A1: Projections for Planning Purposes Only -- Not to be Used without Updating
A2: 2025 Estimated Costs and Returns per Acre
A3: Hay Production, Furrow Irrigated, Rio Grande Valley
A4: Enter your name for this budget in the cell above.
A5: Enter Your Values in the cells highlighed in MAROON.
E6: Your Acres | R6: Your
C7: Crop Acres | D7: 100 | L7: Your | Q7: Enterprise | R7: Enterprise
E8: Your | H8: Your | I8: Cash | J8: Your | K8: Landlord | L8: Landlord | N8: Your | P8: Your | Q8: Total | R8: Total
A9: REVENUE | D9: Quantity | E9: Quantity | F9: Units | G9: $/Unit | H9: $/Unit | I9: Total | J9: Total | K9: Share | L9: Share | M9: Landlord | N9: Landlord | O9: Tenant | P9: Tenant | Q9: (100 acres) | R9: ="(" & E7 & " acres)" -> ( acres)
B10: Bermuda Hay | D10: 36 | F10: Bale (950 lb) | G10: 100 | I10: 3600 | J10: =E10*H10 -> 0 | K10: 0 | M10: 0 | N10: =J10*L10 -> 0 | O10: 3600 | P10: =+J10-N10 -> 0 | Q10: 360000 | R10: =+J10*E$7 -> 0
D11: 0 | G11: 0 | I11: 0 | J11: 0 | K11: 0 | M11: 0 | N11: 0 | O11: 0 | P11: =+J11-N11 -> 0 | Q11: 0 | R11: 0
D12: 0 | G12: 0 | I12: 0 | J12: 0 | K12: 0 | M12: 0 | N12: 0 | O12: 0 | P12: 0 | Q12: 0 | R12: 0
A13: Total Revenue | I13: 3600 | J13: =SUM(J10:J12) -> 0 | M13: 0 | N13: =SUM(N10:N12) -> 0 | O13: 3600 | P13: =SUM(P10:P12) -> 0 | Q13: 360000 | R13: =SUM(R10:R12) -> 0
Q14: Enterprise | R14: Enterprise
A15: VARIABLE COSTS | D15: Quantity | E15: Quantity | F15: Units | G15: $/Unit | H15: $/Unit | I15: Total | J15: Total | K15: Share | L15: Share | M15: Landlord | N15: Landlord | O15: Tenant | P15: Tenant | Q15: Total | R15: Total
A16: Production Costs
B17: Fertilizer
C18: Ammonium Sulfate (21% N) | D18: 21.43 | F18: CWT | G18: 24 | I18: 514.32 | J18: =E18*H18 -> 0 | K18: 0 | M18: 0 | N18: =J18*L18 -> 0 | O18: 514.32 | P18: =+J18-N18 -> 0 | Q18: 51432 | R18: =+J18*E$7 -> 0
B19: Custom
C20: Hay Harvest | D20: 36 | F20: Bale | G20: 25 | I20: 900 | J20: 0 | K20: 0 | M20: 0 | N20: 0 | O20: 900 | P20: 0 | Q20: 90000 | R20: 0
B21: Herbicide
C22: Pendimethalin | D22: 3 | F22: Pint | G22: 6.9975 | I22: 20.9925 | J22: 0 | K22: 0 | M22: 0 | N22: 0 | O22: 20.9925 | P22: 0 | Q22: 2099.25 | R22: 0
B23: Other Labor
C24: Unallocated Labor | D24: 1 | F24: Hour | G24: 15 | I24: 15 | J24: 0 | K24: 0 | M24: 0 | N24: 0 | O24: 15 | P24: 0 | Q24: 1500 | R24: 0
D25: 0 | G25: 0 | I25: 0 | J25: 0 | K25: 0 | M25: 0 | N25: 0 | O25: 0 | P25: 0 | Q25: 0 | R25: 0
D26: 0 | G26: 0 | I26: 0 | J26: 0 | K26: 0 | M26: 0 | N26: 0 | O26: 0 | P26: 0 | Q26: 0 | R26: 0
D27: 0 | G27: 0 | I27: 0 | J27: =E27*H27 -> 0 | K27: 0 | M27: 0 | N27: =J27*L27 -> 0 | O27: 0 | P27: =+J27-N27 -> 0 | Q27: 0 | R27: =+J27*E$7 -> 0
B28: Irrigation
C29: Water Cost | D29: 3 | F29: Acre/Foot | G29: 22.66666667 | I29: 68 | J29: =E29*H29 -> 0 | K29: 0 | M29: 0 | N29: =J29*L29 -> 0 | O29: 68 | P29: =+J29-N29 -> 0 | Q29: 6800 | R29: =+J29*E$7 -> 0
C30: Irrigation Labor | D30: 2.1 | F30: Hour | G30: 17.5 | I30: 36.75 | J30: 0 | K30: 0 | M30: 0 | N30: 0 | O30: 36.75 | P30: 0 | Q30: 3675 | R30: 0
B31: Machinery Labor
C32: Tractors/Self-Propelled | D32: 1.32 | F32: Hour | G32: 17.21 | I32: 22.7172 | J32: =E32*H32 -> 0 | K32: 0 | M32: 0 | N32: =J32*L32 -> 0 | O32: 22.7172 | P32: =+J32-N32 -> 0 | Q32: 2271.72 | R32: =+J32*E$7 -> 0
C33: Other Labor | D33: 0.43 | F33: Hour | G33: 17.21 | I33: 7.4003 | J33: =E33*H33 -> 0 | K33: 0 | M33: 0 | N33: =J33*L33 -> 0 | O33: 7.4003 | P33: =+J33-N33 -> 0 | Q33: 740.03 | R33: =+J33*E$7 -> 0
B35: Diesel Fuel
C36: Pickup/General Use Equipment | D36: 1 | F36: Acre | G36: 0 | I36: 0 | J36: =E36*H36 -> 0 | K36: 0 | M36: 0 | N36: =J36*L36 -> 0 | O36: 0 | P36: =+J36-N36 -> 0 | Q36: 0 | R36: =+J36*E$7 -> 0
C37: Tractors/Self-Propelled | D37: 7.62 | F37: Gallon | G37: 3.6 | I37: 27.432 | J37: =E37*H37 -> 0 | K37: 0 | M37: 0 | N37: =J37*L37 -> 0 | O37: 27.432 | P37: =+J37-N37 -> 0 | Q37: 2743.2 | R37: =+J37*E$7 -> 0
B39: Gasoline
C40: Pickup/General Use Equipment | D40: 1 | F40: Acre | G40: 0 | I40: 0 | J40: =E40*H40 -> 0 | K40: 0 | M40: 0 | N40: =J40*L40 -> 0 | O40: 0 | P40: =+J40-N40 -> 0 | Q40: 0 | R40: =+J40*E$7 -> 0
C41: Tractors/Self-Propelled | D41: 0 | F41: Gallon | G41: 3.15 | I41: 0 | J41: =E41*H41 -> 0 | K41: 0 | M41: 0 | N41: =J41*L41 -> 0 | O41: 0 | P41: =+J41-N41 -> 0 | Q41: 0 | R41: =+J41*E$7 -> 0
B43: Repairs & Maintenance
C44: Pickup/General Use Equipment | D44: 1 | F44: Acre | G44: 0 | I44: 0 | J44: =E44*H44 -> 0 | K44: 0 | M44: 0 | N44: =J44*L44 -> 0 | O44: 0 | P44: =+J44-N44 -> 0 | Q44: 0 | R44: =+J44*E$7 -> 0
C45: Irrigation Equipment | D45: 1 | F45: Acre | G45: 0 | I45: 0 | J45: 0 | K45: 0 | M45: 0 | N45: 0 | O45: 0 | P45: 0 | Q45: 0 | R45: 0
C46: Tractors/Self-Propelled | D46: 1 | F46: Acre | G46: 16.55374601 | I46: 16.55374601 | J46: 0 | K46: 0 | M46: 0 | N46: 0 | O46: 16.55374601 | P46: 0 | Q46: 1655.374601 | R46: 0
C47: Implements | D47: 1 | F47: Acre | G47: 9.962456234 | I47: 9.962456234 | J47: 0 | K47: 0 | M47: 0 | N47: 0 | O47: 9.962456234 | P47: 0 | Q47: 996.2456234 | R47: 0
I48: 0 | J48: 0 | K48: 0 | M48: 0 | N48: 0 | O48: 0 | P48: 0 | Q48: 0 | R48: 0
I49: 0 | J49: 0 | K49: 0 | M49: 0 | N49: 0 | O49: 0 | P49: 0 | Q49: 0 | R49: 0
B50: Interest on Credit Line | G50: 0.085 | I50: 51.674575 | J50: =+SUM(J17:J49)/2*H50 -> 0 | M50: 0 | N50: =+SUM(N17:N49)/2*L50 -> 0 | O50: 51.674575 | P50: =+SUM(P17:P49)/2*L50 -> 0 | Q50: 5167.4575 | R50: =+J50*E$7 -> 0
A51: Total Variable Costs | I51: 1690.802777 | J51: =SUM(J18:J50) -> 0 | M51: 0 | N51: =SUM(N18:N50) -> 0 | O51: 1690.802777 | P51: =SUM(P18:P50) -> 0 | Q51: 169080.2777 | R51: =SUM(R18:R50) -> 0
A52: Planned Returns Above Variable Costs: | I52: 1909.197223 | J52: =+J13-J51 -> 0 | M52: 0 | N52: =+N13-N51 -> 0 | O52: 1909.197223 | P52: =+P13-P51 -> 0 | Q52: 190919.7223 | R52: =+R13-R51 -> 0
B53: Breakeven Price to Cover Variable Costs | G53: 46.96674381 | H53: =IF(E10=0,"n/a",(YVarExp-(YTotExp+YTotRet-J10))/E10) -> n/a | I53: Bale (950 lb)
Q54: Enterprise | R54: Enterprise
A55: FIXED COSTS | D55: Quantity | E55: Quantity | F55: Units | G55: $/Unit | H55: $/Unit | I55: Total | J55: Total | K55: Share | L55: Share | M55: Landlord | N55: Landlord | O55: Tenant | P55: Tenant | Q55: Total | R55: Total
B56: Machinery Depreciation
C57: Tractors/Self-Propelled | D57: 1 | F57: Acre | G57: 18.14722099 | I57: 18.14722099 | J57: =E57*H57 -> 0 | K57: 0 | M57: 0 | N57: =J57*L57 -> 0 | O57: 18.14722099 | P57: =+J57-N57 -> 0 | Q57: 1814.722099 | R57: =+J57*E$7 -> 0
C58: Implements | D58: 1 | F58: Acre | G58: 15.38828803 | I58: 15.38828803 | J58: 0 | K58: 0 | M58: 0 | N58: =J58*L58 -> 0 | O58: 15.38828803 | P58: 0 | Q58: 1538.828803 | R58: 0
B59: Equipment Investment
C60: Tractors/Self-Propelled | D60: 140.8887034 | F60: Dollars | G60: 0.085 | I60: 11.97553979 | J60: =E60*H60 -> 0 | K60: 0 | M60: 0 | N60: =J60*L60 -> 0 | O60: 11.97553979 | P60: =+J60-N60 -> 0 | Q60: 1197.553979 | R60: =+J60*E$7 -> 0
C61: Implements | D61: 64.90664739 | F61: Dollars | G61: 0.085 | I61: 5.517065028 | J61: 0 | K61: 0 | M61: 0 | N61: =J61*L61 -> 0 | O61: 5.517065028 | P61: 0 | Q61: 551.7065028 | R61: 0
B62: Salaried Labor | D62: 1 | F62: Acre | G62: 0 | I62: 0 | J62: 0 | K62: 0 | M62: 0 | N62: =J62*L62 -> 0 | O62: 0 | P62: =+J62-N62 -> 0 | Q62: 0 | R62: =+J62*E$7 -> 0
B63: Management Fee, Owner/Operator Labor | D63: 1 | F63: Acre | G63: 0 | I63: 0 | J63: 0 | K63: 0 | M63: 0 | N63: 0 | O63: 0 | P63: 0 | Q63: 0 | R63: 0
B64: Allocated Establishment Cost | D64: 1 | F64: Acre | G64: 0 | I64: 0 | J64: 0 | K64: 0 | M64: 0 | N64: 0 | O64: 0 | P64: 0 | Q64: 0 | R64: 0
B65: Cash Rent, Irrigated | D65: 1 | F65: Acre | G65: 95 | I65: 95 | J65: 0 | K65: 0 | M65: 0 | N65: 0 | O65: 95 | P65: 0 | Q65: 9500 | R65: 0
B66: Property Taxes | D66: 1 | F66: Acre | G66: 0 | I66: 0 | J66: 0 | K66: 0 | M66: 0 | N66: 0 | O66: 0 | P66: 0 | Q66: 0 | R66: 0
B67: Whole Farm Insurance | D67: 1 | F67: Acre | G67: 0 | I67: 0 | J67: 0 | K67: 0 | M67: 0 | N67: 0 | O67: 0 | P67: 0 | Q67: 0 | R67: 0
D68: 1 | G68: 0 | I68: 0 | J68: 0 | K68: 0 | M68: 0 | N68: 0 | O68: 0 | P68: 0 | Q68: 0 | R68: 0
D69: 1 | G69: 0 | I69: 0 | J69: =E69*H69 -> 0 | K69: 0 | M69: 0 | N69: 0 | O69: 0 | P69: 0 | Q69: 0 | R69: 0
A70: Total Fixed Costs | I70: 146.0281138 | J70: =+SUM(J57:J69) -> 0 | M70: 0 | N70: =+SUM(N57:N69) -> 0 | O70: 146.0281138 | P70: =+SUM(P57:P69) -> 0 | Q70: 14602.81138 | R70: =+SUM(R57:R69) -> 0
A71: Total Specified Costs | I71: 1836.830891 | J71: =+J51+J70 -> 0 | M71: 0 | N71: =+N51+N70 -> 0 | O71: 1836.830891 | P71: =+P51+P70 -> 0 | Q71: 183683.0891 | R71: =+R51+R70 -> 0
A73: Returns Above Specified Costs | I73: 1763.169109 | J73: =+J13-J71 -> 0 | M73: 0 | N73: =+N13-N71 -> 0 | O73: 1763.169109 | P73: =+P13-P71 -> 0 | Q73: 176316.9109 | R73: =+R13-R71 -> 0
A75: Breakeven Price to Cover Total Costs | G75: 51.02308031 | H75: =IF(E10=0,"n/a",(YTotExp-(YTotExp+YTotRet-J10))/E10) -> n/a | I75: Bale (950 lb)
D77: Example Breakeven Prices
B78: Example | C78: Example | D78: To Cover | G78: To Cover
B79: Yield | C79: Yield | D79: Variable | G79: Total
B80: Percent | C80: Bale (950 lb) | D80: Costs | G80: Costs
B81: 0.75 | C81: 27 | D81: 62.62232508 | G81: 68.03077374
B82: 0.9 | C82: 32.4 | D82: 52.1852709 | G82: 56.69231145
B83: 1 | C83: 36 | D83: 46.96674381 | G83: 51.02308031
B84: 1.1 | C84: 39.6 | D84: 42.69703983 | G84: 46.38461846
B85: 1.25 | C85: 45 | D85: 37.57339505 | G85: 40.81846425
A87: Developed by Manuel Garcia, Assistant Professor and Extension Specialist, Texas A&M AgriLife Extension, 956-968-5581
A89: Information presented is prepared solely as a general guide and not intended to recognize or predict the costs and returns from any one operation. Brand names are mentioned only as examples and imply no endorsement.

Sheet Cabbage
A1: Projections for Planning Purposes Only -- Not to be Used without Updating
A2: 2025 Estimated Costs and Returns per Acre
A3: Cabbage, Fresh Market, Furrow Irrigated, Rio Grande Valley
A4: Enter your name for this budget in the cell above.
A5: Enter Your Values in the cells highlighed in MAROON.
E6: Your Acres | R6: Your
C7: Crop Acres | D7: 100 | L7: Your | Q7: Enterprise | R7: Enterprise
E8: Your | H8: Your | I8: Cash | J8: Your | K8: Landlord | L8: Landlord | N8: Your | P8: Your | Q8: Total | R8: Total
A9: REVENUE | D9: Quantity | E9: Quantity | F9: Units | G9: $/Unit | H9: $/Unit | I9: Total | J9: Total | K9: Share | L9: Share | M9: Landlord | N9: Landlord | O9: Tenant | P9: Tenant | Q9: (100 acres) | R9: ="(" & E7 & " acres)" -> ( acres)
B10: Cabbage | D10: 750 | F10: Carton | G10: 11.18 | I10: 8385 | J10: =E10*H10 -> 0 | K10: 0 | M10: 0 | N10: =J10*L10 -> 0 | O10: 8385 | P10: =+J10-N10 -> 0 | Q10: 838500 | R10: =+J10*E$7 -> 0
D11: 0 | G11: 0 | I11: 0 | J11: 0 | K11: 0 | M11: 0 | N11: 0 | O11: 0 | P11: =+J11-N11 -> 0 | Q11: 0 | R11: 0
D12: 0 | G12: 0 | I12: 0 | J12: 0 | K12: 0 | M12: 0 | N12: 0 | O12: 0 | P12: 0 | Q12: 0 | R12: 0
A13: Total Revenue | I13: 8385 | J13: =SUM(J10:J12) -> 0 | M13: 0 | N13: =SUM(N10:N12) -> 0 | O13: 8385 | P13: =SUM(P10:P12) -> 0 | Q13: 838500 | R13: =SUM(R10:R12) -> 0
Q14: Enterprise | R14: Enterprise
A15: VARIABLE COSTS | D15: Quantity | E15: Quantity | F15: Units | G15: $/Unit | H15: $/Unit | I15: Total | J15: Total | K15: Share | L15: Share | M15: Landlord | N15: Landlord | O15: Tenant | P15: Tenant | Q15: Total | R15: Total
A16: Production Costs
B17: Fertilizer
C18: Phosphorus (46% P2O5) | D18: 1.75 | F18: CWT | G18: 40.5 | I18: 70.875 | J18: =E18*H18 -> 0 | K18: 0 | M18: 0 | N18: =J18*L18 -> 0 | O18: 70.875 | P18: =+J18-N18 -> 0 | Q18: 7087.5 | R18: =+J18*E$7 -> 0
C19: Ammonium Nitrate (34% N) | D19: 4.41 | F19: CWT | G19: 40 | I19: 176.4 | J19: 0 | K19: 0 | M19: 0 | N19: 0 | O19: 176.4 | P19: 0 | Q19: 17640 | R19: 0
B20: Custom
C21: Harvest Cabbage | D21: 750 | F21: Carton | G21: 1.75 | I21: 1312.5 | J21: 0 | K21: 0 | M21: 0 | N21: 0 | O21: 1312.5 | P21: 0 | Q21: 131250 | R21: 0
C22: Pack and Count Cabbage | D22: 750 | F22: Carton | G22: 3.5 | I22: 2625 | J22: 0 | K22: 0 | M22: 0 | N22: 0 | O22: 2625 | P22: 0 | Q22: 262500 | R22: 0
B23: Insecticide
C24: Admire Pro | D24: 0.275 | F24: Pint | G24: 26.28 | I24: 7.227 | J24: 0 | K24: 0 | M24: 0 | N24: 0 | O24: 7.227 | P24: 0 | Q24: 722.7 | R24: 0
C25: Lorsban 4E | D25: 3.55 | F25: Pint | G25: 14.1975 | I25: 50.401125 | J25: 0 | K25: 0 | M25: 0 | N25: 0 | O25: 50.401125 | P25: 0 | Q25: 5040.1125 | R25: 0
C26: Asana XL | D26: 24 | F26: Ounce | G26: 0.624609375 | I26: 14.990625 | J26: 0 | K26: 0 | M26: 0 | N26: 0 | O26: 14.990625 | P26: 0 | Q26: 1499.0625 | R26: 0
C27: Lambda | D27: 7.68 | F27: Ounce | G27: 0.46875 | I27: 3.6 | J27: 0 | K27: 0 | M27: 0 | N27: 0 | O27: 3.6 | P27: 0 | Q27: 360 | R27: 0
B28: Seed
C29: Cabbage Seed | D29: 24 | F29: Thousand | G29: 7.324 | I29: 175.776 | J29: 0 | K29: 0 | M29: 0 | N29: 0 | O29: 175.776 | P29: 0 | Q29: 17577.6 | R29: 0
B30: Herbicide
C31: Prefar 4E | D31: 2.75 | F31: Quart | G31: 23.795 | I31: 65.43625 | J31: 0 | K31: 0 | M31: 0 | N31: 0 | O31: 65.43625 | P31: 0 | Q31: 6543.625 | R31: 0
B32: Fungicides
C33: Bravo Ultrex | D33: 7 | F33: Pound | G33: 10.23248175 | I33: 71.62737226 | J33: 0 | K33: 0 | M33: 0 | N33: 0 | O33: 71.62737226 | P33: 0 | Q33: 7162.737226 | R33: 0
C34: Ridomil Gold SC | D34: 72 | F34: Ounce | G34: 1.2375 | I34: 89.1 | J34: 0 | K34: 0 | M34: 0 | N34: 0 | O34: 89.1 | P34: 0 | Q34: 8910 | R34: 0
B35: Other Labor
C36: Unallocated Labor | D36: 0.1546 | F36: Hour | G36: 15 | I36: 2.319 | J36: 0 | K36: 0 | M36: 0 | N36: 0 | O36: 2.319 | P36: 0 | Q36: 231.9 | R36: 0
D37: 0 | G37: 0 | I37: 0 | J37: 0 | K37: 0 | M37: 0 | N37: 0 | O37: 0 | P37: 0 | Q37: 0 | R37: 0
D38: 0 | G38: 0 | I38: 0 | J38: 0 | K38: 0 | M38: 0 | N38: 0 | O38: 0 | P38: 0 | Q38: 0 | R38: 0
D39: 0 | G39: 0 | I39: 0 | J39: =E39*H39 -> 0 | K39: 0 | M39: 0 | N39: =J39*L39 -> 0 | O39: 0 | P39: =+J39-N39 -> 0 | Q39: 0 | R39: =+J39*E$7 -> 0
B40: Irrigation
C41: Water Cost | D41: 2.8 | F41: Acre/Foot | G41: 23.14285714 | I41: 64.8 | J41: =E41*H41 -> 0 | K41: 0 | M41: 0 | N41: =J41*L41 -> 0 | O41: 64.8 | P41: =+J41-N41 -> 0 | Q41: 6480 | R41: =+J41*E$7 -> 0
C42: Irrigation Labor | D42: 7.5 | F42: Hour | G42: 17.5 | I42: 131.25 | J42: 0 | K42: 0 | M42: 0 | N42: 0 | O42: 131.25 | P42: 0 | Q42: 13125 | R42: 0
B43: Machinery Labor
C44: Tractors/Self-Propelled | D44: 2.38 | F44: Hour | G44: 17.21 | I44: 40.9598 | J44: =E44*H44 -> 0 | K44: 0 | M44: 0 | N44: =J44*L44 -> 0 | O44: 40.9598 | P44: =+J44-N44 -> 0 | Q44: 4095.98 | R44: =+J44*E$7 -> 0
C45: Other Labor | D45: 0 | F45: Hour | G45: 17.21 | I45: 0 | J45: =E45*H45 -> 0 | K45: 0 | M45: 0 | N45: =J45*L45 -> 0 | O45: 0 | P45: =+J45-N45 -> 0 | Q45: 0 | R45: =+J45*E$7 -> 0
B47: Diesel Fuel
C48: Pickup/General Use Equipment | D48: 1 | F48: Acre | G48: 0 | I48: 0 | J48: =E48*H48 -> 0 | K48: 0 | M48: 0 | N48: =J48*L48 -> 0 | O48: 0 | P48: =+J48-N48 -> 0 | Q48: 0 | R48: =+J48*E$7 -> 0
C49: Tractors/Self-Propelled | D49: 13.91 | F49: Gallon | G49: 3.6 | I49: 50.076 | J49: =E49*H49 -> 0 | K49: 0 | M49: 0 | N49: =J49*L49 -> 0 | O49: 50.076 | P49: =+J49-N49 -> 0 | Q49: 5007.6 | R49: =+J49*E$7 -> 0
B51: Gasoline
C52: Pickup/General Use Equipment | D52: 1 | F52: Acre | G52: 0 | I52: 0 | J52: =E52*H52 -> 0 | K52: 0 | M52: 0 | N52: =J52*L52 -> 0 | O52: 0 | P52: =+J52-N52 -> 0 | Q52: 0 | R52: =+J52*E$7 -> 0
C53: Tractors/Self-Propelled | D53: 0 | F53: Gallon | G53: 3.15 | I53: 0 | J53: =E53*H53 -> 0 | K53: 0 | M53: 0 | N53: =J53*L53 -> 0 | O53: 0 | P53: =+J53-N53 -> 0 | Q53: 0 | R53: =+J53*E$7 -> 0
B55: Repairs & Maintenance
C56: Pickup/General Use Equipment | D56: 1 | F56: Acre | G56: 0 | I56: 0 | J56: =E56*H56 -> 0 | K56: 0 | M56: 0 | N56: =J56*L56 -> 0 | O56: 0 | P56: =+J56-N56 -> 0 | Q56: 0 | R56: =+J56*E$7 -> 0
C57: Irrigation Equipment | D57: 1 | F57: Acre | G57: 0 | I57: 0 | J57: 0 | K57: 0 | M57: 0 | N57: 0 | O57: 0 | P57: 0 | Q57: 0 | R57: 0
C58: Tractors/Self-Propelled | D58: 1 | F58: Acre | G58: 32.07782316 | I58: 32.07782316 | J58: 0 | K58: 0 | M58: 0 | N58: 0 | O58: 32.07782316 | P58: 0 | Q58: 3207.782316 | R58: 0
C59: Implements | D59: 1 | F59: Acre | G59: 20.0534413 | I59: 20.0534413 | J59: 0 | K59: 0 | M59: 0 | N59: 0 | O59: 20.0534413 | P59: 0 | Q59: 2005.34413 | R59: 0
I60: 0 | J60: 0 | K60: 0 | M60: 0 | N60: 0 | O60: 0 | P60: 0 | Q60: 0 | R60: 0
I61: 0 | J61: 0 | K61: 0 | M61: 0 | N61: 0 | O61: 0 | P61: 0 | Q61: 0 | R61: 0
B62: Interest on Credit Line | G62: 0.085 | I62: 26.5049227 | J62: =+SUM(J17:J61)/2*H62 -> 0 | M62: 0 | N62: =+SUM(N17:N61)/2*L62 -> 0 | O62: 26.5049227 | P62: =+SUM(P17:P61)/2*L62 -> 0 | Q62: 2650.49227 | R62: =+J62*E$7 -> 0
A63: Total Variable Costs | I63: 5030.974359 | J63: =SUM(J18:J62) -> 0 | M63: 0 | N63: =SUM(N18:N62) -> 0 | O63: 5030.974359 | P63: =SUM(P18:P62) -> 0 | Q63: 503097.4359 | R63: =SUM(R18:R62) -> 0
A64: Planned Returns Above Variable Costs: | I64: 3354.025641 | J64: =+J13-J63 -> 0 | M64: 0 | N64: =+N13-N63 -> 0 | O64: 3354.025641 | P64: =+P13-P63 -> 0 | Q64: 335402.5641 | R64: =+R13-R63 -> 0
B65: Breakeven Price to Cover Variable Costs | G65: 6.707965813 | H65: =IF(E10=0,"n/a",(YVarExp-(YTotExp+YTotRet-J10))/E10) -> n/a | I65: Carton
Q66: Enterprise | R66: Enterprise
A67: FIXED COSTS | D67: Quantity | E67: Quantity | F67: Units | G67: $/Unit | H67: $/Unit | I67: Total | J67: Total | K67: Share | L67: Share | M67: Landlord | N67: Landlord | O67: Tenant | P67: Tenant | Q67: Total | R67: Total
B68: Machinery Depreciation
C69: Tractors/Self-Propelled | D69: 1 | F69: Acre | G69: 32.88121798 | I69: 32.88121798 | J69: =E69*H69 -> 0 | K69: 0 | M69: 0 | N69: =J69*L69 -> 0 | O69: 32.88121798 | P69: =+J69-N69 -> 0 | Q69: 3288.121798 | R69: =+J69*E$7 -> 0
C70: Implements | D70: 1 | F70: Acre | G70: 23.47092271 | I70: 23.47092271 | J70: 0 | K70: 0 | M70: 0 | N70: =J70*L70 -> 0 | O70: 23.47092271 | P70: 0 | Q70: 2347.092271 | R70: 0
B71: Equipment Investment
C72: Tractors/Self-Propelled | D72: 256.1552949 | F72: Dollars | G72: 0.085 | I72: 21.77320007 | J72: =E72*H72 -> 0 | K72: 0 | M72: 0 | N72: =J72*L72 -> 0 | O72: 21.77320007 | P72: =+J72-N72 -> 0 | Q72: 2177.320007 | R72: =+J72*E$7 -> 0
C73: Implements | D73: 109.6233322 | F73: Dollars | G73: 0.085 | I73: 9.31798324 | J73: 0 | K73: 0 | M73: 0 | N73: =J73*L73 -> 0 | O73: 9.31798324 | P73: 0 | Q73: 931.798324 | R73: 0
B74: Salaried Labor | D74: 1 | F74: Acre | G74: 0 | I74: 0 | J74: 0 | K74: 0 | M74: 0 | N74: =J74*L74 -> 0 | O74: 0 | P74: =+J74-N74 -> 0 | Q74: 0 | R74: =+J74*E$7 -> 0
B75: Management Fee, Owner/Operator Labor | D75: 1 | F75: Acre | G75: 0 | I75: 0 | J75: 0 | K75: 0 | M75: 0 | N75: 0 | O75: 0 | P75: 0 | Q75: 0 | R75: 0
B76: Allocated Establishment Cost | D76: 1 | F76: Acre | G76: 0 | I76: 0 | J76: 0 | K76: 0 | M76: 0 | N76: 0 | O76: 0 | P76: 0 | Q76: 0 | R76: 0
B77: Cash Rent, Irrigated Vegetables | D77: 1 | F77: Acre | G77: 110 | I77: 110 | J77: 0 | K77: 0 | M77: 0 | N77: 0 | O77: 110 | P77: 0 | Q77: 11000 | R77: 0
B78: Property Taxes | D78: 1 | F78: Acre | G78: 0 | I78: 0 | J78: 0 | K78: 0 | M78: 0 | N78: 0 | O78: 0 | P78: 0 | Q78: 0 | R78: 0
B79: Whole Farm Insurance | D79: 1 | F79: Acre | G79: 0 | I79: 0 | J79: 0 | K79: 0 | M79: 0 | N79: 0 | O79: 0 | P79: 0 | Q79: 0 | R79: 0
D80: 1 | G80: 0 | I80: 0 | J80: 0 | K80: 0 | M80: 0 | N80: 0 | O80: 0 | P80: 0 | Q80: 0 | R80: 0
D81: 1 | G81: 0 | I81: 0 | J81: =E81*H81 -> 0 | K81: 0 | M81: 0 | N81: 0 | O81: 0 | P81: 0 | Q81: 0 | R81: 0
A82: Total Fixed Costs | I82: 197.443324 | J82: =+SUM(J69:J81) -> 0 | M82: 0 | N82: =+SUM(N69:N81) -> 0 | O82: 197.443324 | P82: =+SUM(P69:P81) -> 0 | Q82: 19744.3324 | R82: =+SUM(R69:R81) -> 0
A83: Total Specified Costs | I83: 5228.417683 | J83: =+J63+J82 -> 0 | M83: 0 | N83: =+N63+N82 -> 0 | O83: 5228.417683 | P83: =+P63+P82 -> 0 | Q83: 522841.7683 | R83: =+R63+R82 -> 0
A85: Returns Above Specified Costs | I85: 3156.582317 | J85: =+J13-J83 -> 0 | M85: 0 | N85: =+N13-N83 -> 0 | O85: 3156.582317 | P85: =+P13-P83 -> 0 | Q85: 315658.2317 | R85: =+R13-R83 -> 0
A87: Breakeven Price to Cover Total Costs | G87: 6.971223578 | H87: =IF(E10=0,"n/a",(YTotExp-(YTotExp+YTotRet-J10))/E10) -> n/a | I87: Carton
D89: Example Breakeven Prices
B90: Example | C90: Example | D90: To Cover | G90: To Cover
B91: Yield | C91: Yield | D91: Variable | G91: Total
B92: Percent | C92: Carton | D92: Costs | G92: Costs
B93: 0.75 | C93: 562.5 | D93: 8.943954417 | G93: 9.294964771
B94: 0.9 | C94: 675 | D94: 7.453295347 | G94: 7.745803975
B95: 1 | C95: 750 | D95: 6.707965813 | G95: 6.971223578
B96: 1.1 | C96: 825 | D96: 6.098150739 | G96: 6.33747598
B97: 1.25 | C97: 937.5 | D97: 5.36637265 | G97: 5.576978862
A99: Developed by Manuel Garcia, Assistant Professor and Extension Specialist, Texas A&M AgriLife Extension, 956-968-5581
A101: Information presented is prepared solely as a general guide and not intended to recognize or predict the costs and returns from any one operation. Brand names are mentioned only as examples and imply no endorsement.

Sheet Cantaloupe
A1: Projections for Planning Purposes Only -- Not to be Used without Updating
A2: 2025 Estimated Costs and Returns per Acre
A3: Cantaloupe, Plastic Mulch, Drip Irrigated, Rio Grande Valley
A4: Enter your name for this budget in the cell above.
A5: Enter Your Values in the cells highlighed in MAROON.
E6: Your Acres | R6: Your
C7: Crop Acres | D7: 40 | L7: Your | Q7: Enterprise | R7: Enterprise
E8: Your | H8: Your | I8: Cash | J8: Your | K8: Landlord | L8: Landlord | N8: Your | P8: Your | Q8: Total | R8: Total
A9: REVENUE | D9: Quantity | E9: Quantity | F9: Units | G9: $/Unit | H9: $/Unit | I9: Total | J9: Total | K9: Share | L9: Share | M9: Landlord | N9: Landlord | O9: Tenant | P9: Tenant | Q9: (40 acres) | R9: ="(" & E7 & " acres)" -> ( acres)
B10: Cantaloupes | D10: 400 | F10: Carton | G10: 12.47 | I10: 4988 | J10: =E10*H10 -> 0 | K10: 0 | M10: 0 | N10: =J10*L10 -> 0 | O10: 4988 | P10: =+J10-N10 -> 0 | Q10: 199520 | R10: =+J10*E$7 -> 0
D11: 0 | G11: 0 | I11: 0 | J11: 0 | K11: 0 | M11: 0 | N11: 0 | O11: 0 | P11: =+J11-N11 -> 0 | Q11: 0 | R11: 0
D12: 0 | G12: 0 | I12: 0 | J12: 0 | K12: 0 | M12: 0 | N12: 0 | O12: 0 | P12: 0 | Q12: 0 | R12: 0
A13: Total Revenue | I13: 4988 | J13: =SUM(J10:J12) -> 0 | M13: 0 | N13: =SUM(N10:N12) -> 0 | O13: 4988 | P13: =SUM(P10:P12) -> 0 | Q13: 199520 | R13: =SUM(R10:R12) -> 0
Q14: Enterprise | R14: Enterprise
A15: VARIABLE COSTS | D15: Quantity | E15: Quantity | F15: Units | G15: $/Unit | H15: $/Unit | I15: Total | J15: Total | K15: Share | L15: Share | M15: Landlord | N15: Landlord | O15: Tenant | P15: Tenant | Q15: Total | R15: Total
A16: Production Costs
B17: Fertilizer
C18: Phosphorus (46% P2O5) | D18: 1.5 | F18: CWT | G18: 40.5 | I18: 60.75 | J18: =E18*H18 -> 0 | K18: 0 | M18: 0 | N18: =J18*L18 -> 0 | O18: 60.75 | P18: =+J18-N18 -> 0 | Q18: 2430 | R18: =+J18*E$7 -> 0
C19: UAN (32% N) | D19: 3.74 | F19: CWT | G19: 19 | I19: 71.06 | J19: 0 | K19: 0 | M19: 0 | N19: 0 | O19: 71.06 | P19: 0 | Q19: 2842.4 | R19: 0
B20: Custom
C21: Bee Rental | D21: 1 | F21: Hive | G21: 85 | I21: 85 | J21: 0 | K21: 0 | M21: 0 | N21: 0 | O21: 85 | P21: 0 | Q21: 3400 | R21: 0
C22: Harvest Cantaloupe | D22: 400 | F22: Carton | G22: 3.5 | I22: 1400 | J22: 0 | K22: 0 | M22: 0 | N22: 0 | O22: 1400 | P22: 0 | Q22: 56000 | R22: 0
C23: Pack and Count Cantaloupe | D23: 400 | F23: Carton | G23: 3.5 | I23: 1400 | J23: 0 | K23: 0 | M23: 0 | N23: 0 | O23: 1400 | P23: 0 | Q23: 56000 | R23: 0
B24: Seed
C25: Cantaloupe Seedlings | D25: 24 | F25: Thousand | G25: 25 | I25: 600 | J25: 0 | K25: 0 | M25: 0 | N25: 0 | O25: 600 | P25: 0 | Q25: 24000 | R25: 0
B26: Miscellaneous
C27: DripTape (2 seasons) | D27: 6550 | F27: Foot | G27: 0.0319 | I27: 208.945 | J27: 0 | K27: 0 | M27: 0 | N27: 0 | O27: 208.945 | P27: 0 | Q27: 8357.8 | R27: 0
C28: Plastic Mulch, 3x4K' | D28: 0.61 | F28: Roll | G28: 198 | I28: 120.78 | J28: 0 | K28: 0 | M28: 0 | N28: 0 | O28: 120.78 | P28: 0 | Q28: 4831.2 | R28: 0
C29: Sulfuric Acid | D29: 27 | F29: Ounce | G29: 0.2218016206 | I29: 5.988643757 | J29: 0 | K29: 0 | M29: 0 | N29: 0 | O29: 5.988643757 | P29: 0 | Q29: 239.5457503 | R29: 0
B30: Herbicide
C31: Prefar 4E | D31: 2.75 | F31: Quart | G31: 23.795 | I31: 65.43625 | J31: 0 | K31: 0 | M31: 0 | N31: 0 | O31: 65.43625 | P31: 0 | Q31: 2617.45 | R31: 0
B32: Other Labor
C33: Unallocated Labor | D33: 0.8992 | F33: Hour | G33: 15 | I33: 13.488 | J33: 0 | K33: 0 | M33: 0 | N33: 0 | O33: 13.488 | P33: 0 | Q33: 539.52 | R33: 0
C34: Transplant Melons | D34: 8 | F34: Hour | G34: 15 | I34: 120 | J34: 0 | K34: 0 | M34: 0 | N34: 0 | O34: 120 | P34: 0 | Q34: 4800 | R34: 0
C35: Pickup Plastic | D35: 8 | F35: Hour | G35: 15 | I35: 120 | J35: 0 | K35: 0 | M35: 0 | N35: 0 | O35: 120 | P35: 0 | Q35: 4800 | R35: 0
B36: Insecticide
C37: Admire Pro | D37: 0.4375 | F37: Pint | G37: 26.28 | I37: 11.4975 | J37: 0 | K37: 0 | M37: 0 | N37: 0 | O37: 11.4975 | P37: 0 | Q37: 459.9 | R37: 0
C38: Asana XL | D38: 5.8 | F38: Ounce | G38: 0.624609375 | I38: 3.622734375 | J38: 0 | K38: 0 | M38: 0 | N38: 0 | O38: 3.622734375 | P38: 0 | Q38: 144.909375 | R38: 0
B39: Fungicides
C40: Bravo Ultrex | D40: 1 | F40: Pound | G40: 10.23248175 | I40: 10.23248175 | J40: 0 | K40: 0 | M40: 0 | N40: 0 | O40: 10.23248175 | P40: 0 | Q40: 409.2992701 | R40: 0
C41: Quadris | D41: 32 | F41: Ounce | G41: 1.562109375 | I41: 49.9875 | J41: 0 | K41: 0 | M41: 0 | N41: 0 | O41: 49.9875 | P41: 0 | Q41: 1999.5 | R41: 0
D42: 0 | G42: 0 | I42: 0 | J42: 0 | K42: 0 | M42: 0 | N42: 0 | O42: 0 | P42: 0 | Q42: 0 | R42: 0
D43: 0 | G43: 0 | I43: 0 | J43: 0 | K43: 0 | M43: 0 | N43: 0 | O43: 0 | P43: 0 | Q43: 0 | R43: 0
D44: 0 | G44: 0 | I44: 0 | J44: =E44*H44 -> 0 | K44: 0 | M44: 0 | N44: =J44*L44 -> 0 | O44: 0 | P44: =+J44-N44 -> 0 | Q44: 0 | R44: =+J44*E$7 -> 0
B45: Irrigation
C46: Water Cost | D46: 1.176 | F46: Acre/Foot | G46: 33.00680272 | I46: 38.816 | J46: =E46*H46 -> 0 | K46: 0 | M46: 0 | N46: =J46*L46 -> 0 | O46: 38.816 | P46: =+J46-N46 -> 0 | Q46: 1552.64 | R46: =+J46*E$7 -> 0
C47: Irrigation Labor | D47: 3 | F47: Hour | G47: 17.5 | I47: 52.5 | J47: 0 | K47: 0 | M47: 0 | N47: 0 | O47: 52.5 | P47: 0 | Q47: 2100 | R47: 0
B48: Machinery Labor
C49: Tractors/Self-Propelled | D49: 1.36 | F49: Hour | G49: 17.21 | I49: 23.4056 | J49: =E49*H49 -> 0 | K49: 0 | M49: 0 | N49: =J49*L49 -> 0 | O49: 23.4056 | P49: =+J49-N49 -> 0 | Q49: 936.224 | R49: =+J49*E$7 -> 0
C50: Other Labor | D50: 0.41 | F50: Hour | G50: 17.21 | I50: 7.0561 | J50: =E50*H50 -> 0 | K50: 0 | M50: 0 | N50: =J50*L50 -> 0 | O50: 7.0561 | P50: =+J50-N50 -> 0 | Q50: 282.244 | R50: =+J50*E$7 -> 0
B52: Diesel Fuel
C53: Pickup/General Use Equipment | D53: 1 | F53: Acre | G53: 0 | I53: 0 | J53: =E53*H53 -> 0 | K53: 0 | M53: 0 | N53: =J53*L53 -> 0 | O53: 0 | P53: =+J53-N53 -> 0 | Q53: 0 | R53: =+J53*E$7 -> 0
C54: Tractors/Self-Propelled | D54: 8.78 | F54: Gallon | G54: 3.6 | I54: 31.608 | J54: =E54*H54 -> 0 | K54: 0 | M54: 0 | N54: =J54*L54 -> 0 | O54: 31.608 | P54: =+J54-N54 -> 0 | Q54: 1264.32 | R54: =+J54*E$7 -> 0
B56: Gasoline
C57: Pickup/General Use Equipment | D57: 1 | F57: Acre | G57: 0 | I57: 0 | J57: =E57*H57 -> 0 | K57: 0 | M57: 0 | N57: =J57*L57 -> 0 | O57: 0 | P57: =+J57-N57 -> 0 | Q57: 0 | R57: =+J57*E$7 -> 0
C58: Tractors/Self-Propelled | D58: 0 | F58: Gallon | G58: 3.15 | I58: 0 | J58: =E58*H58 -> 0 | K58: 0 | M58: 0 | N58: =J58*L58 -> 0 | O58: 0 | P58: =+J58-N58 -> 0 | Q58: 0 | R58: =+J58*E$7 -> 0
B60: Repairs & Maintenance
C61: Pickup/General Use Equipment | D61: 1 | F61: Acre | G61: 0 | I61: 0 | J61: =E61*H61 -> 0 | K61: 0 | M61: 0 | N61: =J61*L61 -> 0 | O61: 0 | P61: =+J61-N61 -> 0 | Q61: 0 | R61: =+J61*E$7 -> 0
C62: Irrigation Equipment | D62: 1 | F62: Acre | G62: 0 | I62: 0 | J62: 0 | K62: 0 | M62: 0 | N62: 0 | O62: 0 | P62: 0 | Q62: 0 | R62: 0
C63: Tractors/Self-Propelled | D63: 1 | F63: Acre | G63: 20.51553897 | I63: 20.51553897 | J63: 0 | K63: 0 | M63: 0 | N63: 0 | O63: 20.51553897 | P63: 0 | Q63: 820.6215586 | R63: 0
C64: Implements | D64: 1 | F64: Acre | G64: 11.23229272 | I64: 11.23229272 | J64: 0 | K64: 0 | M64: 0 | N64: 0 | O64: 11.23229272 | P64: 0 | Q64: 449.2917087 | R64: 0
I65: 0 | J65: 0 | K65: 0 | M65: 0 | N65: 0 | O65: 0 | P65: 0 | Q65: 0 | R65: 0
I66: 0 | J66: 0 | K66: 0 | M66: 0 | N66: 0 | O66: 0 | P66: 0 | Q66: 0 | R66: 0
B67: Interest on Credit Line | G67: 0.085 | I67: 68.05530462 | J67: =+SUM(J17:J66)/2*H67 -> 0 | M67: 0 | N67: =+SUM(N17:N66)/2*L67 -> 0 | O67: 68.05530462 | P67: =+SUM(P17:P66)/2*L67 -> 0 | Q67: 2722.212185 | R67: =+J67*E$7 -> 0
A68: Total Variable Costs | I68: 4599.976946 | J68: =SUM(J18:J67) -> 0 | M68: 0 | N68: =SUM(N18:N67) -> 0 | O68: 4599.976946 | P68: =SUM(P18:P67) -> 0 | Q68: 183999.0778 | R68: =SUM(R18:R67) -> 0
A69: Planned Returns Above Variable Costs: | I69: 388.0230538 | J69: =+J13-J68 -> 0 | M69: 0 | N69: =+N13-N68 -> 0 | O69: 388.0230538 | P69: =+P13-P68 -> 0 | Q69: 15520.92215 | R69: =+R13-R68 -> 0
B70: Breakeven Price to Cover Variable Costs | G70: 11.49994237 | H70: =IF(E10=0,"n/a",(YVarExp-(YTotExp+YTotRet-J10))/E10) -> n/a | I70: Carton
Q71: Enterprise | R71: Enterprise
A72: FIXED COSTS | D72: Quantity | E72: Quantity | F72: Units | G72: $/Unit | H72: $/Unit | I72: Total | J72: Total | K72: Share | L72: Share | M72: Landlord | N72: Landlord | O72: Tenant | P72: Tenant | Q72: Total | R72: Total
B73: Machinery Depreciation
C74: Tractors/Self-Propelled | D74: 1 | F74: Acre | G74: 21.19939026 | I74: 21.19939026 | J74: =E74*H74 -> 0 | K74: 0 | M74: 0 | N74: =J74*L74 -> 0 | O74: 21.19939026 | P74: =+J74-N74 -> 0 | Q74: 847.9756106 | R74: =+J74*E$7 -> 0
C75: Implements | D75: 1 | F75: Acre | G75: 12.27753419 | I75: 12.27753419 | J75: 0 | K75: 0 | M75: 0 | N75: =J75*L75 -> 0 | O75: 12.27753419 | P75: 0 | Q75: 491.1013676 | R75: 0
B76: Equipment Investment
C77: Tractors/Self-Propelled | D77: 165.1500887 | F77: Dollars | G77: 0.085 | I77: 14.03775754 | J77: =E77*H77 -> 0 | K77: 0 | M77: 0 | N77: =J77*L77 -> 0 | O77: 14.03775754 | P77: =+J77-N77 -> 0 | Q77: 561.5103015 | R77: =+J77*E$7 -> 0
C78: Implements | D78: 62.99032932 | F78: Dollars | G78: 0.085 | I78: 5.354177992 | J78: 0 | K78: 0 | M78: 0 | N78: =J78*L78 -> 0 | O78: 5.354177992 | P78: 0 | Q78: 214.1671197 | R78: 0
B79: Salaried Labor | D79: 1 | F79: Acre | G79: 0 | I79: 0 | J79: 0 | K79: 0 | M79: 0 | N79: =J79*L79 -> 0 | O79: 0 | P79: =+J79-N79 -> 0 | Q79: 0 | R79: =+J79*E$7 -> 0
B80: Management Fee, Owner/Operator Labor | D80: 1 | F80: Acre | G80: 0 | I80: 0 | J80: 0 | K80: 0 | M80: 0 | N80: 0 | O80: 0 | P80: 0 | Q80: 0 | R80: 0
B81: Allocated Establishment Cost | D81: 1 | F81: Acre | G81: 0 | I81: 0 | J81: 0 | K81: 0 | M81: 0 | N81: 0 | O81: 0 | P81: 0 | Q81: 0 | R81: 0
B82: Cash Rent, Irrigated Vegetables | D82: 1 | F82: Acre | G82: 110 | I82: 110 | J82: 0 | K82: 0 | M82: 0 | N82: 0 | O82: 110 | P82: 0 | Q82: 4400 | R82: 0
B83: Property Taxes | D83: 1 | F83: Acre | G83: 0 | I83: 0 | J83: 0 | K83: 0 | M83: 0 | N83: 0 | O83: 0 | P83: 0 | Q83: 0 | R83: 0
B84: Whole Farm Insurance | D84: 1 | F84: Acre | G84: 0 | I84: 0 | J84: 0 | K84: 0 | M84: 0 | N84: 0 | O84: 0 | P84: 0 | Q84: 0 | R84: 0
D85: 1 | G85: 0 | I85: 0 | J85: 0 | K85: 0 | M85: 0 | N85: 0 | O85: 0 | P85: 0 | Q85: 0 | R85: 0
D86: 1 | G86: 0 | I86: 0 | J86: =E86*H86 -> 0 | K86: 0 | M86: 0 | N86: 0 | O86: 0 | P86: 0 | Q86: 0 | R86: 0
A87: Total Fixed Costs | I87: 162.86886 | J87: =+SUM(J74:J86) -> 0 | M87: 0 | N87: =+SUM(N74:N86) -> 0 | O87: 162.86886 | P87: =+SUM(P74:P86) -> 0 | Q87: 6514.754399 | R87: =+SUM(R74:R86) -> 0
A88: Total Specified Costs | I88: 4762.845806 | J88: =+J68+J87 -> 0 | M88: 0 | N88: =+N68+N87 -> 0 | O88: 4762.845806 | P88: =+P68+P87 -> 0 | Q88: 190513.8322 | R88: =+R68+R87 -> 0
A90: Returns Above Specified Costs | I90: 225.1541938 | J90: =+J13-J88 -> 0 | M90: 0 | N90: =+N13-N88 -> 0 | O90: 225.1541938 | P90: =+P13-P88 -> 0 | Q90: 9006.167753 | R90: =+R13-R88 -> 0
A92: Breakeven Price to Cover Total Costs | G92: 11.90711452 | H92: =IF(E10=0,"n/a",(YTotExp-(YTotExp+YTotRet-J10))/E10) -> n/a | I92: Carton
D94: Example Breakeven Prices
B95: Example | C95: Example | D95: To Cover | G95: To Cover
B96: Yield | C96: Yield | D96: Variable | G96: Total
B97: Percent | C97: Carton | D97: Costs | G97: Costs
B98: 0.75 | C98: 300 | D98: 15.33325649 | G98: 15.87615269
B99: 0.9 | C99: 360 | D99: 12.77771374 | G99: 13.23012724
B100: 1 | C100: 400 | D100: 11.49994237 | G100: 11.90711452
B101: 1.1 | C101: 440 | D101: 10.45449306 | G101: 10.82464956
B102: 1.25 | C102: 500 | D102: 9.199953892 | G102: 9.525691612
A104: Developed by Manuel Garcia, Assistant Professor and Extension Specialist, Texas A&M AgriLife Extension, 956-968-5581
A106: Information presented is prepared solely as a general guide and not intended to recognize or predict the costs and returns from any one operation. Brand names are mentioned only as examples and imply no endorsement.

Sheet HoneyDew
A1: Projections for Planning Purposes Only -- Not to be Used without Updating
A2: 2025 Estimated Costs and Returns per Acre
A3: Honeydew, Plastic Mulch, Drip Irrigated, Rio Grande Valley
A4: Enter your name for this budget in the cell above.
A5: Enter Your Values in the cells highlighed in MAROON.
E6: Your Acres | R6: Your
C7: Crop Acres | D7: 40 | L7: Your | Q7: Enterprise | R7: Enterprise
E8: Your | H8: Your | I8: Cash | J8: Your | K8: Landlord | L8: Landlord | N8: Your | P8: Your | Q8: Total | R8: Total
A9: REVENUE | D9: Quantity | E9: Quantity | F9: Units | G9: $/Unit | H9: $/Unit | I9: Total | J9: Total | K9: Share | L9: Share | M9: Landlord | N9: Landlord | O9: Tenant | P9: Tenant | Q9: (40 acres) | R9: ="(" & E7 & " acres)" -> ( acres)
B10: Honeydews | D10: 800 | F10: Carton | G10: 10.2 | I10: 8160 | J10: =E10*H10 -> 0 | K10: 0 | M10: 0 | N10: =J10*L10 -> 0 | O10: 8160 | P10: =+J10-N10 -> 0 | Q10: 326400 | R10: =+J10*E$7 -> 0
D11: 0 | G11: 0 | I11: 0 | J11: 0 | K11: 0 | M11: 0 | N11: 0 | O11: 0 | P11: =+J11-N11 -> 0 | Q11: 0 | R11: 0
D12: 0 | G12: 0 | I12: 0 | J12: 0 | K12: 0 | M12: 0 | N12: 0 | O12: 0 | P12: 0 | Q12: 0 | R12: 0
A13: Total Revenue | I13: 8160 | J13: =SUM(J10:J12) -> 0 | M13: 0 | N13: =SUM(N10:N12) -> 0 | O13: 8160 | P13: =SUM(P10:P12) -> 0 | Q13: 326400 | R13: =SUM(R10:R12) -> 0
Q14: Enterprise | R14: Enterprise
A15: VARIABLE COSTS | D15: Quantity | E15: Quantity | F15: Units | G15: $/Unit | H15: $/Unit | I15: Total | J15: Total | K15: Share | L15: Share | M15: Landlord | N15: Landlord | O15: Tenant | P15: Tenant | Q15: Total | R15: Total
A16: Production Costs
B17: Fertilizer
C18: Phosphorus (46% P2O5) | D18: 1.5 | F18: CWT | G18: 40.5 | I18: 60.75 | J18: =E18*H18 -> 0 | K18: 0 | M18: 0 | N18: =J18*L18 -> 0 | O18: 60.75 | P18: =+J18-N18 -> 0 | Q18: 2430 | R18: =+J18*E$7 -> 0
C19: UAN (32% N) | D19: 3.74 | F19: CWT | G19: 19 | I19: 71.06 | J19: 0 | K19: 0 | M19: 0 | N19: 0 | O19: 71.06 | P19: 0 | Q19: 2842.4 | R19: 0
B20: Custom
C21: Bee Rental | D21: 1 | F21: Hive | G21: 85 | I21: 85 | J21: 0 | K21: 0 | M21: 0 | N21: 0 | O21: 85 | P21: 0 | Q21: 3400 | R21: 0
C22: Harvest Honeydew | D22: 800 | F22: Carton | G22: 2.5 | I22: 2000 | J22: 0 | K22: 0 | M22: 0 | N22: 0 | O22: 2000 | P22: 0 | Q22: 80000 | R22: 0
C23: Pack and Count Honeydew | D23: 800 | F23: Carton | G23: 3.5 | I23: 2800 | J23: 0 | K23: 0 | M23: 0 | N23: 0 | O23: 2800 | P23: 0 | Q23: 112000 | R23: 0
B24: Miscellaneous
C25: DripTape (2 seasons) | D25: 6550 | F25: Foot | G25: 0.0319 | I25: 208.945 | J25: 0 | K25: 0 | M25: 0 | N25: 0 | O25: 208.945 | P25: 0 | Q25: 8357.8 | R25: 0
C26: Plastic Mulch, 3x4K' | D26: 0.61 | F26: Roll | G26: 198 | I26: 120.78 | J26: 0 | K26: 0 | M26: 0 | N26: 0 | O26: 120.78 | P26: 0 | Q26: 4831.2 | R26: 0
C27: Sulfuric Acid | D27: 27 | F27: Ounce | G27: 0.2218016206 | I27: 5.988643757 | J27: 0 | K27: 0 | M27: 0 | N27: 0 | O27: 5.988643757 | P27: 0 | Q27: 239.5457503 | R27: 0
B28: Herbicide
C29: Prefar 4E | D29: 2.75 | F29: Quart | G29: 23.795 | I29: 65.43625 | J29: 0 | K29: 0 | M29: 0 | N29: 0 | O29: 65.43625 | P29: 0 | Q29: 2617.45 | R29: 0
B30: Seed
C31: Honeydew Seeds | D31: 0.83 | F31: Pound | G31: 634.7984395 | I31: 526.8827048 | J31: 0 | K31: 0 | M31: 0 | N31: 0 | O31: 526.8827048 | P31: 0 | Q31: 21075.30819 | R31: 0
C32: Honeydew Seedlings | D32: 13 | F32: Thousand | G32: 35 | I32: 455 | J32: 0 | K32: 0 | M32: 0 | N32: 0 | O32: 455 | P32: 0 | Q32: 18200 | R32: 0
B33: Other Labor
C34: Unallocated Labor | D34: 0.8992 | F34: Hour | G34: 15 | I34: 13.488 | J34: 0 | K34: 0 | M34: 0 | N34: 0 | O34: 13.488 | P34: 0 | Q34: 539.52 | R34: 0
C35: Transplant Melons | D35: 8 | F35: Hour | G35: 15 | I35: 120 | J35: 0 | K35: 0 | M35: 0 | N35: 0 | O35: 120 | P35: 0 | Q35: 4800 | R35: 0
C36: Pickup Plastic | D36: 8 | F36: Hour | G36: 15 | I36: 120 | J36: 0 | K36: 0 | M36: 0 | N36: 0 | O36: 120 | P36: 0 | Q36: 4800 | R36: 0
B37: Insecticide
C38: Admire Pro | D38: 0.4375 | F38: Pint | G38: 26.28 | I38: 11.4975 | J38: 0 | K38: 0 | M38: 0 | N38: 0 | O38: 11.4975 | P38: 0 | Q38: 459.9 | R38: 0
C39: Asana XL | D39: 5.8 | F39: Ounce | G39: 0.624609375 | I39: 3.622734375 | J39: 0 | K39: 0 | M39: 0 | N39: 0 | O39: 3.622734375 | P39: 0 | Q39: 144.909375 | R39: 0
B40: Fungicides
C41: Bravo Ultrex | D41: 1 | F41: Pound | G41: 10.23248175 | I41: 10.23248175 | J41: 0 | K41: 0 | M41: 0 | N41: 0 | O41: 10.23248175 | P41: 0 | Q41: 409.2992701 | R41: 0
C42: Quadris | D42: 32 | F42: Ounce | G42: 1.562109375 | I42: 49.9875 | J42: 0 | K42: 0 | M42: 0 | N42: 0 | O42: 49.9875 | P42: 0 | Q42: 1999.5 | R42: 0
D43: 0 | G43: 0 | I43: 0 | J43: 0 | K43: 0 | M43: 0 | N43: 0 | O43: 0 | P43: 0 | Q43: 0 | R43: 0
D44: 0 | G44: 0 | I44: 0 | J44: 0 | K44: 0 | M44: 0 | N44: 0 | O44: 0 | P44: 0 | Q44: 0 | R44: 0
D45: 0 | G45: 0 | I45: 0 | J45: =E45*H45 -> 0 | K45: 0 | M45: 0 | N45: =J45*L45 -> 0 | O45: 0 | P45: =+J45-N45 -> 0 | Q45: 0 | R45: =+J45*E$7 -> 0
B46: Irrigation
C47: Water Cost | D47: 1.176 | F47: Acre/Foot | G47: 33.00680272 | I47: 38.816 | J47: =E47*H47 -> 0 | K47: 0 | M47: 0 | N47: =J47*L47 -> 0 | O47: 38.816 | P47: =+J47-N47 -> 0 | Q47: 1552.64 | R47: =+J47*E$7 -> 0
C48: Irrigation Labor | D48: 0.196 | F48: Hour | G48: 17.5 | I48: 3.43 | J48: 0 | K48: 0 | M48: 0 | N48: 0 | O48: 3.43 | P48: 0 | Q48: 137.2 | R48: 0
B49: Machinery Labor
C50: Tractors/Self-Propelled | D50: 1.36 | F50: Hour | G50: 17.21 | I50: 23.4056 | J50: =E50*H50 -> 0 | K50: 0 | M50: 0 | N50: =J50*L50 -> 0 | O50: 23.4056 | P50: =+J50-N50 -> 0 | Q50: 936.224 | R50: =+J50*E$7 -> 0
C51: Other Labor | D51: 0.41 | F51: Hour | G51: 17.21 | I51: 7.0561 | J51: =E51*H51 -> 0 | K51: 0 | M51: 0 | N51: =J51*L51 -> 0 | O51: 7.0561 | P51: =+J51-N51 -> 0 | Q51: 282.244 | R51: =+J51*E$7 -> 0
B53: Diesel Fuel
C54: Pickup/General Use Equipment | D54: 1 | F54: Acre | G54: 0 | I54: 0 | J54: =E54*H54 -> 0 | K54: 0 | M54: 0 | N54: =J54*L54 -> 0 | O54: 0 | P54: =+J54-N54 -> 0 | Q54: 0 | R54: =+J54*E$7 -> 0
C55: Tractors/Self-Propelled | D55: 8.86 | F55: Gallon | G55: 3.6 | I55: 31.896 | J55: =E55*H55 -> 0 | K55: 0 | M55: 0 | N55: =J55*L55 -> 0 | O55: 31.896 | P55: =+J55-N55 -> 0 | Q55: 1275.84 | R55: =+J55*E$7 -> 0
B57: Gasoline
C58: Pickup/General Use Equipment | D58: 1 | F58: Acre | G58: 0 | I58: 0 | J58: =E58*H58 -> 0 | K58: 0 | M58: 0 | N58: =J58*L58 -> 0 | O58: 0 | P58: =+J58-N58 -> 0 | Q58: 0 | R58: =+J58*E$7 -> 0
C59: Tractors/Self-Propelled | D59: 0 | F59: Gallon | G59: 3.15 | I59: 0 | J59: =E59*H59 -> 0 | K59: 0 | M59: 0 | N59: =J59*L59 -> 0 | O59: 0 | P59: =+J59-N59 -> 0 | Q59: 0 | R59: =+J59*E$7 -> 0
B61: Repairs & Maintenance
C62: Pickup/General Use Equipment | D62: 1 | F62: Acre | G62: 0 | I62: 0 | J62: =E62*H62 -> 0 | K62: 0 | M62: 0 | N62: =J62*L62 -> 0 | O62: 0 | P62: =+J62-N62 -> 0 | Q62: 0 | R62: =+J62*E$7 -> 0
C63: Irrigation Equipment | D63: 1 | F63: Acre | G63: 0 | I63: 0 | J63: 0 | K63: 0 | M63: 0 | N63: 0 | O63: 0 | P63: 0 | Q63: 0 | R63: 0
C64: Tractors/Self-Propelled | D64: 1 | F64: Acre | G64: 20.91972664 | I64: 20.91972664 | J64: 0 | K64: 0 | M64: 0 | N64: 0 | O64: 20.91972664 | P64: 0 | Q64: 836.7890655 | R64: 0
C65: Implements | D65: 1 | F65: Acre | G65: 11.23229272 | I65: 11.23229272 | J65: 0 | K65: 0 | M65: 0 | N65: 0 | O65: 11.23229272 | P65: 0 | Q65: 449.2917087 | R65: 0
I66: 0 | J66: 0 | K66: 0 | M66: 0 | N66: 0 | O66: 0 | P66: 0 | Q66: 0 | R66: 0
I67: 0 | J67: 0 | K67: 0 | M67: 0 | N67: 0 | O67: 0 | P67: 0 | Q67: 0 | R67: 0
B68: Interest on Credit Line | G68: 0.085 | I68: 168.44571 | J68: =+SUM(J17:J67)/2*H68 -> 0 | M68: 0 | N68: =+SUM(N17:N67)/2*L68 -> 0 | O68: 168.44571 | P68: =+SUM(P17:P67)/2*L68 -> 0 | Q68: 6737.828399 | R68: =+J68*E$7 -> 0
A69: Total Variable Costs | I69: 7033.872244 | J69: =SUM(J18:J68) -> 0 | M69: 0 | N69: =SUM(N18:N68) -> 0 | O69: 7033.872244 | P69: =SUM(P18:P68) -> 0 | Q69: 281354.8898 | R69: =SUM(R18:R68) -> 0
A70: Planned Returns Above Variable Costs: | I70: 1126.127756 | J70: =+J13-J69 -> 0 | M70: 0 | N70: =+N13-N69 -> 0 | O70: 1126.127756 | P70: =+P13-P69 -> 0 | Q70: 45045.11024 | R70: =+R13-R69 -> 0
B71: Breakeven Price to Cover Variable Costs | G71: 8.792340305 | H71: =IF(E10=0,"n/a",(YVarExp-(YTotExp+YTotRet-J10))/E10) -> n/a | I71: Carton
Q72: Enterprise | R72: Enterprise
A73: FIXED COSTS | D73: Quantity | E73: Quantity | F73: Units | G73: $/Unit | H73: $/Unit | I73: Total | J73: Total | K73: Share | L73: Share | M73: Landlord | N73: Landlord | O73: Tenant | P73: Tenant | Q73: Total | R73: Total
B74: Machinery Depreciation
C75: Tractors/Self-Propelled | D75: 1 | F75: Acre | G75: 21.61705086 | I75: 21.61705086 | J75: =E75*H75 -> 0 | K75: 0 | M75: 0 | N75: =J75*L75 -> 0 | O75: 21.61705086 | P75: =+J75-N75 -> 0 | Q75: 864.6820344 | R75: =+J75*E$7 -> 0
C76: Implements | D76: 1 | F76: Acre | G76: 12.27753419 | I76: 12.27753419 | J76: 0 | K76: 0 | M76: 0 | N76: =J76*L76 -> 0 | O76: 12.27753419 | P76: 0 | Q76: 491.1013676 | R76: 0
B77: Equipment Investment
C78: Tractors/Self-Propelled | D78: 168.4037994 | F78: Dollars | G78: 0.085 | I78: 14.31432295 | J78: =E78*H78 -> 0 | K78: 0 | M78: 0 | N78: =J78*L78 -> 0 | O78: 14.31432295 | P78: =+J78-N78 -> 0 | Q78: 572.5729181 | R78: =+J78*E$7 -> 0
